Workbook

Sheet Activer les macros (hidden)
E9: =tblText!$B$182 -> Pour plus d’informations sur la manière d'activer les macros, veuillez consulter votre assistance technique ou reportez-vous à la documentation Microsoft ci-dessous.
E14: =tblText!$B$183 -> Ce fichier est optimisé pour Microsoft Excel version 2007 ou ultérieur sur les PC Windows.

Sheet tblNavHist (hidden)
A1: Section | B1: Page | C1: ScrollRow | D1: cnt_DataInst | E1: cnt_DataSource

Sheet uxbWorks (hidden)
A1: SCORE_FORMAT | B1: 100 | C1: {Idea is [ScoreFormat} named range gets a property from this which should be properly internationalised, so can use it in TEXT() formulae
A2: DATA_FORMAT | B2: 0
A3: PROJECT UID | B3: 367-435-275-28764
A4: PROJECT_NAME | B4: =tblText!B4 -> Indice Ibrahim de la Gouvernance en Afrique 2015 (IIAG) Portail des données
A5: PUBLISHER | B5: Mo Ibrahim Foundation
A6: VERSION | B6: v0.1.4
A7: PUBLISH_FILENAME | B7: =tblText!$B$3 -> Portail des données IIAG 2015
A8: EXCEL_EXPORT_FILENAME | B8: 2015_IIAG
A9: PDF_EXPORT_FILENAME | B9: 2015_IIAG
A10: EXCEL_COMMENT | B10: =tblText!$B$6 -> Exporté du Portail des données de l'Indice Ibrahim de la Gouvernance en Afrique 2015
A11: PAGE_HEADER | B11: =tblText!B5 -> Indice Ibrahim de la Gouvernance en Afrique 2015
A13: WIDTH | B13: 1192
A14: LANGUAGE_ID | B14: 2
A15: SHEET_PICKER_ID | B15: 1
A16: MODE_ID | B16: 1
A17: MODE | B17: PRODUCTION
A18: FOLLOW_LINKS | B18: =IF(B17="DEV",FALSE,TRUE) -> TRUE
A20: MUTLIPLE_SECTIONS | B20: TRUE
A22: SHEET_SET_0 | B22: bld_Control,bld_Palette,
A23: SHEET_SET_1 | B23: À propos_0,À propos_1,À propos_2,À propos_3,À propos_4,À propos_5,
A24: SHEET_SET_2 | B24: Principales conclusions_0,Principales conclusions_1,
A25: SHEET_SET_3 | B25: Recherche par pays_0,Recherche par pays_1,Recherche par pays_2,Recherche par pays_3,Recherche par pays_4,Recherche par pays_5,
A26: SHEET_SET_4 | B26: Recherche par groupe_0,Recherche par groupe_1,Recherche par groupe_2,Recherche par groupe_3,Recherche par groupe_4,Recherche par groupe_5,
A27: SHEET_SET_5 | B27: Recherche par indicateur_0,Recherche par indicateur_1,Recherche par indicateur_2,Recherche par indicateur_3,
A28: SHEET_SET_6 | B28: Comparaison_0,Comparaison_1,
A29: SHEET_SET_7 | B29: 2012_Participation,
A30: SHEET_SET_8
A31: SHEET_SET_9
A32: SHEET_SET_10
A34: SHEET_SET_ON_OPEN | B34: À propos_0,Principales conclusions_0,Recherche par pays_0,Recherche par groupe_0,Recherche par indicateur_0,Comparaison_0,
A36: PAGE_HOME | B36: =tblText!$B$17 -> Bienvenue
A40: [ENTITIES]
A41: ENT_NO SELECTION | B41: =tblText!$B$84 -> <aucun>
A42: ENT_ALL | B42: =tblText!$B$85 -> TOUT
A43: ENT_NA | B43: –
A44: ENT_SOURCE | B44: Source
A45: ENT_CHANGE | B45: Δ
A46: ENT_CHANGE_UP | B46: ↑ | C46: ↗
A47: ENT_CHANGE_DOWN | B47: ↓ | C47: ↘
A48: ENT_NO CHANGE | B48: ↔ | C48: ↔
A49: ENT_ARROW_RIGHT | B49: →
A52: [WARNINGS]
A53: WARN_SUDANS | B53: =tblText!$B$170 -> Les données pour le {X} ne sont disponibles qu'à partir de 2011.
A54: WARN_SOMALIA_RURAL | B54: =tblText!$B$169 -> Aucune donnée n'est disponible dans la sous-catégorie Secteur agricole pour la Somalie.
A55: WARN_SUBCAT_LOWSCORE | B55: =tblText!$B$168 -> Les scores les plus faibles ne sont pas visibles/ne peuvent pas être affichés dans le graphique de scores des sous-catégories.
A56: WARN_RAW_DATA | B56: =tblText!$B$171 -> Les données brutes ne sont pas disponibles pour les indicateurs au niveau global/de catégorie/de sous-catégorie. Veuillez sélectionner « Score » ou « Classement ».
A57: WARN_RAW_DATA_SERIES | B57: =B56 -> Les données brutes ne sont pas disponibles pour les indicateurs au niveau global/de catégorie/de sous-catégorie. Veuillez sélectionner « Score » ou « Classement ».
A59: [CONSTANTS]
A60: COUNTRY_COUNT | B60: 54
A61: SERIES_COUNT | B61: 199
A63: DATA_INST_COUNT | B63: 33
A64: DATA_SOURCE_COUNT | B64: 38
A66: CURRENT_YEAR | B66: 15 | C66: =B66+1999 -> 2014
A68: CONF_INTERVAL | B68: 0.9
A69: CONF_CONST | B69: =-NORMSINV((1-B68)/2) -> 1.644853627
A71: AFRICA_COUNTRY_ID | B71: 57
A73: [CONTROL PARAMS]
A74: nav_historyID | B74: 2
A76: [SHARED VARS]
A77: cnt_CountryHighlight | B77: 1 | C77: [AlphaID, not CountryID]
A78: cnt_GroupHighlight | B78: 1
A80: GROUP_HIGHLIGHT_CODE | B80: =INDEX(tblCountries!$C$58:$C$75,B78) -> G1
A81: GROUP_HIGHLIGHT_ID | B81: =MATCH(B80,tblCountries!$C$2:$C$75,0) -> 57
A83: cnt_CompYear | B83: 12 | C83: =B83+1999 -> 2011 | D83: =SUBSTITUTE(tblText!$B$64,"{X}",C83) -> Évolution depuis 2011 | E83: =CONCATENATE($B$45, " = ",D83) -> Δ = Évolution depuis 2011
A84: cnt_CompYear2 | B84: =$B$66 -> 15 | C84: =B84+1999 -> 2014 | D84: =CONCATENATE(C84," ",tblText!$B$48) -> 2014 Score | G84: {currently fixed to latest year}
A85: cnt_CY1_Start | B85: 12 | C85: 2011
A86: cnt_CY1_End | B86: 14
A87: CY1_END | B87: =B86+1 -> 15 | C87: =B87+1999 -> 2014
A88: cnt_CY2_Start | B88: 1 | C88: 2000
A89: cnt_CY2_End | B89: 14
A90: CY2_END | B90: =B89+1 -> 15 | C90: =B90+1999 -> 2014
A92: Comp period | B92: =CONCATENATE(B83+1999,"-",B84+1999) -> 2011-2014
A93: Yoy_Change1_Period | B93: =CONCATENATE(B85+1999,"-",B87+1999) -> 2011-2014
A94: Yoy_Change2_Period | B94: =CONCATENATE(B88+1999,"-",B90+1999) -> 2000-2014
A98: [SHARED VARS _ DATA TABLES]
A99: cnt_SortBy | B99: 1 | C99: =INDEX(tblLookups!$N$2:$N$4,B99) -> Trié par ordre alphabétique | D99: =IF(B99=3,CONCATENATE(C99," ",$B$93),C99) -> Trié par ordre alphabétique | E99: =IF(B99=3,CONCATENATE(C99," ",B92),C99) -> Trié par ordre alphabétique
A100: cnt_Metric | B100: 1 | C100: =INDEX(tblLookups!H$2:H$5,$B100) -> Score | D100: =INDEX(tblLookups!I$2:I$5,$B100) -> Score/ 100; 100=le plus élevé | E100: =INDEX(tblLookups!J$2:J$5,$B100) -> 0
A101: cnt_PP_Hilite | B101: 1 | C101: =IF(B101=2,TRUE,FALSE) -> FALSE
A102: cnt_CountryGroup | B102: 1
A103: cnt_CountryMirror | B103: =B102 -> 1
A104: cnt_CountryGroup2 | B104: 54
A105: cnt_CountryGroup3 | B105: 1 | D105: This one allows <none>
A106: cnt_GroupFilter | B106: 1
A110: COUNTRY_GROUP_ALPHA_ID | B110: =B102+1 -> 2 | C110: =B110 -> 2
A111: COUNTRY_GROUP_ID | B111: =INDEX(luCountryID,C110) -> 46
A112: SELECTION_IS_GROUP | B112: =IF(B111>55,1,0) -> 0
A113: COUNTRY_GROUP_NAME | B113: =INDEX(tblCountries!G$2:G$200,$C110) -> Afrique du Sud | C113: =IF(B112=0,B113,CONCATENATE(B113," (",tblText!$B$58,")")) -> Afrique du Sud
A114: COUNTRY_GROUP_SHORT_NAME | B114: =INDEX(tblCountries!H$2:H$200,$C110) -> Afrique du Sud | C114: =IF(B112=0,B114,CONCATENATE(B114," (",tblText!$B$58,")")) -> Afrique du Sud
A115: COUNTRY_GROUP_RANK_COUNT | B115: =INDEX(tblCountries!$N$2:$N$75,$B$110) -> 54 | C115: =SUBSTITUTE(tblText!$B$55,"{X}",$B115) -> Classement / 54; 1 = le plus élevé
A116: COUNTRY_GROUP_METRIC | B116: =CHOOSE($B$100,$D$100,C115,$D$100,$D$100) -> Score/ 100; 100=le plus élevé
E119: IF NEED TO MAKE COUNTRY EXPLORER COUNTRY ONLY, SWAP THE [COUNTRY_GROUP] CONTROL ON [TRENDS] * 2 and [SERIES_EXPLORER OVERVIEW] for a new control and hook up [COUNTRY_GROUP_MIRROR_ALPHA_ID] to that.
A120: COUNTRY_GROUP_MIRROR_ALPHA_ID | B120: =B103+1 -> 2 | C120: =B120 -> 2 | E120: WOULD ALSO NEED TO HOOK UP ANY DOUBLE CLICK INTERACTIVES TO SET cnt_CountryMirror based on cnt_CountryGroup
A121: COUNTRY_GROUP_MIRROR_ID | B121: =INDEX(luCountryID,C120) -> 46
A122: COUNTRY_GROUP_MIRROR_IS_GROUP | B122: =IF(B121>55,1,0) -> 0
A123: COUNTRY_GROUP_MIRROR_NAME | B123: =INDEX(tblCountries!G$2:G$200,$C120) -> Afrique du Sud | C123: =IF(B122=0,B123,CONCATENATE(B123," (",tblText!$B$58,")")) -> Afrique du Sud
A124: COUNTRY_GROUP_MIRROR_SHORT_NAME | B124: =INDEX(tblCountries!H$2:H$200,$C120) -> Afrique du Sud | C124: =IF(B122=0,B124,CONCATENATE(B124," (",tblText!$B$58,")")) -> Afrique du Sud
C127: DUPE REMOVER
A128: COUNTRY_GROUP_2_ALPHA_ID | B128: =B104+1 -> 55 | C128: =B128 -> 55
A129: COUNTRY_GROUP_2_ID | B129: =INDEX(luCountryID,C128) -> 55
A130: COUNTRY_GROUP_2_NAME | B130: =INDEX(tblCountries!G$2:G$200,$C128) -> Zimbabwe | C130: =IF(B132=0,B130,CONCATENATE(B130," (",tblText!$B$58,")")) -> Zimbabwe
A131: COUNTRY_GROUP_2_SHORT_NAME | B131: =INDEX(tblCountries!H$2:H$200,$C128) -> Zimbabwe | C131: =IF(B132=0,B131,CONCATENATE(B131," (",tblText!$B$58,")")) -> Zimbabwe
A132: SELECTION_2_IS_GROUP | B132: =IF(B129>55,1,0) -> 0
A134: COUNTRY_GROUP_3_ALPHA_ID | B134: =B105 -> 1 | C134: =B134 -> 1 | D134: This one allows <none>
A135: COUNTRY_GROUP_3_ID | B135: =INDEX(luCountryID,C134) -> 1
A136: COUNTRY_GROUP_3_NAME | B136: =INDEX(tblCountries!G$2:G$200,$C134) -> <aucun> | C136: =IF(B138=0,B136,CONCATENATE(B136," (",tblText!$B$58,")")) -> <aucun>
A137: COUNTRY_GROUP_3_SHORT_NAME | B137: =INDEX(tblCountries!H$2:H$200,$C134) -> <aucun> | C137: =IF(B138=0,B137,CONCATENATE(B137," (",tblText!$B$58,")")) -> <aucun>
A138: SELECTION_3_IS_GROUP | B138: =IF(B135>55,1,0) -> 0
A140: DATA_TABLE_HAS_ESTIMATE_TRIM | B140: =IF(E100=1,TRUE,FALSE) -> FALSE
A141: DATA_TABLE_NUM_FORMAT | B141: =CHOOSE(B100,"0.0","0","#,##0.0") -> 0.0 | C141: =CHOOSE(B100,Score_Format,"0",Data_Format,Data_Format) -> 0.0
A142: DATA_TABLE_NUM_FORMAT_GROUP | B142: =CHOOSE(B260,"0.0","0","#,##0.0") -> 0.0 | C142: =CHOOSE(B260,Score_Format,"0",Data_Format,Data_Format) -> 0.0 | D142: only allows score/rank
A144: DATA_TABLE_UNIT_GROUP | B144: =CHOOSE($B$260,$D$100,C154,$D$100) -> Score/ 100; 100=le plus élevé
A148: FILTERED_COUNTRY_COUNT | B148: =SUM(tblCountries!K$3:K$56) -> 54
A151: GROUP_FILTER_ALPHA_ID | B151: =B106+56 -> 57
A152: GROUP_FILTER_ID | B152: =INDEX(tblCountries!$B$58:$B$75,B106) -> 57 | C152: =INDEX(tblCountries!$D$58:$D$75,B106) -> Afrique | D152: =CONCATENATE(C152," (",tblText!$B$58,")") -> Afrique (Moyenne) | E152: (nb not the same as the Alpha ID …)
A153: GROUP_FILTER_CODE | B153: =INDEX(tblCountries!$C$2:$C$75,MATCH(B152,luCountryID,0)) -> G1
A154: GROUP_FIILTER_RANK_COUNT | B154: =INDEX(tblCountries!$N$58:$N$75,B106) -> . | C154: =SUBSTITUTE(tblText!$B$55,"{X}",$B154) -> Classement / .; 1 = le plus élevé
A155: GROUP_FILTER_MEMBERS | B155: =SUM(OFFSET(tblCountries!$Q$3:$Q$56,0,$B$152-57)) -> 54 | C155: =SUBSTITUTE(tblText!$B$55,"{X}",$B155) -> Classement / 54; 1 = le plus élevé
B156: =CHOOSE($B$100,$D$100,C154,$D$100) -> Score/ 100; 100=le plus élevé
A159: [DATA INSTITUION]
A160: cnt_DataInst | B160: 1 | C160: =INDEX(mdSourceInst!C$2:C$40,$B160) -> <aucun> | D160: =INDEX(mdSourceInst!D$2:D$40,$B160) -> TOUT | E160: =INDEX(mdSourceInst!E$2:E$40,$B160) -> <aucun> | F160: =INDEX(mdSourceInst!F$2:F$40,$B160) -> <aucun> | G160: =INDEX(mdSourceInst!G$2:G$40,$B160) -> <aucun> | H160: =INDEX(mdSourceInst!H$2:H$40,$B160) -> 0 | I160: =INDEX(mdSourceInst!I$2:I$40,$B160) -> 0 | J160: =INDEX(mdSourceInst!J$2:J$40,$B160) -> 1 | K160: =INDEX(mdSourceInst!K$2:K$40,$B160) -> 1 | L160: =INDEX(mdSourceInst!L$2:L$40,$B160) -> 1 | M160: =INDEX(mdSourceInst!M$2:M$40,$B160) -> 0 | N160: =INDEX(mdSourceInst!N$2:N$40,$B160) -> 0 | O160: =INDEX(mdSourceInst!O$2:O$40,$B160) -> 0
A161: DataInst_Source_1 | B161: =J160 -> 1
A162: DataInst_Source_2 | B162: =K160 -> 1
A163: DataInst_Source_3 | B163: =L160 -> 1
A164: DataInst_Source_4 | B164: =M160 -> 0
C167: =mdSources!B1 -> SourceID | D167: =mdSources!C1 -> Institution1 | E167: =mdSources!D1 -> Institution2 | F167: =mdSources!E1 -> Institution3 | G167: =mdSources!F1 -> Nom de la source de données | H167: =mdSources!G1 -> Dernière consultation | I167: =mdSources!H1 -> Petits caractères | J167: =mdSources!I1 -> Abbréviation de la source de données | K167: =mdSources!J1 -> Description de la source de données | L167: =mdSources!K1 -> Fréquence de la publication | M167: =mdSources!L1 -> Type de données | N167: =mdSources!M1 -> Accès | O167: =mdSources!N1 -> Lien vers la source de données | P167: =mdSources!O1 -> Lien vers la méthodologie | Q167: =mdSources!P1 -> {Insts} | R167: =mdSources!Q1 -> {Insts} | S167: =mdSources!R1 -> Series#1 | T167: =mdSources!S1 -> Series#2 | U167: =mdSources!T1 -> Series#3 | V167: =mdSources!U1 -> Series#4 | W167: =mdSources!V1 -> Series#5 | X167: =mdSources!W1 -> Series#6 | Y167: =mdSources!X1 -> Series#7 | Z167: =mdSources!Y1 -> Series#8 | AA167: =mdSources!Z1 -> Series#9 | AB167: =mdSources!AA1 -> Series#10 | AC167: =mdSources!AB1 -> Series#11 | AD167: =mdSources!AC1 -> Series#12 | AE167: =mdSources!AD1 -> Series#13 | AF167: =mdSources!AE1 -> Series#14 | AG167: =mdSources!AF1 -> Series#15 | AH167: =mdSources!AG1 -> Series#16 | AI167: =mdSources!AH1 -> Series#17 | AJ167: =mdSources!AI1 -> Series#18 | AK167: =mdSources!AJ1 -> Series#19
A168: cnt_DataSource | B168: 1 | C168: =INDEX(mdSources!B$2:B$50,$B168) -> 0 | D168: =INDEX(mdSources!C$2:C$50,$B168) -> <aucun> | E168: =INDEX(mdSources!D$2:D$50,$B168) -> <aucun> | F168: =INDEX(mdSources!E$2:E$50,$B168) -> <aucun> | G168: =INDEX(mdSources!F$2:F$50,$B168) -> TOUT | H168: =INDEX(mdSources!G$2:G$50,$B168) -> <aucun> | I168: =INDEX(mdSources!H$2:H$50,$B168) -> <aucun> | J168: =INDEX(mdSources!I$2:I$50,$B168) -> <aucun> | K168: =INDEX(mdSources!J$2:J$50,$B168) -> <aucun> | L168: =INDEX(mdSources!K$2:K$50,$B168) -> <aucun> | M168: =INDEX(mdSources!L$2:L$50,$B168) -> <aucun> | N168: =INDEX(mdSources!M$2:M$50,$B168) -> <aucun> | O168: =INDEX(mdSources!N$2:N$50,$B168) -> <aucun> | P168: =INDEX(mdSources!O$2:O$50,$B168) -> – | Q168: =INDEX(mdSources!P$2:P$50,$B168) -> 0 | R168: =INDEX(mdSources!Q$2:Q$50,$B168) -> 0 | S168: =INDEX(mdSources!R$2:R$50,$B168) -> 0 | T168: =INDEX(mdSources!S$2:S$50,$B168) -> 0 | U168: =INDEX(mdSources!T$2:T$50,$B168) -> 0 | V168: =INDEX(mdSources!U$2:U$50,$B168) -> 0 | W168: =INDEX(mdSources!V$2:V$50,$B168) -> 0 | X168: =INDEX(mdSources!W$2:W$50,$B168) -> 0 | Y168: =INDEX(mdSources!X$2:X$50,$B168) -> 0 | Z168: =INDEX(mdSources!Y$2:Y$50,$B168) -> 0 | AA168: =INDEX(mdSources!Z$2:Z$50,$B168) -> 0 | AB168: =INDEX(mdSources!AA$2:AA$50,$B168) -> 0 | AC168: =INDEX(mdSources!AB$2:AB$50,$B168) -> 0 | AD168: =INDEX(mdSources!AC$2:AC$50,$B168) -> 0 | AE168: =INDEX(mdSources!AD$2:AD$50,$B168) -> 0 | AF168: =INDEX(mdSources!AE$2:AE$50,$B168) -> 0 | AG168: =INDEX(mdSources!AF$2:AF$50,$B168) -> 0 | AH168: =INDEX(mdSources!AG$2:AG$50,$B168) -> 0 | AI168: =INDEX(mdSources!AH$2:AH$50,$B168) -> 0 | AJ168: =INDEX(mdSources!AI$2:AI$50,$B168) -> 0 | AK168: =INDEX(mdSources!AJ$2:AJ$50,$B168) -> 0
A169: Source_Inst_1 | B169: =MATCH(D168,mdSourceInst!$C$2:$C$35,0) -> 1 | C169: =INDEX(ddDataInst_Plus_None,B169) -> TOUT
A170: Source_Inst_2 | B170: =IF(E168=0,1,MATCH(E168,mdSourceInst!$C$2:$C$35,0)) -> 1 | C170: =INDEX(ddDataInst_Plus_None,B170) -> TOUT
A171: Source_Inst_3 | B171: =IF(F168=0,1,MATCH(F168,mdSourceInst!$C$2:$C$35,0)) -> 1 | C171: =INDEX(ddDataInst_Plus_None,B171) -> TOUT
A173: Source_Series_1 | B173: =INDEX($S$168:$AL$168,G173) -> 0 | C173: =IF($B173=0,"",CONCATENATE(E173, " ",$B$49," ",D173)) ->  | D173: =IF($B173=0,"",INDEX(tblSeries!$AZ$2:$AZ$200,$B173)) ->  | E173: =IF($B173=0,"",INDEX(tblSeries!$AX$2:$AX$200,$B173)) ->  | G173: 1
A174: Source_Series_2 | B174: =INDEX($S$168:$AL$168,G174) -> 0 | C174: =IF($B174=0,"",CONCATENATE(E174, " ",$B$49," ",D174)) ->  | D174: =IF($B174=0,"",INDEX(tblSeries!$AZ$2:$AZ$200,$B174)) ->  | E174: =IF($B174=0,"",INDEX(tblSeries!$AX$2:$AX$200,$B174)) ->  | G174: 2
A175: Source_Series_3 | B175: 0 | D175: =IF($B175=0,"",INDEX(tblSeries!$AZ$2:$AZ$200,$B175)) ->  | E175: =IF($B175=0,"",INDEX(tblSeries!$AX$2:$AX$200,$B175)) ->  | G175: 3
A176: Source_Series_4 | B176: 0 | D176: =IF($B176=0,"",INDEX(tblSeries!$AZ$2:$AZ$200,$B176)) ->  | E176: =IF($B176=0,"",INDEX(tblSeries!$AX$2:$AX$200,$B176)) ->  | G176: 4
A177: Source_Series_5 | B177: 0 | D177: =IF($B177=0,"",INDEX(tblSeries!$AZ$2:$AZ$200,$B177)) ->  | E177: =IF($B177=0,"",INDEX(tblSeries!$AX$2:$AX$200,$B177)) ->  | G177: 5
A178: Source_Series_6 | B178: 0 | D178: =IF($B178=0,"",INDEX(tblSeries!$AZ$2:$AZ$200,$B178)) ->  | E178: =IF($B178=0,"",INDEX(tblSeries!$AX$2:$AX$200,$B178)) ->  | G178: 6
A179: Source_Series_7 | B179: 0 | D179: =IF($B179=0,"",INDEX(tblSeries!$AZ$2:$AZ$200,$B179)) ->  | E179: =IF($B179=0,"",INDEX(tblSeries!$AX$2:$AX$200,$B179)) ->  | G179: 7
A180: Source_Series_8 | B180: 0 | D180: =IF($B180=0,"",INDEX(tblSeries!$AZ$2:$AZ$200,$B180)) ->  | E180: =IF($B180=0,"",INDEX(tblSeries!$AX$2:$AX$200,$B180)) ->  | G180: 8
A181: Source_Series_9 | B181: 0 | D181: =IF($B181=0,"",INDEX(tblSeries!$AZ$2:$AZ$200,$B181)) ->  | E181: =IF($B181=0,"",INDEX(tblSeries!$AX$2:$AX$200,$B181)) ->  | G181: 9
A182: Source_Series_10 | B182: 0 | D182: =IF($B182=0,"",INDEX(tblSeries!$AZ$2:$AZ$200,$B182)) ->  | E182: =IF($B182=0,"",INDEX(tblSeries!$AX$2:$AX$200,$B182)) ->  | G182: 10
A183: Source_Series_11 | B183: 0 | D183: =IF($B183=0,"",INDEX(tblSeries!$AZ$2:$AZ$200,$B183)) ->  | E183: =IF($B183=0,"",INDEX(tblSeries!$AX$2:$AX$200,$B183)) ->  | G183: 11
A184: Source_Series_12 | B184: 0 | D184: =IF($B184=0,"",INDEX(tblSeries!$AZ$2:$AZ$200,$B184)) ->  | E184: =IF($B184=0,"",INDEX(tblSeries!$AX$2:$AX$200,$B184)) ->  | G184: 12
A185: Source_Series_13 | B185: 0 | D185: =IF($B185=0,"",INDEX(tblSeries!$AZ$2:$AZ$200,$B185)) ->  | E185: =IF($B185=0,"",INDEX(tblSeries!$AX$2:$AX$200,$B185)) ->  | G185: 13
A186: Source_Series_14 | B186: 0 | D186: =IF($B186=0,"",INDEX(tblSeries!$AZ$2:$AZ$200,$B186)) ->  | E186: =IF($B186=0,"",INDEX(tblSeries!$AX$2:$AX$200,$B186)) ->  | G186: 14
A187: Source_Series_15 | B187: 0 | D187: =IF($B187=0,"",INDEX(tblSeries!$AZ$2:$AZ$200,$B187)) ->  | E187: =IF($B187=0,"",INDEX(tblSeries!$AX$2:$AX$200,$B187)) ->  | G187: 15
A188: Source_Series_16 | B188: 0 | D188: =IF($B188=0,"",INDEX(tblSeries!$AZ$2:$AZ$200,$B188)) ->  | E188: =IF($B188=0,"",INDEX(tblSeries!$AX$2:$AX$200,$B188)) ->  | G188: 16
A189: Source_Series_17 | B189: 0 | D189: =IF($B189=0,"",INDEX(tblSeries!$AZ$2:$AZ$200,$B189)) ->  | E189: =IF($B189=0,"",INDEX(tblSeries!$AX$2:$AX$200,$B189)) ->  | G189: 17
A190: Source_Series_18 | B190: 0 | D190: =IF($B190=0,"",INDEX(tblSeries!$AZ$2:$AZ$200,$B190)) ->  | E190: =IF($B190=0,"",INDEX(tblSeries!$AX$2:$AX$200,$B190)) ->  | G190: 18
A191: Source_Series_19 | B191: 0 | D191: =IF($B191=0,"",INDEX(tblSeries!$AZ$2:$AZ$200,$B191)) ->  | E191: =IF($B191=0,"",INDEX(tblSeries!$AX$2:$AX$200,$B191)) ->  | G191: 19
A192: Source_Series_20 | B192: 0 | D192: =IF($B192=0,"",INDEX(tblSeries!$AZ$2:$AZ$200,$B192)) ->  | E192: =IF($B192=0,"",INDEX(tblSeries!$AX$2:$AX$200,$B192)) ->  | G192: 20
A194: [KEY FINDINGS]
A195: cnt_CatFilter_2 | B195: 1
A196: cnt_ShowConf | B196: FALSE
A198: [KEY FINDINGS]->[SIGNIFICANT CHANGES]
A199: cnt_ConfInterval | B199: 2 | C199: =INDEX(tblLookups!Y$2:Y$5,$B199) -> 0.9 | D199: =INDEX(tblLookups!Z$2:Z$5,$B199) -> 0.9 | E199: =-NORMSINV((1-D199)/2) -> 1.644853627
A200: cnt_SC_Start | B200: 12 | C200: =B200+1999 -> 2011
A201: cnt_SC_End | B201: 14
A202: SC_END | B202: =B201+1 -> 15 | C202: =B202+1999 -> 2014
A204: [KEY FINDINGS]->[TRENDS]
A205: cnt_Group_Group | B205: 1
A207: grp_grp_1_ID | B207: =IFERROR(INDEX(luCountryID,G207),1) -> 61 | C207: =IF(B207=1,"",INDEX(tblCountries!$D$2:$D$75,G207)) -> Afrique australe | E207: 1 | F207: =INDEX(tblCountries!$C$87:$E$94,$E207,$B$205) -> G5 | G207: =MATCH(F207,tblCountries!$C$2:$C$75,0) -> 58
A208: grp_grp_2_ID | B208: 58 | C208: =IF(B208=1,"",INDEX(tblCountries!$D$2:$D$75,G208)) -> Afrique centrale | E208: 2 | F208: =INDEX(tblCountries!$C$87:$E$94,$E208,$B$205) -> G2 | G208: =MATCH(F208,tblCountries!$C$2:$C$75,0) -> 59
A209: grp_grp_3_ID | B209: 59 | C209: =IF(B209=1,"",INDEX(tblCountries!$D$2:$D$75,G209)) -> Afrique de l'Est | E209: 3 | F209: =INDEX(tblCountries!$C$87:$E$94,$E209,$B$205) -> G3 | G209: =MATCH(F209,tblCountries!$C$2:$C$75,0) -> 60
A210: grp_grp_4_ID | B210: 62 | C210: =IF(B210=1,"",INDEX(tblCountries!$D$2:$D$75,G210)) -> Afrique de l'Ouest | E210: 4 | F210: =INDEX(tblCountries!$C$87:$E$94,$E210,$B$205) -> G6 | G210: =MATCH(F210,tblCountries!$C$2:$C$75,0) -> 61
A211: grp_grp_5_ID | B211: 60 | C211: =IF(B211=1,"",INDEX(tblCountries!$D$2:$D$75,G211)) -> Afrique du Nord | E211: 5 | F211: =INDEX(tblCountries!$C$87:$E$94,$E211,$B$205) -> G4 | G211: =MATCH(F211,tblCountries!$C$2:$C$75,0) -> 62
A212: grp_grp_6_ID | B212: 1 | C212: =IF(B212=1,"",INDEX(tblCountries!$D$2:$D$75,G212)) ->  | E212: 6 | F212: =INDEX(tblCountries!$C$87:$E$94,$E212,$B$205) -> 0 | G212: =MATCH(F212,tblCountries!$C$2:$C$75,0) -> 
A213: grp_grp_7_ID | B213: 1 | C213: =IF(B213=1,"",INDEX(tblCountries!$D$2:$D$75,G213)) ->  | E213: 7 | F213: =INDEX(tblCountries!$C$87:$E$94,$E213,$B$205) -> 0 | G213: =MATCH(F213,tblCountries!$C$2:$C$75,0) -> 
A214: grp_grp_8_ID | B214: 1 | C214: =IF(B214=1,"",INDEX(tblCountries!$D$2:$D$75,G214)) ->  | E214: 8 | F214: =INDEX(tblCountries!$C$87:$E$94,$E214,$B$205) -> 0 | G214: =MATCH(F214,tblCountries!$C$2:$C$75,0) -> 
A216: [COUNTRY EXPLORER]
A219: CE_SUDAN_WARNING | B219: =IF(OR($B$111=47,$B$111=48),SUBSTITUTE(tblText!$B$170,"{X}",$B$113),"") ->  | E219: General warning for country explorer pages (sudan from 2011)
A221: cnt_CatFilter | B221: 1 | C221: =B221-1 -> 0 | D221: =INDEX(tblSeriesSets!$E$3:$E$7,B221) -> TOUT
A223: [CHARTS]
A224: C1_TITLE | B224: =tblText!$B$163 -> Score global et scores par catégorie | C224: =CONCATENATE(B224,", 2000 -",$C$84) -> Score global et scores par catégorie, 2000 -2014
A225: C2_TITLE | B225: =tblText!$B$164 -> Scores par catégorie | C225: =CONCATENATE(B225,", ",$C$84) -> Scores par catégorie, 2014
A226: C3_TITLE | B226: =tblText!$B$165 -> Scores par sous-catégorie | C226: =CONCATENATE(B226,", ",$C$84) -> Scores par sous-catégorie, 2014
A227: C4_TITLE | B227: =tblText!$B$164 -> Scores par catégorie | C227: =CONCATENATE(B227,", ",$C$83, " / ", $C$84) -> Scores par catégorie, 2011 / 2014
A228: CE_CHART_WARN
A230: [TRENDS]
A231: cnt_Chart_Cat | B231: 1
A232: CE_TRENDS_WARN
A234: [INDICATOR]
A235: CE_INDICATOR_TABLE_HEAD | B235: =IF(B221=1,tblText!$B$256,SUBSTITUTE(tblText!$B$255,"{X}",PROPER(D221))) -> Performance des indicateurs, toutes catégories | C235: =SUBSTITUTE(SUBSTITUTE(SUBSTITUTE($B235," Of "," of ")," Et "," et ")," De "," de ") -> Performance des indicateurs, toutes catégories
A237: [DATA TABLE]
A238: hi_SeriesHilite | B238: 0
A239: cnt_TableDepth | B239: 1 | C239: =INDEX(tblLookups!Q$2:Q$5,$B239) -> Catégorie | D239: =INDEX(tblLookups!R$2:R$5,$B239) -> 1
A240: CE_DATA_TABLE_WARN
A241: CE_ESTIMATE_IN_TABLE | B241: =IF(C241=0,0,1) -> 0 | C241: ='Recherche par pays_4'!AF30 -> 0
A242: CE_TRIM_IN_TABLE | B242: =IF(C242=0,0,1) -> 0 | C242: ='Recherche par pays_4'!AF31 -> 0
A244: CE_RANK_OUT_OF | B244: =INDEX(tblCountries!$N$2:$N$75,$B$110) -> 54
A245: CE_COMPARISON_GROUP | B245: =INDEX(tblCountries!$J$2:$J$75,$B$110) -> 1
A246: CE_DATA_TABLE_GROUP_RANK_NOTE | B246: =IF($B$112=0,"",IF($B$100<>2,"",IF(B244=".",tblText!$B$174,CONCATENATE(tblText!$B$175," ",$B$245)))) -> 
A247: CE_DATA_TABLE_GROUP_RAW_WARN | B247: =IF(B240<>"","",IF(AND($B$112=1,$B$100>=3),tblText!$B$172,"")) -> 
A248: CE_DATA_TABLE_RAW_DATA_NOTE | B248: =IF(B240<>"","",CHOOSE($B$100,"","","","")) -> 
A250: CE_FINAL_DATA_TABLE_WARN | B250: =TRIM(CONCATENATE(B240,B246,B247,B248)) -> 
A252: [ADDITIONAL DATA]
A253: cnt_AddDataSeries | B253: 1
A254: cnt_Composite | B254: 1
A257: [GROUP EXPLORER]
A259: [GROUP EXPLORER]->[OVERVIEW]
A260: cnt_Metric2 | B260: 1 | C260: =INDEX(tblLookups!H$2:H$4,$B260) -> Score | D260: =INDEX(tblLookups!I$2:I$4,$B260) -> Score/ 100; 100=le plus élevé
A261: cnt_TableMetric_Grp | B261: =B260 -> 1 | C261: =INDEX(tblLookups!H$2:H$4,$B261) -> Score | D261: =INDEX(tblLookups!I$2:I$4,$B261) -> Score/ 100; 100=le plus élevé
... 46 more rows

Sheet iCharts (hidden)
A1: CONF_CONST | B1: =uxbWorks!$B$69 -> 1.644853627
A2: CHART_CAT | B2: =uxbWorks!$B$231 -> 1
A3: COUNTRY_1_ID | B3: =uxbWorks!$B$121 -> 46 | C3: =uxbWorks!$C$124 -> Afrique du Sud
A4: COUNTRY_2_ID | B4: =uxbWorks!$B$129 -> 55 | C4: =uxbWorks!$C$131 -> Zimbabwe
A5: COUNTRY_3_ID | B5: =uxbWorks!$B$135 -> 1 | C5: =uxbWorks!$C$137 -> <aucun>
A6: SERIES_1_ID | B6: =uxbWorks!$B$283 -> 1
A7: COMP_YEAR | B7: =uxbWorks!$B$83 -> 12 | C7: =uxbWorks!$C$83 -> 2011
A8: CURRENT_YEAR | B8: =uxbWorks!$B$84 -> 15 | C8: =uxbWorks!$C$84 -> 2014
E9: Legend Text
E10: =tblText!B46 -> Année
E11: =tblText!B48 -> Score
E12: =tblText!B58 -> Moyenne
E13: =tblText!#REF! -> 
E14: =tblText!B147 -> Échelle des scores de tous les pays
E15: =tblText!B148 -> Moyenne africaine
E19: TIME-SERIES AXIS
G20: 1 | H20: 2 | I20: 3 | J20: 4 | K20: 5 | L20: 6 | M20: 7 | N20: 8 | O20: 9 | P20: 10 | Q20: 11 | R20: 12 | S20: 13 | T20: 14 | U20: 15
G21: =INDEX(lu_Year,G20) -> 2000 | H21: 2001 | I21: 2002 | J21: 2003 | K21: 2004 | L21: 2005 | M21: 2006 | N21: 2007 | O21: 2008 | P21: 2009 | Q21: 2010 | R21: 2011 | S21: 2012 | T21: 2013 | U21: 2014
G22: =G21 -> 2000 | H22: =RIGHT(H21,2) -> 01 | I22: =RIGHT(I21,2) -> 02 | J22: 03 | K22: 04 | L22: 05 | M22: 06 | N22: 07 | O22: 08 | P22: 09 | Q22: 10 | R22: 11 | S22: 12 | T22: 13 | U22: 14
G23: =G22 -> 2000 | I23: =I22 -> 02 | K23: 04 | M23: 06 | O23: 08 | Q23: 10 | S23: 12 | U23: 14
E25: ART HACK | F25: If selected series is ART, surpress 2000-2009
G26: =IF(OR($B$6=196,$B$6=197,$B$6=198),0,1) -> 1 | H26: =IF(OR($B$6=196,$B$6=197,$B$6=198),0,1) -> 1 | I26: 1 | J26: 1 | K26: 1 | L26: 1 | M26: 1 | N26: 1 | O26: 1 | P26: 1 | Q26: 1 | R26: 1 | S26: 1 | T26: 1 | U26: 1
E28: RESOLVE DATA ROWS
C29: 1 | D29: =INDEX(tblSeriesSets!$C$67:$G$71,$C29,$B$2) -> 1 | E29: =D29 -> 1 | F29: =INDEX(ddSeries,E29) -> SCORE GLOBAL | G29: =MATCH(CONCATENATE($E29,"_",G$20),luSeries,0) -> 1 | H29: 200 | I29: 399 | J29: 598 | K29: 797 | L29: 996 | M29: 1195 | N29: 1394 | O29: 1593 | P29: 1792 | Q29: 1991 | R29: 2190 | S29: 2389 | T29: 2588 | U29: 2787
C30: =tblSeriesSets!A23 -> 2 | D30: =INDEX(tblSeriesSets!$C$67:$G$71,$C30,$B$2) -> 2 | E30: =D30 -> 2 | F30: SÉCURITÉ ET ÉTAT DE DROIT | G30: 2 | H30: 201 | I30: 400 | J30: 599 | K30: 798 | L30: 997 | M30: 1196 | N30: 1395 | O30: 1594 | P30: 1793 | Q30: 1992 | R30: 2191 | S30: 2390 | T30: 2589 | U30: 2788
C31: =tblSeriesSets!A24 -> 3 | D31: =INDEX(tblSeriesSets!$C$67:$G$71,$C31,$B$2) -> 55 | E31: 55 | F31: PARTICIPATION ET DROITS DE L'HOMME | G31: 55 | H31: 254 | I31: 453 | J31: 652 | K31: 851 | L31: 1050 | M31: 1249 | N31: 1448 | O31: 1647 | P31: 1846 | Q31: 2045 | R31: 2244 | S31: 2443 | T31: 2642 | U31: 2841
C32: =tblSeriesSets!A25 -> 4 | D32: =INDEX(tblSeriesSets!$C$67:$G$71,$C32,$B$2) -> 92 | E32: 92 | F32: DÉVELOPPEMENT ÉCONOMIQUE DURABLE | G32: 92 | H32: 291 | I32: 490 | J32: 689 | K32: 888 | L32: 1087 | M32: 1286 | N32: 1485 | O32: 1684 | P32: 1883 | Q32: 2082 | R32: 2281 | S32: 2480 | T32: 2679 | U32: 2878
C33: =tblSeriesSets!A26 -> 5 | D33: =INDEX(tblSeriesSets!$C$67:$G$71,$C33,$B$2) -> 157 | E33: 157 | F33: DÉVELOPPEMENT HUMAIN | G33: 157 | H33: 356 | I33: 555 | J33: 754 | K33: 953 | L33: 1152 | M33: 1351 | N33: 1550 | O33: 1749 | P33: 1948 | Q33: 2147 | R33: 2346 | S33: 2545 | T33: 2744 | U33: 2943
E34: =B6 -> 1 | F34: SCORE GLOBAL | G34: =IF(G26=0,NA(),MATCH(CONCATENATE($E34,"_",G$20),luSeries,0)) -> 1 | H34: 200 | I34: 399 | J34: 598 | K34: 797 | L34: 996 | M34: 1195 | N34: 1394 | O34: 1593 | P34: 1792 | Q34: 1991 | R34: 2190 | S34: 2389 | T34: 2588 | U34: 2787
E38: RESOLVE STDERR ROWS
E39: =E$29 -> 1 | F39: =INDEX(ddSeries,E39) -> SCORE GLOBAL | G39: =MATCH(CONCATENATE($E39,"_",G$20),luStdErr,0) -> 1 | H39: 6 | I39: 11 | J39: 16 | K39: 21 | L39: 26 | M39: 31 | N39: 36 | O39: 41 | P39: 46 | Q39: 51 | R39: 56 | S39: 61 | T39: 66 | U39: 71
E40: =E$30 -> 2 | F40: =INDEX(ddSeries,E40) -> SÉCURITÉ ET ÉTAT DE DROIT | G40: 2 | H40: 7 | I40: 12 | J40: 17 | K40: 22 | L40: 27 | M40: 32 | N40: 37 | O40: 42 | P40: 47 | Q40: 52 | R40: 57 | S40: 62 | T40: 67 | U40: 72
E41: =E$31 -> 55 | F41: =INDEX(ddSeries,E41) -> PARTICIPATION ET DROITS DE L'HOMME | G41: 3 | H41: 8 | I41: 13 | J41: 18 | K41: 23 | L41: 28 | M41: 33 | N41: 38 | O41: 43 | P41: 48 | Q41: 53 | R41: 58 | S41: 63 | T41: 68 | U41: 73
E42: =E$32 -> 92 | F42: =INDEX(ddSeries,E42) -> DÉVELOPPEMENT ÉCONOMIQUE DURABLE | G42: 4 | H42: 9 | I42: 14 | J42: 19 | K42: 24 | L42: 29 | M42: 34 | N42: 39 | O42: 44 | P42: 49 | Q42: 54 | R42: 59 | S42: 64 | T42: 69 | U42: 74
E43: =E$33 -> 157 | F43: =INDEX(ddSeries,E43) -> DÉVELOPPEMENT HUMAIN | G43: 5 | H43: 10 | I43: 15 | J43: 20 | K43: 25 | L43: 30 | M43: 35 | N43: 40 | O43: 45 | P43: 50 | Q43: 55 | R43: 60 | S43: 65 | T43: 70 | U43: 75
E46: AFRICA MIN
E47: =E$29 -> 1 | F47: =INDEX(ddSeries,E47) -> SCORE GLOBAL | G47: =INDEX(aStats,G29,2) -> 9.164240924 | H47: 9.31937654 | I47: 9.676726419 | J47: 9.921774705 | K47: 9.610637401 | L47: 9.59592518 | M47: 8.725751215 | N47: 9.339310574 | O47: 6.996348571 | P47: 8.495255674 | Q47: 7.794636125 | R47: 7.318182139 | S47: 7.93702938 | T47: 7.794829583 | U47: 8.513781298
E48: =E$30 -> 2 | F48: SÉCURITÉ ET ÉTAT DE DROIT | G48: =INDEX(aStats,G30,2) -> 13.54410448 | H48: 12.07188569 | I48: 12.26633356 | J48: 13.45780524 | K48: 12.84922005 | L48: 13.06563735 | M48: 11.01592097 | N48: 5.176751726 | O48: 3.918650794 | P48: 6.362130579 | Q48: 4.693678465 | R48: 4.851373114 | S48: 5.750921477 | T48: 5.790417149 | U48: 5.491373757
E49: =E$31 -> 55 | F49: PARTICIPATION ET DROITS DE L'HOMME | G49: =INDEX(aStats,G31,2) -> 10.96127705 | H49: 10.92630751 | I49: 11.10230816 | J49: 11.10953271 | K49: 11.05346585 | L49: 11.06069013 | M49: 9.72071653 | N49: 8.777251981 | O49: 9.39608302 | P49: 9.482034722 | Q49: 9.805417938 | R49: 9.639327877 | S49: 10.04392151 | T49: 9.247741238 | U49: 10.42994808
E50: =E$32 -> 92 | F50: DÉVELOPPEMENT ÉCONOMIQUE DURABLE | G50: =INDEX(aStats,G32,2) -> 1.315894906 | H50: 1.888714984 | I50: 1.803523754 | J50: 2.136507159 | K50: 2.233580418 | L50: 2.338084032 | M50: 2.40643654 | N50: 2.783364562 | O50: 2.498621273 | P50: 4.03731594 | Q50: 3.988284821 | R50: 3.12444785 | S50: 3.731381516 | T50: 3.506472948 | U50: 4.099842211
E51: =E$33 -> 157 | F51: DÉVELOPPEMENT HUMAIN | G51: =INDEX(aStats,G33,2) -> 10.83568726 | H51: 12.39059798 | I51: 13.53474021 | J51: 12.98325371 | K51: 12.30628328 | L51: 11.91928921 | M51: 11.75993082 | N51: 20.61987403 | O51: 12.1720392 | P51: 14.09954146 | Q51: 12.69116328 | R51: 11.65757972 | S51: 12.22189302 | T51: 12.634687 | U51: 14.03396114
E52: =E$34 -> 1 | F52: SCORE GLOBAL | G52: =IF(NOT(ISNUMBER(INDEX(aStats,G34,2))),NA(),(INDEX(aStats,G34,2))) -> 9.164240924 | H52: 9.31937654 | I52: 9.676726419 | J52: 9.921774705 | K52: 9.610637401 | L52: 9.59592518 | M52: 8.725751215 | N52: 9.339310574 | O52: 6.996348571 | P52: 8.495255674 | Q52: 7.794636125 | R52: 7.318182139 | S52: 7.93702938 | T52: 7.794829583 | U52: 8.513781298
E54: AFRICA MAX
E55: =E$29 -> 1 | F55: =INDEX(ddSeries,E55) -> SCORE GLOBAL | G55: =INDEX(aStats,G29,3) -> 75.88011425 | H55: 77.40374846 | I55: 77.52618227 | J55: 77.6999585 | K55: 77.25648895 | L55: 77.83852166 | M55: 78.47494715 | N55: 79.73922146 | O55: 81.43166987 | P55: 81.56774549 | Q55: 80.51072875 | R55: 80.65498807 | S55: 81.1189712 | T55: 80.71176822 | U55: 79.91854669
E56: =E$30 -> 2 | F56: SÉCURITÉ ET ÉTAT DE DROIT | G56: =INDEX(aStats,G30,3) -> 84.27418125 | H56: 84.27421266 | I56: 85.31500777 | J56: 85.31303453 | K56: 83.22405803 | L56: 83.81379299 | M56: 83.21356922 | N56: 83.42422336 | O56: 83.9012457 | P56: 85.20118497 | Q56: 84.68181245 | R56: 85.10442785 | S56: 84.86272543 | T56: 84.40681461 | U56: 82.70387513
E57: =E$31 -> 55 | F57: PARTICIPATION ET DROITS DE L'HOMME | G57: =INDEX(aStats,G31,3) -> 77.64644159 | H57: 81.43530175 | I57: 82.41639771 | J57: 83.48432162 | K57: 83.67027209 | L57: 84.10465059 | M57: 80.9566883 | N57: 82.41880596 | O57: 83.32828461 | P57: 83.28215445 | Q57: 81.7258581 | R57: 86.63779394 | S57: 86.31742418 | T57: 85.99816978 | U57: 83.0898548
E58: =E$32 -> 92 | F58: DÉVELOPPEMENT ÉCONOMIQUE DURABLE | G58: =INDEX(aStats,G32,3) -> 67.03712448 | H58: 68.11316043 | I58: 68.26226951 | J58: 68.24069559 | K58: 68.35988654 | L58: 69.48088773 | M58: 70.16094329 | N58: 71.51202059 | O58: 78.80921372 | P58: 78.52083983 | Q58: 79.35436195 | R58: 77.17456037 | S58: 77.93864939 | T58: 78.01373639 | U58: 77.46603833
E59: =E$33 -> 157 | F59: DÉVELOPPEMENT HUMAIN | G59: =INDEX(aStats,G33,3) -> 77.86779954 | H59: 82.31069978 | I59: 82.732798 | J59: 82.83448884 | K59: 83.29270935 | L59: 83.79972376 | M59: 84.67432397 | N59: 87.32175707 | O59: 86.74302241 | P59: 86.54584975 | Q59: 83.17337486 | R59: 84.69039079 | S59: 84.92269449 | T59: 85.37458266 | U59: 85.71914651
E60: =E$34 -> 1 | F60: SCORE GLOBAL | G60: =IF(NOT(ISNUMBER(INDEX(aStats,G34,3))),NA(),INDEX(aStats,G34,3)) -> 75.88011425 | H60: 77.40374846 | I60: 77.52618227 | J60: 77.6999585 | K60: 77.25648895 | L60: 77.83852166 | M60: 78.47494715 | N60: 79.73922146 | O60: 81.43166987 | P60: 81.56774549 | Q60: 80.51072875 | R60: 80.65498807 | S60: 81.1189712 | T60: 80.71176822 | U60: 79.91854669
E62: AFRICA AVERAGE (GROUP SCORE)
B63: HARDCODE | C63: 57 | E63: =E$29 -> 1 | F63: =INDEX(ddSeries,E63) -> SCORE GLOBAL | G63: =INDEX(aScore,G$29,$C$63) -> 46.50188218 | H63: 47.47097629 | I63: 47.84335481 | J63: 48.0867615 | K63: 48.38404699 | L63: 48.92566605 | M63: 49.3544859 | N63: 50.01134241 | O63: 50.39587052 | P63: 50.31984535 | Q63: 50.37162086 | R63: 49.82880859 | S63: 50.11569661 | T63: 50.0004073 | U63: 50.0575588
E64: =E$30 -> 2 | F64: SÉCURITÉ ET ÉTAT DE DROIT | G64: =INDEX(aScore,G$30,$C$63) -> 53.23055093 | H64: 53.15685627 | I64: 53.48010375 | J64: 53.78344545 | K64: 53.72579295 | L64: 54.00334058 | M64: 54.18810426 | N64: 54.05879125 | O64: 54.05763197 | P64: 52.8270198 | Q64: 52.87816943 | R64: 51.55493284 | S64: 51.61989693 | T64: 50.84434446 | U64: 51.27027582
E65: =E$31 -> 55 | F65: PARTICIPATION ET DROITS DE L'HOMME | G65: =INDEX(aScore,G$31,$C$63) -> 45.25718641 | H65: 45.66833985 | I65: 46.35815504 | J65: 46.32194227 | K65: 46.84593954 | L65: 47.61727645 | M65: 48.14221527 | N65: 48.76224146 | O65: 48.62481795 | P65: 48.24384671 | Q65: 48.64990337 | R65: 48.63202171 | S65: 49.14154061 | T65: 49.52286565 | U65: 49.32758316
E66: =E$32 -> 92 | F66: DÉVELOPPEMENT ÉCONOMIQUE DURABLE | G66: =INDEX(aScore,G$32,$C$63) -> 40.28032933 | H66: 40.6073061 | I66: 40.59311488 | J66: 40.76375759 | K66: 40.88347603 | L66: 41.40607898 | M66: 41.81334141 | N66: 42.87393552 | O66: 43.84025519 | P66: 44.29467227 | Q66: 44.84995401 | R66: 43.91433406 | S66: 43.90515738 | T66: 43.77206535 | U66: 43.22928845
E67: =E$33 -> 157 | F67: DÉVELOPPEMENT HUMAIN | G67: =INDEX(aScore,G$33,$C$63) -> 47.23946204 | H67: 50.45140294 | I67: 50.94204558 | J67: 51.47790069 | K67: 52.08097945 | L67: 52.67596819 | M67: 53.27428266 | N67: 54.35040141 | O67: 55.06077697 | P67: 55.91384264 | Q67: 55.10845661 | R67: 55.21394574 | S67: 55.79619153 | T67: 55.86235374 | U67: 56.40308777
E68: =E$34 -> 1 | F68: SCORE GLOBAL | G68: =IF(NOT(ISNUMBER(INDEX(aScore,G$34,$C$63))),NA(),INDEX(aScore,G$34,$C$63)) -> 46.50188218 | H68: 47.47097629 | I68: 47.84335481 | J68: 48.0867615 | K68: 48.38404699 | L68: 48.92566605 | M68: 49.3544859 | N68: 50.01134241 | O68: 50.39587052 | P68: 50.31984535 | Q68: 50.37162086 | R68: 49.82880859 | S68: 50.11569661 | T68: 50.0004073 | U68: 50.0575588
E70: COUNTRY_1
C71: =$B$3 -> 46 | D71: =$C$3 -> Afrique du Sud | E71: =E$29 -> 1 | F71: =INDEX(ddSeries,E71) -> SCORE GLOBAL | G71: =IF(NOT(ISNUMBER(INDEX(aScore,G$29,$C$71))),NA(),INDEX(aScore,G$29,$C$71)) -> 71.64075915 | H71: 72.30844652 | I71: 72.41262816 | J71: 72.76525368 | K71: 72.63872543 | L71: 73.14334024 | M71: 73.52972103 | N71: 74.05109413 | O71: 73.54550591 | P71: 72.6389243 | Q71: 72.16274868 | R71: 72.05033177 | S71: 71.99771179 | T71: 72.84390281 | U71: 72.98219117
E72: =E$30 -> 2 | F72: SÉCURITÉ ET ÉTAT DE DROIT | G72: =IF(NOT(ISNUMBER(INDEX(aScore,G$30,$C$71))),NA(),INDEX(aScore,G$30,$C$71)) -> 72.40097313 | H72: 71.74387717 | I72: 71.60702188 | J72: 71.60699402 | K72: 71.70188476 | L72: 71.82626447 | M72: 71.28150745 | N72: 70.61908721 | O72: 70.45969038 | P72: 67.61382504 | Q72: 67.84211241 | R72: 67.61975408 | S72: 66.99423156 | T72: 66.92464505 | U72: 68.42310054
E73: =E$31 -> 55 | F73: PARTICIPATION ET DROITS DE L'HOMME | G73: =IF(NOT(ISNUMBER(INDEX(aScore,G$31,$C$71))),NA(),INDEX(aScore,G$31,$C$71)) -> 74.6242855 | H73: 74.69681355 | I73: 74.56122335 | J73: 74.73989171 | K73: 75.24983979 | L73: 76.22780418 | M73: 75.53424132 | N73: 76.43850938 | O73: 74.95669805 | P73: 74.49561507 | Q73: 74.29925712 | R73: 74.09985468 | S73: 73.72357693 | T73: 74.14422262 | U73: 73.92104233
E74: =E$32 -> 92 | F74: DÉVELOPPEMENT ÉCONOMIQUE DURABLE | G74: =IF(NOT(ISNUMBER(INDEX(aScore,G$32,$C$71))),NA(),INDEX(aScore,G$32,$C$71)) -> 66.07883169 | H74: 66.18758716 | I74: 66.62239998 | J74: 67.96817023 | K74: 67.01507712 | L74: 68.46047444 | M74: 69.72734777 | N74: 71.432232 | O74: 71.51247612 | P74: 71.3227117 | Q74: 70.64398804 | R74: 69.52878769 | S74: 71.81272168 | T74: 72.3148773 | U74: 72.3113581
E75: =E$33 -> 157 | F75: DÉVELOPPEMENT HUMAIN | G75: =IF(NOT(ISNUMBER(INDEX(aScore,G$33,$C$71))),NA(),INDEX(aScore,G$33,$C$71)) -> 73.45894629 | H75: 76.60550821 | I75: 76.85986744 | J75: 76.74595877 | K75: 76.58810006 | L75: 76.05881788 | M75: 77.57578759 | N75: 77.71454792 | O75: 77.25315909 | P75: 77.12354539 | Q75: 75.86563715 | R75: 76.95293064 | S75: 75.46031699 | T75: 77.99186628 | U75: 77.27326369
A76: =COUNT(G76:U76) -> 15 | E76: =E$34 -> 1 | F76: SCORE GLOBAL | G76: =IF(NOT(ISNUMBER(INDEX(aScore,G$34,$C$71))),NA(),INDEX(aScore,G$34,$C$71)) -> 71.64075915 | H76: 72.30844652 | I76: 72.41262816 | J76: 72.76525368 | K76: 72.63872543 | L76: 73.14334024 | M76: 73.52972103 | N76: 74.05109413 | O76: 73.54550591 | P76: 72.6389243 | Q76: 72.16274868 | R76: 72.05033177 | S76: 71.99771179 | T76: 72.84390281 | U76: 72.98219117
C77: HACKS | D77: MIN HACK: If value = 0 set value=-1 otherwise line is thin | G77: =IFERROR(IF(G76=0,0.5,G76),NA()) -> 71.64075915 | H77: =IFERROR(IF(H76=0,0.5,H76),NA()) -> 72.30844652 | I77: 72.41262816 | J77: 72.76525368 | K77: 72.63872543 | L77: 73.14334024 | M77: 73.52972103 | N77: 74.05109413 | O77: 73.54550591 | P77: 72.6389243 | Q77: 72.16274868 | R77: 72.05033177 | S77: 71.99771179 | T77: 72.84390281 | U77: 72.98219117
E79: COUNTRY_CONF_ADJUST
E80: =E$29 -> 1 | F80: =INDEX(ddSeries,E80) -> SCORE GLOBAL | G80: =INDEX(aStdErr,G39,$C$71)*$B$1 -> 4.352611989 | H80: 4.090232785 | I80: 4.191352648 | J80: 3.825641838 | K80: 3.992343789 | L80: 3.537308952 | M80: 3.424333788 | N80: 3.243008895 | O80: 3.465593725 | P80: 3.45404705 | Q80: 3.759010094 | R80: 3.446557888 | S80: 3.629732437 | T80: 3.412978218 | U80: 3.723711029
E81: =E$30 -> 2 | F81: SÉCURITÉ ET ÉTAT DE DROIT | G81: =INDEX(aStdErr,G40,$C$71)*$B$1 -> 8.375351115 | H81: 8.39510615 | I81: 9.022600649 | J81: 8.951702359 | K81: 8.573422123 | L81: 8.313885938 | M81: 6.719088398 | N81: 6.484621008 | O81: 6.835948273 | P81: 8.025242097 | Q81: 7.973531795 | R81: 7.609083731 | S81: 7.69952821 | T81: 7.02463383 | U81: 7.567623932
E82: =E$31 -> 55 | F82: PARTICIPATION ET DROITS DE L'HOMME | G82: =INDEX(aStdErr,G41,$C$71)*$B$1 -> 9.466251013 | H82: 8.999582092 | I82: 9.724809269 | J82: 9.321305034 | K82: 8.654995327 | L82: 7.103835303 | M82: 7.743717259 | N82: 7.107057813 | O82: 8.381408547 | P82: 6.438302674 | Q82: 7.549507968 | R82: 6.498983889 | S82: 7.27449977 | T82: 5.330421965 | U82: 7.653528557
E83: =E$32 -> 92 | F83: DÉVELOPPEMENT ÉCONOMIQUE DURABLE | G83: =INDEX(aStdErr,G42,$C$71)*$B$1 -> 8.014509271 | H83: 7.992383189 | I83: 7.51896557 | J83: 6.600267736 | K83: 6.8476624 | L83: 7.011060417 | M83: 5.72972867 | N83: 5.910308289 | O83: 5.831342816 | P83: 5.853715113 | Q83: 5.894689991 | R83: 6.124947036 | S83: 6.01760928 | T83: 5.421339874 | U83: 5.966846582
E84: =E$33 -> 157 | F84: DÉVELOPPEMENT HUMAIN | G84: =INDEX(aStdErr,G43,$C$71)*$B$1 -> 8.765272004 | H84: 7.835374049 | I84: 7.096789681 | J84: 7.704441071 | K84: 7.656318641 | L84: 6.483791131 | M84: 7.451681442 | N84: 6.357142785 | O84: 7.357255692 | P84: 6.575162048 | Q84: 7.753734793 | R84: 7.01935598 | S84: 8.013650882 | T84: 8.297237469 | U84: 8.897819024
E86: COUNTRY_CONF_LOW
E87: =E$29 -> 1 | F87: =INDEX(ddSeries,E87) -> SCORE GLOBAL | G87: =MAX(0,G71-G80) -> 67.28814716 | H87: 68.21821374 | I87: 68.22127551 | J87: 68.93961184 | K87: 68.64638164 | L87: 69.60603129 | M87: 70.10538725 | N87: 70.80808523 | O87: 70.07991219 | P87: 69.18487725 | Q87: 68.40373859 | R87: 68.60377389 | S87: 68.36797935 | T87: 69.43092459 | U87: 69.25848014
E88: =E$30 -> 2 | F88: SÉCURITÉ ET ÉTAT DE DROIT | G88: =MAX(0,G72-G81) -> 64.02562201 | H88: 63.34877102 | I88: 62.58442123 | J88: 62.65529166 | K88: 63.12846264 | L88: 63.51237853 | M88: 64.56241905 | N88: 64.1344662 | O88: 63.62374211 | P88: 59.58858294 | Q88: 59.86858061 | R88: 60.01067035 | S88: 59.29470335 | T88: 59.90001122 | U88: 60.85547661
E89: =E$31 -> 55 | F89: PARTICIPATION ET DROITS DE L'HOMME | G89: =MAX(0,G73-G82) -> 65.15803449 | H89: 65.69723146 | I89: 64.83641408 | J89: 65.41858667 | K89: 66.59484446 | L89: 69.12396888 | M89: 67.79052406 | N89: 69.33145157 | O89: 66.5752895 | P89: 68.0573124 | Q89: 66.74974915 | R89: 67.60087079 | S89: 66.44907716 | T89: 68.81380066 | U89: 66.26751377
E90: =E$32 -> 92 | F90: DÉVELOPPEMENT ÉCONOMIQUE DURABLE | G90: =MAX(0,G74-G83) -> 58.06432242 | H90: 58.19520397 | I90: 59.10343441 | J90: 61.3679025 | K90: 60.16741472 | L90: 61.44941402 | M90: 63.9976191 | N90: 65.52192371 | O90: 65.68113331 | P90: 65.46899658 | Q90: 64.74929805 | R90: 63.40384066 | S90: 65.7951124 | T90: 66.89353742 | U90: 66.34451152
E91: =E$33 -> 157 | F91: DÉVELOPPEMENT HUMAIN | G91: =MAX(0,G75-G84) -> 64.69367429 | H91: 68.77013416 | I91: 69.76307776 | J91: 69.0415177 | K91: 68.93178142 | L91: 69.57502675 | M91: 70.12410615 | N91: 71.35740514 | O91: 69.8959034 | P91: 70.54838334 | Q91: 68.11190236 | R91: 69.93357466 | S91: 67.44666611 | T91: 69.69462881 | U91: 68.37544466
C93: =tblText!$B$135 -> intervalle de confiance à 90% | D93: =CONCATENATE($C$3," ",C93) -> Afrique du Sud intervalle de confiance à 90% | E93: COUNTRY_CONF_HIGH
E94: =E$29 -> 1 | F94: =INDEX(ddSeries,E94) -> SCORE GLOBAL | G94: =MIN(100,G71+G80) -> 75.99337114 | H94: 76.39867931 | I94: 76.60398081 | J94: 76.59089552 | K94: 76.63106922 | L94: 76.6806492 | M94: 76.95405482 | N94: 77.29410302 | O94: 77.01109964 | P94: 76.09297135 | Q94: 75.92175877 | R94: 75.49688966 | S94: 75.62744422 | T94: 76.25688103 | U94: 76.70590219
E95: =E$30 -> 2 | F95: SÉCURITÉ ET ÉTAT DE DROIT | G95: =MIN(100,G72+G81) -> 80.77632424 | H95: 80.13898332 | I95: 80.62962252 | J95: 80.55869637 | K95: 80.27530688 | L95: 80.14015041 | M95: 78.00059585 | N95: 77.10370822 | O95: 77.29563865 | P95: 75.63906713 | Q95: 75.81564421 | R95: 75.22883781 | S95: 74.69375977 | T95: 73.94927888 | U95: 75.99072447
E96: =E$31 -> 55 | F96: PARTICIPATION ET DROITS DE L'HOMME | G96: =MIN(100,G73+G82) -> 84.09053651 | H96: 83.69639564 | I96: 84.28603262 | J96: 84.06119674 | K96: 83.90483511 | L96: 83.33163948 | M96: 83.27795858 | N96: 83.54556719 | O96: 83.3381066 | P96: 80.93391774 | Q96: 81.84876509 | R96: 80.59883857 | S96: 80.9980767 | T96: 79.47464458 | U96: 81.57457089
E97: =E$32 -> 92 | F97: DÉVELOPPEMENT ÉCONOMIQUE DURABLE | G97: =MIN(100,G74+G83) -> 74.09334096 | H97: 74.17997034 | I97: 74.14136555 | J97: 74.56843797 | K97: 73.86273952 | L97: 75.47153486 | M97: 75.45707644 | N97: 77.34254029 | O97: 77.34381894 | P97: 77.17642681 | Q97: 76.53867803 | R97: 75.65373473 | S97: 77.83033096 | T97: 77.73621717 | U97: 78.27820468
E98: =E$33 -> 157 | F98: DÉVELOPPEMENT HUMAIN | G98: =MIN(100,G75+G84) -> 82.22421829 | H98: 84.44088226 | I98: 83.95665712 | J98: 84.45039984 | K98: 84.2444187 | L98: 82.54260902 | M98: 85.02746904 | N98: 84.07169071 | O98: 84.61041478 | P98: 83.69870743 | Q98: 83.61937194 | R98: 83.97228662 | S98: 83.47396787 | T98: 86.28910375 | U98: 86.17108271
E100: DERIVED_COUNRY_MIN | F100: IF CONFIDENCE MIN IS LOWER THAN MIN ACROSS RANGE THEN SET MIN ACROSS RANGE TO CONFIDENCE MIN
E101: =E$29 -> 1 | F101: =INDEX(ddSeries,E101) -> SCORE GLOBAL | G101: =IF(NOT(ISNUMBER(G87)),G47,MIN(G47,G87)) -> 9.164240924 | H101: 9.31937654 | I101: 9.676726419 | J101: 9.921774705 | K101: 9.610637401 | L101: 9.59592518 | M101: 8.725751215 | N101: 9.339310574 | O101: 6.996348571 | P101: 8.495255674 | Q101: 7.794636125 | R101: 7.318182139 | S101: 7.93702938 | T101: 7.794829583 | U101: 8.513781298
E102: =E$30 -> 2 | F102: SÉCURITÉ ET ÉTAT DE DROIT | G102: =IF(NOT(ISNUMBER(G88)),G48,MIN(G48,G88)) -> 13.54410448 | H102: 12.07188569 | I102: 12.26633356 | J102: 13.45780524 | K102: 12.84922005 | L102: 13.06563735 | M102: 11.01592097 | N102: 5.176751726 | O102: 3.918650794 | P102: 6.362130579 | Q102: 4.693678465 | R102: 4.851373114 | S102: 5.750921477 | T102: 5.790417149 | U102: 5.491373757
E103: =E$31 -> 55 | F103: PARTICIPATION ET DROITS DE L'HOMME | G103: =IF(NOT(ISNUMBER(G89)),G49,MIN(G49,G89)) -> 10.96127705 | H103: 10.92630751 | I103: 11.10230816 | J103: 11.10953271 | K103: 11.05346585 | L103: 11.06069013 | M103: 9.72071653 | N103: 8.777251981 | O103: 9.39608302 | P103: 9.482034722 | Q103: 9.805417938 | R103: 9.639327877 | S103: 10.04392151 | T103: 9.247741238 | U103: 10.42994808
E104: =E$32 -> 92 | F104: DÉVELOPPEMENT ÉCONOMIQUE DURABLE | G104: =IF(NOT(ISNUMBER(G90)),G50,MIN(G50,G90)) -> 1.315894906 | H104: 1.888714984 | I104: 1.803523754 | J104: 2.136507159 | K104: 2.233580418 | L104: 2.338084032 | M104: 2.40643654 | N104: 2.783364562 | O104: 2.498621273 | P104: 4.03731594 | Q104: 3.988284821 | R104: 3.12444785 | S104: 3.731381516 | T104: 3.506472948 | U104: 4.099842211
E105: =E$33 -> 157 | F105: DÉVELOPPEMENT HUMAIN | G105: =IF(NOT(ISNUMBER(G91)),G51,MIN(G51,G91)) -> 10.83568726 | H105: 12.39059798 | I105: 13.53474021 | J105: 12.98325371 | K105: 12.30628328 | L105: 11.91928921 | M105: 11.75993082 | N105: 20.61987403 | O105: 12.1720392 | P105: 14.09954146 | Q105: 12.69116328 | R105: 11.65757972 | S105: 12.22189302 | T105: 12.634687 | U105: 14.03396114
E107: COUNTRY_2
C108: =$B$4 -> 55 | D108: =$C$4 -> Zimbabwe | E108: =E$29 -> 1 | F108: =INDEX(ddSeries,E108) -> SCORE GLOBAL | G108: =IF(NOT(ISNUMBER(INDEX(aScore,G$29,$C$108))),NA(),INDEX(aScore,G$29,$C$108)) -> 36.04673338 | H108: 36.32040608 | I108: 36.57980426 | J108: 36.71194629 | K108: 36.31744394 | L108: 34.78629485 | M108: 33.95641183 | N108: 33.75559673 | O108: 31.45209942 | P108: 32.4351056 | Q108: 33.5717603 | R108: 35.78371222 | S108: 36.7591234 | T108: 38.7087327 | U108: 40.43147274
E109: =E$30 -> 2 | F109: SÉCURITÉ ET ÉTAT DE DROIT | G109: =IF(NOT(ISNUMBER(INDEX(aScore,G$30,$C$108))),NA(),INDEX(aScore,G$30,$C$108)) -> 39.97858884 | H109: 38.94844022 | I109: 39.74138283 | J109: 39.4476224 | K109: 38.41162425 | L109: 35.28187555 | M109: 33.88862174 | N109: 35.36480308 | O109: 29.70406454 | P109: 32.15671243 | Q109: 32.60275284 | R109: 34.13119237 | S109: 35.80074917 | T109: 39.96374695 | U109: 40.9890314
E110: =E$31 -> 55 | F110: PARTICIPATION ET DROITS DE L'HOMME | G110: =IF(NOT(ISNUMBER(INDEX(aScore,G$31,$C$108))),NA(),INDEX(aScore,G$31,$C$108)) -> 32.81826874 | H110: 32.2835008 | I110: 33.286188 | J110: 33.5639376 | K110: 32.66217879 | L110: 31.91190785 | M110: 30.63855529 | N110: 29.9523335 | O110: 29.53503947 | P110: 31.82050843 | Q110: 32.55530711 | R110: 34.56159274 | S110: 34.60286516 | T110: 39.00570365 | U110: 41.93470161
E111: =E$32 -> 92 | F111: DÉVELOPPEMENT ÉCONOMIQUE DURABLE | G111: =IF(NOT(ISNUMBER(INDEX(aScore,G$32,$C$108))),NA(),INDEX(aScore,G$32,$C$108)) -> 26.83935249 | H111: 27.155695 | I111: 26.98499658 | J111: 27.55898207 | K111: 28.04949952 | L111: 25.60010933 | M111: 24.81006816 | N111: 22.59634851 | O111: 21.83942573 | P111: 21.76874893 | Q111: 23.80171651 | R111: 24.23369166 | S111: 24.69953445 | T111: 23.35130071 | U111: 24.63034182
E112: =E$33 -> 157 | F112: DÉVELOPPEMENT HUMAIN | G112: =IF(NOT(ISNUMBER(INDEX(aScore,G$33,$C$108))),NA(),INDEX(aScore,G$33,$C$108)) -> 44.55072345 | H112: 46.89398829 | I112: 46.30664962 | J112: 46.27724311 | K112: 46.14647319 | L112: 46.35128666 | M112: 46.48840213 | N112: 47.10890184 | O112: 44.72986795 | P112: 43.9944526 | Q112: 45.32726473 | R112: 50.2083721 | S112: 51.93334481 | T112: 52.5141795 | U112: 54.17181614
E114: COUNTRY_3
C115: =$B$5 -> 1 | D115: =$C$5 -> <aucun> | E115: =E$29 -> 1 | F115: =INDEX(ddSeries,E115) -> SCORE GLOBAL | G115: =IF(NOT(ISNUMBER(INDEX(aScore,G$29,$C$115))),NA(),INDEX(aScore,G$29,$C$115)) -> 
E116: =E$30 -> 2 | F116: SÉCURITÉ ET ÉTAT DE DROIT | G116: =IF(NOT(ISNUMBER(INDEX(aScore,G$30,$C$115))),NA(),INDEX(aScore,G$30,$C$115)) -> 
E117: =E$31 -> 55 | F117: PARTICIPATION ET DROITS DE L'HOMME | G117: =IF(NOT(ISNUMBER(INDEX(aScore,G$31,$C$115))),NA(),INDEX(aScore,G$31,$C$115)) -> 
E118: =E$32 -> 92 | F118: DÉVELOPPEMENT ÉCONOMIQUE DURABLE | G118: =IF(NOT(ISNUMBER(INDEX(aScore,G$32,$C$115))),NA(),INDEX(aScore,G$32,$C$115)) -> 
E119: =E$33 -> 157 | F119: DÉVELOPPEMENT HUMAIN | G119: =IF(NOT(ISNUMBER(INDEX(aScore,G$33,$C$115))),NA(),INDEX(aScore,G$33,$C$115)) -> 
E123: GROUP_GROUP_1
B124: 1 | C124: =INDEX(uxbWorks!$B$207:$B$214,B124) -> 61 | D124: =INDEX(uxbWorks!$C$207:$C$214,B124) -> Afrique australe | E124: =E$29 -> 1 | F124: =INDEX(ddSeries,E124) -> SCORE GLOBAL | G124: =IF(NOT(ISNUMBER(INDEX(aScore,G$29,$C124))),NA(),INDEX(aScore,G$29,$C124)) -> 54.94829429 | H124: 55.83964828 | I124: 55.92294096 | J124: 56.37461144 | K124: 56.55836624 | L124: 57.04964286 | M124: 57.44972319 | N124: 57.99780778 | O124: 58.36912413 | P124: 57.98823763 | Q124: 57.94553461 | R124: 58.17932649 | S124: 58.57965029 | T124: 58.92227452 | U124: 58.92390585
C125: =C124 -> 61 | E125: =E$30 -> 2 | F125: SÉCURITÉ ET ÉTAT DE DROIT | G125: =IF(NOT(ISNUMBER(INDEX(aScore,G$30,$C125))),NA(),INDEX(aScore,G$30,$C125)) -> 63.51195161 | H125: 63.1356498 | I125: 63.17080141 | J125: 64.09448732 | K125: 63.97725018 | L125: 64.21332221 | M125: 64.20730127 | N125: 64.48109697 | O125: 64.03626234 | P125: 62.08783016 | Q125: 61.81425656 | R125: 62.41918248 | S125: 62.57465449 | T125: 62.62398383 | U125: 63.43589855
C126: =C125 -> 61 | E126: =E$31 -> 55 | F126: PARTICIPATION ET DROITS DE L'HOMME | G126: =IF(NOT(ISNUMBER(INDEX(aScore,G$31,$C126))),NA(),INDEX(aScore,G$31,$C126)) -> 56.39964396 | H126: 56.38399577 | I126: 56.75874629 | J126: 57.03183205 | K126: 57.34005542 | L126: 57.85184966 | M126: 57.87862394 | N126: 58.2199536 | O126: 58.03403954 | P126: 57.31305932 | Q126: 57.35619316 | R126: 57.51671751 | S126: 58.41255159 | T126: 59.50132424 | U126: 59.16660845
C127: 61 | E127: =E$32 -> 92 | F127: DÉVELOPPEMENT ÉCONOMIQUE DURABLE | G127: =IF(NOT(ISNUMBER(INDEX(aScore,G$32,$C127))),NA(),INDEX(aScore,G$32,$C127)) -> 47.33765689 | H127: 48.09740937 | I127: 47.82025186 | J127: 47.88334703 | K127: 47.89232418 | L127: 48.89161114 | M127: 49.5171169 | N127: 50.53714286 | O127: 52.05721886 | P127: 52.64350716 | Q127: 53.18429883 | R127: 52.48653467 | S127: 52.71139547 | T127: 52.23154803 | U127: 51.48676748
C128: 61 | E128: =E$33 -> 157 | F128: DÉVELOPPEMENT HUMAIN | G128: =IF(NOT(ISNUMBER(INDEX(aScore,G$33,$C128))),NA(),INDEX(aScore,G$33,$C128)) -> 52.54392471 | H128: 55.74153818 | I128: 55.94196429 | J128: 56.48877935 | K128: 57.02383519 | L128: 57.24178841 | M128: 58.19585063 | N128: 58.75303769 | O128: 59.34897579 | P128: 59.90855389 | Q128: 59.42738988 | R128: 60.2948713 | S128: 60.61999959 | T128: 61.33224198 | U128: 61.60634892
E130: GROUP_GROUP_2
B131: 2 | C131: =INDEX(uxbWorks!$B$207:$B$214,B131) -> 58 | D131: =INDEX(uxbWorks!$C$207:$C$214,B131) -> Afrique centrale | E131: =E$29 -> 1 | F131: =INDEX(ddSeries,E131) -> SCORE GLOBAL | G131: =IF(NOT(ISNUMBER(INDEX(aScore,G$29,$C131))),NA(),INDEX(aScore,G$29,$C131)) -> 36.95250566 | H131: 37.78762165 | I131: 38.14615875 | J131: 37.96727104 | K131: 38.40685762 | L131: 39.02487134 | M131: 39.30802281 | N131: 39.99840897 | O131: 40.85794574 | P131: 40.52007296 | Q131: 40.84840826 | R131: 41.78895228 | S131: 41.72855457 | T131: 40.84118194 | U131: 40.87024951
C132: =C131 -> 58 | E132: =E$30 -> 2 | F132: SÉCURITÉ ET ÉTAT DE DROIT | G132: =IF(NOT(ISNUMBER(INDEX(aScore,G$30,$C132))),NA(),INDEX(aScore,G$30,$C132)) -> 42.70920333 | H132: 42.358636 | I132: 42.72299919 | J132: 41.91825932 | K132: 42.14312688 | L132: 43.23074109 | M132: 43.16211896 | N132: 42.56254713 | O132: 43.57200974 | P132: 41.8535949 | Q132: 42.74706483 | R132: 43.37902121 | S132: 42.82013514 | T132: 40.54743688 | U132: 41.23294865
C133: =C132 -> 58 | E133: =E$31 -> 55 | F133: PARTICIPATION ET DROITS DE L'HOMME | G133: =IF(NOT(ISNUMBER(INDEX(aScore,G$31,$C133))),NA(),INDEX(aScore,G$31,$C133)) -> 34.81883288 | H133: 35.67311515 | I133: 35.78868978 | J133: 35.21792163 | K133: 35.68817816 | L133: 36.17261729 | M133: 36.89070474 | N133: 38.19207473 | O133: 38.60703504 | P133: 38.91817696 | Q133: 38.75760295 | R133: 39.90947975 | S133: 39.66057253 | T133: 38.81799497 | U133: 38.92007833
C134: 58 | E134: =E$32 -> 92 | F134: DÉVELOPPEMENT ÉCONOMIQUE DURABLE | G134: =IF(NOT(ISNUMBER(INDEX(aScore,G$32,$C134))),NA(),INDEX(aScore,G$32,$C134)) -> 29.61236058 | H134: 29.37078847 | I134: 29.75535718 | J134: 29.93998112 | K134: 30.32187848 | L134: 30.9687346 | M134: 31.01126481 | N134: 31.89834218 | O134: 33.27862121 | P134: 32.47674605 | Q134: 33.71174379 | R134: 34.42849027 | S134: 34.27050523 | T134: 33.78913412 | U134: 33.62099669
C135: 58 | E135: =E$33 -> 157 | F135: DÉVELOPPEMENT HUMAIN | G135: =IF(NOT(ISNUMBER(INDEX(aScore,G$33,$C135))),NA(),INDEX(aScore,G$33,$C135)) -> 40.66962584 | H135: 43.74794699 | I135: 44.31758885 | J135: 44.79292208 | K135: 45.47424694 | L135: 45.7273924 | M135: 46.16800275 | N135: 47.34067184 | O135: 47.97411697 | P135: 48.83177392 | Q135: 48.17722148 | R135: 49.43881789 | S135: 50.16300537 | T135: 50.21016177 | U135: 49.70697438
E137: GROUP_GROUP_3
B138: 3 | C138: =INDEX(uxbWorks!$B$207:$B$214,B138) -> 59 | D138: =INDEX(uxbWorks!$C$207:$C$214,B138) -> Afrique de l'Est | E138: =E$29 -> 1 | F138: =INDEX(ddSeries,E138) -> SCORE GLOBAL | G138: =IF(NOT(ISNUMBER(INDEX(aScore,G$29,$C138))),NA(),INDEX(aScore,G$29,$C138)) -> 42.74556816 | H138: 43.79985689 | I138: 44.47349107 | J138: 44.89835092 | K138: 45.20137359 | L138: 45.71330467 | M138: 46.26997853 | N138: 46.51632274 | O138: 46.77370303 | P138: 46.86633682 | Q138: 46.73457522 | R138: 44.21029373 | S138: 44.42168884 | T138: 44.365053 | U138: 44.33532524
C139: =C138 -> 59 | E139: =E$30 -> 2 | F139: SÉCURITÉ ET ÉTAT DE DROIT | G139: =IF(NOT(ISNUMBER(INDEX(aScore,G$30,$C139))),NA(),INDEX(aScore,G$30,$C139)) -> 47.49371961 | H139: 47.85838324 | I139: 48.77045384 | J139: 48.99183474 | K139: 49.27810479 | L139: 49.56560895 | M139: 49.43582832 | N139: 48.58948928 | O139: 48.35754305 | P139: 48.16595306 | Q139: 47.62175933 | R139: 44.1524709 | S139: 44.19160291 | T139: 43.61064047 | U139: 43.94757398
C140: =C139 -> 59 | E140: =E$31 -> 55 | F140: PARTICIPATION ET DROITS DE L'HOMME | G140: =IF(NOT(ISNUMBER(INDEX(aScore,G$31,$C140))),NA(),INDEX(aScore,G$31,$C140)) -> 40.65804296 | H140: 40.89600724 | I140: 42.23869657 | J140: 42.85804319 | K140: 43.23634328 | L140: 43.7331996 | M140: 45.33506818 | N140: 45.51538818 | O140: 45.55339242 | P140: 45.44940612 | Q140: 45.25544293 | R140: 42.06899496 | S140: 42.23335151 | T140: 42.62906205 | U140: 41.79379497
C141: 59 | E141: =E$32 -> 92 | F141: DÉVELOPPEMENT ÉCONOMIQUE DURABLE | G141: =IF(NOT(ISNUMBER(INDEX(aScore,G$32,$C141))),NA(),INDEX(aScore,G$32,$C141)) -> 38.75717034 | H141: 39.11859981 | I141: 38.90615287 | J141: 39.22928361 | K141: 39.2232538 | L141: 39.85337536 | M141: 39.98176256 | N141: 40.069956 | O141: 40.55288312 | P141: 39.95252341 | Q141: 41.06579259 | R141: 39.28614481 | S141: 39.12279623 | T141: 39.69374158 | U141: 38.53189483
C142: 59 | E142: =E$33 -> 157 | F142: DÉVELOPPEMENT HUMAIN | G142: =IF(NOT(ISNUMBER(INDEX(aScore,G$33,$C142))),NA(),INDEX(aScore,G$33,$C142)) -> 44.07333974 | H142: 47.32643726 | I142: 47.97866099 | J142: 48.51424213 | K142: 49.0677925 | L142: 49.70103478 | M142: 50.32725505 | N142: 51.8904575 | O142: 52.63099351 | P142: 53.89746471 | Q142: 52.99530603 | R142: 51.33356427 | S142: 52.13900471 | T142: 51.5267679 | U142: 53.06803717
E144: GROUP_GROUP_4
B145: 4 | C145: =INDEX(uxbWorks!$B$207:$B$214,B145) -> 62 | D145: =INDEX(uxbWorks!$C$207:$C$214,B145) -> Afrique de l'Ouest | E145: =E$29 -> 1 | F145: =INDEX(ddSeries,E145) -> SCORE GLOBAL | G145: =IF(NOT(ISNUMBER(INDEX(aScore,G$29,$C145))),NA(),INDEX(aScore,G$29,$C145)) -> 46.14998841 | H145: 47.12132363 | I145: 47.57301819 | J145: 47.76652598 | K145: 48.01993111 | L145: 48.59562669 | M145: 49.09026081 | N145: 50.00872488 | O145: 50.71562003 | P145: 51.07280218 | Q145: 51.44551957 | R145: 52.12696381 | S145: 51.93226871 | T145: 52.01543806 | U145: 52.36482796
C146: =C145 -> 62 | E146: =E$30 -> 2 | F146: SÉCURITÉ ET ÉTAT DE DROIT | G146: =IF(NOT(ISNUMBER(INDEX(aScore,G$30,$C146))),NA(),INDEX(aScore,G$30,$C146)) -> 53.15403617 | H146: 53.16080612 | I146: 53.28174784 | J146: 53.73482764 | K146: 53.18145409 | L146: 53.12345656 | M146: 54.15493232 | N146: 54.56249566 | O146: 55.30812681 | P146: 54.25340433 | Q146: 55.01075567 | R146: 55.31644069 | S146: 54.45609917 | T146: 54.25846199 | U146: 54.80853141
C147: =C146 -> 62 | E147: =E$31 -> 55 | F147: PARTICIPATION ET DROITS DE L'HOMME | G147: =IF(NOT(ISNUMBER(INDEX(aScore,G$31,$C147))),NA(),INDEX(aScore,G$31,$C147)) -> 50.34663117 | H147: 51.10398893 | I147: 52.03717335 | J147: 51.53417797 | K147: 52.166169 | L147: 53.65702456 | M147: 53.71223352 | N147: 54.21731354 | O147: 54.45520417 | P147: 53.7914808 | Q147: 55.36543421 | R147: 56.73553048 | S147: 55.51084324 | T147: 55.9965178 | U147: 56.08040118
C148: 62 | E148: =E$32 -> 92 | F148: DÉVELOPPEMENT ÉCONOMIQUE DURABLE | G148: =IF(NOT(ISNUMBER(INDEX(aScore,G$32,$C148))),NA(),INDEX(aScore,G$32,$C148)) -> 37.99642778 | H148: 38.24205133 | I148: 38.41398504 | J148: 38.49320811 | K148: 38.62636002 | L148: 38.39271953 | M148: 38.94430263 | N148: 40.57082107 | O148: 41.44821472 | P148: 43.50872436 | Q148: 43.3875442 | R148: 43.36347671 | S148: 43.83885966 | T148: 43.74707192 | U148: 43.88716219
C149: 62 | E149: =E$33 -> 157 | F149: DÉVELOPPEMENT HUMAIN | G149: =IF(NOT(ISNUMBER(INDEX(aScore,G$33,$C149))),NA(),INDEX(aScore,G$33,$C149)) -> 43.1028585 | H149: 45.97844814 | I149: 46.55916652 | J149: 47.3038902 | K149: 48.10574132 | L149: 49.20930613 | M149: 49.54957477 | N149: 50.68426926 | O149: 51.65093443 | P149: 52.73759921 | Q149: 52.01834421 | R149: 53.09240734 | S149: 53.92327278 | T149: 54.05970053 | U149: 54.68321706
E151: GROUP_GROUP_5
B152: 5 | C152: =INDEX(uxbWorks!$B$207:$B$214,B152) -> 60 | D152: =INDEX(uxbWorks!$C$207:$C$214,B152) -> Afrique du Nord | E152: =E$29 -> 1 | F152: =INDEX(ddSeries,E152) -> SCORE GLOBAL | G152: =IF(NOT(ISNUMBER(INDEX(aScore,G$29,$C152))),NA(),INDEX(aScore,G$29,$C152)) -> 50.10787011 | H152: 51.24928906 | I152: 51.46770236 | J152: 51.64972377 | K152: 52.0835186 | L152: 52.59319962 | M152: 52.87478833 | N152: 53.80306946 | O152: 53.00786294 | P152: 52.49846423 | Q152: 51.90458035 | R152: 50.27564199 | S152: 52.16623193 | T152: 51.54133076 | U152: 51.20461023
C153: =C152 -> 60 | E153: =E$30 -> 2 | F153: SÉCURITÉ ET ÉTAT DE DROIT | G153: =IF(NOT(ISNUMBER(INDEX(aScore,G$30,$C153))),NA(),INDEX(aScore,G$30,$C153)) -> 57.40502404 | H153: 57.30088887 | I153: 57.57176247 | J153: 57.887774 | K153: 58.18137534 | L153: 58.28239467 | M153: 57.64645968 | N153: 57.31029785 | O153: 55.4051268 | P153: 53.91595995 | Q153: 52.8194209 | R153: 47.362547 | S153: 50.44752901 | T153: 48.1520073 | U153: 47.34234827
C154: =C153 -> 60 | E154: =E$31 -> 55 | F154: PARTICIPATION ET DROITS DE L'HOMME | G154: =IF(NOT(ISNUMBER(INDEX(aScore,G$31,$C154))),NA(),INDEX(aScore,G$31,$C154)) -> 32.59822712 | H154: 32.72414805 | I154: 33.00438764 | J154: 33.02741597 | K154: 34.05174243 | L154: 34.42911287 | M154: 34.89280263 | N154: 36.25525696 | O154: 34.21839988 | P154: 33.79370364 | Q154: 33.86140805 | R154: 36.45380539 | S154: 42.28529587 | T154: 42.59155351 | U154: 42.96736839
C155: 60 | E155: =E$32 -> 92 | F155: DÉVELOPPEMENT ÉCONOMIQUE DURABLE | G155: =IF(NOT(ISNUMBER(INDEX(aScore,G$32,$C155))),NA(),INDEX(aScore,G$32,$C155)) -> 48.8918446 | H155: 49.25155486 | I155: 49.12977283 | J155: 49.44585668 | K155: 49.63444054 | L155: 50.73149574 | M155: 51.33905072 | N155: 53.08006053 | O155: 53.49545641 | P155: 53.27971346 | Q155: 53.62586516 | R155: 50.82261133 | S155: 49.66641085 | T155: 49.06252668 | U155: 48.05838788
C156: 60 | E156: =E$33 -> 157 | F156: DÉVELOPPEMENT HUMAIN | G156: =IF(NOT(ISNUMBER(INDEX(aScore,G$33,$C156))),NA(),INDEX(aScore,G$33,$C156)) -> 61.53638468 | H156: 65.72056446 | I156: 66.16488652 | J156: 66.23784842 | K156: 66.46651609 | L156: 66.92979518 | M156: 67.6208403 | N156: 68.5666625 | O156: 68.91246869 | P156: 69.00447987 | Q156: 67.31162728 | R156: 66.46360423 | S156: 66.26569197 | T156: 66.35923554 | U156: 66.45033638
E158: GROUP_GROUP_6
B159: 6 | C159: =INDEX(uxbWorks!$B$207:$B$214,B159) -> 1 | D159: =INDEX(uxbWorks!$C$207:$C$214,B159) ->  | E159: =E$29 -> 1 | F159: =INDEX(ddSeries,E159) -> SCORE GLOBAL | G159: =IF(NOT(ISNUMBER(INDEX(aScore,G$29,$C159))),NA(),INDEX(aScore,G$29,$C159)) -> 
C160: =C159 -> 1 | E160: =E$30 -> 2 | F160: SÉCURITÉ ET ÉTAT DE DROIT | G160: =IF(NOT(ISNUMBER(INDEX(aScore,G$30,$C160))),NA(),INDEX(aScore,G$30,$C160)) -> 
C161: =C160 -> 1 | E161: =E$31 -> 55 | F161: PARTICIPATION ET DROITS DE L'HOMME | G161: =IF(NOT(ISNUMBER(INDEX(aScore,G$31,$C161))),NA(),INDEX(aScore,G$31,$C161)) -> 
C162: 1 | E162: =E$32 -> 92 | F162: DÉVELOPPEMENT ÉCONOMIQUE DURABLE | G162: =IF(NOT(ISNUMBER(INDEX(aScore,G$32,$C162))),NA(),INDEX(aScore,G$32,$C162)) -> 
C163: 1 | E163: =E$33 -> 157 | F163: DÉVELOPPEMENT HUMAIN | G163: =IF(NOT(ISNUMBER(INDEX(aScore,G$33,$C163))),NA(),INDEX(aScore,G$33,$C163)) -> 
E165: GROUP_GROUP_7
B166: 7 | C166: =INDEX(uxbWorks!$B$207:$B$214,B166) -> 1 | D166: =INDEX(uxbWorks!$C$207:$C$214,B166) ->  | E166: =E$29 -> 1 | F166: =INDEX(ddSeries,E166) -> SCORE GLOBAL | G166: =IF(NOT(ISNUMBER(INDEX(aScore,G$29,$C166))),NA(),INDEX(aScore,G$29,$C166)) -> 
C167: =C166 -> 1 | E167: =E$30 -> 2 | F167: SÉCURITÉ ET ÉTAT DE DROIT | G167: =IF(NOT(ISNUMBER(INDEX(aScore,G$30,$C167))),NA(),INDEX(aScore,G$30,$C167)) -> 
C168: =C167 -> 1 | E168: =E$31 -> 55 | F168: PARTICIPATION ET DROITS DE L'HOMME | G168: =IF(NOT(ISNUMBER(INDEX(aScore,G$31,$C168))),NA(),INDEX(aScore,G$31,$C168)) -> 
C169: 1 | E169: =E$32 -> 92 | F169: DÉVELOPPEMENT ÉCONOMIQUE DURABLE | G169: =IF(NOT(ISNUMBER(INDEX(aScore,G$32,$C169))),NA(),INDEX(aScore,G$32,$C169)) -> 
C170: 1 | E170: =E$33 -> 157 | F170: DÉVELOPPEMENT HUMAIN | G170: =IF(NOT(ISNUMBER(INDEX(aScore,G$33,$C170))),NA(),INDEX(aScore,G$33,$C170)) -> 
E172: GROUP_GROUP_8
B173: 8 | C173: =INDEX(uxbWorks!$B$207:$B$214,B173) -> 1 | D173: =INDEX(uxbWorks!$C$207:$C$214,B173) ->  | E173: =E$29 -> 1 | F173: =INDEX(ddSeries,E173) -> SCORE GLOBAL | G173: =IF(NOT(ISNUMBER(INDEX(aScore,G$29,$C173))),NA(),INDEX(aScore,G$29,$C173)) -> 
C174: =C173 -> 1 | E174: =E$30 -> 2 | F174: SÉCURITÉ ET ÉTAT DE DROIT | G174: =IF(NOT(ISNUMBER(INDEX(aScore,G$30,$C174))),NA(),INDEX(aScore,G$30,$C174)) -> 
C175: =C174 -> 1 | E175: =E$31 -> 55 | F175: PARTICIPATION ET DROITS DE L'HOMME | G175: =IF(NOT(ISNUMBER(INDEX(aScore,G$31,$C175))),NA(),INDEX(aScore,G$31,$C175)) -> 
C176: 1 | E176: =E$32 -> 92 | F176: DÉVELOPPEMENT ÉCONOMIQUE DURABLE | G176: =IF(NOT(ISNUMBER(INDEX(aScore,G$32,$C176))),NA(),INDEX(aScore,G$32,$C176)) -> 
C177: 1 | E177: =E$33 -> 157 | F177: DÉVELOPPEMENT HUMAIN | G177: =IF(NOT(ISNUMBER(INDEX(aScore,G$33,$C177))),NA(),INDEX(aScore,G$33,$C177)) -> 
A180: HARDCODED WITH OVERALL AND CATEGORY
E183: RESOLVE DATA ROWS
E184: =tblSeriesSets!C22 -> 1 | F184: =INDEX(ddSeries,E184) -> SCORE GLOBAL | G184: =MATCH(CONCATENATE($E184,"_",G$20),luSeries,0) -> 1 | H184: 200 | I184: 399 | J184: 598 | K184: 797 | L184: 996 | M184: 1195 | N184: 1394 | O184: 1593 | P184: 1792 | Q184: 1991 | R184: 2190 | S184: 2389 | T184: 2588 | U184: 2787
E185: =tblSeriesSets!C23 -> 2 | F185: =INDEX(ddSeries,E185) -> SÉCURITÉ ET ÉTAT DE DROIT | G185: 2 | H185: 201 | I185: 400 | J185: 599 | K185: 798 | L185: 997 | M185: 1196 | N185: 1395 | O185: 1594 | P185: 1793 | Q185: 1992 | R185: 2191 | S185: 2390 | T185: 2589 | U185: 2788
E186: =tblSeriesSets!C24 -> 55 | F186: =INDEX(ddSeries,E186) -> PARTICIPATION ET DROITS DE L'HOMME | G186: 55 | H186: 254 | I186: 453 | J186: 652 | K186: 851 | L186: 1050 | M186: 1249 | N186: 1448 | O186: 1647 | P186: 1846 | Q186: 2045 | R186: 2244 | S186: 2443 | T186: 2642 | U186: 2841
E187: =tblSeriesSets!C25 -> 92 | F187: =INDEX(ddSeries,E187) -> DÉVELOPPEMENT ÉCONOMIQUE DURABLE | G187: 92 | H187: 291 | I187: 490 | J187: 689 | K187: 888 | L187: 1087 | M187: 1286 | N187: 1485 | O187: 1684 | P187: 1883 | Q187: 2082 | R187: 2281 | S187: 2480 | T187: 2679 | U187: 2878
E188: =tblSeriesSets!C26 -> 157 | F188: =INDEX(ddSeries,E188) -> DÉVELOPPEMENT HUMAIN | G188: 157 | H188: 356 | I188: 555 | J188: 754 | K188: 953 | L188: 1152 | M188: 1351 | N188: 1550 | O188: 1749 | P188: 1948 | Q188: 2147 | R188: 2346 | S188: 2545 | T188: 2744 | U188: 2943
E192: RESOLVE STDERR ROWS
E193: =E$184 -> 1 | F193: =INDEX(ddSeries,E193) -> SCORE GLOBAL | G193: =MATCH(CONCATENATE($E193,"_",G$20),luStdErr,0) -> 1 | H193: 6 | I193: 11 | J193: 16 | K193: 21 | L193: 26 | M193: 31 | N193: 36 | O193: 41 | P193: 46 | Q193: 51 | R193: 56 | S193: 61 | T193: 66 | U193: 71
E194: =E$185 -> 2 | F194: =INDEX(ddSeries,E194) -> SÉCURITÉ ET ÉTAT DE DROIT | G194: 2 | H194: 7 | I194: 12 | J194: 17 | K194: 22 | L194: 27 | M194: 32 | N194: 37 | O194: 42 | P194: 47 | Q194: 52 | R194: 57 | S194: 62 | T194: 67 | U194: 72
E195: =E$186 -> 55 | F195: =INDEX(ddSeries,E195) -> PARTICIPATION ET DROITS DE L'HOMME | G195: 3 | H195: 8 | I195: 13 | J195: 18 | K195: 23 | L195: 28 | M195: 33 | N195: 38 | O195: 43 | P195: 48 | Q195: 53 | R195: 58 | S195: 63 | T195: 68 | U195: 73
E196: =E$187 -> 92 | F196: =INDEX(ddSeries,E196) -> DÉVELOPPEMENT ÉCONOMIQUE DURABLE | G196: 4 | H196: 9 | I196: 14 | J196: 19 | K196: 24 | L196: 29 | M196: 34 | N196: 39 | O196: 44 | P196: 49 | Q196: 54 | R196: 59 | S196: 64 | T196: 69 | U196: 74
E197: =E$188 -> 157 | F197: =INDEX(ddSeries,E197) -> DÉVELOPPEMENT HUMAIN | G197: 5 | H197: 10 | I197: 15 | J197: 20 | K197: 25 | L197: 30 | M197: 35 | N197: 40 | O197: 45 | P197: 50 | Q197: 55 | R197: 60 | S197: 65 | T197: 70 | U197: 75
E200: AFRICA MIN
E201: =E$184 -> 1 | F201: =INDEX(ddSeries,E201) -> SCORE GLOBAL | G201: =INDEX(aStats,G184,2) -> 9.164240924 | H201: 9.31937654 | I201: 9.676726419 | J201: 9.921774705 | K201: 9.610637401 | L201: 9.59592518 | M201: 8.725751215 | N201: 9.339310574 | O201: 6.996348571 | P201: 8.495255674 | Q201: 7.794636125 | R201: 7.318182139 | S201: 7.93702938 | T201: 7.794829583 | U201: 8.513781298
E202: =E$185 -> 2 | F202: =INDEX(ddSeries,E202) -> SÉCURITÉ ET ÉTAT DE DROIT | G202: =INDEX(aStats,G185,2) -> 13.54410448 | H202: 12.07188569 | I202: 12.26633356 | J202: 13.45780524 | K202: 12.84922005 | L202: 13.06563735 | M202: 11.01592097 | N202: 5.176751726 | O202: 3.918650794 | P202: 6.362130579 | Q202: 4.693678465 | R202: 4.851373114 | S202: 5.750921477 | T202: 5.790417149 | U202: 5.491373757
E203: =E$186 -> 55 | F203: =INDEX(ddSeries,E203) -> PARTICIPATION ET DROITS DE L'HOMME | G203: =INDEX(aStats,G186,2) -> 10.96127705 | H203: 10.92630751 | I203: 11.10230816 | J203: 11.10953271 | K203: 11.05346585 | L203: 11.06069013 | M203: 9.72071653 | N203: 8.777251981 | O203: 9.39608302 | P203: 9.482034722 | Q203: 9.805417938 | R203: 9.639327877 | S203: 10.04392151 | T203: 9.247741238 | U203: 10.42994808
E204: =E$187 -> 92 | F204: =INDEX(ddSeries,E204) -> DÉVELOPPEMENT ÉCONOMIQUE DURABLE | G204: =INDEX(aStats,G187,2) -> 1.315894906 | H204: 1.888714984 | I204: 1.803523754 | J204: 2.136507159 | K204: 2.233580418 | L204: 2.338084032 | M204: 2.40643654 | N204: 2.783364562 | O204: 2.498621273 | P204: 4.03731594 | Q204: 3.988284821 | R204: 3.12444785 | S204: 3.731381516 | T204: 3.506472948 | U204: 4.099842211
E205: =E$188 -> 157 | F205: =INDEX(ddSeries,E205) -> DÉVELOPPEMENT HUMAIN | G205: =INDEX(aStats,G188,2) -> 10.83568726 | H205: 12.39059798 | I205: 13.53474021 | J205: 12.98325371 | K205: 12.30628328 | L205: 11.91928921 | M205: 11.75993082 | N205: 20.61987403 | O205: 12.1720392 | P205: 14.09954146 | Q205: 12.69116328 | R205: 11.65757972 | S205: 12.22189302 | T205: 12.634687 | U205: 14.03396114
E207: AFRICA MAX
E208: =E$184 -> 1 | F208: =INDEX(ddSeries,E208) -> SCORE GLOBAL | G208: =INDEX(aStats,G184,3) -> 75.88011425 | H208: 77.40374846 | I208: 77.52618227 | J208: 77.6999585 | K208: 77.25648895 | L208: 77.83852166 | M208: 78.47494715 | N208: 79.73922146 | O208: 81.43166987 | P208: 81.56774549 | Q208: 80.51072875 | R208: 80.65498807 | S208: 81.1189712 | T208: 80.71176822 | U208: 79.91854669
E209: =E$185 -> 2 | F209: =INDEX(ddSeries,E209) -> SÉCURITÉ ET ÉTAT DE DROIT | G209: =INDEX(aStats,G185,3) -> 84.27418125 | H209: 84.27421266 | I209: 85.31500777 | J209: 85.31303453 | K209: 83.22405803 | L209: 83.81379299 | M209: 83.21356922 | N209: 83.42422336 | O209: 83.9012457 | P209: 85.20118497 | Q209: 84.68181245 | R209: 85.10442785 | S209: 84.86272543 | T209: 84.40681461 | U209: 82.70387513
E210: =E$186 -> 55 | F210: =INDEX(ddSeries,E210) -> PARTICIPATION ET DROITS DE L'HOMME | G210: =INDEX(aStats,G186,3) -> 77.64644159 | H210: 81.43530175 | I210: 82.41639771 | J210: 83.48432162 | K210: 83.67027209 | L210: 84.10465059 | M210: 80.9566883 | N210: 82.41880596 | O210: 83.32828461 | P210: 83.28215445 | Q210: 81.7258581 | R210: 86.63779394 | S210: 86.31742418 | T210: 85.99816978 | U210: 83.0898548
E211: =E$187 -> 92 | F211: =INDEX(ddSeries,E211) -> DÉVELOPPEMENT ÉCONOMIQUE DURABLE | G211: =INDEX(aStats,G187,3) -> 67.03712448 | H211: 68.11316043 | I211: 68.26226951 | J211: 68.24069559 | K211: 68.35988654 | L211: 69.48088773 | M211: 70.16094329 | N211: 71.51202059 | O211: 78.80921372 | P211: 78.52083983 | Q211: 79.35436195 | R211: 77.17456037 | S211: 77.93864939 | T211: 78.01373639 | U211: 77.46603833
E212: =E$188 -> 157 | F212: =INDEX(ddSeries,E212) -> DÉVELOPPEMENT HUMAIN | G212: =INDEX(aStats,G188,3) -> 77.86779954 | H212: 82.31069978 | I212: 82.732798 | J212: 82.83448884 | K212: 83.29270935 | L212: 83.79972376 | M212: 84.67432397 | N212: 87.32175707 | O212: 86.74302241 | P212: 86.54584975 | Q212: 83.17337486 | R212: 84.69039079 | S212: 84.92269449 | T212: 85.37458266 | U212: 85.71914651
E214: AFRICA AVERAGE (GROUP SCORE)
B215: HARDCODE | C215: 57 | E215: =E$184 -> 1 | F215: =INDEX(ddSeries,E215) -> SCORE GLOBAL | G215: =INDEX(aScore,G$184,$C$215) -> 46.50188218 | H215: 47.47097629 | I215: 47.84335481 | J215: 48.0867615 | K215: 48.38404699 | L215: 48.92566605 | M215: 49.3544859 | N215: 50.01134241 | O215: 50.39587052 | P215: 50.31984535 | Q215: 50.37162086 | R215: 49.82880859 | S215: 50.11569661 | T215: 50.0004073 | U215: 50.0575588
E216: =E$185 -> 2 | F216: =INDEX(ddSeries,E216) -> SÉCURITÉ ET ÉTAT DE DROIT | G216: =INDEX(aScore,G$185,$C$215) -> 53.23055093 | H216: 53.15685627 | I216: 53.48010375 | J216: 53.78344545 | K216: 53.72579295 | L216: 54.00334058 | M216: 54.18810426 | N216: 54.05879125 | O216: 54.05763197 | P216: 52.8270198 | Q216: 52.87816943 | R216: 51.55493284 | S216: 51.61989693 | T216: 50.84434446 | U216: 51.27027582
E217: =E$186 -> 55 | F217: =INDEX(ddSeries,E217) -> PARTICIPATION ET DROITS DE L'HOMME | G217: =INDEX(aScore,G$186,$C$215) -> 45.25718641 | H217: 45.66833985 | I217: 46.35815504 | J217: 46.32194227 | K217: 46.84593954 | L217: 47.61727645 | M217: 48.14221527 | N217: 48.76224146 | O217: 48.62481795 | P217: 48.24384671 | Q217: 48.64990337 | R217: 48.63202171 | S217: 49.14154061 | T217: 49.52286565 | U217: 49.32758316
E218: =E$187 -> 92 | F218: =INDEX(ddSeries,E218) -> DÉVELOPPEMENT ÉCONOMIQUE DURABLE | G218: =INDEX(aScore,G$187,$C$215) -> 40.28032933 | H218: 40.6073061 | I218: 40.59311488 | J218: 40.76375759 | K218: 40.88347603 | L218: 41.40607898 | M218: 41.81334141 | N218: 42.87393552 | O218: 43.84025519 | P218: 44.29467227 | Q218: 44.84995401 | R218: 43.91433406 | S218: 43.90515738 | T218: 43.77206535 | U218: 43.22928845
E219: =E$188 -> 157 | F219: =INDEX(ddSeries,E219) -> DÉVELOPPEMENT HUMAIN | G219: =INDEX(aScore,G$188,$C$215) -> 47.23946204 | H219: 50.45140294 | I219: 50.94204558 | J219: 51.47790069 | K219: 52.08097945 | L219: 52.67596819 | M219: 53.27428266 | N219: 54.35040141 | O219: 55.06077697 | P219: 55.91384264 | Q219: 55.10845661 | R219: 55.21394574 | S219: 55.79619153 | T219: 55.86235374 | U219: 56.40308777
E221: COUNTRY_1
C222: =$B$3 -> 46 | D222: =$C$3 -> Afrique du Sud | E222: =E$184 -> 1 | F222: =INDEX(ddSeries,E222) -> SCORE GLOBAL | G222: =IF(NOT(ISNUMBER(INDEX(aScore,G$184,$C$222))),NA(),INDEX(aScore,G$184,$C$222)) -> 71.64075915 | H222: 72.30844652 | I222: 72.41262816 | J222: 72.76525368 | K222: 72.63872543 | L222: 73.14334024 | M222: 73.52972103 | N222: 74.05109413 | O222: 73.54550591 | P222: 72.6389243 | Q222: 72.16274868 | R222: 72.05033177 | S222: 71.99771179 | T222: 72.84390281 | U222: 72.98219117
E223: =E$185 -> 2 | F223: =INDEX(ddSeries,E223) -> SÉCURITÉ ET ÉTAT DE DROIT | G223: =IF(NOT(ISNUMBER(INDEX(aScore,G$185,$C$222))),NA(),INDEX(aScore,G$185,$C$222)) -> 72.40097313 | H223: 71.74387717 | I223: 71.60702188 | J223: 71.60699402 | K223: 71.70188476 | L223: 71.82626447 | M223: 71.28150745 | N223: 70.61908721 | O223: 70.45969038 | P223: 67.61382504 | Q223: 67.84211241 | R223: 67.61975408 | S223: 66.99423156 | T223: 66.92464505 | U223: 68.42310054
E224: =E$186 -> 55 | F224: =INDEX(ddSeries,E224) -> PARTICIPATION ET DROITS DE L'HOMME | G224: =IF(NOT(ISNUMBER(INDEX(aScore,G$186,$C$222))),NA(),INDEX(aScore,G$186,$C$222)) -> 74.6242855 | H224: 74.69681355 | I224: 74.56122335 | J224: 74.73989171 | K224: 75.24983979 | L224: 76.22780418 | M224: 75.53424132 | N224: 76.43850938 | O224: 74.95669805 | P224: 74.49561507 | Q224: 74.29925712 | R224: 74.09985468 | S224: 73.72357693 | T224: 74.14422262 | U224: 73.92104233
E225: =E$187 -> 92 | F225: =INDEX(ddSeries,E225) -> DÉVELOPPEMENT ÉCONOMIQUE DURABLE | G225: =IF(NOT(ISNUMBER(INDEX(aScore,G$187,$C$222))),NA(),INDEX(aScore,G$187,$C$222)) -> 66.07883169 | H225: 66.18758716 | I225: 66.62239998 | J225: 67.96817023 | K225: 67.01507712 | L225: 68.46047444 | M225: 69.72734777 | N225: 71.432232 | O225: 71.51247612 | P225: 71.3227117 | Q225: 70.64398804 | R225: 69.52878769 | S225: 71.81272168 | T225: 72.3148773 | U225: 72.3113581
E226: =E$188 -> 157 | F226: =INDEX(ddSeries,E226) -> DÉVELOPPEMENT HUMAIN | G226: =IF(NOT(ISNUMBER(INDEX(aScore,G$188,$C$222))),NA(),INDEX(aScore,G$188,$C$222)) -> 73.45894629 | H226: 76.60550821 | I226: 76.85986744 | J226: 76.74595877 | K226: 76.58810006 | L226: 76.05881788 | M226: 77.57578759 | N226: 77.71454792 | O226: 77.25315909 | P226: 77.12354539 | Q226: 75.86563715 | R226: 76.95293064 | S226: 75.46031699 | T226: 77.99186628 | U226: 77.27326369
E229: COUNTRY_1_DONUT | G229: =$C$8 -> 2014 | H229: =$C$7 -> 2011
F230: =F223 -> SÉCURITÉ ET ÉTAT DE DROIT | G230: =U223 -> 68.42310054 | H230: =INDEX($G223:$U223,$B$7) -> 67.61975408
F231: =F224 -> PARTICIPATION ET DROITS DE L'HOMME | G231: =U224 -> 73.92104233 | H231: =INDEX($G224:$U224,$B$7) -> 74.09985468
F232: DÉVELOPPEMENT ÉCONOMIQUE DURABLE | G232: =U225 -> 72.3113581 | H232: 69.52878769
F233: DÉVELOPPEMENT HUMAIN | G233: =U226 -> 77.27326369 | H233: 76.95293064
F234: REMAINDER | G234: =400-SUM(G230:G233) -> 108.0712353 | H234: 0
F236: =F222 -> SCORE GLOBAL | G236: =TEXT(U222,Score_Format) -> 73.0 | H236: (locale formatted for centre of donut)
E239: =tblSeriesSets!C51 -> 3 | F239: =INDEX(ddSeries,E239) -> ÉTAT DE DROIT | G239: =IF(NOT(ISNUMBER(INDEX(aScore,MATCH(CONCATENATE($E239,"_",G$20),luSeries,0),$C$222))),NA(),INDEX(aScore,MATCH(CONCATENATE($E239,"_",G$20),luSeries,0),$C$222)) -> 92.51534091 | H239: 92.51534091 | I239: 92.51534091 | J239: 92.51534091 | K239: 92.51534091 | L239: 92.51534091 | M239: 91.82089646 | N239: 91.43310437 | O239: 90.7051111 | P239: 89.34534542 | Q239: 89.0315103 | R239: 90.03672382 | S239: 91.10851622 | T239: 93.79138781 | U239: 95.35762768
E240: =tblSeriesSets!C52 -> 22 | F240: REDEVABILITÉ | G240: 75.40742924 | H240: 73.82012765 | I240: 72.23282606 | J240: 72.23282606 | K240: 72.61212542 | L240: 77.2762586 | M240: 75.79436421 | N240: 74.78752707 | O240: 73.99437531 | P240: 68.59149225 | Q240: 65.13026222 | R240: 65.88597551 | S240: 67.0877278 | T240: 66.02303786 | U240: 66.78211171
E241: =tblSeriesSets!C53 -> 38 | F241: SÉCURITÉ INDIVIDUELLE | G241: 41.68313757 | H241: 40.6414709 | I241: 41.68313757 | J241: 41.68313757 | K241: 41.68313757 | L241: 37.5164709 | M241: 37.5164709 | N241: 36.26093995 | O241: 37.1441937 | P241: 37.52256405 | Q241: 37.21067585 | R241: 34.5607705 | S241: 29.78497478 | T241: 31.2217443 | U241: 31.55654103
E242: =tblSeriesSets!C54 -> 49 | F242: SÉCURITÉ NATIONALE | G242: 79.99798479 | H242: 79.99856921 | I242: 79.99678297 | J242: 79.99667153 | K242: 79.99693514 | L242: 79.99698748 | M242: 79.99429822 | N242: 79.99477745 | O242: 79.9950814 | P242: 74.99589843 | Q242: 79.99600126 | R242: 79.99554648 | S242: 79.99570743 | T242: 76.66241022 | U242: 79.99612175
E243: =tblSeriesSets!C55 -> 56 | F243: PARTICIPATION | G243: 91.01851852 | H243: 91.01851852 | I243: 91.01851852 | J243: 91.01851852 | K243: 91.85185185 | L243: 91.85185185 | M243: 88.51851852 | N243: 88.51851852 | O243: 85.18518519 | P243: 81.85185185 | Q243: 80.74074074 | R243: 79.62962963 | S243: 79.62962963 | T243: 81.05413105 | U243: 81.05413105
E244: =tblSeriesSets!C56 -> 62 | F244: DROITS | G244: 66.13414205 | H244: 66.13414205 | I244: 66.00755978 | J244: 67.07085091 | K244: 67.94426864 | L244: 68.8809775 | M244: 69.99824191 | N244: 71.17879747 | O244: 68.31610408 | P244: 68.45341069 | Q244: 68.39011955 | R244: 68.32682841 | S244: 67.70798172 | T244: 67.373674 | U244: 67.07359126
E245: =tblSeriesSets!C57 -> 80 | F245: PARITÉ | G245: 66.72019593 | H245: 66.93778008 | I245: 66.65759175 | J245: 66.13030569 | K245: 65.95339887 | L245: 67.95058319 | M245: 68.08596353 | N245: 69.61821215 | O245: 71.36880489 | P245: 73.18158267 | Q245: 73.76691107 | R245: 74.343106 | S245: 73.83311944 | T245: 74.00486281 | U245: 73.63540468
E246: =tblSeriesSets!C58 -> 93 | F246: GESTION PUBLIQUE | G246: 74.71049044 | H246: 74.46239051 | I246: 75.76316802 | J246: 78.21954499 | K246: 78.50083181 | L246: 77.88980961 | M246: 79.25553197 | N246: 83.78138218 | O246: 81.94196428 | P246: 78.5614178 | Q246: 76.9070196 | R246: 76.61391511 | S246: 74.34593691 | T246: 74.45857677 | U246: 71.59719661
... 6 more rows

Sheet Import (hidden)
B4: Metadata file | C4: 2015_09_17_2015 IIAG French metadata v2.6.xlsx
B6: Data file | C6: 2015_IIAG_Calculation_v0.2.xlsm

Sheet tblCountries (hidden)
A1: ALPHA_ID | B1: ID | C1: ISO | D1: COUNTRY | E1: COUNTRY_SHORT | G1: COUNTRY_PLUS_GROUP | J1: STATUS | K1: GROUP _FILTER | L1: GROUP_HILITE | N1: RANK OUT OF | Q1: 1 | R1: 2 | S1: 3 | T1: 4 | U1: 5 | V1: 6 | W1: 7 | X1: 8 | Y1: 9 | Z1: 10 | AA1: 11 | AB1: 12 | AC1: 13 | AD1: 14 | AE1: 15 | AF1: 16 | AG1: 17 | AH1: 18
A2: 1 | B2: 1 | D2: =uxbWorks!$B$41 -> <aucun> | E2: =uxbWorks!$B$41 -> <aucun> | G2: =uxbWorks!$B$41 -> <aucun> | H2: =uxbWorks!$B$41 -> <aucun> | J2: 0 | K2: =MATCH(uxbWorks!$B$153,mdGroups!$C$4:$C$21,0) -> 1 | L2: =MATCH(uxbWorks!$B$80,mdGroups!$C$4:$C$21,0) -> 1 | Q2: 1 | R2: 2 | S2: 3 | T2: 4 | U2: 5 | V2: 6 | W2: 7 | X2: 8 | Y2: 9 | Z2: 10 | AA2: 11 | AB2: 12 | AC2: 13 | AD2: 14 | AE2: 15 | AF2: 16 | AG2: 17 | AH2: 18
A3: 2 | B3: 46 | C3: ZA | D3: Afrique du Sud | E3: Afrique du Sud | G3: =D3 -> Afrique du Sud | H3: Afrique du Sud | J3: =IF(K3=0,0,IF($A3=uxbWorks!$B$77,3,IF(L3=1,2,1))) -> 1 | K3: =INDEX($Q$2:$AH$56,$B3,K$2) -> 1 | L3: =IF(L$2=1,0,INDEX($Q$2:$AH$56,$B3,L$2)) -> 0 | N3: 54 | Q3: 1 | R3: 0 | S3: 0 | T3: 1 | U3: 0 | V3: 0 | W3: 0 | X3: 1 | Y3: 0 | Z3: 0 | AA3: 0 | AB3: 0 | AC3: 0 | AD3: 0 | AE3: 0 | AF3: 0 | AG3: 0 | AH3: 1
A4: 3 | B4: 2 | C4: DZ | D4: Algérie | E4: Algérie | G4: Algérie | H4: Algérie | J4: =IF(K4=0,0,IF($A4=uxbWorks!$B$77,3,IF(L4=1,2,1))) -> 1 | K4: =INDEX($Q$2:$AH$56,$B4,K$2) -> 1 | L4: =IF(L$2=1,0,INDEX($Q$2:$AH$56,$B4,L$2)) -> 0 | N4: 54 | Q4: 1 | R4: 0 | S4: 0 | T4: 0 | U4: 1 | V4: 0 | W4: 1 | X4: 0 | Y4: 0 | Z4: 0 | AA4: 0 | AB4: 1 | AC4: 0 | AD4: 0 | AE4: 1 | AF4: 0 | AG4: 0 | AH4: 1
A5: 4 | B5: 3 | C5: AO | D5: Angola | E5: Angola | G5: Angola | H5: Angola | J5: =IF(K5=0,0,IF($A5=uxbWorks!$B$77,3,IF(L5=1,2,1))) -> 1 | K5: 1 | L5: 0 | N5: 54 | Q5: 1 | R5: 0 | S5: 0 | T5: 0 | U5: 0 | V5: 1 | W5: 1 | X5: 0 | Y5: 1 | Z5: 0 | AA5: 0 | AB5: 0 | AC5: 1 | AD5: 0 | AE5: 0 | AF5: 0 | AG5: 0 | AH5: 1
A6: 5 | B6: 4 | C6: BJ | D6: Bénin | E6: Bénin | G6: Bénin | H6: Bénin | J6: =IF(K6=0,0,IF($A6=uxbWorks!$B$77,3,IF(L6=1,2,1))) -> 1 | K6: 1 | L6: 0 | N6: 54 | Q6: 1 | R6: 0 | S6: 0 | T6: 0 | U6: 1 | V6: 0 | W6: 1 | X6: 0 | Y6: 0 | Z6: 0 | AA6: 0 | AB6: 0 | AC6: 0 | AD6: 0 | AE6: 1 | AF6: 0 | AG6: 1 | AH6: 0
A7: 6 | B7: 5 | C7: BW | D7: Botswana | E7: Botswana | G7: Botswana | H7: Botswana | J7: =IF(K7=0,0,IF($A7=uxbWorks!$B$77,3,IF(L7=1,2,1))) -> 1 | K7: 1 | L7: 0 | N7: 54 | Q7: 1 | R7: 0 | S7: 0 | T7: 0 | U7: 0 | V7: 1 | W7: 1 | X7: 0 | Y7: 1 | Z7: 0 | AA7: 0 | AB7: 0 | AC7: 1 | AD7: 0 | AE7: 0 | AF7: 0 | AG7: 1 | AH7: 0
A8: 7 | B8: 6 | C8: BF | D8: Burkina Faso | E8: Burkina Faso | G8: Burkina Faso | H8: Burkina Faso | J8: =IF(K8=0,0,IF($A8=uxbWorks!$B$77,3,IF(L8=1,2,1))) -> 1 | K8: 1 | L8: 0 | N8: 54 | Q8: 1 | R8: 0 | S8: 1 | T8: 0 | U8: 0 | V8: 0 | W8: 1 | X8: 0 | Y8: 0 | Z8: 1 | AA8: 1 | AB8: 1 | AC8: 0 | AD8: 0 | AE8: 0 | AF8: 0 | AG8: 1 | AH8: 0
A9: 8 | B9: 7 | C9: BI | D9: Burundi | E9: Burundi | G9: Burundi | H9: Burundi | J9: =IF(K9=0,0,IF($A9=uxbWorks!$B$77,3,IF(L9=1,2,1))) -> 1 | K9: 1 | L9: 0 | N9: 54 | Q9: 1 | R9: 0 | S9: 0 | T9: 0 | U9: 0 | V9: 1 | W9: 1 | X9: 0 | Y9: 1 | Z9: 0 | AA9: 0 | AB9: 0 | AC9: 1 | AD9: 0 | AE9: 0 | AF9: 1 | AG9: 0 | AH9: 0
A10: 9 | B10: 8 | C10: CV | D10: Cabo Verde | E10: Cabo Verde | G10: Cabo Verde | H10: Cabo Verde | J10: =IF(K10=0,0,IF($A10=uxbWorks!$B$77,3,IF(L10=1,2,1))) -> 1 | K10: 1 | L10: 0 | N10: 54 | Q10: 1 | R10: 1 | S10: 0 | T10: 0 | U10: 0 | V10: 0 | W10: 1 | X10: 0 | Y10: 0 | Z10: 0 | AA10: 0 | AB10: 1 | AC10: 0 | AD10: 0 | AE10: 0 | AF10: 0 | AG10: 0 | AH10: 1
A11: 10 | B11: 9 | C11: CM | D11: Cameroun | E11: Cameroun | G11: Cameroun | H11: Cameroun | J11: =IF(K11=0,0,IF($A11=uxbWorks!$B$77,3,IF(L11=1,2,1))) -> 1 | K11: 1 | L11: 0 | N11: 54 | Q11: 1 | R11: 1 | S11: 0 | T11: 0 | U11: 0 | V11: 0 | W11: 1 | X11: 0 | Y11: 1 | Z11: 0 | AA11: 0 | AB11: 1 | AC11: 0 | AD11: 0 | AE11: 0 | AF11: 0 | AG11: 1 | AH11: 0
A12: 11 | B12: 12 | C12: KM | D12: Comores | E12: Comores | G12: Comores | H12: Comores | J12: =IF(K12=0,0,IF($A12=uxbWorks!$B$77,3,IF(L12=1,2,1))) -> 1 | K12: 1 | L12: 0 | N12: 54 | Q12: 1 | R12: 1 | S12: 0 | T12: 0 | U12: 0 | V12: 0 | W12: 1 | X12: 0 | Y12: 1 | Z12: 0 | AA12: 0 | AB12: 1 | AC12: 0 | AD12: 0 | AE12: 0 | AF12: 0 | AG12: 1 | AH12: 0
A13: 12 | B13: 13 | C13: CD | D13: Congo | E13: Congo | G13: Congo | H13: Congo | J13: =IF(K13=0,0,IF($A13=uxbWorks!$B$77,3,IF(L13=1,2,1))) -> 1 | K13: 1 | L13: 0 | N13: 54 | Q13: 1 | R13: 0 | S13: 1 | T13: 0 | U13: 0 | V13: 0 | W13: 1 | X13: 0 | Y13: 1 | Z13: 1 | AA13: 0 | AB13: 0 | AC13: 0 | AD13: 0 | AE13: 0 | AF13: 1 | AG13: 0 | AH13: 0
A14: 13 | B14: 14 | C14: CI | D14: Côte d'Ivoire | E14: Côte d'Ivoire | G14: Côte d'Ivoire | H14: Côte d'Ivoire | J14: =IF(K14=0,0,IF($A14=uxbWorks!$B$77,3,IF(L14=1,2,1))) -> 1 | K14: 1 | L14: 0 | N14: 54 | Q14: 1 | R14: 1 | S14: 0 | T14: 0 | U14: 0 | V14: 0 | W14: 1 | X14: 0 | Y14: 0 | Z14: 0 | AA14: 0 | AB14: 1 | AC14: 0 | AD14: 0 | AE14: 0 | AF14: 0 | AG14: 0 | AH14: 1
A15: 14 | B15: 16 | C15: DJ | D15: Djibouti | E15: Djibouti | G15: Djibouti | H15: Djibouti | J15: =IF(K15=0,0,IF($A15=uxbWorks!$B$77,3,IF(L15=1,2,1))) -> 1 | K15: 1 | L15: 0 | N15: 54 | Q15: 1 | R15: 0 | S15: 0 | T15: 0 | U15: 0 | V15: 1 | W15: 1 | X15: 0 | Y15: 1 | Z15: 0 | AA15: 0 | AB15: 0 | AC15: 1 | AD15: 0 | AE15: 0 | AF15: 0 | AG15: 0 | AH15: 1
A16: 15 | B16: 17 | C16: EG | D16: Égypte | E16: Égypte | G16: Égypte | H16: Égypte | J16: =IF(K16=0,0,IF($A16=uxbWorks!$B$77,3,IF(L16=1,2,1))) -> 1 | K16: 1 | L16: 0 | N16: 54 | Q16: 1 | R16: 1 | S16: 0 | T16: 0 | U16: 0 | V16: 0 | W16: 1 | X16: 0 | Y16: 0 | Z16: 1 | AA16: 0 | AB16: 1 | AC16: 0 | AD16: 0 | AE16: 1 | AF16: 0 | AG16: 0 | AH16: 1
A17: 16 | B17: 19 | C17: ER | D17: Érythrée | E17: Érythrée | G17: Érythrée | H17: Érythrée | J17: =IF(K17=0,0,IF($A17=uxbWorks!$B$77,3,IF(L17=1,2,1))) -> 1 | K17: 1 | L17: 0 | N17: 54 | Q17: 1 | R17: 0 | S17: 1 | T17: 0 | U17: 0 | V17: 0 | W17: 1 | X17: 0 | Y17: 1 | Z17: 1 | AA17: 0 | AB17: 0 | AC17: 0 | AD17: 1 | AE17: 0 | AF17: 0 | AG17: 0 | AH17: 1
A18: 17 | B18: 20 | C18: ET | D18: Éthiopie | E18: Éthiopie | G18: Éthiopie | H18: Éthiopie | J18: =IF(K18=0,0,IF($A18=uxbWorks!$B$77,3,IF(L18=1,2,1))) -> 1 | K18: 1 | L18: 0 | N18: 54 | Q18: 1 | R18: 0 | S18: 0 | T18: 1 | U18: 0 | V18: 0 | W18: 0 | X18: 0 | Y18: 1 | Z18: 1 | AA18: 0 | AB18: 0 | AC18: 0 | AD18: 0 | AE18: 0 | AF18: 0 | AG18: 0 | AH18: 1
A19: 18 | B19: 21 | C19: GA | D19: Gabon | E19: Gabon | G19: Gabon | H19: Gabon | J19: =IF(K19=0,0,IF($A19=uxbWorks!$B$77,3,IF(L19=1,2,1))) -> 1 | K19: 1 | L19: 0 | N19: 54 | Q19: 1 | R19: 1 | S19: 0 | T19: 0 | U19: 0 | V19: 0 | W19: 1 | X19: 0 | Y19: 0 | Z19: 0 | AA19: 0 | AB19: 1 | AC19: 0 | AD19: 0 | AE19: 0 | AF19: 0 | AG19: 0 | AH19: 1
A20: 19 | B20: 22 | C20: GM | D20: Gambie | E20: Gambie | G20: Gambie | H20: Gambie | J20: =IF(K20=0,0,IF($A20=uxbWorks!$B$77,3,IF(L20=1,2,1))) -> 1 | K20: 1 | L20: 0 | N20: 54 | Q20: 1 | R20: 0 | S20: 1 | T20: 0 | U20: 0 | V20: 0 | W20: 1 | X20: 0 | Y20: 1 | Z20: 1 | AA20: 0 | AB20: 0 | AC20: 0 | AD20: 1 | AE20: 0 | AF20: 0 | AG20: 0 | AH20: 1
A21: 20 | B21: 23 | C21: GH | D21: Ghana | E21: Ghana | G21: Ghana | H21: Ghana | J21: =IF(K21=0,0,IF($A21=uxbWorks!$B$77,3,IF(L21=1,2,1))) -> 1 | K21: 1 | L21: 0 | N21: 54 | Q21: 1 | R21: 0 | S21: 1 | T21: 0 | U21: 0 | V21: 0 | W21: 1 | X21: 0 | Y21: 0 | Z21: 1 | AA21: 0 | AB21: 0 | AC21: 0 | AD21: 1 | AE21: 0 | AF21: 0 | AG21: 1 | AH21: 0
A22: 21 | B22: 24 | C22: GN | D22: Guinée | E22: Guinée | G22: Guinée | H22: Guinée | J22: =IF(K22=0,0,IF($A22=uxbWorks!$B$77,3,IF(L22=1,2,1))) -> 1 | K22: 1 | L22: 0 | N22: 54 | Q22: 1 | R22: 1 | S22: 0 | T22: 0 | U22: 0 | V22: 0 | W22: 1 | X22: 0 | Y22: 0 | Z22: 0 | AA22: 0 | AB22: 1 | AC22: 0 | AD22: 0 | AE22: 0 | AF22: 0 | AG22: 0 | AH22: 1
A23: 22 | B23: 18 | C23: GQ | D23: Guinée équatoriale | E23: Guinée équatoriale | G23: Guinée équatoriale | H23: Guinée équatoriale | J23: =IF(K23=0,0,IF($A23=uxbWorks!$B$77,3,IF(L23=1,2,1))) -> 1 | K23: 1 | L23: 0 | N23: 54 | Q23: 1 | R23: 0 | S23: 0 | T23: 0 | U23: 0 | V23: 1 | W23: 1 | X23: 0 | Y23: 1 | Z23: 0 | AA23: 0 | AB23: 0 | AC23: 1 | AD23: 0 | AE23: 0 | AF23: 0 | AG23: 0 | AH23: 1
A24: 23 | B24: 25 | C24: GW | D24: Guinée-Bissau | E24: Guinée-Bissau | G24: Guinée-Bissau | H24: Guinée-Bissau | J24: =IF(K24=0,0,IF($A24=uxbWorks!$B$77,3,IF(L24=1,2,1))) -> 1 | K24: 1 | L24: 0 | N24: 54 | Q24: 1 | R24: 0 | S24: 0 | T24: 0 | U24: 0 | V24: 1 | W24: 1 | X24: 0 | Y24: 1 | Z24: 0 | AA24: 0 | AB24: 0 | AC24: 1 | AD24: 0 | AE24: 0 | AF24: 0 | AG24: 0 | AH24: 1
A25: 24 | B25: 26 | C25: KE | D25: Kenya | E25: Kenya | G25: Kenya | H25: Kenya | J25: =IF(K25=0,0,IF($A25=uxbWorks!$B$77,3,IF(L25=1,2,1))) -> 1 | K25: 1 | L25: 0 | N25: 54 | Q25: 1 | R25: 0 | S25: 0 | T25: 0 | U25: 0 | V25: 1 | W25: 1 | X25: 0 | Y25: 1 | Z25: 0 | AA25: 0 | AB25: 0 | AC25: 1 | AD25: 0 | AE25: 0 | AF25: 0 | AG25: 0 | AH25: 1
A26: 25 | B26: 27 | C26: LS | D26: Lesotho | E26: Lesotho | G26: Lesotho | H26: Lesotho | J26: =IF(K26=0,0,IF($A26=uxbWorks!$B$77,3,IF(L26=1,2,1))) -> 1 | K26: 1 | L26: 0 | N26: 54 | Q26: 1 | R26: 0 | S26: 0 | T26: 0 | U26: 0 | V26: 1 | W26: 1 | X26: 0 | Y26: 1 | Z26: 0 | AA26: 0 | AB26: 0 | AC26: 1 | AD26: 0 | AE26: 0 | AF26: 0 | AG26: 0 | AH26: 1
A27: 26 | B27: 28 | C27: LR | D27: Libéria | E27: Libéria | G27: Libéria | H27: Libéria | J27: =IF(K27=0,0,IF($A27=uxbWorks!$B$77,3,IF(L27=1,2,1))) -> 1 | K27: 1 | L27: 0 | N27: 54 | Q27: 1 | R27: 0 | S27: 1 | T27: 0 | U27: 0 | V27: 0 | W27: 1 | X27: 0 | Y27: 1 | Z27: 1 | AA27: 1 | AB27: 0 | AC27: 0 | AD27: 1 | AE27: 0 | AF27: 0 | AG27: 0 | AH27: 1
A28: 27 | B28: 29 | C28: LY | D28: Libye | E28: Libye | G28: Libye | H28: Libye | J28: =IF(K28=0,0,IF($A28=uxbWorks!$B$77,3,IF(L28=1,2,1))) -> 1 | K28: 1 | L28: 0 | N28: 54 | Q28: 1 | R28: 0 | S28: 0 | T28: 0 | U28: 1 | V28: 0 | W28: 1 | X28: 0 | Y28: 0 | Z28: 0 | AA28: 0 | AB28: 0 | AC28: 0 | AD28: 0 | AE28: 1 | AF28: 0 | AG28: 1 | AH28: 0
A29: 28 | B29: 30 | C29: MG | D29: Madagascar | E29: Madagascar | G29: Madagascar | H29: Madagascar | J29: =IF(K29=0,0,IF($A29=uxbWorks!$B$77,3,IF(L29=1,2,1))) -> 1 | K29: 1 | L29: 0 | N29: 54 | Q29: 1 | R29: 0 | S29: 0 | T29: 0 | U29: 0 | V29: 1 | W29: 1 | X29: 0 | Y29: 1 | Z29: 0 | AA29: 0 | AB29: 0 | AC29: 1 | AD29: 0 | AE29: 0 | AF29: 0 | AG29: 0 | AH29: 1
A30: 29 | B30: 31 | C30: MW | D30: Malawi | E30: Malawi | G30: Malawi | H30: Malawi | J30: =IF(K30=0,0,IF($A30=uxbWorks!$B$77,3,IF(L30=1,2,1))) -> 1 | K30: 1 | L30: 0 | N30: 54 | Q30: 1 | R30: 0 | S30: 0 | T30: 1 | U30: 0 | V30: 0 | W30: 0 | X30: 1 | Y30: 1 | Z30: 1 | AA30: 0 | AB30: 0 | AC30: 0 | AD30: 0 | AE30: 0 | AF30: 0 | AG30: 0 | AH30: 1
A31: 30 | B31: 32 | C31: ML | D31: Mali | E31: Mali | G31: Mali | H31: Mali | J31: =IF(K31=0,0,IF($A31=uxbWorks!$B$77,3,IF(L31=1,2,1))) -> 1 | K31: 1 | L31: 0 | N31: 54 | Q31: 1 | R31: 0 | S31: 0 | T31: 0 | U31: 1 | V31: 0 | W31: 1 | X31: 0 | Y31: 0 | Z31: 1 | AA31: 0 | AB31: 0 | AC31: 0 | AD31: 0 | AE31: 1 | AF31: 1 | AG31: 0 | AH31: 0
A32: 31 | B32: 35 | C32: MA | D32: Maroc | E32: Maroc | G32: Maroc | H32: Maroc | J32: =IF(K32=0,0,IF($A32=uxbWorks!$B$77,3,IF(L32=1,2,1))) -> 1 | K32: 1 | L32: 0 | N32: 54 | Q32: 1 | R32: 0 | S32: 0 | T32: 0 | U32: 1 | V32: 0 | W32: 1 | X32: 0 | Y32: 0 | Z32: 1 | AA32: 0 | AB32: 0 | AC32: 0 | AD32: 0 | AE32: 1 | AF32: 0 | AG32: 1 | AH32: 0
A33: 32 | B33: 34 | C33: MU | D33: Maurice | E33: Maurice | G33: Maurice | H33: Maurice | J33: =IF(K33=0,0,IF($A33=uxbWorks!$B$77,3,IF(L33=1,2,1))) -> 1 | K33: 1 | L33: 0 | N33: 54 | Q33: 1 | R33: 0 | S33: 0 | T33: 0 | U33: 0 | V33: 1 | W33: 1 | X33: 0 | Y33: 1 | Z33: 0 | AA33: 0 | AB33: 0 | AC33: 1 | AD33: 0 | AE33: 0 | AF33: 0 | AG33: 1 | AH33: 0
A34: 33 | B34: 33 | C34: MR | D34: Mauritanie | E34: Mauritanie | G34: Mauritanie | H34: Mauritanie | J34: =IF(K34=0,0,IF($A34=uxbWorks!$B$77,3,IF(L34=1,2,1))) -> 1 | K34: 1 | L34: 0 | N34: 54 | Q34: 1 | R34: 0 | S34: 0 | T34: 1 | U34: 0 | V34: 0 | W34: 0 | X34: 1 | Y34: 1 | Z34: 0 | AA34: 0 | AB34: 0 | AC34: 0 | AD34: 0 | AE34: 0 | AF34: 0 | AG34: 0 | AH34: 1
A35: 34 | B35: 36 | C35: MZ | D35: Mozambique | E35: Mozambique | G35: Mozambique | H35: Mozambique | J35: =IF(K35=0,0,IF($A35=uxbWorks!$B$77,3,IF(L35=1,2,1))) -> 1 | K35: 1 | L35: 0 | N35: 54 | Q35: 1 | R35: 0 | S35: 0 | T35: 0 | U35: 1 | V35: 0 | W35: 1 | X35: 0 | Y35: 0 | Z35: 1 | AA35: 0 | AB35: 0 | AC35: 0 | AD35: 0 | AE35: 1 | AF35: 1 | AG35: 0 | AH35: 0
A36: 35 | B36: 37 | C36: NA | D36: Namibie | E36: Namibie | G36: Namibie | H36: Namibie | J36: =IF(K36=0,0,IF($A36=uxbWorks!$B$77,3,IF(L36=1,2,1))) -> 1 | K36: 1 | L36: 0 | N36: 54 | Q36: 1 | R36: 0 | S36: 0 | T36: 1 | U36: 0 | V36: 0 | W36: 0 | X36: 1 | Y36: 1 | Z36: 0 | AA36: 0 | AB36: 0 | AC36: 0 | AD36: 0 | AE36: 0 | AF36: 0 | AG36: 0 | AH36: 1
A37: 36 | B37: 38 | C37: NE | D37: Niger | E37: Niger | G37: Niger | H37: Niger | J37: =IF(K37=0,0,IF($A37=uxbWorks!$B$77,3,IF(L37=1,2,1))) -> 1 | K37: 1 | L37: 0 | N37: 54 | Q37: 1 | R37: 0 | S37: 0 | T37: 0 | U37: 1 | V37: 0 | W37: 1 | X37: 0 | Y37: 0 | Z37: 0 | AA37: 0 | AB37: 0 | AC37: 0 | AD37: 0 | AE37: 1 | AF37: 0 | AG37: 0 | AH37: 1
A38: 37 | B38: 39 | C38: NG | D38: Nigéria | E38: Nigéria | G38: Nigéria | H38: Nigéria | J38: =IF(K38=0,0,IF($A38=uxbWorks!$B$77,3,IF(L38=1,2,1))) -> 1 | K38: 1 | L38: 0 | N38: 54 | Q38: 1 | R38: 0 | S38: 0 | T38: 0 | U38: 1 | V38: 0 | W38: 1 | X38: 0 | Y38: 0 | Z38: 0 | AA38: 0 | AB38: 0 | AC38: 0 | AD38: 0 | AE38: 1 | AF38: 0 | AG38: 0 | AH38: 1
A39: 38 | B39: 53 | C39: UG | D39: Ouganda | E39: Ouganda | G39: Ouganda | H39: Ouganda | J39: =IF(K39=0,0,IF($A39=uxbWorks!$B$77,3,IF(L39=1,2,1))) -> 1 | K39: 1 | L39: 0 | N39: 54 | Q39: 1 | R39: 0 | S39: 0 | T39: 0 | U39: 0 | V39: 1 | W39: 1 | X39: 0 | Y39: 1 | Z39: 0 | AA39: 0 | AB39: 0 | AC39: 1 | AD39: 0 | AE39: 0 | AF39: 0 | AG39: 1 | AH39: 0
A40: 39 | B40: 10 | C40: CF | D40: République centrafricaine | E40: RCA | G40: République centrafricaine | H40: RCA | J40: =IF(K40=0,0,IF($A40=uxbWorks!$B$77,3,IF(L40=1,2,1))) -> 1 | K40: 1 | L40: 0 | N40: 54 | Q40: 1 | R40: 0 | S40: 0 | T40: 0 | U40: 0 | V40: 1 | W40: 1 | X40: 0 | Y40: 1 | Z40: 0 | AA40: 0 | AB40: 0 | AC40: 1 | AD40: 0 | AE40: 0 | AF40: 0 | AG40: 0 | AH40: 1
A41: 40 | B41: 15 | C41: CG | D41: République démocratique du Congo | E41: RDC | G41: République démocratique du Congo | H41: RDC | J41: =IF(K41=0,0,IF($A41=uxbWorks!$B$77,3,IF(L41=1,2,1))) -> 1 | K41: 1 | L41: 0 | N41: 54 | Q41: 1 | R41: 0 | S41: 1 | T41: 0 | U41: 0 | V41: 0 | W41: 1 | X41: 0 | Y41: 0 | Z41: 1 | AA41: 1 | AB41: 0 | AC41: 0 | AD41: 0 | AE41: 0 | AF41: 0 | AG41: 1 | AH41: 0
A42: 41 | B42: 40 | C42: RW | D42: Rwanda | E42: Rwanda | G42: Rwanda | H42: Rwanda | J42: =IF(K42=0,0,IF($A42=uxbWorks!$B$77,3,IF(L42=1,2,1))) -> 1 | K42: 1 | L42: 0 | N42: 54 | Q42: 1 | R42: 1 | S42: 0 | T42: 0 | U42: 0 | V42: 0 | W42: 1 | X42: 0 | Y42: 1 | Z42: 0 | AA42: 0 | AB42: 1 | AC42: 0 | AD42: 0 | AE42: 0 | AF42: 1 | AG42: 0 | AH42: 0
A43: 42 | B43: 41 | C43: ST | D43: Sao Tomé-et-Principe | E43: Sao Tomé-et-Principe | G43: Sao Tomé-et-Principe | H43: Sao Tomé-et-Principe | J43: =IF(K43=0,0,IF($A43=uxbWorks!$B$77,3,IF(L43=1,2,1))) -> 1 | K43: 1 | L43: 0 | N43: 54 | Q43: 1 | R43: 0 | S43: 0 | T43: 0 | U43: 0 | V43: 1 | W43: 1 | X43: 0 | Y43: 1 | Z43: 0 | AA43: 0 | AB43: 0 | AC43: 1 | AD43: 0 | AE43: 0 | AF43: 0 | AG43: 0 | AH43: 1
A44: 43 | B44: 42 | C44: SN | D44: Sénégal | E44: Sénégal | G44: Sénégal | H44: Sénégal | J44: =IF(K44=0,0,IF($A44=uxbWorks!$B$77,3,IF(L44=1,2,1))) -> 1 | K44: 1 | L44: 0 | N44: 54 | Q44: 1 | R44: 0 | S44: 1 | T44: 0 | U44: 0 | V44: 0 | W44: 1 | X44: 0 | Y44: 0 | Z44: 1 | AA44: 0 | AB44: 0 | AC44: 0 | AD44: 0 | AE44: 1 | AF44: 1 | AG44: 0 | AH44: 0
A45: 44 | B45: 43 | C45: SC | D45: Seychelles | E45: Seychelles | G45: Seychelles | H45: Seychelles | J45: =IF(K45=0,0,IF($A45=uxbWorks!$B$77,3,IF(L45=1,2,1))) -> 1 | K45: 1 | L45: 0 | N45: 54 | Q45: 1 | R45: 0 | S45: 0 | T45: 0 | U45: 0 | V45: 1 | W45: 1 | X45: 0 | Y45: 1 | Z45: 0 | AA45: 0 | AB45: 0 | AC45: 1 | AD45: 0 | AE45: 0 | AF45: 0 | AG45: 0 | AH45: 1
A46: 45 | B46: 44 | C46: SL | D46: Sierra Leone | E46: Sierra Leone | G46: Sierra Leone | H46: Sierra Leone | J46: =IF(K46=0,0,IF($A46=uxbWorks!$B$77,3,IF(L46=1,2,1))) -> 1 | K46: 1 | L46: 0 | N46: 54 | Q46: 1 | R46: 0 | S46: 1 | T46: 0 | U46: 0 | V46: 0 | W46: 1 | X46: 0 | Y46: 1 | Z46: 0 | AA46: 0 | AB46: 0 | AC46: 0 | AD46: 1 | AE46: 0 | AF46: 0 | AG46: 0 | AH46: 1
A47: 46 | B47: 45 | C47: SO | D47: Somalie | E47: Somalie | G47: Somalie | H47: Somalie | J47: =IF(K47=0,0,IF($A47=uxbWorks!$B$77,3,IF(L47=1,2,1))) -> 1 | K47: 1 | L47: 0 | N47: 54 | Q47: 1 | R47: 0 | S47: 0 | T47: 0 | U47: 1 | V47: 0 | W47: 1 | X47: 0 | Y47: 0 | Z47: 0 | AA47: 0 | AB47: 0 | AC47: 0 | AD47: 0 | AE47: 1 | AF47: 0 | AG47: 0 | AH47: 1
A48: 47 | B48: 48 | C48: SD | D48: Soudan | E48: Soudan | G48: Soudan | H48: Soudan | J48: =IF(K48=0,0,IF($A48=uxbWorks!$B$77,3,IF(L48=1,2,1))) -> 1 | K48: 1 | L48: 0 | N48: 54 | Q48: 1 | R48: 0 | S48: 1 | T48: 0 | U48: 0 | V48: 0 | W48: 1 | X48: 0 | Y48: 0 | Z48: 0 | AA48: 0 | AB48: 0 | AC48: 0 | AD48: 1 | AE48: 0 | AF48: 0 | AG48: 1 | AH48: 0
A49: 48 | B49: 47 | C49: SS | D49: Soudan du Sud | E49: Soudan du Sud | G49: Soudan du Sud | H49: Soudan du Sud | J49: =IF(K49=0,0,IF($A49=uxbWorks!$B$77,3,IF(L49=1,2,1))) -> 1 | K49: 1 | L49: 0 | N49: 54 | Q49: 1 | R49: 0 | S49: 1 | T49: 0 | U49: 0 | V49: 0 | W49: 1 | X49: 0 | Y49: 1 | Z49: 1 | AA49: 0 | AB49: 0 | AC49: 0 | AD49: 1 | AE49: 0 | AF49: 0 | AG49: 0 | AH49: 1
A50: 49 | B50: 49 | C50: SZ | D50: Swaziland | E50: Swaziland | G50: Swaziland | H50: Swaziland | J50: =IF(K50=0,0,IF($A50=uxbWorks!$B$77,3,IF(L50=1,2,1))) -> 1 | K50: 1 | L50: 0 | N50: 54 | Q50: 1 | R50: 0 | S50: 0 | T50: 0 | U50: 1 | V50: 0 | W50: 1 | X50: 0 | Y50: 0 | Z50: 1 | AA50: 0 | AB50: 0 | AC50: 0 | AD50: 0 | AE50: 1 | AF50: 0 | AG50: 1 | AH50: 0
A51: 50 | B51: 50 | C51: TZ | D51: Tanzanie | E51: Tanzanie | G51: Tanzanie | H51: Tanzanie | J51: =IF(K51=0,0,IF($A51=uxbWorks!$B$77,3,IF(L51=1,2,1))) -> 1 | K51: 1 | L51: 0 | N51: 54 | Q51: 1 | R51: 0 | S51: 1 | T51: 0 | U51: 0 | V51: 0 | W51: 1 | X51: 0 | Y51: 0 | Z51: 0 | AA51: 1 | AB51: 0 | AC51: 0 | AD51: 0 | AE51: 1 | AF51: 0 | AG51: 0 | AH51: 1
A52: 51 | B52: 11 | C52: TD | D52: Tchad | E52: Tchad | G52: Tchad | H52: Tchad | J52: =IF(K52=0,0,IF($A52=uxbWorks!$B$77,3,IF(L52=1,2,1))) -> 1 | K52: 1 | L52: 0 | N52: 54 | Q52: 1 | R52: 0 | S52: 0 | T52: 0 | U52: 0 | V52: 1 | W52: 1 | X52: 0 | Y52: 1 | Z52: 0 | AA52: 0 | AB52: 0 | AC52: 1 | AD52: 0 | AE52: 0 | AF52: 0 | AG52: 0 | AH52: 1
A53: 52 | B53: 51 | C53: TG | D53: Togo | E53: Togo | G53: Togo | H53: Togo | J53: =IF(K53=0,0,IF($A53=uxbWorks!$B$77,3,IF(L53=1,2,1))) -> 1 | K53: 1 | L53: 0 | N53: 54 | Q53: 1 | R53: 0 | S53: 0 | T53: 1 | U53: 0 | V53: 0 | W53: 0 | X53: 1 | Y53: 1 | Z53: 0 | AA53: 0 | AB53: 0 | AC53: 0 | AD53: 0 | AE53: 0 | AF53: 0 | AG53: 0 | AH53: 1
A54: 53 | B54: 52 | C54: TN | D54: Tunisie | E54: Tunisie | G54: Tunisie | H54: Tunisie | J54: =IF(K54=0,0,IF($A54=uxbWorks!$B$77,3,IF(L54=1,2,1))) -> 1 | K54: 1 | L54: 0 | N54: 54 | Q54: 1 | R54: 0 | S54: 1 | T54: 0 | U54: 0 | V54: 0 | W54: 1 | X54: 0 | Y54: 0 | Z54: 1 | AA54: 1 | AB54: 0 | AC54: 0 | AD54: 1 | AE54: 0 | AF54: 0 | AG54: 1 | AH54: 0
A55: 54 | B55: 54 | C55: ZM | D55: Zambie | E55: Zambie | G55: Zambie | H55: Zambie | J55: =IF(K55=0,0,IF($A55=uxbWorks!$B$77,3,IF(L55=1,2,1))) -> 1 | K55: 1 | L55: 0 | N55: 54 | Q55: 1 | R55: 0 | S55: 0 | T55: 0 | U55: 1 | V55: 0 | W55: 1 | X55: 0 | Y55: 0 | Z55: 1 | AA55: 0 | AB55: 0 | AC55: 0 | AD55: 0 | AE55: 1 | AF55: 0 | AG55: 1 | AH55: 0
A56: 55 | B56: 55 | C56: ZW | D56: Zimbabwe | E56: Zimbabwe | G56: Zimbabwe | H56: Zimbabwe | J56: =IF(K56=0,0,IF($A56=uxbWorks!$B$77,3,IF(L56=1,2,1))) -> 1 | K56: 1 | L56: 0 | N56: 54 | Q56: 1 | R56: 0 | S56: 0 | T56: 0 | U56: 1 | V56: 0 | W56: 1 | X56: 0 | Y56: 0 | Z56: 1 | AA56: 0 | AB56: 0 | AC56: 0 | AD56: 0 | AE56: 1 | AF56: 0 | AG56: 1 | AH56: 0
B57: 56 | D57: =uxbWorks!$B$41 -> <aucun> | G57: =tblText!$B$153 -> --- GROUPES --- | H57: =tblText!$B$153 -> --- GROUPES ---
A58: 1 | B58: 57 | C58: G1 | D58: Afrique | F58: Afrique du Sud, Algérie, Angola, Bénin, Botswana, Burkina Faso, Burundi, Cabo Verde, Cameroun, Comores, Congo, Côte d'Ivoire, Djibouti, Égypte, Érythrée, Éthiopie, Gabon, Gambie, Ghana, Guinée, Guinée équatoriale, Guinée-Bissau, Kenya, Lesotho, Libéria, Libye, Madagascar, Malawi, Mali, Maroc, Maurice, Mauritanie, Mozambique, Namibie, Niger, Nigéria, Ouganda, République centrafricaine (RCA), République démocratique du Congo (RDC), Rwanda, Sao Tomé-et-Principe, Sénégal, Seychelles, Sierra Leone, Somalie, Soudan, Soudan du Sud, Swaziland, Tanzanie, Tchad, Togo, Tunisie, Zambie, Zimbabwe | G58: =D58 -> Afrique | H58: =D58 -> Afrique | I58: =uxbWorks!$B$41 -> <aucun> | N58: .
A59: 2 | B59: 61 | C59: G5 | D59: Afrique australe | F59: Afrique du Sud, Angola, Botswana, Lesotho, Madagascar, Malawi, Maurice, Mozambique, Namibie, Swaziland, Zambie, Zimbabwe | G59: =D59 -> Afrique australe | H59: =D59 -> Afrique australe | I59: =D59 -> Afrique australe | J59: =CHOOSE(uxbWorks!$B$14,CONCATENATE(I59,", ",I60,", ",I61,", ",I62,", ",I64),CONCATENATE(I59,", ",I60,", ",I61,", ",I62,", ",I63)) -> Afrique australe, Afrique centrale, Afrique de l'Est, Afrique de l'Ouest, Afrique du Nord | N59: =IF($C59="G7",".",5) -> 5
A60: 3 | B60: 58 | C60: G2 | D60: Afrique centrale | F60: Cameroun, Congo, Gabon, Guinée équatoriale, République centrafricaine (RCA), République démocratique du Congo (RDC), Sao Tomé-et-Principe, Tchad | G60: Afrique centrale | H60: Afrique centrale | I60: =D60 -> Afrique centrale | J60: =IF($C60="G7",tblText!$B$174,J$59) -> Afrique australe, Afrique centrale, Afrique de l'Est, Afrique de l'Ouest, Afrique du Nord | N60: =IF($C60="G7",".",5) -> 5
A61: 4 | B61: 59 | C61: G3 | D61: Afrique de l'Est | F61: Burundi, Comores, Djibouti, Érythrée, Éthiopie, Kenya, Ouganda, Rwanda, Seychelles, Somalie, Soudan, Soudan du Sud, Tanzanie | G61: Afrique de l'Est | H61: Afrique de l'Est | I61: Afrique de l'Est | J61: =IF($C61="G7",tblText!$B$174,J$59) -> Afrique australe, Afrique centrale, Afrique de l'Est, Afrique de l'Ouest, Afrique du Nord | N61: 5
A62: 5 | B62: 62 | C62: G6 | D62: Afrique de l'Ouest | F62: Bénin, Burkina Faso, Cabo Verde, Côte d'Ivoire, Gambie, Ghana, Guinée, Guinée-Bissau, Libéria, Mali, Niger, Nigéria, Sénégal, Sierra Leone, Togo | G62: Afrique de l'Ouest | H62: Afrique de l'Ouest | I62: Afrique de l'Ouest | J62: =IF($C62="G7",tblText!$B$174,J$59) -> Afrique australe, Afrique centrale, Afrique de l'Est, Afrique de l'Ouest, Afrique du Nord | N62: 5
A63: 6 | B63: 60 | C63: G4 | D63: Afrique du Nord | F63: Algérie, Égypte, Libye, Maroc, Mauritanie, Tunisie | G63: Afrique du Nord | H63: Afrique du Nord | I63: Afrique du Nord | J63: =IF($C63="G7",tblText!$B$174,J$59) -> Afrique australe, Afrique centrale, Afrique de l'Est, Afrique de l'Ouest, Afrique du Nord | N63: 5
A64: 7 | B64: 63 | C64: G7 | D64: Afrique subsaharienne | F64: Afrique du Sud, Angola, Bénin, Botswana, Burkina Faso, Burundi, Cabo Verde, Cameroun, Comores, Congo, Côte d'Ivoire, Djibouti, Érythrée, Éthiopie, Gabon, Gambie, Ghana, Guinée, Guinée-Bissau, Guinée équatoriale, Kenya, Lesotho, Libéria, Madagascar, Malawi, Mali, Maurice, Mozambique, Namibie, Niger, Nigéria, Ouganda, République centrafricaine (RCA), République démocratique du Congo (RDC), Rwanda, Sao Tomé-et-Principe, Sénégal, Seychelles, Sierra Leone, Somalie, Soudan, Soudan du Sud, Tanzanie, Tchad, Togo, Zambie, Zimbabwe | G64: Afrique subsaharienne | H64: Afrique subsaharienne | I64: Afrique subsaharienne | J64: =IF($C64="G7",tblText!$B$174,J$59) -> Les classements ne sont pas disponibles pour le groupe sélectionné. | N64: .
A65: 1 | B65: 67 | C65: G11 | D65: CAE | E65: Communauté de l’Afrique de l’Est | F65: Burundi, Kenya, Ouganda, Rwanda, Tanzanie | G65: CAE | H65: CAE | I65: CAE | J65: =CONCATENATE(I65,", ",I66,", ",I67,", ",I68,", ",I69,", ",I70,", ",I71,", ",I72) -> CAE, CEDEAO, CEEAC, CEN-SAD, COMESA, IGAD, SADC, UMA | N65: 8
A66: 2 | B66: 69 | C66: G13 | D66: CEDEAO | E66: Communauté économique des États de l’Afrique de l’Ouest | F66: Bénin, Burkina Faso, Cabo Verde, Côte d'Ivoire, Gambie, Ghana, Guinée, Guinée-Bissau, Libéria, Mali, Niger, Nigéria, Sénégal, Sierra Leone, Togo | G66: CEDEAO | H66: CEDEAO | I66: CEDEAO | J66: =J65 -> CAE, CEDEAO, CEEAC, CEN-SAD, COMESA, IGAD, SADC, UMA | N66: 8
A67: 3 | B67: 68 | C67: G12 | D67: CEEAC | E67: Communauté économique des États de l’Afrique centrale | F67: Angola, Burundi, Cameroun, Congo, Gabon, Guinée équatoriale, République centrafricaine (RCA), République démocratique du Congo (RDC), Sao Tomé-et-Principe, Tchad | G67: CEEAC | H67: CEEAC | I67: CEEAC | J67: =J66 -> CAE, CEDEAO, CEEAC, CEN-SAD, COMESA, IGAD, SADC, UMA | N67: 8
A68: 4 | B68: 65 | C68: G9 | D68: CEN-SAD | E68: Communauté des États sahélo-sahariens | F68: Bénin, Burkina Faso, Cabo Verde, Comores, Côte d'Ivoire, Djibouti, Égypte, Érythrée, Gambie, Ghana, Guinée, Guinée-Bissau, Kenya, Liberia, Libye, Mali, Maroc, Mauritanie, Niger, Nigéria, République centrafricaine (RCA), Sao Tomé-et-Principe, Sénégal, Sierra Leone, Somalie, Soudan, Tchad, Togo, Tunisie | G68: CEN-SAD | H68: CEN-SAD | I68: CEN-SAD | J68: CAE, CEDEAO, CEEAC, CEN-SAD, COMESA, IGAD, SADC, UMA | N68: 8
A69: 5 | B69: 66 | C69: G10 | D69: COMESA | E69: Marché commun de l'Afrique orientale et australe | F69: Burundi, Comores, Djibouti, Égypte, Érythrée, Éthiopie, Kenya, Libye, Madagascar, Malawi, Maurice, Ouganda, République démocratique du Congo (RDC), Rwanda, Seychelles, Soudan, Zambie, Zimbabwe | G69: COMESA | H69: COMESA | I69: COMESA | J69: CAE, CEDEAO, CEEAC, CEN-SAD, COMESA, IGAD, SADC, UMA | N69: 8
A70: 6 | B70: 70 | C70: G14 | D70: IGAD | E70: Autorité intergouvernementale pour le développement | F70: Djibouti, Érythrée, Éthiopie, Kenya, Ouganda, Somalie, Soudan, Soudan du Sud | G70: IGAD | H70: IGAD | I70: IGAD | J70: CAE, CEDEAO, CEEAC, CEN-SAD, COMESA, IGAD, SADC, UMA | N70: 8
A71: 7 | B71: 71 | C71: G15 | D71: SADC | E71: Communauté de développement de l’Afrique australe | F71: Afrique du Sud, Angola, Botswana, Lesotho, Madagascar, Malawi, Maurice, Mozambique, Namibie, République démocratique du Congo (RDC), Seychelles, Swaziland, Tanzanie, Zambie, Zimbabwe | G71: SADC | H71: SADC | I71: SADC | J71: CAE, CEDEAO, CEEAC, CEN-SAD, COMESA, IGAD, SADC, UMA | N71: 8
A72: 8 | B72: 64 | C72: G8 | D72: UMA | E72: Union du Maghreb arabe | F72: Algérie, Libye, Maroc, Mauritanie, Tunisie | G72: UMA | H72: UMA | I72: UMA | J72: CAE, CEDEAO, CEEAC, CEN-SAD, COMESA, IGAD, SADC, UMA | N72: 8
A73: 1 | B73: 74 | C73: G18 | D73: Pays côtier | F73: Afrique du Sud, Algérie, Angola, Bénin, Cameroun, Congo, Côte d'Ivoire, Djibouti, Égypte, Érythrée, Gabon, Gambie, Ghana, Guinée, Guinée-Bissau, Guinée équatoriale, Kenya, Libéria, Libye, Maroc, Mauritanie, Mozambique, Namibie, Nigéria, République démocratique du Congo (RDC), Sénégal, Sierra Leone, Somalie, Soudan, Tanzanie, Togo, Tunisie | G73: Pays côtier | H73: Pays côtier | I73: Pays côtier | J73: =CONCATENATE(I73,", ",I74,", ",I75) -> Pays côtier, Pays enclavé, Pays insulaire | N73: 3
A74: 2 | B74: 73 | C74: G17 | D74: Pays enclavé | F74: Botswana, Burkina Faso, Burundi, Éthiopie, Lesotho, Malawi, Mali, Niger, Ouganda, République centrafricaine (RCA), Rwanda, Soudan du Sud, Swaziland, Tchad, Zambie, Zimbabwe | G74: Pays enclavé | H74: Pays enclavé | I74: Pays enclavé | J74: =J73 -> Pays côtier, Pays enclavé, Pays insulaire | N74: 3
A75: 3 | B75: 72 | C75: G16 | D75: Pays insulaire | F75: Cabo Verde, Comores, Madagascar, Maurice, Sao Tomé-et-Principe, Seychelles | G75: Pays insulaire | H75: Pays insulaire | I75: Pays insulaire | J75: =J74 -> Pays côtier, Pays enclavé, Pays insulaire | N75: 3
D79: Name | E79: Avg | F79: Source | G79: Accurate Date
B80: 1 | C80: GG_1 | D80: Groupes régionaux | E80: Moyennes régionales | F80: PEA 2015 (BAD/OCDE/PNUD) | G80: Information à jour le 20 juilliet 2015 | J80: Groupes régionaux | K80: Moyennes régionales | L80: Source: PEA 2014 (BAD/OCDE/PNUD/CEA)
B81: 2 | C81: GG_2 | D81: Communautés économiques régionales (CERs) | E81: Moyennes des CERs | F81: CUA et ministère néo-zélandais des Affaires étrangères et du Commerce extérieur (2015). Guide de l'Union africaine 2015. | G81: Information à jour le 20 juilliet 2015 | J81: Communautés économiques régionales (CER) | K81: Moyennes des CER | L81: Source: CUA et le Ministère néo-zélandais des affaires étrangères et du commerce extérieur (2014). Manuel de l'Union africaine
B82: 3 | C82: GG_3 | D82: Groupes géographiques | E82: Moyennes géographiques | G82: Information à jour le 20 juilliet 2015 | J82: Groupes géographiques | K82: Moyennes géographiques | L82: Source: ???
C87: =C59 -> G5 | D87: =C65 -> G11 | E87: =C73 -> G18
C88: =C60 -> G2 | D88: =C66 -> G13 | E88: =C74 -> G17
C89: G3 | D89: G12 | E89: G16
C90: G6 | D90: G9
C91: G4 | D91: G10
D92: G14
D93: G15
D94: G8

Sheet tblData (hidden)
A1: Code | B1: Status | C1: Min | D1: Max | E1: s.d. | I1: <none> | J1: Algeria | K1: Angola | L1: Benin | M1: Botswana | N1: Burkina Faso | O1: Burundi | P1: Cabo Verde | Q1: Cameroon | R1: Central African Republic | S1: Chad | T1: Comoros | U1: Congo | V1: Côte d'Ivoire | W1: Democratic Republic of Congo | X1: Djibouti | Y1: Egypt | Z1: Equatorial Guinea | AA1: Eritrea | AB1: Ethiopia | AC1: Gabon | AD1: Gambia | AE1: Ghana | AF1: Guinea | AG1: Guinea-Bissau | AH1: Kenya | AI1: Lesotho | AJ1: Liberia | AK1: Libya | AL1: Madagascar | AM1: Malawi | AN1: Mali | AO1: Mauritania | AP1: Mauritius | AQ1: Morocco | AR1: Mozambique | AS1: Namibia | AT1: Niger | AU1: Nigeria | AV1: Rwanda | AW1: São Tomé & Príncipe | AX1: Senegal | AY1: Seychelles | AZ1: Sierra Leone | BA1: Somalia | BB1: South Africa | BC1: South Sudan | BD1: Sudan | BE1: Swaziland | BF1: Tanzania | BG1: Togo | BH1: Tunisia | BI1: Uganda | BJ1: Zambia | BK1: Zimbabwe | BL1: <none> | BM1: Africa | BN1: Central Africa | BO1: East Africa | BP1: North Africa | BQ1: Southern Africa | BR1: West Africa | BS1: Sub-Saharan Africa | BT1: AMU | BU1: CEN-SAD | BV1: COMESA | BW1: EAC | BX1: ECCAS | BY1: ECOWAS | BZ1: IGAD | CA1: SADC | CB1: Island | CC1: Landlocked | CD1: Coastal | CE1: <none> | CF1: Algeria | CG1: Angola | CH1: Benin | CI1: Botswana | CJ1: Burkina Faso | CK1: Burundi | CL1: Cabo Verde | CM1: Cameroon | CN1: Central African Republic | CO1: Chad | CP1: Comoros | CQ1: Congo | CR1: Côte d'Ivoire | CS1: Democratic Republic of Congo | CT1: Djibouti | CU1: Egypt | CV1: Equatorial Guinea | CW1: Eritrea | CX1: Ethiopia | CY1: Gabon | CZ1: Gambia | DA1: Ghana | DB1: Guinea | DC1: Guinea-Bissau | DD1: Kenya | DE1: Lesotho | DF1: Liberia | DG1: Libya | DH1: Madagascar | DI1: Malawi | DJ1: Mali | DK1: Mauritania | DL1: Mauritius | DM1: Morocco | DN1: Mozambique | DO1: Namibia | DP1: Niger | DQ1: Nigeria | DR1: Rwanda | DS1: São Tomé & Príncipe | DT1: Senegal | DU1: Seychelles | DV1: Sierra Leone | DW1: Somalia | DX1: South Africa | DY1: South Sudan | DZ1: Sudan | EA1: Swaziland | EB1: Tanzania | EC1: Togo | ED1: Tunisia | EE1: Uganda | EF1: Zambia | EG1: Zimbabwe | EH1: <none> | EI1: Africa | EJ1: Central Africa | EK1: East Africa | EL1: North Africa | EM1: Southern Africa | EN1: West Africa | EO1: Sub-Saharan Africa | EP1: AMU | EQ1: CEN-SAD | ER1: COMESA | ES1: EAC | ET1: ECCAS | EU1: ECOWAS | EV1: IGAD | EW1: SADC | EX1: Island | EY1: Landlocked | EZ1: Coastal | FA1: <none> | FB1: Algeria | FC1: Angola | FD1: Benin | FE1: Botswana | FF1: Burkina Faso | FG1: Burundi | FH1: Cabo Verde | FI1: Cameroon | FJ1: Central African Republic | FK1: Chad | FL1: Comoros | FM1: Congo | FN1: Côte d'Ivoire | FO1: Democratic Republic of Congo | FP1: Djibouti | FQ1: Egypt | FR1: Equatorial Guinea | FS1: Eritrea | FT1: Ethiopia | FU1: Gabon | FV1: Gambia | FW1: Ghana | FX1: Guinea | FY1: Guinea-Bissau | FZ1: Kenya | GA1: Lesotho | GB1: Liberia | GC1: Libya | GD1: Madagascar | GE1: Malawi | GF1: Mali | GG1: Mauritania | GH1: Mauritius | GI1: Morocco | GJ1: Mozambique | GK1: Namibia | GL1: Niger | GM1: Nigeria | GN1: Rwanda | GO1: São Tomé & Príncipe | GP1: Senegal | GQ1: Seychelles | GR1: Sierra Leone | GS1: Somalia | GT1: South Africa | GU1: South Sudan | GV1: Sudan | GW1: Swaziland | GX1: Tanzania | GY1: Togo | GZ1: Tunisia | HA1: Uganda | HB1: Zambia | HC1: Zimbabwe | HD1: <none> | HE1: Africa | HF1: Central Africa | HG1: East Africa | HH1: North Africa | HI1: Southern Africa | HJ1: West Africa | HK1: Sub-Saharan Africa | HL1: AMU | HM1: CEN-SAD | HN1: COMESA | HO1: EAC | HP1: ECCAS | HQ1: ECOWAS | HR1: IGAD | HS1: SADC | HT1: Island | HU1: Landlocked | HV1: Coastal
A2: 1_1 | C2: 9.164240924 | D2: 75.88011425 | E2: 13.3073476 | F2: . | G2: . | H2: . | I2: . | J2: . | K2: . | L2: . | M2: . | N2: . | O2: . | P2: . | Q2: . | R2: . | S2: . | T2: . | U2: . | V2: . | W2: . | X2: . | Y2: . | Z2: . | AA2: . | AB2: . | AC2: . | AD2: . | AE2: . | AF2: . | AG2: . | AH2: . | AI2: . | AJ2: . | AK2: . | AL2: . | AM2: . | AN2: . | AO2: . | AP2: . | AQ2: . | AR2: . | AS2: . | AT2: . | AU2: . | AV2: . | AW2: . | AX2: . | AY2: . | AZ2: . | BA2: . | BB2: . | BC2: . | BD2: . | BE2: . | BF2: . | BG2: . | BH2: . | BI2: . | BJ2: . | BK2: . | BL2: . | BM2: . | BN2: . | BO2: . | BP2: . | BQ2: . | BR2: . | BS2: . | BT2: . | BU2: . | BV2: . | BW2: . | BX2: . | BY2: . | BZ2: . | CA2: . | CB2: . | CC2: . | CD2: . | CE2: . | CF2: 49.20900568 | CG2: 27.64435528 | CH2: 55.1152669 | CI2: 71.1233453 | CJ2: 50.62226323 | CK2: 35.90292085 | CL2: 71.45554558 | CM2: 42.86313194 | CN2: 29.12136175 | CO2: 30.59579447 | CP2: 39.79744442 | CQ2: 35.65698804 | CR2: 38.9167937 | CS2: 27.49697531 | CT2: 44.44904159 | CU2: 51.37583682 | CV2: 29.81759114 | CW2: 32.94006826 | CX2: 37.5841124 | CY2: 45.29573612 | CZ2: 49.57432044 | DA2: 61.91798786 | DB2: 39.2859256 | DC2: 34.47698983 | DD2: 51.81144866 | DE2: 54.6909019 | DF2: 30.5274195 | DG2: 43.38086423 | DH2: 55.55579765 | DI2: 52.19623052 | DJ2: 50.00584839 | DK2: 42.91078321 | DL2: 75.88011425 | DM2: 50.90306018 | DN2: 50.97106334 | DO2: 64.29173442 | DP2: 40.13050844 | DQ2: 42.64331993 | DR2: 47.10779264 | DS2: 54.77246648 | DT2: 54.99595154 | DU2: 67.184978 | DV2: 36.65444668 | DW2: 9.164240923 | DX2: 71.64075915 | DY2: . | DZ2: . | EA2: 46.9453826 | EB2: 55.15530991 | EC2: 35.92723846 | ED2: 62.86767054 | EE2: 49.10389215 | EF2: 52.3931137 | EG2: 36.04673338 | EH2: . | EI2: 46.50188218 | EJ2: 36.95250566 | EK2: 42.74556816 | EL2: 50.10787011 | EM2: 54.94829429 | EN2: 46.14998841 | EO2: 46.03153593 | EP2: 49.85427677 | EQ2: 44.1549967 | ER2: 47.06404152 | ES2: 47.81627284 | ET2: 35.91673214 | EU2: 46.14998841 | EV2: 37.50880066 | EW2: 53.94778631 | EX2: 60.77439106 | EY2: 45.57134678 | EZ2: 44.18972017 | FA2: . | FB2: 24 | FC2: 50 | FD2: 11 | FE2: 4 | FF2: 21 | FG2: 42 | FH2: 3 | FI2: 32 | FJ2: 49 | FK2: 46 | FL2: 35 | FM2: 43 | FN2: 37 | FO2: 51 | FP2: 29 | FQ2: 18 | FR2: 48 | FS2: 45 | FT2: 38 | FU2: 28 | FV2: 23 | FW2: 8 | FX2: 36 | FY2: 44 | FZ2: 17 | GA2: 14 | GB2: 47 | GC2: 30 | GD2: 9 | GE2: 16 | GF2: 22 | GG2: 31 | GH2: 1 | GI2: 20 | GJ2: 19 | GK2: 6 | GL2: 34 | GM2: 33 | GN2: 26 | GO2: 13 | GP2: 12 | GQ2: 5 | GR2: 39 | GS2: 52 | GT2: 2 | GU2: . | GV2: . | GW2: 27 | GX2: 10 | GY2: 41 | GZ2: 7 | HA2: 25 | HB2: 15 | HC2: 40 | HD2: . | HE2: . | HF2: 5 | HG2: 4 | HH2: 2 | HI2: 1 | HJ2: 3 | HK2: . | HL2: 2 | HM2: 6 | HN2: 4 | HO2: 3 | HP2: 8 | HQ2: 5 | HR2: 7 | HS2: 1 | HT2: 1 | HU2: 2 | HV2: 3
A3: 2_1 | C3: 13.54410448 | D3: 84.27418125 | E3: 15.57205739 | F3: . | G3: . | H3: . | I3: . | J3: . | K3: . | L3: . | M3: . | N3: . | O3: . | P3: . | Q3: . | R3: . | S3: . | T3: . | U3: . | V3: . | W3: . | X3: . | Y3: . | Z3: . | AA3: . | AB3: . | AC3: . | AD3: . | AE3: . | AF3: . | AG3: . | AH3: . | AI3: . | AJ3: . | AK3: . | AL3: . | AM3: . | AN3: . | AO3: . | AP3: . | AQ3: . | AR3: . | AS3: . | AT3: . | AU3: . | AV3: . | AW3: . | AX3: . | AY3: . | AZ3: . | BA3: . | BB3: . | BC3: . | BD3: . | BE3: . | BF3: . | BG3: . | BH3: . | BI3: . | BJ3: . | BK3: . | BL3: . | BM3: . | BN3: . | BO3: . | BP3: . | BQ3: . | BR3: . | BS3: . | BT3: . | BU3: . | BV3: . | BW3: . | BX3: . | BY3: . | BZ3: . | CA3: . | CB3: . | CC3: . | CD3: . | CE3: . | CF3: 55.18157758 | CG3: 28.10264849 | CH3: 67.16335255 | CI3: 84.26809901 | CJ3: 64.30770837 | CK3: 39.65374989 | CL3: 80.86805786 | CM3: 48.05050786 | CN3: 31.59904602 | CO3: 39.75168437 | CP3: 50.04618601 | CQ3: 38.85847872 | CR3: 35.97357061 | CS3: 26.00297199 | CT3: 53.30803187 | CU3: 62.19678469 | CV3: 39.12725167 | CW3: 32.62989864 | CX3: 37.9199786 | CY3: 53.94195413 | CZ3: 58.22707425 | DA3: 70.58366035 | DB3: 46.09017512 | DC3: 42.63990959 | DD3: 55.75915198 | DE3: 65.04545989 | DF3: 26.28547587 | DG3: 46.32971182 | DH3: 61.25335118 | DI3: 65.63211066 | DJ3: 61.00063432 | DK3: 52.45830684 | DL3: 84.27418125 | DM3: 61.26419967 | DN3: 64.9238497 | DO3: 71.33531996 | DP3: 51.17984108 | DQ3: 45.49605401 | DR3: 55.33910496 | DS3: 64.34173187 | DT3: 58.9845247 | DU3: 73.80593152 | DV3: 36.52918577 | DW3: 13.54410448 | DX3: 72.40097313 | DY3: . | DZ3: . | EA3: 60.15956212 | EB3: 58.82645823 | EC3: 51.98131815 | ED3: 66.99956361 | EE3: 51.59831955 | EF3: 64.76927504 | EG3: 39.97858884 | EH3: . | EI3: 53.23055093 | EJ3: 42.70920333 | EK3: 47.49371961 | EL3: 57.40502404 | EM3: 63.51195161 | EN3: 53.15403617 | EO3: 52.68605444 | EP3: 56.44667191 | EQ3: 50.98353373 | ER3: 53.36982726 | ES3: 52.23535692 | ET3: 40.9430025 | EU3: 53.15403617 | EV3: 40.79324752 | EW3: 61.38525207 | EX3: 69.09823995 | EY3: 54.14687751 | EZ3: 49.71600149 | FA3: . | FB3: 26 | FC3: 49 | FD3: 8 | FE3: 2 | FF3: 15 | FG3: 41 | FH3: 3 | FI3: 34 | FJ3: 48 | FK3: 40 | FL3: 33 | FM3: 43 | FN3: 46 | FO3: 51 | FP3: 28 | FQ3: 16 | FR3: 42 | FS3: 47 | FT3: 44 | FU3: 27 | FV3: 23 | FW3: 7 | FX3: 36 | FY3: 38 | FZ3: 24 | GA3: 11 | GB3: 50 | GC3: 35 | GD3: 18 | GE3: 10 | GF3: 19 | GG3: 29 | GH3: 1 | GI3: 17 | GJ3: 12 | GK3: 6 | GL3: 32 | GM3: 37 | GN3: 25 | GO3: 14 | GP3: 21 | GQ3: 4 | GR3: 45 | GS3: 52 | GT3: 5 | GU3: . | GV3: . | GW3: 20 | GX3: 22 | GY3: 30 | GZ3: 9 | HA3: 31 | HB3: 13 | HC3: 39 | HD3: . | HE3: . | HF3: 5 | HG3: 4 | HH3: 2 | HI3: 1 | HJ3: 3 | HK3: . | HL3: 2 | HM3: 6 | HN3: 3 | HO3: 5 | HP3: 7 | HQ3: 4 | HR3: 8 | HS3: 1 | HT3: 1 | HU3: 2 | HV3: 3
A4: 3_1 | C4: 0 | D4: 95.60831318 | E4: 21.30987892 | F4: . | G4: . | H4: . | I4: . | J4: . | K4: . | L4: . | M4: . | N4: . | O4: . | P4: . | Q4: . | R4: . | S4: . | T4: . | U4: . | V4: . | W4: . | X4: . | Y4: . | Z4: . | AA4: . | AB4: . | AC4: . | AD4: . | AE4: . | AF4: . | AG4: . | AH4: . | AI4: . | AJ4: . | AK4: . | AL4: . | AM4: . | AN4: . | AO4: . | AP4: . | AQ4: . | AR4: . | AS4: . | AT4: . | AU4: . | AV4: . | AW4: . | AX4: . | AY4: . | AZ4: . | BA4: . | BB4: . | BC4: . | BD4: . | BE4: . | BF4: . | BG4: . | BH4: . | BI4: . | BJ4: . | BK4: . | BL4: . | BM4: . | BN4: . | BO4: . | BP4: . | BQ4: . | BR4: . | BS4: . | BT4: . | BU4: . | BV4: . | BW4: . | BX4: . | BY4: . | BZ4: . | CA4: . | CB4: . | CC4: . | CD4: . | CE4: . | CF4: 56.09819947 | CG4: 23.77916644 | CH4: 67.24818945 | CI4: 95.60831318 | CJ4: 51.07052586 | CK4: 51.95017257 | CL4: 86.1993256 | CM4: 43.04123611 | CN4: 30.62830688 | CO4: 37.26163675 | CP4: 41.48809524 | CQ4: 39.14021164 | CR4: 41.64184257 | CS4: 43.06878307 | CT4: 45.5952381 | CU4: 61.79898838 | CV4: 24.46428571 | CW4: 10.29100529 | CX4: 27.87845195 | CY4: 51.56297543 | CZ4: 47.75604732 | DA4: 78.94830524 | DB4: 40.80789701 | DC4: 29.46428571 | DD4: 66.11247369 | DE4: 65.47770937 | DF4: 32.16498178 | DG4: 18.6099327 | DH4: 61.04109951 | DI4: 71.47489988 | DJ4: 61.80764616 | DK4: 55.20086783 | DL4: 94.56886721 | DM4: 57.49881762 | DN4: 64.51838151 | DO4: 90.63509887 | DP4: 51.82539683 | DQ4: 56.25004457 | DR4: 52.38930741 | DS4: 57.73809524 | DT4: 63.17485178 | DU4: 71.18904199 | DV4: 22.79833707 | DW4: 0 | DX4: 92.51534091 | DY4: . | DZ4: . | EA4: 63.76985576 | EB4: 60.78624923 | EC4: 49.92724868 | ED4: 52.32467313 | EE4: 70.3310971 | EF4: 71.73945517 | EG4: 27.3672963 | EH4: . | EI4: 52.50054908 | EJ4: 40.86319135 | EK4: 45.27373932 | EL4: 50.25524652 | EM4: 68.54129034 | EN4: 52.07232837 | EO4: 52.79341463 | EP4: 47.94649815 | EQ4: 46.98689487 | ER4: 52.81467007 | ES4: 60.31386 | ET4: 40.26348698 | EU4: 52.07232837 | EV4: 36.70137769 | EW4: 66.50263723 | EX4: 68.70408746 | EY4: 55.37200474 | EZ4: 47.97496633 | FA4: . | FB4: 24 | FC4: 48 | FD4: 11 | FE4: 1 | FF4: 31 | FG4: 28 | FH4: 5 | FI4: 36 | FJ4: 43 | FK4: 41 | FL4: 38 | FM4: 40 | FN4: 37 | FO4: 35 | FP4: 34 | FQ4: 18 | FR4: 47 | FS4: 51 | FT4: 45 | FU4: 30 | FV4: 33 | FW4: 6 | FX4: 39 | FY4: 44 | FZ4: 12 | GA4: 13 | GB4: 42 | GC4: 50 | GD4: 19 | GE4: 8 | GF4: 17 | GG4: 25 | GH4: 2 | GI4: 22 | GJ4: 14 | GK4: 4 | GL4: 29 | GM4: 23 | GN4: 26 | GO4: 21 | GP4: 16 | GQ4: 9 | GR4: 49 | GS4: 52 | GT4: 3 | GU4: . | GV4: . | GW4: 15 | GX4: 20 | GY4: 32 | GZ4: 27 | HA4: 10 | HB4: 7 | HC4: 46 | HD4: . | HE4: . | HF4: 5 | HG4: 4 | HH4: 3 | HI4: 1 | HJ4: 2 | HK4: . | HL4: 5 | HM4: 6 | HN4: 3 | HO4: 2 | HP4: 7 | HQ4: 4 | HR4: 8 | HS4: 1 | HT4: 1 | HU4: 2 | HV4: 3
A5: 4_1 | C5: 0 | D5: 94.02997378 | E5: 19.93300268 | F5: . | G5: . | H5: . | I5: . | J5: . | K5: . | L5: . | M5: . | N5: . | O5: . | P5: . | Q5: . | R5: . | S5: . | T5: . | U5: . | V5: . | W5: . | X5: . | Y5: . | Z5: . | AA5: . | AB5: . | AC5: . | AD5: . | AE5: . | AF5: . | AG5: . | AH5: . | AI5: . | AJ5: . | AK5: . | AL5: . | AM5: . | AN5: . | AO5: . | AP5: . | AQ5: . | AR5: . | AS5: . | AT5: . | AU5: . | AV5: . | AW5: . | AX5: . | AY5: . | AZ5: . | BA5: . | BB5: . | BC5: . | BD5: . | BE5: . | BF5: . | BG5: . | BH5: . | BI5: . | BJ5: . | BK5: . | BL5: . | BM5: . | BN5: . | BO5: . | BP5: . | BQ5: . | BR5: . | BS5: . | BT5: . | BU5: . | BV5: . | BW5: . | BX5: . | BY5: . | BZ5: . | CA5: . | CB5: . | CC5: . | CD5: . | CE5: . | CF5: 45.60668165 | CG5: 32.96990918 | CH5: 48.5551836 | CI5: 89.19754735 | CJ5: 54.97761057 | CK5: 33.02116078 | CL5: 73.80905766 | CM5: 39.52940536 | CN5: 40.64153439 | CO5: 30.37798275 | CP5: 36.60714286 | CQ5: 33.2010582 | CR5: 32.70389297 | CS5: 21.59391534 | CT5: 57.14285714 | CU5: 61.83636546 | CV5: 9.821428571 | CW5: 26.45502645 | CX5: 37.87159336 | CY5: 61.86097351 | CZ5: 56.06595239 | DA5: 68.75933943 | DB5: 29.19550218 | DC5: 22.32142857 | DD5: 57.10344307 | DE5: 57.84295392 | DF5: 39.85316318 | DG5: 36.60689222 | DH5: 61.24248631 | DI5: 62.19546281 | DJ5: 62.40064933 | DK5: 45.39153967 | DL5: 94.02997378 | DM5: 61.28417665 | DN5: 46.18516185 | DO5: 74.76284261 | DP5: 42.46031746 | DQ5: 45.33575603 | DR5: 47.38325519 | DS5: 42.85714286 | DT5: 66.86341428 | DU5: 52.08398665 | DV5: 29.11987811 | DW5: 0 | DX5: 86.91774 | DY5: . | DZ5: . | EA5: 71.33799604 | EB5: 56.47171552 | EC5: 43.38624339 | ED5: 72.06509771 | EE5: 58.79411512 | EF5: 66.39839795 | EG5: 10.04020889 | EH5: . | EI5: 48.7410877 | EJ5: 34.98543012 | EK5: 42.08493601 | EL5: 53.79845889 | EM5: 62.76005672 | EN5: 47.72049261 | EO5: 48.08143059 | EP5: 52.19087758 | EQ5: 45.86344966 | ER5: 49.54134886 | ES5: 50.55473793 | ET5: 34.58745109 | EU5: 47.72049261 | EV5: 39.56117252 | EW5: 58.88468655 | EX5: 60.10496502 | EY5: 50.99605239 | EZ5: 45.45051562 | FA5: . | FB5: 28 | FC5: 42 | FD5: 25 | FE5: 2 | FF5: 23 | FG5: 41 | FH5: 5 | FI5: 36 | FJ5: 34 | FK5: 44 | FL5: 38 | FM5: 40 | FN5: 43 | FO5: 49 | FP5: 19 | FQ5: 14 | FR5: 51 | FS5: 47 | FT5: 37 | FU5: 13 | FV5: 22 | FW5: 8 | FX5: 45 | FY5: 48 | FZ5: 20 | GA5: 18 | GB5: 35 | GC5: 39 | GD5: 16 | GE5: 12 | GF5: 11 | GG5: 29 | GH5: 1 | GI5: 15 | GJ5: 27 | GK5: 4 | GL5: 33 | GM5: 30 | GN5: 26 | GO5: 32 | GP5: 9 | GQ5: 24 | GR5: 46 | GS5: 52 | GT5: 3 | GU5: . | GV5: . | GW5: 7 | GX5: 21 | GY5: 31 | GZ5: 6 | HA5: 17 | HB5: 10 | HC5: 50 | HD5: . | HE5: . | HF5: 5 | HG5: 4 | HH5: 2 | HI5: 1 | HJ5: 3 | HK5: . | HL5: 2 | HM5: 6 | HN5: 4 | HO5: 3 | HP5: 8 | HQ5: 5 | HR5: 7 | HS5: 1 | HT5: 1 | HU5: 2 | HV5: 3
A6: 5_1 | C6: 0 | D6: 100 | E6: 21.72924519 | F6: . | G6: . | H6: . | I6: . | J6: . | K6: . | L6: . | M6: . | N6: . | O6: . | P6: . | Q6: . | R6: . | S6: . | T6: . | U6: . | V6: . | W6: . | X6: . | Y6: . | Z6: . | AA6: . | AB6: . | AC6: . | AD6: . | AE6: . | AF6: . | AG6: . | AH6: . | AI6: . | AJ6: . | AK6: . | AL6: . | AM6: . | AN6: . | AO6: . | AP6: . | AQ6: . | AR6: . | AS6: . | AT6: . | AU6: . | AV6: . | AW6: . | AX6: . | AY6: . | AZ6: . | BA6: . | BB6: . | BC6: . | BD6: . | BE6: . | BF6: . | BG6: . | BH6: . | BI6: . | BJ6: . | BK6: . | BL6: . | BM6: . | BN6: . | BO6: . | BP6: . | BQ6: . | BR6: . | BS6: . | BT6: . | BU6: . | BV6: . | BW6: . | BX6: . | BY6: . | BZ6: . | CA6: . | CB6: . | CC6: . | CD6: . | CE6: . | CF6: 50 | CG6: 41.66666667 | CH6: 64.58333333 | CI6: 100 | CJ6: 79.16666667 | CK6: 50 | CL6: 87.5 | CM6: 60 | CN6: 35.41666667 | CO6: 47.91666667 | CP6: 37.5 | CQ6: 41.66666667 | CR6: 22.91666667 | CS6: 35.41666667 | CT6: 50 | CU6: 75 | CV6: 12.5 | CW6: 50 | CX6: 50 | CY6: 50 | CZ6: 54.16666667 | DA6: 72.91666667 | DB6: 29.16666667 | DC6: 37.5 | DD6: 58.33333333 | DE6: 66.66666667 | DF6: 38.75 | DG6: 50 | DH6: 72.91666667 | DI6: 72.91666667 | DJ6: 79.16666667 | DK6: 58.33333333 | DL6: 100 | DM6: 75 | DN6: 58.33333333 | DO6: 50 | DP6: 58.33333333 | DQ6: 43.75 | DR6: 64.58333333 | DS6: 50 | DT6: 79.16666667 | DU6: 25 | DV6: 37.5 | DW6: 0 | DX6: 100 | DY6: . | DZ6: . | EA6: 50 | EB6: 72.91666667 | EC6: 50 | ED6: 75 | EE6: 72.91666667 | EF6: 58.33333333 | EG6: 12.5 | EH6: . | EI6: 55.10416667 | EJ6: 41.61458333 | EK6: 48.29545455 | EL6: 63.88888889 | EM6: 65.27777778 | EN6: 55.63888889 | EO6: 53.95833333 | EP6: 61.66666667 | EQ6: 53.4672619 | ER6: 54.74537037 | ES6: 63.75 | ET6: 42.45833333 | EU6: 55.63888889 | EV6: 46.875 | EW6: 61.11111111 | EX6: 62.15277778 | EY6: 59.86111111 | EZ6: 51.43817204 | FA6: . | FB6: 26 | FC6: 39 | FD6: 17 | FE6: 1 | FF6: 5 | FG6: 26 | FH6: 4 | FI6: 19 | FJ6: 45 | FK6: 37 | FL6: 42 | FM6: 39 | FN6: 49 | FO6: 45 | FP6: 26 | FQ6: 8 | FR6: 50 | FS6: 26 | FT6: 26 | FU6: 26 | FV6: 25 | FW6: 11 | FX6: 47 | FY6: 42 | FZ6: 20 | GA6: 16 | GB6: 41 | GC6: 26 | GD6: 11 | GE6: 11 | GF6: 5 | GG6: 20 | GH6: 1 | GI6: 8 | GJ6: 20 | GK6: 26 | GL6: 20 | GM6: 38 | GN6: 17 | GO6: 26 | GP6: 5 | GQ6: 48 | GR6: 42 | GS6: 52 | GT6: 1 | GU6: . | GV6: . | GW6: 26 | GX6: 11 | GY6: 26 | GZ6: 8 | HA6: 11 | HB6: 20 | HC6: 50 | HD6: . | HE6: . | HF6: 5 | HG6: 4 | HH6: 2 | HI6: 1 | HJ6: 3 | HK6: . | HL6: 2 | HM6: 6 | HN6: 5 | HO6: 1 | HP6: 8 | HQ6: 4 | HR6: 7 | HS6: 3 | HT6: 1 | HU6: 2 | HV6: 3
A7: 6_1 | B7: aeeeeeeeeeeeeeeeeeeeeeeeeeeeeeeeeeeeeeeeeeeeeexxeeeeeee | C7: 0 | D7: 100 | E7: 21.71497978 | F7: 1 | G7: 5 | H7: 0.8685991913 | I7: . | J7: 3 | K7: 3 | L7: 3.5 | M7: 5 | N7: 4 | O7: 3 | P7: 4 | Q7: 3.8 | R7: 2.5 | S7: 3.5 | T7: 2 | U7: 3 | V7: 1.5 | W7: 2.5 | X7: 3 | Y7: 4 | Z7: 1.5 | AA7: 3 | AB7: 3 | AC7: 3 | AD7: 2 | AE7: 3.5 | AF7: 2 | AG7: 2 | AH7: 3 | AI7: 3 | AJ7: 2.1 | AK7: 3 | AL7: 3.5 | AM7: 3.5 | AN7: 4 | AO7: 3 | AP7: 5 | AQ7: 4 | AR7: 3 | AS7: 3 | AT7: 3 | AU7: 2.5 | AV7: 3.5 | AW7: 3 | AX7: 4 | AY7: 2 | AZ7: 2 | BA7: 1 | BB7: 5 | BC7: . | BD7: . | BE7: 3 | BF7: 3.5 | BG7: 3 | BH7: 4 | BI7: 3.5 | BJ7: 3 | BK7: 2 | BL7: . | BM7: . | BN7: . | BO7: . | BP7: . | BQ7: . | BR7: . | BS7: . | BT7: . | BU7: . | BV7: . | BW7: . | BX7: . | BY7: . | BZ7: . | CA7: . | CB7: . | CC7: . | CD7: . | CE7: . | CF7: 50 | CG7: 50 | CH7: 62.5 | CI7: 100 | CJ7: 75 | CK7: 50 | CL7: 75 | CM7: 70 | CN7: 37.5 | CO7: 62.5 | CP7: 25 | CQ7: 50 | CR7: 12.5 | CS7: 37.5 | CT7: 50 | CU7: 75 | CV7: 12.5 | CW7: 50 | CX7: 50 | CY7: 50 | CZ7: 25 | DA7: 62.5 | DB7: 25 | DC7: 25 | DD7: 50 | DE7: 50 | DF7: 27.5 | DG7: 50 | DH7: 62.5 | DI7: 62.5 | DJ7: 75 | DK7: 50 | DL7: 100 | DM7: 75 | DN7: 50 | DO7: 50 | DP7: 50 | DQ7: 37.5 | DR7: 62.5 | DS7: 50 | DT7: 75 | DU7: 25 | DV7: 25 | DW7: 0 | DX7: 100 | DY7: . | DZ7: . | EA7: 50 | EB7: 62.5 | EC7: 50 | ED7: 75 | EE7: 62.5 | EF7: 50 | EG7: 25 | EH7: . | EI7: 51.63461538 | EJ7: 46.25 | EK7: 44.31818182 | EL7: 62.5 | EM7: 62.5 | EN7: 46.83333333 | EO7: 50.2173913 | EP7: 60 | EQ7: 48.30357143 | ER7: 52.08333333 | ES7: 57.5 | ET7: 47 | EU7: 46.83333333 | EV7: 43.75 | EW7: 58.33333333 | EX7: 56.25 | EY7: 57.5 | EZ7: 47.90322581 | FA7: . | FB7: 20 | FC7: 20 | FD7: 12 | FE7: 1 | FF7: 4 | FG7: 20 | FH7: 4 | FI7: 11 | FJ7: 39 | FK7: 12 | FL7: 43 | FM7: 20 | FN7: 50 | FO7: 39 | FP7: 20 | FQ7: 4 | FR7: 50 | FS7: 20 | FT7: 20 | FU7: 20 | FV7: 43 | FW7: 12 | FX7: 43 | FY7: 43 | FZ7: 20 | GA7: 20 | GB7: 42 | GC7: 20 | GD7: 12 | GE7: 12 | GF7: 4 | GG7: 20 | GH7: 1 | GI7: 4 | GJ7: 20 | GK7: 20 | GL7: 20 | GM7: 39 | GN7: 12 | GO7: 20 | GP7: 4 | GQ7: 43 | GR7: 43 | GS7: 52 | GT7: 1 | GU7: . | GV7: . | GW7: 20 | GX7: 12 | GY7: 20 | GZ7: 4 | HA7: 12 | HB7: 20 | HC7: 43 | HD7: . | HE7: . | HF7: 4 | HG7: 5 | HH7: 1 | HI7: 1 | HJ7: 3 | HK7: . | HL7: 1 | HM7: 5 | HN7: 4 | HO7: 3 | HP7: 6 | HQ7: 7 | HR7: 8 | HS7: 2 | HT7: 2 | HU7: 1 | HV7: 3
A8: 7_1 | B8: axeexeeeeeeeeeeexxeexeeeeeeexeeeexxexeeeeexexxxxxeexeee | C8: 0 | D8: 100 | E8: 21.48288029 | F8: 1 | G8: 4 | H8: 0.6444864088 | I8: . | J8: . | K8: 2 | L8: 3 | M8: . | N8: 3.5 | O8: 2.5 | P8: 4 | Q8: 2.5 | R8: 2 | S8: 2 | T8: 2.5 | U8: 2 | V8: 2 | W8: 2 | X8: 2.5 | Y8: . | Z8: . | AA8: 2.5 | AB8: 2.5 | AC8: . | AD8: 3.5 | AE8: 3.5 | AF8: 2 | AG8: 2.5 | AH8: 3 | AI8: 3.5 | AJ8: 2.5 | AK8: . | AL8: 3.5 | AM8: 3.5 | AN8: 3.5 | AO8: 3 | AP8: . | AQ8: . | AR8: 3 | AS8: . | AT8: 3 | AU8: 2.5 | AV8: 3 | AW8: 2.5 | AX8: 3.5 | AY8: . | AZ8: 2.5 | BA8: . | BB8: . | BC8: . | BD8: . | BE8: . | BF8: 3.5 | BG8: 2.5 | BH8: . | BI8: 3.5 | BJ8: 3 | BK8: 1 | BL8: . | BM8: . | BN8: . | BO8: . | BP8: . | BQ8: . | BR8: . | BS8: . | BT8: . | BU8: . | BV8: . | BW8: . | BX8: . | BY8: . | BZ8: . | CA8: . | CB8: . | CC8: . | CD8: . | CE8: . | CF8: . | CG8: 33.33333333 | CH8: 66.66666667 | CI8: . | CJ8: 83.33333333 | CK8: 50 | CL8: 100 | CM8: 50 | CN8: 33.33333333 | CO8: 33.33333333 | CP8: 50 | CQ8: 33.33333333 | CR8: 33.33333333 | CS8: 33.33333333 | CT8: 50 | CU8: . | CV8: . | CW8: 50 | CX8: 50 | CY8: . | CZ8: 83.33333333 | DA8: 83.33333333 | DB8: 33.33333333 | DC8: 50 | DD8: 66.66666667 | DE8: 83.33333333 | DF8: 50 | DG8: . | DH8: 83.33333333 | DI8: 83.33333333 | DJ8: 83.33333333 | DK8: 66.66666667 | DL8: . | DM8: . | DN8: 66.66666667 | DO8: . | DP8: 66.66666667 | DQ8: 50 | DR8: 66.66666667 | DS8: 50 | DT8: 83.33333333 | DU8: . | DV8: 50 | DW8: . | DX8: . | DY8: . | DZ8: . | EA8: . | EB8: 83.33333333 | EC8: 50 | ED8: . | EE8: 83.33333333 | EF8: 66.66666667 | EG8: 0 | EH8: . | EI8: 58.77192982 | EJ8: 38.88888889 | EK8: 61.11111111 | EL8: 66.66666667 | EM8: 59.52380952 | EN8: 64.44444444 | EO8: 58.55855856 | EP8: 66.66666667 | EQ8: 59.42028986 | ER8: 56.41025641 | ES8: 70 | ET8: 39.58333333 | EU8: 64.44444444 | EV8: 60 | EW8: 59.25925926 | EX8: 70.83333333 | EY8: 60.25641026 | EZ8: 55.55555556 | FA8: . | FB8: . | FC8: 31 | FD8: 12 | FE8: . | FF8: 2 | FG8: 19 | FH8: 1 | FI8: 19 | FJ8: 31 | FK8: 31 | FL8: 19 | FM8: 31 | FN8: 31 | FO8: 31 | FP8: 19 | FQ8: . | FR8: . | FS8: 19 | FT8: 19 | FU8: . | FV8: 2 | FW8: 2 | FX8: 31 | FY8: 19 | FZ8: 12 | GA8: 2 | GB8: 19 | GC8: . | GD8: 2 | GE8: 2 | GF8: 2 | GG8: 12 | GH8: . | GI8: . | GJ8: 12 | GK8: . | GL8: 12 | GM8: 19 | GN8: 12 | GO8: 19 | GP8: 2 | GQ8: . | GR8: 19 | GS8: . | GT8: . | GU8: . | GV8: . | GW8: . | GX8: 2 | GY8: 19 | GZ8: . | HA8: 2 | HB8: 12 | HC8: 38 | HD8: . | HE8: . | HF8: 5 | HG8: 3 | HH8: 1 | HI8: 4 | HJ8: 2 | HK8: . | HL8: 2 | HM8: 5 | HN8: 7 | HO8: 1 | HP8: 8 | HQ8: 3 | HR8: 4 | HS8: 6 | HT8: 1 | HU8: 2 | HV8: 3
A9: 8_1 | B9: aeeeeeexeeexeeexexeexxeexeeeeeeeeeeeeeeexexeeexxxeeeeee | C9: 0 | D9: 100 | E9: 22.99595081 | F9: 1 | G9: 10 | H9: 2.069635573 | I9: . | J9: 5 | K9: 4 | L9: 6 | M9: 9 | N9: 5 | O9: 3 | P9: . | Q9: 3 | R9: 3 | S9: 3 | T9: . | U9: 3 | V9: 4 | W9: 3 | X9: . | Y9: 5 | Z9: . | AA9: 3 | AB9: 4 | AC9: . | AD9: . | AE9: 8 | AF9: 3 | AG9: . | AH9: 6 | AI9: 7 | AJ9: 4 | AK9: 5 | AL9: 7 | AM9: 6 | AN9: 6 | AO9: 5 | AP9: 10 | AQ9: 5 | AR9: 5 | AS9: 8 | AT9: 4 | AU9: 6 | AV9: 5 | AW9: . | AX9: 8 | AY9: . | AZ9: 4 | BA9: 1 | BB9: 9 | BC9: . | BD9: . | BE9: . | BF9: 7 | BG9: 5 | BH9: 7 | BI9: 6 | BJ9: 8 | BK9: 2 | BL9: . | BM9: . | BN9: . | BO9: . | BP9: . | BQ9: . | BR9: . | BS9: . | BT9: . | BU9: . | BV9: . | BW9: . | BX9: . | BY9: . | BZ9: . | CA9: . | CB9: . | CC9: . | CD9: . | CE9: . | CF9: 44.44444444 | CG9: 33.33333333 | CH9: 55.55555556 | CI9: 88.88888889 | CJ9: 44.44444444 | CK9: 22.22222222 | CL9: . | CM9: 22.22222222 | CN9: 22.22222222 | CO9: 22.22222222 | CP9: . | CQ9: 22.22222222 | CR9: 33.33333333 | CS9: 22.22222222 | CT9: . | CU9: 44.44444444 | CV9: . | CW9: 22.22222222 | CX9: 33.33333333 | CY9: . | CZ9: . | DA9: 77.77777778 | DB9: 22.22222222 | DC9: . | DD9: 55.55555556 | DE9: 66.66666667 | DF9: 33.33333333 | DG9: 44.44444444 | DH9: 66.66666667 | DI9: 55.55555556 | DJ9: 55.55555556 | DK9: 44.44444444 | DL9: 100 | DM9: 44.44444444 | DN9: 44.44444444 | DO9: 77.77777778 | DP9: 33.33333333 | DQ9: 55.55555556 | DR9: 44.44444444 | DS9: . | DT9: 77.77777778 | DU9: . | DV9: 33.33333333 | DW9: 0 | DX9: 88.88888889 | DY9: . | DZ9: . | EA9: . | EB9: 66.66666667 | EC9: 44.44444444 | ED9: 66.66666667 | EE9: 55.55555556 | EF9: 77.77777778 | EG9: 11.11111111 | EH9: . | EI9: 47.08994709 | EJ9: 22.22222222 | EK9: 37.5 | EL9: 48.14814815 | EM9: 64.64646465 | EN9: 47.22222222 | EO9: 46.91358025 | EP9: 48.88888889 | EQ9: 42.42424242 | ER9: 46.82539683 | ES9: 48.88888889 | ET9: 23.80952381 | EU9: 47.22222222 | EV9: 33.33333333 | EW9: 61.53846154 | EX9: 83.33333333 | EY9: 45.23809524 | EZ9: 45.2991453 | FA9: . | FB9: 18 | FC9: 27 | FD9: 12 | FE9: 2 | FF9: 18 | FG9: 33 | FH9: . | FI9: 33 | FJ9: 33 | FK9: 33 | FL9: . | FM9: 33 | FN9: 27 | FO9: 33 | FP9: . | FQ9: 18 | FR9: . | FS9: 33 | FT9: 27 | FU9: . | FV9: . | FW9: 4 | FX9: 33 | FY9: . | FZ9: 12 | GA9: 8 | GB9: 27 | GC9: 18 | GD9: 8 | GE9: 12 | GF9: 12 | GG9: 18 | GH9: 1 | GI9: 18 | GJ9: 18 | GK9: 4 | GL9: 27 | GM9: 12 | GN9: 18 | GO9: . | GP9: 4 | GQ9: . | GR9: 27 | GS9: 42 | GT9: 2 | GU9: . | GV9: . | GW9: . | GX9: 8 | GY9: 18 | GZ9: 8 | HA9: 12 | HB9: 4 | HC9: 41 | HD9: . | HE9: . | HF9: 5 | HG9: 4 | HH9: 2 | HI9: 1 | HJ9: 3 | HK9: . | HL9: 2 | HM9: 6 | HN9: 5 | HO9: 2 | HP9: 8 | HQ9: 4 | HR9: 7 | HS9: 1 | HT9: 1 | HU9: 3 | HV9: 2
A10: 9_1 | B10: aaeaaaeaaeaeaaeaaaeaaaaaaaaeaaaaaaaaaaaaeaeexaxxaaaaaaa | C10: 7.142857143 | D10: 92.85714286 | E10: 25.04337973 | F10: 10 | G10: 70 | H10: 17.53036581 | I10: . | J10: 30 | K10: 30 | L10: 30 | M10: 70 | N10: 30 | O10: 30 | P10: 70 | Q10: 30 | R10: 50 | S10: 30 | T10: 30 | U10: 30 | V10: 30 | W10: 10 | X10: 50 | Y10: 50 | Z10: 10 | AA10: 10 | AB10: 30 | AC10: 50 | AD10: 50 | AE10: 50 | AF10: 30 | AG10: 10 | AH10: 50 | AI10: 50 | AJ10: 25 | AK10: 10 | AL10: 50 | AM10: 50 | AN10: 50 | AO10: 30 | AP10: 70 | AQ10: 50 | AR10: 30 | AS10: 70 | AT10: 30 | AU10: 30 | AV10: 10 | AW10: 30 | AX10: 50 | AY10: 50 | AZ10: 10 | BA10: . | BB10: 50 | BC10: . | BD10: . | BE10: 70 | BF10: 30 | BG10: 30 | BH10: 50 | BI10: 50 | BJ10: 50 | BK10: 10 | BL10: . | BM10: . | BN10: . | BO10: . | BP10: . | BQ10: . | BR10: . | BS10: . | BT10: . | BU10: . | BV10: . | BW10: . | BX10: . | BY10: . | BZ10: . | CA10: . | CB10: . | CC10: . | CD10: . | CE10: . | CF10: 35.71428571 | CG10: 35.71428571 | CH10: 35.71428571 | CI10: 92.85714286 | CJ10: 35.71428571 | CK10: 35.71428571 | CL10: 92.85714286 | CM10: 35.71428571 | CN10: 64.28571429 | CO10: 35.71428571 | CP10: 35.71428571 | CQ10: 35.71428571 | CR10: 35.71428571 | CS10: 7.142857143 | CT10: 64.28571429 | CU10: 64.28571429 | CV10: 7.142857143 | CW10: 7.142857143 | CX10: 35.71428571 | CY10: 64.28571429 | CZ10: 64.28571429 | DA10: 64.28571429 | DB10: 35.71428571 | DC10: 7.142857143 | DD10: 64.28571429 | DE10: 64.28571429 | DF10: 28.57142857 | DG10: 7.142857143 | DH10: 64.28571429 | DI10: 64.28571429 | DJ10: 64.28571429 | DK10: 35.71428571 | DL10: 92.85714286 | DM10: 64.28571429 | DN10: 35.71428571 | DO10: 92.85714286 | DP10: 35.71428571 | DQ10: 35.71428571 | DR10: 7.142857143 | DS10: 35.71428571 | DT10: 64.28571429 | DU10: 64.28571429 | DV10: 7.142857143 | DW10: . | DX10: 64.28571429 | DY10: . | DZ10: . | EA10: 92.85714286 | EB10: 35.71428571 | EC10: 35.71428571 | ED10: 64.28571429 | EE10: 64.28571429 | EF10: 64.28571429 | EG10: 7.142857143 | EH10: . | EI10: 46.77871148 | EJ10: 35.71428571 | EK10: 41.42857143 | EL10: 45.23809524 | EM10: 64.28571429 | EN10: 42.85714286 | EO10: 46.98412698 | EP10: 41.42857143 | EQ10: 43.91534392 | ER10: 46.82539683 | ES10: 41.42857143 | ET10: 35.71428571 | EU10: 42.85714286 | EV10: 47.14285714 | EW10: 58.57142857 | EX10: 64.28571429 | EY10: 50.95238095 | EZ10: 41.19047619 | FA10: . | FB10: 24 | FC10: 24 | FD10: 24 | FE10: 1 | FF10: 24 | FG10: 24 | FH10: 1 | FI10: 24 | FJ10: 6 | FK10: 24 | FL10: 24 | FM10: 24 | FN10: 24 | FO10: 44 | FP10: 6 | FQ10: 6 | FR10: 44 | FS10: 44 | FT10: 24 | FU10: 6 | FV10: 6 | FW10: 6 | FX10: 24 | FY10: 44 | FZ10: 6 | GA10: 6 | GB10: 43 | GC10: 44 | GD10: 6 | GE10: 6 | GF10: 6 | GG10: 24 | GH10: 1 | GI10: 6 | GJ10: 24 | GK10: 1 | GL10: 24 | GM10: 24 | GN10: 44 | GO10: 24 | GP10: 6 | GQ10: 6 | GR10: 44 | GS10: . | GT10: 6 | GU10: . | GV10: . | GW10: 1 | GX10: 24 | GY10: 24 | GZ10: 6 | HA10: 6 | HB10: 6 | HC10: 44 | HD10: . | HE10: . | HF10: 5 | HG10: 4 | HH10: 2 | HI10: 1 | HJ10: 3 | HK10: . | HL10: 6 | HM10: 4 | HN10: 3 | HO10: 6 | HP10: 8 | HQ10: 5 | HR10: 2 | HS10: 1 | HT10: 1 | HU10: 2 | HV10: 3
A11: 10_1 | B11: aeeeeeeeexexxexxexxeeeeexeeeeeeeeeeeexeexeeexexxeexeeee | C11: 9.406867326 | D11: 94.49635681 | E11: 19.11629359 | F11: 2.397842262 | G11: 5.800549065 | H11: 0.7644556646 | I11: . | J11: 4.111847794 | K11: 2.868061 | L11: 3.555972906 | M11: 5.022660623 | N11: 4.444444444 | O11: 2.987341772 | P11: 3.664044 | Q11: 3.628496452 | R11: . | S11: 2.647853698 | T11: . | U11: . | V11: 3.575317 | W11: . | X11: . | Y11: 4.565623669 | Z11: . | AA11: . | AB11: 3.318881503 | AC11: 4.872821 | AD11: 4.010972859 | AE11: 4.423336 | AF11: 3.208513 | AG11: . | AH11: 4.03071551 | AI11: 3.371428571 | AJ11: 4.371377 | AK11: 3.814814815 | AL11: 3.665278383 | AM11: 4.262046 | AN11: 4.044931532 | AO11: 3.744186046 | AP11: 5.351320109 | AQ11: 4.477296115 | AR11: 3.871133034 | AS11: 5.157517719 | AT11: . | AU11: 3.874116227 | AV11: 4.955407 | AW11: . | AX11: 3.87012987 | AY11: 4.699627 | AZ11: 3.561402 | BA11: . | BB11: 5.800549065 | BC11: . | BD11: . | BE11: 4.867208 | BF11: 4.044714876 | BG11: . | BH11: 5.313140205 | BI11: 3.717969922 | BJ11: 4.628865979 | BK11: 2.397842262 | BL11: . | BM11: . | BN11: . | BO11: . | BP11: . | BQ11: . | BR11: . | BS11: . | BT11: . | BU11: . | BV11: . | BW11: . | BX11: . | BY11: . | BZ11: . | CA11: . | CB11: . | CC11: . | CD11: . | CE11: . | CF11: 52.26799645 | CG11: 21.16535099 | CH11: 38.3675598 | CI11: 75.04415766 | CJ11: 60.58504546 | CK11: 24.14813517 | CL11: 41.07003013 | CM11: 40.18111349 | CN11: . | CO11: 15.65875639 | CP11: . | CQ11: . | CR11: 38.85128618 | CS11: . | CT11: . | CU11: 63.61530311 | CV11: . | CW11: . | CX11: 32.43875441 | CY11: 71.29720625 | CZ11: 49.74547623 | DA11: 60.05719899 | DB11: 29.6788341 | DC11: . | DD11: 50.2391691 | DE11: 33.75276806 | DF11: 58.75789081 | DG11: 44.8402673 | DH11: 41.10089761 | DI11: 56.02391474 | DJ11: 50.59466081 | DK11: 43.07409519 | DL11: 83.26275228 | DM11: 61.40654788 | DN11: 46.2485839 | DO11: 78.41644981 | DP11: . | DQ11: 46.32318287 | DR11: 73.36238582 | DS11: . | DT11: 46.22349838 | DU11: 66.96624567 | DV11: 38.50332195 | DW11: . | DX11: 94.49635681 | DY11: . | DZ11: . | EA11: 71.15684526 | EB11: 50.58924302 | EC11: . | ED11: 82.30800987 | EE11: 42.41852397 | EF11: 65.19676641 | EG11: 9.406867326 | EH11: . | EI11: 51.22103624 | EJ11: 42.37902538 | EK11: 48.59463674 | EL11: 57.9187033 | EM11: 56.27264257 | EN11: 46.56316547 | EO11: 50.03909499 | EP11: 56.77938334 | EQ11: 48.41579655 | ER11: 51.7269163 | ES11: 48.15149142 | ET11: 34.49011246 | EU11: 46.56316547 | EV11: 41.69881582 | EW11: 56.63051425 | EX11: 58.09998142 | EY11: 46.90673704 | EZ11: 52.46321489 | FA11: . | FB11: 17 | FC11: 38 | FD11: 33 | FE11: 5 | FF11: 13 | FG11: 37 | FH11: 29 | FI11: 30 | FJ11: . | FK11: 39 | FL11: . | FM11: . | FN11: 31 | FO11: . | FP11: . | FQ11: 11 | FR11: . | FS11: . | FT11: 35 | FU11: 7 | FV11: 21 | FW11: 14 | FX11: 36 | FY11: . | FZ11: 20 | GA11: 34 | GB11: 15 | GC11: 25 | GD11: 28 | GE11: 16 | GF11: 18 | GG11: 26 | GH11: 2 | GI11: 12 | GJ11: 23 | GK11: 4 | GL11: . | GM11: 22 | GN11: 6 | GO11: . | GP11: 24 | GQ11: 9 | GR11: 32 | GS11: . | GT11: 1 | GU11: . | GV11: . | GW11: 8 | GX11: 19 | GY11: . | GZ11: 3 | HA11: 27 | HB11: 10 | HC11: 40 | HD11: . | HE11: . | HF11: 5 | HG11: 3 | HH11: 1 | HI11: 2 | HJ11: 4 | HK11: . | HL11: 1 | HM11: 4 | HN11: 3 | HO11: 5 | HP11: 8 | HQ11: 6 | HR11: 7 | HS11: 2 | HT11: 1 | HU11: 3 | HV11: 2
A12: 11_1 | C12: 0 | D12: 100 | E12: 26.95589191 | F12: . | G12: . | H12: . | I12: . | J12: . | K12: . | L12: . | M12: . | N12: . | O12: . | P12: . | Q12: . | R12: . | S12: . | T12: . | U12: . | V12: . | W12: . | X12: . | Y12: . | Z12: . | AA12: . | AB12: . | AC12: . | AD12: . | AE12: . | AF12: . | AG12: . | AH12: . | AI12: . | AJ12: . | AK12: . | AL12: . | AM12: . | AN12: . | AO12: . | AP12: . | AQ12: . | AR12: . | AS12: . | AT12: . | AU12: . | AV12: . | AW12: . | AX12: . | AY12: . | AZ12: . | BA12: . | BB12: . | BC12: . | BD12: . | BE12: . | BF12: . | BG12: . | BH12: . | BI12: . | BJ12: . | BK12: . | BL12: . | BM12: . | BN12: . | BO12: . | BP12: . | BQ12: . | BR12: . | BS12: . | BT12: . | BU12: . | BV12: . | BW12: . | BX12: . | BY12: . | BZ12: . | CA12: . | CB12: . | CC12: . | CD12: . | CE12: . | CF12: 66.66666667 | CG12: 12.5 | CH12: 66.66666667 | CI12: 100 | CJ12: 16.66666667 | CK12: 45.83333333 | CL12: 83.33333333 | CM12: 25 | CN12: 0 | CO12: 12.5 | CP12: 25 | CQ12: 50 | CR12: 25 | CS12: 41.66666667 | CT12: 12.5 | CU12: 70.83333333 | CV12: 12.5 | CW12: 12.5 | CX12: 41.66666667 | CY12: 25 | CZ12: 25 | DA12: 83.33333333 | DB12: 41.66666667 | DC12: 12.5 | DD12: 50 | DE12: 83.33333333 | DF12: 50 | DG12: 25 | DH12: 41.66666667 | DI12: 58.33333333 | DJ12: 29.16666667 | DK12: 33.33333333 | DL12: 100 | DM12: 58.33333333 | DN12: 66.66666667 | DO12: 87.5 | DP12: 45.83333333 | DQ12: 50 | DR12: 66.66666667 | DS12: 41.66666667 | DT12: 41.66666667 | DU12: 50 | DV12: 25 | DW12: 0 | DX12: 83.33333333 | DY12: . | DZ12: . | EA12: 83.33333333 | EB12: 54.16666667 | EC12: 41.66666667 | ED12: 33.33333333 | EE12: 70.83333333 | EF12: 83.33333333 | EG12: 0 | EH12: . | EI12: 45.43269231 | EJ12: 26.04166667 | EK12: 39.01515152 | EL12: 47.91666667 | EM12: 66.66666667 | EN12: 42.5 | EO12: 45.10869565 | EP12: 43.33333333 | EQ12: 36.16071429 | ER12: 48.84259259 | ES12: 57.5 | ET12: 26.66666667 | EU12: 42.5 | EV12: 31.25 | EW12: 63.05555556 | EX12: 56.94444444 | EY12: 49.16666667 | EZ12: 41.39784946 | FA12: . | FB12: 12 | FC12: 44 | FD12: 12 | FE12: 1 | FF12: 43 | FG12: 24 | FH12: 4 | FI12: 36 | FJ12: 50 | FK12: 44 | FL12: 36 | FM12: 19 | FN12: 36 | FO12: 26 | FP12: 44 | FQ12: 10 | FR12: 44 | FS12: 44 | FT12: 26 | FU12: 36 | FV12: 36 | FW12: 4 | FX12: 26 | FY12: 44 | FZ12: 19 | GA12: 4 | GB12: 19 | GC12: 36 | GD12: 26 | GE12: 16 | GF12: 35 | GG12: 33 | GH12: 1 | GI12: 16 | GJ12: 12 | GK12: 3 | GL12: 24 | GM12: 19 | GN12: 12 | GO12: 26 | GP12: 26 | GQ12: 19 | GR12: 36 | GS12: 50 | GT12: 4 | GU12: . | GV12: . | GW12: 4 | GX12: 18 | GY12: 26 | GZ12: 33 | HA12: 10 | HB12: 4 | HC12: 50 | HD12: . | HE12: . | HF12: 5 | HG12: 4 | HH12: 2 | HI12: 1 | HJ12: 3 | HK12: . | HL12: 4 | HM12: 6 | HN12: 3 | HO12: 2 | HP12: 8 | HQ12: 5 | HR12: 7 | HS12: 1 | HT12: 1 | HU12: 2 | HV12: 3
A13: 12_1 | B13: aeeeeeeeeeeeeeeeeeeeeeeeeeeeeeeeeeeeeeeeeeeeeexxeeeeeee | C13: 0 | D13: 100 | E13: 31.99290813 | F13: 0 | G13: 100 | H13: 31.99290813 | I13: . | J13: 33.33333333 | K13: 0 | L13: 33.33333333 | M13: 100 | N13: 33.33333333 | O13: 66.66666667 | P13: 66.66666667 | Q13: 0 | R13: 0 | S13: 0 | T13: 0 | U13: 0 | V13: 0 | W13: 33.33333333 | X13: 0 | Y13: 66.66666667 | Z13: 0 | AA13: 0 | AB13: 33.33333333 | AC13: 0 | AD13: 0 | AE13: 66.66666667 | AF13: 33.33333333 | AG13: 0 | AH13: 0 | AI13: 66.66666667 | AJ13: 0 | AK13: 0 | AL13: 33.33333333 | AM13: 66.66666667 | AN13: 33.33333333 | AO13: 66.66666667 | AP13: 100 | AQ13: 66.66666667 | AR13: 33.33333333 | AS13: 100 | AT13: 66.66666667 | AU13: 0 | AV13: 33.33333333 | AW13: 33.33333333 | AX13: 33.33333333 | AY13: 0 | AZ13: 0 | BA13: 0 | BB13: 66.66666667 | BC13: . | BD13: . | BE13: 66.66666667 | BF13: 33.33333333 | BG13: 33.33333333 | BH13: 66.66666667 | BI13: 66.66666667 | BJ13: 66.66666667 | BK13: 0 | BL13: . | BM13: . | BN13: . | BO13: . | BP13: . | BQ13: . | BR13: . | BS13: . | BT13: . | BU13: . | BV13: . | BW13: . | BX13: . | BY13: . | BZ13: . | CA13: . | CB13: . | CC13: . | CD13: . | CE13: . | CF13: 33.33333333 | CG13: 0 | CH13: 33.33333333 | CI13: 100 | CJ13: 33.33333333 | CK13: 66.66666667 | CL13: 66.66666667 | CM13: 0 | CN13: 0 | CO13: 0 | CP13: 0 | CQ13: 0 | CR13: 0 | CS13: 33.33333333 | CT13: 0 | CU13: 66.66666667 | CV13: 0 | CW13: 0 | CX13: 33.33333333 | CY13: 0 | CZ13: 0 | DA13: 66.66666667 | DB13: 33.33333333 | DC13: 0 | DD13: 0 | DE13: 66.66666667 | DF13: 0 | DG13: 0 | DH13: 33.33333333 | DI13: 66.66666667 | DJ13: 33.33333333 | DK13: 66.66666667 | DL13: 100 | DM13: 66.66666667 | DN13: 33.33333333 | DO13: 100 | DP13: 66.66666667 | DQ13: 0 | DR13: 33.33333333 | DS13: 33.33333333 | DT13: 33.33333333 | DU13: 0 | DV13: 0 | DW13: 0 | DX13: 66.66666667 | DY13: . | DZ13: . | EA13: 66.66666667 | EB13: 33.33333333 | EC13: 33.33333333 | ED13: 66.66666667 | EE13: 66.66666667 | EF13: 66.66666667 | EG13: 0 | EH13: . | EI13: 32.69230769 | EJ13: 8.333333333 | EK13: 21.21212121 | EL13: 50 | EM13: 58.33333333 | EN13: 26.66666667 | EO13: 30.43478261 | EP13: 46.66666667 | EQ13: 25 | ER13: 35.18518519 | ES13: 40 | ET13: 13.33333333 | EU13: 26.66666667 | EV13: 16.66666667 | EW13: 51.11111111 | EX13: 38.88888889 | EY13: 46.66666667 | EZ13: 24.7311828 | FA13: . | FB13: 18 | FC13: 32 | FD13: 18 | FE13: 1 | FF13: 18 | FG13: 4 | FH13: 4 | FI13: 32 | FJ13: 32 | FK13: 32 | FL13: 32 | FM13: 32 | FN13: 32 | FO13: 18 | FP13: 32 | FQ13: 4 | FR13: 32 | FS13: 32 | FT13: 18 | FU13: 32 | FV13: 32 | FW13: 4 | FX13: 18 | FY13: 32 | FZ13: 32 | GA13: 4 | GB13: 32 | GC13: 32 | GD13: 18 | GE13: 4 | GF13: 18 | GG13: 4 | GH13: 1 | GI13: 4 | GJ13: 18 | GK13: 1 | GL13: 4 | GM13: 32 | GN13: 18 | GO13: 18 | GP13: 18 | GQ13: 32 | GR13: 32 | GS13: 32 | GT13: 4 | GU13: . | GV13: . | GW13: 4 | GX13: 18 | GY13: 18 | GZ13: 4 | HA13: 4 | HB13: 4 | HC13: 32 | HD13: . | HE13: . | HF13: 5 | HG13: 4 | HH13: 2 | HI13: 1 | HJ13: 3 | HK13: . | HL13: 2 | HM13: 6 | HN13: 4 | HO13: 3 | HP13: 8 | HQ13: 5 | HR13: 7 | HS13: 1 | HT13: 2 | HU13: 1 | HV13: 3
A14: 13_1 | B14: aeeeeeeeeeeeeeeeeeeeeeeeeeeeeeeeeeeeeeeeeeeeeexxeeeeeee | C14: 0 | D14: 100 | E14: 34.90924994 | F14: 0 | G14: 100 | H14: 34.90924994 | I14: . | J14: 100 | K14: 25 | L14: 100 | M14: 100 | N14: 0 | O14: 25 | P14: 100 | Q14: 50 | R14: 0 | S14: 25 | T14: 50 | U14: 100 | V14: 50 | W14: 50 | X14: 25 | Y14: 75 | Z14: 25 | AA14: 25 | AB14: 50 | AC14: 50 | AD14: 50 | AE14: 100 | AF14: 50 | AG14: 25 | AH14: 100 | AI14: 100 | AJ14: 100 | AK14: 50 | AL14: 50 | AM14: 50 | AN14: 25 | AO14: 0 | AP14: 100 | AQ14: 50 | AR14: 100 | AS14: 75 | AT14: 25 | AU14: 100 | AV14: 100 | AW14: 50 | AX14: 50 | AY14: 100 | AZ14: 50 | BA14: 0 | BB14: 100 | BC14: . | BD14: . | BE14: 100 | BF14: 75 | BG14: 50 | BH14: 0 | BI14: 75 | BJ14: 100 | BK14: 0 | BL14: . | BM14: . | BN14: . | BO14: . | BP14: . | BQ14: . | BR14: . | BS14: . | BT14: . | BU14: . | BV14: . | BW14: . | BX14: . | BY14: . | BZ14: . | CA14: . | CB14: . | CC14: . | CD14: . | CE14: . | CF14: 100 | CG14: 25 | CH14: 100 | CI14: 100 | CJ14: 0 | CK14: 25 | CL14: 100 | CM14: 50 | CN14: 0 | CO14: 25 | CP14: 50 | CQ14: 100 | CR14: 50 | CS14: 50 | CT14: 25 | CU14: 75 | CV14: 25 | CW14: 25 | CX14: 50 | CY14: 50 | CZ14: 50 | DA14: 100 | DB14: 50 | DC14: 25 | DD14: 100 | DE14: 100 | DF14: 100 | DG14: 50 | DH14: 50 | DI14: 50 | DJ14: 25 | DK14: 0 | DL14: 100 | DM14: 50 | DN14: 100 | DO14: 75 | DP14: 25 | DQ14: 100 | DR14: 100 | DS14: 50 | DT14: 50 | DU14: 100 | DV14: 50 | DW14: 0 | DX14: 100 | DY14: . | DZ14: . | EA14: 100 | EB14: 75 | EC14: 50 | ED14: 0 | EE14: 75 | EF14: 100 | EG14: 0 | EH14: . | EI14: 58.17307692 | EJ14: 43.75 | EK14: 56.81818182 | EL14: 45.83333333 | EM14: 75 | EN14: 58.33333333 | EO14: 59.7826087 | EP14: 40 | EQ14: 47.32142857 | ER14: 62.5 | ES14: 75 | ET14: 40 | EU14: 58.33333333 | EV14: 45.83333333 | EW14: 75 | EX14: 75 | EY14: 51.66666667 | EZ14: 58.06451613 | FA14: . | FB14: 1 | FC14: 38 | FD14: 1 | FE14: 1 | FF14: 47 | FG14: 38 | FH14: 1 | FI14: 22 | FJ14: 47 | FK14: 38 | FL14: 22 | FM14: 1 | FN14: 22 | FO14: 22 | FP14: 38 | FQ14: 18 | FR14: 38 | FS14: 38 | FT14: 22 | FU14: 22 | FV14: 22 | FW14: 1 | FX14: 22 | FY14: 38 | FZ14: 1 | GA14: 1 | GB14: 1 | GC14: 22 | GD14: 22 | GE14: 22 | GF14: 38 | GG14: 47 | GH14: 1 | GI14: 22 | GJ14: 1 | GK14: 18 | GL14: 38 | GM14: 1 | GN14: 1 | GO14: 22 | GP14: 22 | GQ14: 1 | GR14: 22 | GS14: 47 | GT14: 1 | GU14: . | GV14: . | GW14: 1 | GX14: 18 | GY14: 22 | GZ14: 47 | HA14: 18 | HB14: 1 | HC14: 47 | HD14: . | HE14: . | HF14: 5 | HG14: 3 | HH14: 4 | HI14: 1 | HJ14: 2 | HK14: . | HL14: 7 | HM14: 5 | HN14: 3 | HO14: 1 | HP14: 7 | HQ14: 4 | HR14: 6 | HS14: 1 | HT14: 1 | HU14: 3 | HV14: 2
A15: 14_1 | C15: 0 | D15: 92.3256312 | E15: 22.86740232 | F15: . | G15: . | H15: . | I15: . | J15: . | K15: . | L15: . | M15: . | N15: . | O15: . | P15: . | Q15: . | R15: . | S15: . | T15: . | U15: . | V15: . | W15: . | X15: . | Y15: . | Z15: . | AA15: . | AB15: . | AC15: . | AD15: . | AE15: . | AF15: . | AG15: . | AH15: . | AI15: . | AJ15: . | AK15: . | AL15: . | AM15: . | AN15: . | AO15: . | AP15: . | AQ15: . | AR15: . | AS15: . | AT15: . | AU15: . | AV15: . | AW15: . | AX15: . | AY15: . | AZ15: . | BA15: . | BB15: . | BC15: . | BD15: . | BE15: . | BF15: . | BG15: . | BH15: . | BI15: . | BJ15: . | BK15: . | BL15: . | BM15: . | BN15: . | BO15: . | BP15: . | BQ15: . | BR15: . | BS15: . | BT15: . | BU15: . | BV15: . | BW15: . | BX15: . | BY15: . | BZ15: . | CA15: . | CB15: . | CC15: . | CD15: . | CE15: . | CF15: 34.88431572 | CG15: 23.42592302 | CH15: 54.3524303 | CI15: 88.84401855 | CJ15: 28.15279652 | CK15: 14.22970206 | CL15: 73.85423699 | CM15: 17.34344188 | CN15: 12.5 | CO15: 10.09686769 | CP15: 12.5 | CQ15: 12.5 | CR15: 17.17198656 | CS15: 18.75 | CT15: 25 | CU15: 42.99190976 | CV15: 0 | CW15: 12.5 | CX15: 26.52066641 | CY15: 37.62057028 | CZ15: 24.38095088 | DA15: 75.98218678 | DB15: 33.17731621 | DC15: 12.5 | DD15: 56.7922587 | DE15: 52.87892625 | DF15: 37.63841238 | DG15: 31.44277129 | DH15: 35.62967792 | DI15: 70.17903658 | DJ15: 50.80424813 | DK15: 30.61279948 | DL15: 78.81436226 | DM15: 34.54324478 | DN15: 31.96230127 | DO15: 90.91265175 | DP15: 37.5 | DQ15: 52.58113348 | DR15: 53.45217074 | DS15: 37.5 | DT15: 40.67751128 | DU15: 53.86122331 | DV15: 26.53847389 | DW15: 0 | DX15: 92.3256312 | DY15: . | DZ15: . | EA15: 30.8446161 | EB15: 59.95953063 | EC15: 31.25 | ED15: 56.22493463 | EE15: 55.36137036 | EF15: 42.29887789 | EG15: 26.79627259 | EH15: . | EI15: 38.6281107 | EJ15: 18.28885998 | EK15: 33.65244748 | EL15: 38.44999594 | EM15: 55.40935795 | EN15: 39.77077889 | EO15: 38.65134306 | EP15: 37.54161318 | EQ15: 34.25951678 | ER15: 38.22027311 | ES15: 47.9590065 | ET15: 18.39665049 | EU15: 39.77077889 | EV15: 29.36238258 | EW15: 53.16553662 | EX15: 48.69325008 | EY15: 40.03063799 | EZ15: 36.00137697 | FA15: . | FB15: 26 | FC15: 40 | FD15: 12 | FE15: 3 | FF15: 34 | FG15: 44 | FH15: 6 | FI15: 42 | FJ15: 45 | FK15: 50 | FL15: 45 | FM15: 45 | FN15: 43 | FO15: 41 | FP15: 38 | FQ15: 18 | FR15: 51 | FS15: 45 | FT15: 37 | FU15: 22 | FV15: 39 | FW15: 5 | FX15: 28 | FY15: 45 | FZ15: 9 | GA15: 15 | GB15: 21 | GC15: 30 | GD15: 25 | GE15: 7 | GF15: 17 | GG15: 33 | GH15: 4 | GI15: 27 | GJ15: 29 | GK15: 2 | GL15: 23 | GM15: 16 | GN15: 14 | GO15: 23 | GP15: 20 | GQ15: 13 | GR15: 36 | GS15: 51 | GT15: 1 | GU15: . | GV15: . | GW15: 32 | GX15: 8 | GY15: 31 | GZ15: 10 | HA15: 11 | HB15: 19 | HC15: 35 | HD15: . | HE15: . | HF15: 5 | HG15: 4 | HH15: 3 | HI15: 1 | HJ15: 2 | HK15: . | HL15: 5 | HM15: 6 | HN15: 4 | HO15: 2 | HP15: 8 | HQ15: 3 | HR15: 7 | HS15: 1 | HT15: 1 | HU15: 2 | HV15: 3
A16: 15_1 | B16: aeeeeeexeeexeeexexeexxeexeeeeeeeeeeeeeeexexeeexxxeeeeee | C16: 0 | D16: 100 | E16: 23.88064653 | F16: 1 | G16: 9 | H16: 1.910451722 | I16: . | J16: 4 | K16: 4 | L16: 7 | M16: 9 | N16: 4 | O16: 4 | P16: . | Q16: 4 | R16: 2 | S16: 3 | T16: . | U16: 3 | V16: 3 | W16: 1 | X16: . | Y16: 4 | Z16: . | AA16: 3 | AB16: 4 | AC16: . | AD16: . | AE16: 7 | AF16: 3 | AG16: . | AH16: 5 | AI16: 6 | AJ16: 2 | AK16: 4 | AL16: 6 | AM16: 6 | AN16: 5 | AO16: 4 | AP16: 7 | AQ16: 4 | AR16: 6 | AS16: 9 | AT16: 5 | AU16: 5 | AV16: 4 | AW16: . | AX16: 6 | AY16: . | AZ16: 4 | BA16: 1 | BB16: 9 | BC16: . | BD16: . | BE16: . | BF16: 6 | BG16: 3 | BH16: 4 | BI16: 6 | BJ16: 5 | BK16: 4 | BL16: . | BM16: . | BN16: . | BO16: . | BP16: . | BQ16: . | BR16: . | BS16: . | BT16: . | BU16: . | BV16: . | BW16: . | BX16: . | BY16: . | BZ16: . | CA16: . | CB16: . | CC16: . | CD16: . | CE16: . | CF16: 37.5 | CG16: 37.5 | CH16: 75 | CI16: 100 | CJ16: 37.5 | CK16: 37.5 | CL16: . | CM16: 37.5 | CN16: 12.5 | CO16: 25 | CP16: . | CQ16: 25 | CR16: 25 | CS16: 0 | CT16: . | CU16: 37.5 | CV16: . | CW16: 25 | CX16: 37.5 | CY16: . | CZ16: . | DA16: 75 | DB16: 25 | DC16: . | DD16: 50 | DE16: 62.5 | DF16: 12.5 | DG16: 37.5 | DH16: 62.5 | DI16: 62.5 | DJ16: 50 | DK16: 37.5 | DL16: 75 | DM16: 37.5 | DN16: 62.5 | DO16: 100 | DP16: 50 | DQ16: 50 | DR16: 37.5 | DS16: . | DT16: 62.5 | DU16: . | DV16: 37.5 | DW16: 0 | DX16: 100 | DY16: . | DZ16: . | EA16: . | EB16: 62.5 | EC16: 25 | ED16: 37.5 | EE16: 62.5 | EF16: 50 | EG16: 37.5 | EH16: . | EI16: 45.53571429 | EJ16: 20 | EK16: 39.0625 | EL16: 37.5 | EM16: 68.18181818 | EN16: 43.75 | EO16: 46.875 | EP16: 37.5 | EQ16: 37.5 | ER16: 43.75 | ES16: 50 | ET16: 25 | EU16: 43.75 | EV16: 35 | EW16: 62.5 | EX16: 68.75 | EY16: 47.32142857 | EZ16: 42.78846154 | FA16: . | FB16: 19 | FC16: 19 | FD16: 4 | FE16: 1 | FF16: 19 | FG16: 19 | FH16: . | FI16: 19 | FJ16: 39 | FK16: 33 | FL16: . | FM16: 33 | FN16: 33 | FO16: 41 | FP16: . | FQ16: 19 | FR16: . | FS16: 33 | FT16: 19 | FU16: . | FV16: . | FW16: 4 | FX16: 33 | FY16: . | FZ16: 14 | GA16: 7 | GB16: 39 | GC16: 19 | GD16: 7 | GE16: 7 | GF16: 14 | GG16: 19 | GH16: 4 | GI16: 19 | GJ16: 7 | GK16: 1 | GL16: 14 | GM16: 14 | GN16: 19 | GO16: . | GP16: 7 | GQ16: . | GR16: 19 | GS16: 41 | GT16: 1 | GU16: . | GV16: . | GW16: . | GX16: 7 | GY16: 33 | GZ16: 19 | HA16: 7 | HB16: 14 | HC16: 19 | HD16: . | HE16: . | HF16: 5 | HG16: 3 | HH16: 4 | HI16: 1 | HJ16: 2 | HK16: . | HL16: 5 | HM16: 5 | HN16: 3 | HO16: 2 | HP16: 8 | HQ16: 3 | HR16: 7 | HS16: 1 | HT16: 1 | HU16: 2 | HV16: 3
A17: 16_1 | B17: aeeeeeeeexexxexxexxeeeeexeeeeeeeeeeeexeexeeexexxeexeeee | C17: 1.515959689 | D17: 91.53205566 | E17: 25.34891268 | F17: 1.688884 | G17: 5.330947316 | H17: 1.025620407 | I17: . | J17: 3.333061963 | K17: 2.953741 | L17: 3.167351162 | M17: 5.330947316 | N17: 3.02173913 | O17: 1.8375 | P17: 4.063591 | Q17: 2.215446992 | R17: . | S17: 1.841606578 | T17: . | U17: . | V17: 1.688884 | W17: . | X17: . | Y17: 4.822916667 | Z17: . | AA17: . | AB17: 2.317878845 | AC17: 2.648808 | AD17: 3.600461153 | AE17: 3.769773 | AF17: 2.620114 | AG17: . | AH17: 2.957746838 | AI17: 4 | AJ17: 4.173107 | AK17: 3.926829268 | AL17: 2.91778265 | AM17: 5.088391 | AN17: 3.748174736 | AO17: 3.826086957 | AP17: 4.113543599 | AQ17: 3.291662636 | AR17: 2.472634997 | AS17: 5.07628717 | AT17: . | AU17: 3.458102117 | AV17: 5.081084 | AW17: . | AX17: 2.518987342 | AY17: 3.963006 | AZ17: 2.825792 | BA17: . | BB17: 5.247795184 | BC17: . | BD17: . | BE17: 3.617751 | BF17: 4.353694932 | BG17: . | BH17: 4.91189152 | BI17: 3.795568389 | BJ17: 2.715789474 | BK17: 1.845580357 | BL17: . | BM17: . | BN17: . | BO17: . | BP17: . | BQ17: . | BR17: . | BS17: . | BT17: . | BU17: . | BV17: . | BW17: . | BX17: . | BY17: . | BZ17: . | CA17: . | CB17: . | CC17: . | CD17: . | CE17: . | CF17: 42.15294715 | CG17: 32.77776906 | CH17: 38.0572909 | CI17: 91.53205566 | CJ17: 34.45838955 | CK17: 5.189106189 | CL17: 60.20847398 | CM17: 14.53032565 | CN17: . | CO17: 5.290603077 | CP17: . | CQ17: . | CR17: 1.515959689 | CS17: . | CT17: . | CU17: 78.97572928 | CV17: . | CW17: . | CX17: 17.06199924 | CY17: 25.24114056 | CZ17: 48.76190176 | DA17: 52.94656034 | DB17: 24.53194864 | DC17: . | DD17: 32.87677611 | DE17: 58.63677874 | DF17: 62.91523713 | DG17: 56.82831386 | DH17: 31.88903375 | DI17: 85.53710974 | DJ17: 52.4127444 | DK17: 54.33839844 | DL17: 61.44308677 | DM17: 41.12973435 | DN17: 20.8869038 | DO17: 85.23795526 | DP17: . | DQ17: 45.24340044 | DR17: 85.35651222 | DS17: . | DT17: 22.03253384 | DU17: 57.72244663 | DV17: 29.61542166 | DW17: . | DX17: 89.47689361 | DY17: . | DZ17: . | EA17: 49.18923221 | EB17: 67.3785919 | EC17: . | ED17: 81.17480389 | EE17: 53.58411108 | EF17: 26.89663368 | EG17: 5.388817764 | EH17: . | EI17: 45.7605918 | EJ17: 15.02068976 | EK17: 45.59564905 | EL17: 59.09998783 | EM17: 53.2410225 | EN17: 39.39165519 | EO17: 43.40658074 | EP17: 55.12483954 | EQ17: 43.33232744 | ER17: 46.28135061 | ES17: 48.8770195 | ET17: 16.60578891 | EU17: 39.39165519 | EV17: 34.50762881 | EW17: 54.57095061 | EX17: 52.81576028 | EY17: 43.88723797 | EZ17: 45.59245814 | FA17: . | FB17: 22 | FC17: 27 | FD17: 24 | FE17: 1 | FF17: 25 | FG17: 39 | FH17: 11 | FI17: 36 | FJ17: . | FK17: 38 | FL17: . | FM17: . | FN17: 40 | FO17: . | FP17: . | FQ17: 7 | FR17: . | FS17: . | FT17: 35 | FU17: 31 | FV17: 20 | FW17: 17 | FX17: 32 | FY17: . | FZ17: 26 | GA17: 12 | GB17: 9 | GC17: 14 | GD17: 28 | GE17: 3 | GF17: 18 | GG17: 15 | GH17: 10 | GI17: 23 | GJ17: 34 | GK17: 5 | GL17: . | GM17: 21 | GN17: 4 | GO17: . | GP17: 33 | GQ17: 13 | GR17: 29 | GS17: . | GT17: 2 | GU17: . | GV17: . | GW17: 19 | GX17: 8 | GY17: . | GZ17: 6 | HA17: 16 | HB17: 30 | HC17: 37 | HD17: . | HE17: . | HF17: 5 | HG17: 3 | HH17: 1 | HI17: 2 | HJ17: 4 | HK17: . | HL17: 1 | HM17: 5 | HN17: 4 | HO17: 3 | HP17: 8 | HQ17: 6 | HR17: 7 | HS17: 2 | HT17: 1 | HU17: 3 | HV17: 2
A18: 17_1 | C18: 0 | D18: 100 | E18: 29.11443556 | F18: . | G18: . | H18: . | I18: . | J18: . | K18: . | L18: . | M18: . | N18: . | O18: . | P18: . | Q18: . | R18: . | S18: . | T18: . | U18: . | V18: . | W18: . | X18: . | Y18: . | Z18: . | AA18: . | AB18: . | AC18: . | AD18: . | AE18: . | AF18: . | AG18: . | AH18: . | AI18: . | AJ18: . | AK18: . | AL18: . | AM18: . | AN18: . | AO18: . | AP18: . | AQ18: . | AR18: . | AS18: . | AT18: . | AU18: . | AV18: . | AW18: . | AX18: . | AY18: . | AZ18: . | BA18: . | BB18: . | BC18: . | BD18: . | BE18: . | BF18: . | BG18: . | BH18: . | BI18: . | BJ18: . | BK18: . | BL18: . | BM18: . | BN18: . | BO18: . | BP18: . | BQ18: . | BR18: . | BS18: . | BT18: . | BU18: . | BV18: . | BW18: . | BX18: . | BY18: . | BZ18: . | CA18: . | CB18: . | CC18: . | CD18: . | CE18: . | CF18: 25 | CG18: 0 | CH18: 50 | CI18: 75 | CJ18: 12.5 | CK18: 0 | CL18: 87.5 | CM18: 0 | CN18: 12.5 | CO18: 0 | CP18: 12.5 | CQ18: 0 | CR18: 25 | CS18: 37.5 | CT18: 25 | CU18: 12.5 | CV18: 0 | CW18: 0 | CX18: 25 | CY18: 50 | CZ18: 0 | DA18: 100 | DB18: 50 | DC18: 12.5 | DD18: 87.5 | DE18: 37.5 | DF18: 37.5 | DG18: 0 | DH18: 12.5 | DI18: 62.5 | DJ18: 50 | DK18: 0 | DL18: 100 | DM18: 25 | DN18: 12.5 | DO18: 87.5 | DP18: 25 | DQ18: 62.5 | DR18: 37.5 | DS18: 37.5 | DT18: 37.5 | DU18: 50 | DV18: 12.5 | DW18: 0 | DX18: 87.5 | DY18: . | DZ18: . | EA18: 12.5 | EB18: 50 | EC18: 37.5 | ED18: 50 | EE18: 50 | EF18: 50 | EG18: 37.5 | EH18: . | EI18: 33.89423077 | EJ18: 17.1875 | EK18: 30.68181818 | EL18: 18.75 | EM18: 47.91666667 | EN18: 40 | EO18: 35.86956522 | EP18: 20 | EQ18: 30.80357143 | ER18: 34.02777778 | ES18: 45 | ET18: 13.75 | EU18: 40 | EV18: 31.25 | EW18: 47.5 | EX18: 50 | EY18: 32.5 | EZ18: 31.4516129 | FA18: . | FB18: 27 | FC18: 42 | FD18: 10 | FE18: 7 | FF18: 33 | FG18: 42 | FH18: 3 | FI18: 42 | FJ18: 33 | FK18: 42 | FL18: 33 | FM18: 42 | FN18: 27 | FO18: 19 | FP18: 27 | FQ18: 33 | FR18: 42 | FS18: 42 | FT18: 27 | FU18: 10 | FV18: 42 | FW18: 1 | FX18: 10 | FY18: 33 | FZ18: 3 | GA18: 19 | GB18: 19 | GC18: 42 | GD18: 33 | GE18: 8 | GF18: 10 | GG18: 42 | GH18: 1 | GI18: 27 | GJ18: 33 | GK18: 3 | GL18: 27 | GM18: 8 | GN18: 19 | GO18: 19 | GP18: 19 | GQ18: 10 | GR18: 33 | GS18: 42 | GT18: 3 | GU18: . | GV18: . | GW18: 33 | GX18: 10 | GY18: 19 | GZ18: 10 | HA18: 10 | HB18: 10 | HC18: 19 | HD18: . | HE18: . | HF18: 5 | HG18: 3 | HH18: 4 | HI18: 1 | HJ18: 2 | HK18: . | HL18: 7 | HM18: 6 | HN18: 4 | HO18: 2 | HP18: 8 | HQ18: 3 | HR18: 5 | HS18: 1 | HT18: 1 | HU18: 2 | HV18: 3
A19: 18_1 | B19: aeeeeeeeeeeeeeeeeeeeeeeeeeeeeeeeeeeeeeeeeeeeeexxeeeeeee | C19: 0 | D19: 100 | E19: 30.62247004 | F19: 0 | G19: 100 | H19: 30.62247004 | I19: . | J19: 25 | K19: 0 | L19: 50 | M19: 75 | N19: 0 | O19: 0 | P19: 75 | Q19: 0 | R19: 25 | S19: 0 | T19: 25 | U19: 0 | V19: 25 | W19: 25 | X19: 25 | Y19: 25 | Z19: 0 | AA19: 0 | AB19: 25 | AC19: 50 | AD19: 0 | AE19: 100 | AF19: 50 | AG19: 0 | AH19: 75 | AI19: 50 | AJ19: 50 | AK19: 0 | AL19: 25 | AM19: 75 | AN19: 50 | AO19: 0 | AP19: 100 | AQ19: 25 | AR19: 0 | AS19: 100 | AT19: 0 | AU19: 75 | AV19: 50 | AW19: 50 | AX19: 50 | AY19: 50 | AZ19: 25 | BA19: 0 | BB19: 100 | BC19: . | BD19: . | BE19: 25 | BF19: 50 | BG19: 25 | BH19: 50 | BI19: 50 | BJ19: 50 | BK19: 25 | BL19: . | BM19: . | BN19: . | BO19: . | BP19: . | BQ19: . | BR19: . | BS19: . | BT19: . | BU19: . | BV19: . | BW19: . | BX19: . | BY19: . | BZ19: . | CA19: . | CB19: . | CC19: . | CD19: . | CE19: . | CF19: 25 | CG19: 0 | CH19: 50 | CI19: 75 | CJ19: 0 | CK19: 0 | CL19: 75 | CM19: 0 | CN19: 25 | CO19: 0 | CP19: 25 | CQ19: 0 | CR19: 25 | CS19: 25 | CT19: 25 | CU19: 25 | CV19: 0 | CW19: 0 | CX19: 25 | CY19: 50 | CZ19: 0 | DA19: 100 | DB19: 50 | DC19: 0 | DD19: 75 | DE19: 50 | DF19: 50 | DG19: 0 | DH19: 25 | DI19: 75 | DJ19: 50 | DK19: 0 | DL19: 100 | DM19: 25 | DN19: 0 | DO19: 100 | DP19: 0 | DQ19: 75 | DR19: 50 | DS19: 50 | DT19: 50 | DU19: 50 | DV19: 25 | DW19: 0 | DX19: 100 | DY19: . | DZ19: . | EA19: 25 | EB19: 50 | EC19: 25 | ED19: 50 | EE19: 50 | EF19: 50 | EG19: 25 | EH19: . | EI19: 35.09615385 | EJ19: 18.75 | EK19: 31.81818182 | EL19: 20.83333333 | EM19: 52.08333333 | EN19: 38.33333333 | EO19: 36.95652174 | EP19: 20 | EQ19: 31.25 | ER19: 36.11111111 | ES19: 45 | ET19: 15 | EU19: 38.33333333 | EV19: 29.16666667 | EW19: 50 | EX19: 54.16666667 | EY19: 33.33333333 | EZ19: 32.25806452 | FA19: . | FB19: 24 | FC19: 38 | FD19: 10 | FE19: 5 | FF19: 38 | FG19: 38 | FH19: 5 | FI19: 38 | FJ19: 24 | FK19: 38 | FL19: 24 | FM19: 38 | FN19: 24 | FO19: 24 | FP19: 24 | FQ19: 24 | FR19: 38 | FS19: 38 | FT19: 24 | FU19: 10 | FV19: 38 | FW19: 1 | FX19: 10 | FY19: 38 | FZ19: 5 | GA19: 10 | GB19: 10 | GC19: 38 | GD19: 24 | GE19: 5 | GF19: 10 | GG19: 38 | GH19: 1 | GI19: 24 | GJ19: 38 | GK19: 1 | GL19: 38 | GM19: 5 | GN19: 10 | GO19: 10 | GP19: 10 | GQ19: 10 | GR19: 24 | GS19: 38 | GT19: 1 | GU19: . | GV19: . | GW19: 24 | GX19: 10 | GY19: 24 | GZ19: 10 | HA19: 10 | HB19: 10 | HC19: 24 | HD19: . | HE19: . | HF19: 5 | HG19: 3 | HH19: 4 | HI19: 1 | HJ19: 2 | HK19: . | HL19: 7 | HM19: 5 | HN19: 4 | HO19: 2 | HP19: 8 | HQ19: 3 | HR19: 6 | HS19: 1 | HT19: 1 | HU19: 2 | HV19: 3
A20: 19_1 | B20: aeeeeeeeeeeeeeeeeeeeeeeeeeeeeeeeeeeeeeeeeeeeeexxeeeeeee | C20: 0 | D20: 100 | E20: 30.3324963 | F20: 0 | G20: 100 | H20: 30.3324963 | I20: . | J20: 25 | K20: 0 | L20: 50 | M20: 75 | N20: 25 | O20: 0 | P20: 100 | Q20: 0 | R20: 0 | S20: 0 | T20: 0 | U20: 0 | V20: 25 | W20: 50 | X20: 25 | Y20: 0 | Z20: 0 | AA20: 0 | AB20: 25 | AC20: 50 | AD20: 0 | AE20: 100 | AF20: 50 | AG20: 25 | AH20: 100 | AI20: 25 | AJ20: 25 | AK20: 0 | AL20: 0 | AM20: 50 | AN20: 50 | AO20: 0 | AP20: 100 | AQ20: 25 | AR20: 25 | AS20: 75 | AT20: 50 | AU20: 50 | AV20: 25 | AW20: 25 | AX20: 25 | AY20: 50 | AZ20: 0 | BA20: 0 | BB20: 75 | BC20: . | BD20: . | BE20: 0 | BF20: 50 | BG20: 50 | BH20: 50 | BI20: 50 | BJ20: 50 | BK20: 50 | BL20: . | BM20: . | BN20: . | BO20: . | BP20: . | BQ20: . | BR20: . | BS20: . | BT20: . | BU20: . | BV20: . | BW20: . | BX20: . | BY20: . | BZ20: . | CA20: . | CB20: . | CC20: . | CD20: . | CE20: . | CF20: 25 | CG20: 0 | CH20: 50 | CI20: 75 | CJ20: 25 | CK20: 0 | CL20: 100 | CM20: 0 | CN20: 0 | CO20: 0 | CP20: 0 | CQ20: 0 | CR20: 25 | CS20: 50 | CT20: 25 | CU20: 0 | CV20: 0 | CW20: 0 | CX20: 25 | CY20: 50 | CZ20: 0 | DA20: 100 | DB20: 50 | DC20: 25 | DD20: 100 | DE20: 25 | DF20: 25 | DG20: 0 | DH20: 0 | DI20: 50 | DJ20: 50 | DK20: 0 | DL20: 100 | DM20: 25 | DN20: 25 | DO20: 75 | DP20: 50 | DQ20: 50 | DR20: 25 | DS20: 25 | DT20: 25 | DU20: 50 | DV20: 0 | DW20: 0 | DX20: 75 | DY20: . | DZ20: . | EA20: 0 | EB20: 50 | EC20: 50 | ED20: 50 | EE20: 50 | EF20: 50 | EG20: 50 | EH20: . | EI20: 32.69230769 | EJ20: 15.625 | EK20: 29.54545455 | EL20: 16.66666667 | EM20: 43.75 | EN20: 41.66666667 | EO20: 34.7826087 | EP20: 20 | EQ20: 30.35714286 | ER20: 31.94444444 | ES20: 45 | ET20: 12.5 | EU20: 41.66666667 | EV20: 33.33333333 | EW20: 45 | EX20: 45.83333333 | EY20: 31.66666667 | EZ20: 30.64516129 | FA20: . | FB20: 23 | FC20: 36 | FD20: 8 | FE20: 5 | FF20: 23 | FG20: 36 | FH20: 1 | FI20: 36 | FJ20: 36 | FK20: 36 | FL20: 36 | FM20: 36 | FN20: 23 | FO20: 8 | FP20: 23 | FQ20: 36 | FR20: 36 | FS20: 36 | FT20: 23 | FU20: 8 | FV20: 36 | FW20: 1 | FX20: 8 | FY20: 23 | FZ20: 1 | GA20: 23 | GB20: 23 | GC20: 36 | GD20: 36 | GE20: 8 | GF20: 8 | GG20: 36 | GH20: 1 | GI20: 23 | GJ20: 23 | GK20: 5 | GL20: 8 | GM20: 8 | GN20: 23 | GO20: 23 | GP20: 23 | GQ20: 8 | GR20: 36 | GS20: 36 | GT20: 5 | GU20: . | GV20: . | GW20: 36 | GX20: 8 | GY20: 8 | GZ20: 8 | HA20: 8 | HB20: 8 | HC20: 8 | HD20: . | HE20: . | HF20: 5 | HG20: 3 | HH20: 4 | HI20: 1 | HJ20: 2 | HK20: . | HL20: 7 | HM20: 6 | HN20: 5 | HO20: 1 | HP20: 8 | HQ20: 3 | HR20: 4 | HS20: 1 | HT20: 1 | HU20: 2 | HV20: 3
A21: 20_1 | B21: aaaaaaaaaaaaaaaaaaaaaaaaaaaaaaaaaaaaaaaaaaaaaaxxaaaaaaa | C21: 0 | D21: 100 | E21: 33.01126459 | F21: 0 | G21: 2 | H21: 0.6602252918 | I21: . | J21: 0 | K21: 1 | L21: 0 | M21: 0 | N21: 0 | O21: 0 | P21: 0 | Q21: 0 | R21: 0 | S21: 0 | T21: 0 | U21: 0 | V21: 0 | W21: 0 | X21: 0 | Y21: 0 | Z21: 0 | AA21: 2 | AB21: 2 | AC21: 0 | AD21: 0 | AE21: 0 | AF21: 0 | AG21: 0 | AH21: 0 | AI21: 0 | AJ21: 2 | AK21: 2 | AL21: 0 | AM21: 0 | AN21: 0 | AO21: 0 | AP21: 0 | AQ21: 0 | AR21: 0 | AS21: 0 | AT21: 0 | AU21: 0 | AV21: 1 | AW21: 0 | AX21: 0 | AY21: 0 | AZ21: 2 | BA21: 2 | BB21: 0 | BC21: . | BD21: . | BE21: 0 | BF21: 0 | BG21: 0 | BH21: 0 | BI21: 0 | BJ21: 0 | BK21: 0 | BL21: . | BM21: . | BN21: . | BO21: . | BP21: . | BQ21: . | BR21: . | BS21: . | BT21: . | BU21: . | BV21: . | BW21: . | BX21: . | BY21: . | BZ21: . | CA21: . | CB21: . | CC21: . | CD21: . | CE21: . | CF21: 100 | CG21: 50 | CH21: 100 | CI21: 100 | CJ21: 100 | CK21: 100 | CL21: 100 | CM21: 100 | CN21: 100 | CO21: 100 | CP21: 100 | CQ21: 100 | CR21: 100 | CS21: 100 | CT21: 100 | CU21: 100 | CV21: 100 | CW21: 0 | CX21: 0 | CY21: 100 | CZ21: 100 | DA21: 100 | DB21: 100 | DC21: 100 | DD21: 100 | DE21: 100 | DF21: 0 | DG21: 0 | DH21: 100 | DI21: 100 | DJ21: 100 | DK21: 100 | DL21: 100 | DM21: 100 | DN21: 100 | DO21: 100 | DP21: 100 | DQ21: 100 | DR21: 50 | DS21: 100 | DT21: 100 | DU21: 100 | DV21: 0 | DW21: 0 | DX21: 100 | DY21: . | DZ21: . | EA21: 100 | EB21: 100 | EC21: 100 | ED21: 100 | EE21: 100 | EF21: 100 | EG21: 100 | EH21: . | EI21: 86.53846154 | EJ21: 100 | EK21: 68.18181818 | EL21: 83.33333333 | EM21: 95.83333333 | EN21: 86.66666667 | EO21: 86.95652174 | EP21: 80 | EQ21: 82.14285714 | ER21: 80.55555556 | ES21: 90 | ET21: 95 | EU21: 86.66666667 | EV21: 50 | EW21: 96.66666667 | EX21: 100 | EY21: 90 | EZ21: 82.25806452 | FA21: . | FB21: 1 | FC21: 45 | FD21: 1 | FE21: 1 | FF21: 1 | FG21: 1 | FH21: 1 | FI21: 1 | FJ21: 1 | FK21: 1 | FL21: 1 | FM21: 1 | FN21: 1 | FO21: 1 | FP21: 1 | FQ21: 1 | FR21: 1 | FS21: 47 | FT21: 47 | FU21: 1 | FV21: 1 | FW21: 1 | FX21: 1 | FY21: 1 | FZ21: 1 | GA21: 1 | GB21: 47 | GC21: 47 | GD21: 1 | GE21: 1 | GF21: 1 | GG21: 1 | GH21: 1 | GI21: 1 | GJ21: 1 | GK21: 1 | GL21: 1 | GM21: 1 | GN21: 45 | GO21: 1 | GP21: 1 | GQ21: 1 | GR21: 47 | GS21: 47 | GT21: 1 | GU21: . | GV21: . | GW21: 1 | GX21: 1 | GY21: 1 | GZ21: 1 | HA21: 1 | HB21: 1 | HC21: 1 | HD21: . | HE21: . | HF21: 1 | HG21: 5 | HH21: 4 | HI21: 2 | HJ21: 3 | HK21: . | HL21: 7 | HM21: 5 | HN21: 6 | HO21: 3 | HP21: 2 | HQ21: 4 | HR21: 8 | HS21: 1 | HT21: 1 | HU21: 2 | HV21: 3
A22: 21_1 | B22: aeeeeeeeeeeeeeeeeeeeeeeeeeeeeeeeeeeeeeeeeeeeeexxeeeeeee | C22: 0 | D22: 100 | E22: 31.24572853 | F22: 0 | G22: 100 | H22: 31.24572853 | I22: . | J22: 33.33333333 | K22: 0 | L22: 66.66666667 | M22: 100 | N22: 55.55555556 | O22: 66.66666667 | P22: 100 | Q22: 33.33333333 | R22: 0 | S22: 33.33333333 | T22: 33.33333333 | U22: 0 | V22: 33.33333333 | W22: 33.33333333 | X22: 33.33333333 | Y22: 33.33333333 | Z22: 0 | AA22: 0 | AB22: 33.33333333 | AC22: 33.33333333 | AD22: 33.33333333 | AE22: 66.66666667 | AF22: 0 | AG22: 0 | AH22: 66.66666667 | AI22: 33.33333333 | AJ22: 33.33333333 | AK22: 0 | AL22: 66.66666667 | AM22: 66.66666667 | AN22: 66.66666667 | AO22: 66.66666667 | AP22: 100 | AQ22: 33.33333333 | AR22: 77.77777778 | AS22: 100 | AT22: 33.33333333 | AU22: 33.33333333 | AV22: 44.44444444 | AW22: 66.66666667 | AX22: 66.66666667 | AY22: 100 | AZ22: 33.33333333 | BA22: 0 | BB22: 100 | BC22: . | BD22: . | BE22: 33.33333333 | BF22: 33.33333333 | BG22: 33.33333333 | BH22: 0 | BI22: 66.66666667 | BJ22: 66.66666667 | BK22: 0 | BL22: . | BM22: . | BN22: . | BO22: . | BP22: . | BQ22: . | BR22: . | BS22: . | BT22: . | BU22: . | BV22: . | BW22: . | BX22: . | BY22: . | BZ22: . | CA22: . | CB22: . | CC22: . | CD22: . | CE22: . | CF22: 33.33333333 | CG22: 0 | CH22: 66.66666667 | CI22: 100 | CJ22: 55.55555556 | CK22: 66.66666667 | CL22: 100 | CM22: 33.33333333 | CN22: 0 | CO22: 33.33333333 | CP22: 33.33333333 | CQ22: 0 | CR22: 33.33333333 | CS22: 33.33333333 | CT22: 33.33333333 | CU22: 33.33333333 | CV22: 0 | CW22: 0 | CX22: 33.33333333 | CY22: 33.33333333 | CZ22: 33.33333333 | DA22: 66.66666667 | DB22: 0 | DC22: 0 | DD22: 66.66666667 | DE22: 33.33333333 | DF22: 33.33333333 | DG22: 0 | DH22: 66.66666667 | DI22: 66.66666667 | DJ22: 66.66666667 | DK22: 66.66666667 | DL22: 100 | DM22: 33.33333333 | DN22: 77.77777778 | DO22: 100 | DP22: 33.33333333 | DQ22: 33.33333333 | DR22: 44.44444444 | DS22: 66.66666667 | DT22: 66.66666667 | DU22: 100 | DV22: 33.33333333 | DW22: 0 | DX22: 100 | DY22: . | DZ22: . | EA22: 33.33333333 | EB22: 33.33333333 | EC22: 33.33333333 | ED22: 0 | EE22: 66.66666667 | EF22: 66.66666667 | EG22: 0 | EH22: . | EI22: 43.16239316 | EJ22: 25 | EK22: 43.43434343 | EL22: 27.77777778 | EM22: 62.03703704 | EN22: 43.7037037 | EO22: 45.16908213 | EP22: 26.66666667 | EQ22: 36.50793651 | ER22: 46.91358025 | ES22: 55.55555556 | ET22: 26.66666667 | EU22: 43.7037037 | EV22: 33.33333333 | EW22: 60.74074074 | EX22: 77.77777778 | EY22: 46.66666667 | EZ22: 34.76702509 | FA22: . | FB22: 22 | FC22: 42 | FD22: 8 | FE22: 1 | FF22: 20 | FG22: 8 | FH22: 1 | FI22: 22 | FJ22: 42 | FK22: 22 | FL22: 22 | FM22: 42 | FN22: 22 | FO22: 22 | FP22: 22 | FQ22: 22 | FR22: 42 | FS22: 42 | FT22: 22 | FU22: 22 | FV22: 22 | FW22: 8 | FX22: 42 | FY22: 42 | FZ22: 8 | GA22: 22 | GB22: 22 | GC22: 42 | GD22: 8 | GE22: 8 | GF22: 8 | GG22: 8 | GH22: 1 | GI22: 22 | GJ22: 7 | GK22: 1 | GL22: 22 | GM22: 22 | GN22: 21 | GO22: 8 | GP22: 8 | GQ22: 1 | GR22: 22 | GS22: 42 | GT22: 1 | GU22: . | GV22: . | GW22: 22 | GX22: 22 | GY22: 22 | GZ22: 42 | HA22: 8 | HB22: 8 | HC22: 42 | HD22: . | HE22: . | HF22: 5 | HG22: 3 | HH22: 4 | HI22: 1 | HJ22: 2 | HK22: . | HL22: 7 | HM22: 5 | HN22: 3 | HO22: 2 | HP22: 7 | HQ22: 4 | HR22: 6 | HS22: 1 | HT22: 1 | HU22: 2 | HV22: 3
A23: 22_1 | C23: 3.826530612 | D23: 75.40742924 | E23: 17.0951689 | F23: . | G23: . | H23: . | I23: . | J23: . | K23: . | L23: . | M23: . | N23: . | O23: . | P23: . | Q23: . | R23: . | S23: . | T23: . | U23: . | V23: . | W23: . | X23: . | Y23: . | Z23: . | AA23: . | AB23: . | AC23: . | AD23: . | AE23: . | AF23: . | AG23: . | AH23: . | AI23: . | AJ23: . | AK23: . | AL23: . | AM23: . | AN23: . | AO23: . | AP23: . | AQ23: . | AR23: . | AS23: . | AT23: . | AU23: . | AV23: . | AW23: . | AX23: . | AY23: . | AZ23: . | BA23: . | BB23: . | BC23: . | BD23: . | BE23: . | BF23: . | BG23: . | BH23: . | BI23: . | BJ23: . | BK23: . | BL23: . | BM23: . | BN23: . | BO23: . | BP23: . | BQ23: . | BR23: . | BS23: . | BT23: . | BU23: . | BV23: . | BW23: . | BX23: . | BY23: . | BZ23: . | CA23: . | CB23: . | CC23: . | CD23: . | CE23: . | CF23: 38.96753501 | CG23: 11.3512088 | CH23: 41.02221047 | CI23: 74.29919099 | CJ23: 48.73558817 | CK23: 28.97656845 | CL23: 65.7356745 | CM23: 26.16447912 | CN23: 12.61383929 | CO23: 24.36138934 | CP23: 27.89195979 | CQ23: 15.13906091 | CR23: 19.13914839 | CS23: 15.99702381 | CT23: 18.65078886 | CU23: 37.7412823 | CV23: 3.826530612 | CW23: 29.25595238 | CX23: 27.70743375 | CY23: 30.40195082 | CZ23: 35.62406959 | DA23: 52.35998312 | DB23: 27.09734042 | DC23: 10.96938776 | DD23: 42.34500606 | DE23: 53.07686373 | DF23: 19.80695509 | DG23: 20.33244633 | DH23: 40.94732186 | DI23: 40.36137633 | DJ23: 49.52345377 | DK23: 33.20793444 | DL23: 72.50140682 | DM23: 40.95648813 | DN23: 36.76438052 | DO23: 60.99451579 | DP23: 34.62620313 | DQ23: 24.41053023 | DR23: 52.06993401 | DS23: 33.05919813 | DT23: 45.21982103 | DU23: 51.07530174 | DV23: 28.21414299 | DW23: 5.152168804 | DX23: 75.40742924 | DY23: . | DZ23: . | EA23: 43.08073061 | EB23: 35.9614193 | EC23: 21.12633611 | ED23: 59.05269663 | EE23: 38.94927315 | EF23: 36.29777285 | EG23: 23.90496144 | EH23: . | EI23: 35.43183971 | EJ23: 20.195434 | EK23: 32.54870966 | EL23: 38.37639714 | EM23: 47.41559658 | EN23: 34.90738965 | EO23: 35.047767 | EP23: 38.50342011 | EQ23: 32.43685697 | ER23: 36.00480781 | ES23: 39.66044019 | ET23: 20.18912493 | EU23: 34.90738965 | EV23: 27.01010383 | EW23: 44.80139359 | EX23: 48.53514381 | EY23: 39.23897193 | EZ23: 31.05355558 | FA23: . | FB23: 20 | FC23: 49 | FD23: 16 | FE23: 2 | FF23: 12 | FG23: 32 | FH23: 4 | FI23: 37 | FJ23: 48 | FK23: 39 | FL23: 34 | FM23: 47 | FN23: 44 | FO23: 46 | FP23: 45 | FQ23: 22 | FR23: 52 | FS23: 31 | FT23: 35 | FU23: 30 | FV23: 26 | FW23: 8 | FX23: 36 | FY23: 50 | FZ23: 15 | GA23: 7 | GB23: 43 | GC23: 42 | GD23: 18 | GE23: 19 | GF23: 11 | GG23: 28 | GH23: 3 | GI23: 17 | GJ23: 23 | GK23: 5 | GL23: 27 | GM23: 38 | GN23: 9 | GO23: 29 | GP23: 13 | GQ23: 10 | GR23: 33 | GS23: 51 | GT23: 1 | GU23: . | GV23: . | GW23: 14 | GX23: 25 | GY23: 41 | GZ23: 6 | HA23: 21 | HB23: 24 | HC23: 40 | HD23: . | HE23: . | HF23: 5 | HG23: 4 | HH23: 2 | HI23: 1 | HJ23: 3 | HK23: . | HL23: 3 | HM23: 6 | HN23: 4 | HO23: 2 | HP23: 8 | HQ23: 5 | HR23: 7 | HS23: 1 | HT23: 1 | HU23: 2 | HV23: 3
A24: 23_1 | C24: 0 | D24: 100 | E24: 19.87008422 | F24: . | G24: . | H24: . | I24: . | J24: . | K24: . | L24: . | M24: . | N24: . | O24: . | P24: . | Q24: . | R24: . | S24: . | T24: . | U24: . | V24: . | W24: . | X24: . | Y24: . | Z24: . | AA24: . | AB24: . | AC24: . | AD24: . | AE24: . | AF24: . | AG24: . | AH24: . | AI24: . | AJ24: . | AK24: . | AL24: . | AM24: . | AN24: . | AO24: . | AP24: . | AQ24: . | AR24: . | AS24: . | AT24: . | AU24: . | AV24: . | AW24: . | AX24: . | AY24: . | AZ24: . | BA24: . | BB24: . | BC24: . | BD24: . | BE24: . | BF24: . | BG24: . | BH24: . | BI24: . | BJ24: . | BK24: . | BL24: . | BM24: . | BN24: . | BO24: . | BP24: . | BQ24: . | BR24: . | BS24: . | BT24: . | BU24: . | BV24: . | BW24: . | BX24: . | BY24: . | BZ24: . | CA24: . | CB24: . | CC24: . | CD24: . | CE24: . | CF24: 50 | CG24: 40.17857143 | CH24: 66.96428571 | CI24: 100 | CJ24: 73.21428571 | CK24: 53.57142857 | CL24: 87.5 | CM24: 37.67857143 | CN24: 38.05357143 | CO24: 39.28571429 | CP24: 33.92857143 | CQ24: 46.42857143 | CR24: 26.78571429 | CS24: 39.28571429 | CT24: 52.67857143 | CU24: 50 | CV24: 12.5 | CW24: 46.42857143 | CX24: 46.42857143 | CY24: 50 | CZ24: 39.28571429 | DA24: 73.21428571 | DB24: 52.67857143 | DC24: 33.92857143 | DD24: 53.57142857 | DE24: 66.96428571 | DF24: 41.07142857 | DG24: 50 | DH24: 60.71428571 | DI24: 53.57142857 | DJ24: 73.21428571 | DK24: 40.17857143 | DL24: 75 | DM24: 87.5 | DN24: 59.82142857 | DO24: 75 | DP24: 53.57142857 | DQ24: 47.32142857 | DR24: 59.82142857 | DS24: 60.71428571 | DT24: 66.07142857 | DU24: 50 | DV24: 46.42857143 | DW24: 0 | DX24: 87.5 | DY24: . | DZ24: . | EA24: 50 | EB24: 66.96428571 | EC24: 39.28571429 | ED24: 100 | EE24: 59.82142857 | EF24: 47.32142857 | EG24: 19.64285714 | EH24: . | EI24: 53.48248626 | EJ24: 40.49330357 | EK24: 47.56493506 | EL24: 62.94642857 | EM24: 61.30952381 | EN24: 54.70238095 | EO24: 52.24805901 | EP24: 65.53571429 | EQ24: 52.60267857 | ER24: 50.09920635 | ES24: 58.75 | ET24: 41.76964286 | EU24: 54.70238095 | EV24: 43.1547619 | EW24: 59.46428571 | EX24: 61.30952381 | EY24: 55.63214286 | EZ24: 50.92741935 | FA24: . | FB24: 26 | FC24: 39 | FD24: 11 | FE24: 1 | FF24: 8 | FG24: 20 | FH24: 3 | FI24: 46 | FJ24: 45 | FK24: 41 | FL24: 47 | FM24: 34 | FN24: 49 | FO24: 41 | FP24: 24 | FQ24: 26 | FR24: 51 | FS24: 34 | FT24: 34 | FU24: 26 | FV24: 41 | FW24: 8 | FX24: 24 | FY24: 47 | FZ24: 20 | GA24: 11 | GB24: 38 | GC24: 26 | GD24: 15 | GE24: 20 | GF24: 8 | GG24: 39 | GH24: 6 | GI24: 3 | GJ24: 17 | GK24: 6 | GL24: 20 | GM24: 32 | GN24: 17 | GO24: 15 | GP24: 14 | GQ24: 26 | GR24: 34 | GS24: 52 | GT24: 3 | GU24: . | GV24: . | GW24: 26 | GX24: 11 | GY24: 41 | GZ24: 1 | HA24: 17 | HB24: 32 | HC24: 50 | HD24: . | HE24: . | HF24: 5 | HG24: 4 | HH24: 1 | HI24: 2 | HJ24: 3 | HK24: . | HL24: 1 | HM24: 5 | HN24: 6 | HO24: 3 | HP24: 8 | HQ24: 4 | HR24: 7 | HS24: 2 | HT24: 1 | HU24: 2 | HV24: 3
A25: 24_1 | B25: aeeeeeeeeeeeeeeeeeeeeeeeeeeeeeeeeeeeeeeeeeeeeexxeeeeeee | C25: 0 | D25: 100 | E25: 20.40228604 | F25: 1 | G25: 5 | H25: 0.8160914418 | I25: . | J25: 3 | K25: 2.5 | L25: 3.5 | M25: 5 | N25: 4 | O25: 3 | P25: 4 | Q25: 2.3 | R25: 2.33 | S25: 3 | T25: 2 | U25: 3 | V25: 2 | W25: 3 | X25: 3.5 | Y25: 3 | Z25: 1.5 | AA25: 3 | AB25: 3 | AC25: 3 | AD25: 3 | AE25: 4 | AF25: 3.5 | AG25: 2 | AH25: 3 | AI25: 3.5 | AJ25: 2 | AK25: 3 | AL25: 3 | AM25: 3 | AN25: 4 | AO25: 2.5 | AP25: 4 | AQ25: 4.5 | AR25: 3.5 | AS25: 4 | AT25: 3 | AU25: 2.5 | AV25: 3.5 | AW25: 3 | AX25: 4 | AY25: 3 | AZ25: 3 | BA25: 1 | BB25: 4.5 | BC25: . | BD25: . | BE25: 3 | BF25: 3.5 | BG25: 3 | BH25: 5 | BI25: 3.5 | BJ25: 2.5 | BK25: 2 | BL25: . | BM25: . | BN25: . | BO25: . | BP25: . | BQ25: . | BR25: . | BS25: . | BT25: . | BU25: . | BV25: . | BW25: . | BX25: . | BY25: . | BZ25: . | CA25: . | CB25: . | CC25: . | CD25: . | CE25: . | CF25: 50 | CG25: 37.5 | CH25: 62.5 | CI25: 100 | CJ25: 75 | CK25: 50 | CL25: 75 | CM25: 32.5 | CN25: 33.25 | CO25: 50 | CP25: 25 | CQ25: 50 | CR25: 25 | CS25: 50 | CT25: 62.5 | CU25: 50 | CV25: 12.5 | CW25: 50 | CX25: 50 | CY25: 50 | CZ25: 50 | DA25: 75 | DB25: 62.5 | DC25: 25 | DD25: 50 | DE25: 62.5 | DF25: 25 | DG25: 50 | DH25: 50 | DI25: 50 | DJ25: 75 | DK25: 37.5 | DL25: 75 | DM25: 87.5 | DN25: 62.5 | DO25: 75 | DP25: 50 | DQ25: 37.5 | DR25: 62.5 | DS25: 50 | DT25: 75 | DU25: 50 | DV25: 50 | DW25: 0 | DX25: 87.5 | DY25: . | DZ25: . | EA25: 50 | EB25: 62.5 | EC25: 50 | ED25: 100 | EE25: 62.5 | EF25: 37.5 | EG25: 25 | EH25: . | EI25: 52.94711538 | EJ25: 41.03125 | EK25: 47.72727273 | EL25: 62.5 | EM25: 59.375 | EN25: 54.16666667 | EO25: 51.70108696 | EP25: 65 | EQ25: 52.08035714 | ER25: 50 | ES25: 57.5 | ET25: 41.575 | EU25: 54.16666667 | EV25: 45.83333333 | EW25: 58.33333333 | EX25: 54.16666667 | EY25: 55.55 | EZ25: 51.4516129 | FA25: . | FB25: 20 | FC25: 40 | FD25: 12 | FE25: 1 | FF25: 5 | FG25: 20 | FH25: 5 | FI25: 45 | FJ25: 44 | FK25: 20 | FL25: 46 | FM25: 20 | FN25: 46 | FO25: 20 | FP25: 12 | FQ25: 20 | FR25: 51 | FS25: 20 | FT25: 20 | FU25: 20 | FV25: 20 | FW25: 5 | FX25: 12 | FY25: 46 | FZ25: 20 | GA25: 12 | GB25: 46 | GC25: 20 | GD25: 20 | GE25: 20 | GF25: 5 | GG25: 40 | GH25: 5 | GI25: 3 | GJ25: 12 | GK25: 5 | GL25: 20 | GM25: 40 | GN25: 12 | GO25: 20 | GP25: 5 | GQ25: 20 | GR25: 20 | GS25: 52 | GT25: 3 | GU25: . | GV25: . | GW25: 20 | GX25: 12 | GY25: 20 | GZ25: 1 | HA25: 12 | HB25: 40 | HC25: 46 | HD25: . | HE25: . | HF25: 5 | HG25: 4 | HH25: 1 | HI25: 2 | HJ25: 3 | HK25: . | HL25: 1 | HM25: 5 | HN25: 6 | HO25: 3 | HP25: 8 | HQ25: 4 | HR25: 7 | HS25: 2 | HT25: 2 | HU25: 1 | HV25: 3
A26: 25_1 | B26: axeexeeeeeeeeeeexxeexeeeeeeexeeeexxexeeeeexexxxxxeexeee | C26: 14.28571429 | D26: 100 | E26: 17.07226541 | F26: 1.5 | G26: 4.5 | H26: 0.5975292895 | I26: . | J26: . | K26: 2.5 | L26: 3.5 | M26: . | N26: 3.5 | O26: 3 | P26: 4.5 | Q26: 2.5 | R26: 2.5 | S26: 2 | T26: 2.5 | U26: 2.5 | V26: 2 | W26: 2 | X26: 2.5 | Y26: . | Z26: . | AA26: 2.5 | AB26: 2.5 | AC26: . | AD26: 2 | AE26: 3.5 | AF26: 2.5 | AG26: 2.5 | AH26: 3 | AI26: 3.5 | AJ26: 3 | AK26: . | AL26: 3.5 | AM26: 3 | AN26: 3.5 | AO26: 2.5 | AP26: . | AQ26: . | AR26: 3 | AS26: . | AT26: 3 | AU26: 3 | AV26: 3 | AW26: 3.5 | AX26: 3 | AY26: . | AZ26: 2.5 | BA26: . | BB26: . | BC26: . | BD26: . | BE26: . | BF26: 3.5 | BG26: 2 | BH26: . | BI26: 3 | BJ26: 3 | BK26: 1.5 | BL26: . | BM26: . | BN26: . | BO26: . | BP26: . | BQ26: . | BR26: . | BS26: . | BT26: . | BU26: . | BV26: . | BW26: . | BX26: . | BY26: . | BZ26: . | CA26: . | CB26: . | CC26: . | CD26: . | CE26: . | CF26: . | CG26: 42.85714286 | CH26: 71.42857143 | CI26: . | CJ26: 71.42857143 | CK26: 57.14285714 | CL26: 100 | CM26: 42.85714286 | CN26: 42.85714286 | CO26: 28.57142857 | CP26: 42.85714286 | CQ26: 42.85714286 | CR26: 28.57142857 | CS26: 28.57142857 | CT26: 42.85714286 | CU26: . | CV26: . | CW26: 42.85714286 | CX26: 42.85714286 | CY26: . | CZ26: 28.57142857 | DA26: 71.42857143 | DB26: 42.85714286 | DC26: 42.85714286 | DD26: 57.14285714 | DE26: 71.42857143 | DF26: 57.14285714 | DG26: . | DH26: 71.42857143 | DI26: 57.14285714 | DJ26: 71.42857143 | DK26: 42.85714286 | DL26: . | DM26: . | DN26: 57.14285714 | DO26: . | DP26: 57.14285714 | DQ26: 57.14285714 | DR26: 57.14285714 | DS26: 71.42857143 | DT26: 57.14285714 | DU26: . | DV26: 42.85714286 | DW26: . | DX26: . | DY26: . | DZ26: . | EA26: . | EB26: 71.42857143 | EC26: 28.57142857 | ED26: . | EE26: 57.14285714 | EF26: 57.14285714 | EG26: 14.28571429 | EH26: . | EI26: 51.87969925 | EJ26: 42.85714286 | EK26: 52.38095238 | EL26: 42.85714286 | EM26: 53.06122449 | EN26: 55.23809524 | EO26: 52.12355212 | EP26: 42.85714286 | EQ26: 52.17391304 | ER26: 48.35164835 | ES26: 60 | ET26: 44.64285714 | EU26: 55.23809524 | EV26: 48.57142857 | EW26: 52.38095238 | EX26: 71.42857143 | EY26: 52.74725275 | EZ26: 47.61904762 | FA26: . | FB26: . | FC26: 21 | FD26: 2 | FE26: . | FF26: 2 | FG26: 10 | FH26: 1 | FI26: 21 | FJ26: 21 | FK26: 33 | FL26: 21 | FM26: 21 | FN26: 33 | FO26: 33 | FP26: 21 | FQ26: . | FR26: . | FS26: 21 | FT26: 21 | FU26: . | FV26: 33 | FW26: 2 | FX26: 21 | FY26: 21 | FZ26: 10 | GA26: 2 | GB26: 10 | GC26: . | GD26: 2 | GE26: 10 | GF26: 2 | GG26: 21 | GH26: . | GI26: . | GJ26: 10 | GK26: . | GL26: 10 | GM26: 10 | GN26: 10 | GO26: 2 | GP26: 10 | GQ26: . | GR26: 21 | GS26: . | GT26: . | GU26: . | GV26: . | GW26: . | GX26: 2 | GY26: 33 | GZ26: . | HA26: 10 | HB26: 10 | HC26: 38 | HD26: . | HE26: . | HF26: 4 | HG26: 3 | HH26: 4 | HI26: 2 | HJ26: 1 | HK26: . | HL26: 8 | HM26: 4 | HN26: 6 | HO26: 1 | HP26: 7 | HQ26: 2 | HR26: 5 | HS26: 3 | HT26: 1 | HU26: 2 | HV26: 3
A27: 26_1 | C27: 0 | D27: 83.33333333 | E27: 23.84085868 | F27: . | G27: . | H27: . | I27: . | J27: . | K27: . | L27: . | M27: . | N27: . | O27: . | P27: . | Q27: . | R27: . | S27: . | T27: . | U27: . | V27: . | W27: . | X27: . | Y27: . | Z27: . | AA27: . | AB27: . | AC27: . | AD27: . | AE27: . | AF27: . | AG27: . | AH27: . | AI27: . | AJ27: . | AK27: . | AL27: . | AM27: . | AN27: . | AO27: . | AP27: . | AQ27: . | AR27: . | AS27: . | AT27: . | AU27: . | AV27: . | AW27: . | AX27: . | AY27: . | AZ27: . | BA27: . | BB27: . | BC27: . | BD27: . | BE27: . | BF27: . | BG27: . | BH27: . | BI27: . | BJ27: . | BK27: . | BL27: . | BM27: . | BN27: . | BO27: . | BP27: . | BQ27: . | BR27: . | BS27: . | BT27: . | BU27: . | BV27: . | BW27: . | BX27: . | BY27: . | BZ27: . | CA27: . | CB27: . | CC27: . | CD27: . | CE27: . | CF27: 50 | CG27: 0 | CH27: 29.16666667 | CI27: 37.5 | CJ27: 41.66666667 | CK27: 29.16666667 | CL27: 54.16666667 | CM27: 12.5 | CN27: 0 | CO27: 41.66666667 | CP27: 12.5 | CQ27: 0 | CR27: 0 | CS27: 12.5 | CT27: 12.5 | CU27: 12.5 | CV27: 0 | CW27: 0 | CX27: 0 | CY27: 41.66666667 | CZ27: 12.5 | DA27: 50 | DB27: 45.83333333 | DC27: 0 | DD27: 75 | DE27: 25 | DF27: 0 | DG27: 12.5 | DH27: 12.5 | DI27: 41.66666667 | DJ27: 83.33333333 | DK27: 0 | DL27: 66.66666667 | DM27: 25 | DN27: 54.16666667 | DO27: 70.83333333 | DP27: 12.5 | DQ27: 41.66666667 | DR27: 58.33333333 | DS27: 58.33333333 | DT27: 70.83333333 | DU27: 37.5 | DV27: 25 | DW27: 0 | DX27: 54.16666667 | DY27: . | DZ27: . | EA27: 29.16666667 | EB27: 25 | EC27: 12.5 | ED27: 54.16666667 | EE27: 16.66666667 | EF27: 25 | EG27: 50 | EH27: . | EI27: 29.48717949 | EJ27: 20.83333333 | EK27: 24.24242424 | EL27: 25.69444444 | EM27: 38.88888889 | EN27: 31.94444444 | EO27: 29.98188406 | EP27: 28.33333333 | EQ27: 27.97619048 | ER27: 28.00925926 | ES27: 40.83333333 | ET27: 19.58333333 | EU27: 31.94444444 | EV27: 17.36111111 | EW27: 36.11111111 | EX27: 40.27777778 | EY27: 32.77777778 | EZ27: 25.80645161 | FA27: . | FB27: 12 | FC27: 42 | FD27: 23 | FE27: 21 | FF27: 16 | FG27: 23 | FH27: 8 | FI27: 32 | FJ27: 42 | FK27: 16 | FL27: 32 | FM27: 42 | FN27: 42 | FO27: 32 | FP27: 32 | FQ27: 32 | FR27: 42 | FS27: 42 | FT27: 42 | FU27: 16 | FV27: 32 | FW27: 12 | FX27: 15 | FY27: 42 | FZ27: 2 | GA27: 26 | GB27: 42 | GC27: 32 | GD27: 32 | GE27: 16 | GF27: 1 | GG27: 42 | GH27: 5 | GI27: 26 | GJ27: 8 | GK27: 3 | GL27: 32 | GM27: 16 | GN27: 6 | GO27: 6 | GP27: 3 | GQ27: 21 | GR27: 26 | GS27: 42 | GT27: 8 | GU27: . | GV27: . | GW27: 23 | GX27: 26 | GY27: 32 | GZ27: 8 | HA27: 31 | HB27: 26 | HC27: 12 | HD27: . | HE27: . | HF27: 5 | HG27: 4 | HH27: 3 | HI27: 1 | HJ27: 2 | HK27: . | HL27: 4 | HM27: 6 | HN27: 5 | HO27: 1 | HP27: 7 | HQ27: 3 | HR27: 8 | HS27: 2 | HT27: 1 | HU27: 2 | HV27: 3
A28: 27_1 | B28: aeeeeeeeeeeeeeeeeeeeeeeeeeeeeeeeeeeeeeeeeeeeeexxeeeeeee | C28: 0 | D28: 100 | E28: 25.91544953 | F28: 0 | G28: 75 | H28: 19.43658715 | I28: . | J28: 0 | K28: 0 | L28: 25 | M28: 0 | N28: 25 | O28: 25 | P28: 25 | Q28: 0 | R28: 0 | S28: 25 | T28: 0 | U28: 0 | V28: 0 | W28: 0 | X28: 0 | Y28: 0 | Z28: 0 | AA28: 0 | AB28: 0 | AC28: 25 | AD28: 0 | AE28: 0 | AF28: 50 | AG28: 0 | AH28: 75 | AI28: 0 | AJ28: 0 | AK28: 0 | AL28: 0 | AM28: 25 | AN28: 50 | AO28: 0 | AP28: 25 | AQ28: 0 | AR28: 25 | AS28: 50 | AT28: 0 | AU28: 25 | AV28: 50 | AW28: 50 | AX28: 50 | AY28: 0 | AZ28: 0 | BA28: 0 | BB28: 25 | BC28: . | BD28: . | BE28: 25 | BF28: 0 | BG28: 0 | BH28: 25 | BI28: 25 | BJ28: 0 | BK28: 0 | BL28: . | BM28: . | BN28: . | BO28: . | BP28: . | BQ28: . | BR28: . | BS28: . | BT28: . | BU28: . | BV28: . | BW28: . | BX28: . | BY28: . | BZ28: . | CA28: . | CB28: . | CC28: . | CD28: . | CE28: . | CF28: 0 | CG28: 0 | CH28: 33.33333333 | CI28: 0 | CJ28: 33.33333333 | CK28: 33.33333333 | CL28: 33.33333333 | CM28: 0 | CN28: 0 | CO28: 33.33333333 | CP28: 0 | CQ28: 0 | CR28: 0 | CS28: 0 | CT28: 0 | CU28: 0 | CV28: 0 | CW28: 0 | CX28: 0 | CY28: 33.33333333 | CZ28: 0 | DA28: 0 | DB28: 66.66666667 | DC28: 0 | DD28: 100 | DE28: 0 | DF28: 0 | DG28: 0 | DH28: 0 | DI28: 33.33333333 | DJ28: 66.66666667 | DK28: 0 | DL28: 33.33333333 | DM28: 0 | DN28: 33.33333333 | DO28: 66.66666667 | DP28: 0 | DQ28: 33.33333333 | DR28: 66.66666667 | DS28: 66.66666667 | DT28: 66.66666667 | DU28: 0 | DV28: 0 | DW28: 0 | DX28: 33.33333333 | DY28: . | DZ28: . | EA28: 33.33333333 | EB28: 0 | EC28: 0 | ED28: 33.33333333 | EE28: 33.33333333 | EF28: 0 | EG28: 0 | EH28: . | EI28: 18.58974359 | EJ28: 16.66666667 | EK28: 21.21212121 | EL28: 5.555555556 | EM28: 19.44444444 | EN28: 22.22222222 | EO28: 20.28985507 | EP28: 6.666666667 | EQ28: 20.23809524 | ER28: 18.51851852 | ES28: 46.66666667 | ET28: 16.66666667 | EU28: 22.22222222 | EV28: 22.22222222 | EW28: 15.55555556 | EX28: 22.22222222 | EY28: 22.22222222 | EZ28: 16.12903226 | FA28: . | FB28: 22 | FC28: 22 | FD28: 8 | FE28: 22 | FF28: 8 | FG28: 8 | FH28: 8 | FI28: 22 | FJ28: 22 | FK28: 8 | FL28: 22 | FM28: 22 | FN28: 22 | FO28: 22 | FP28: 22 | FQ28: 22 | FR28: 22 | FS28: 22 | FT28: 22 | FU28: 8 | FV28: 22 | FW28: 22 | FX28: 2 | FY28: 22 | FZ28: 1 | GA28: 22 | GB28: 22 | GC28: 22 | GD28: 22 | GE28: 8 | GF28: 2 | GG28: 22 | GH28: 8 | GI28: 22 | GJ28: 8 | GK28: 2 | GL28: 22 | GM28: 8 | GN28: 2 | GO28: 2 | GP28: 2 | GQ28: 22 | GR28: 22 | GS28: 22 | GT28: 8 | GU28: . | GV28: . | GW28: 8 | GX28: 22 | GY28: 22 | GZ28: 8 | HA28: 8 | HB28: 22 | HC28: 22 | HD28: . | HE28: . | HF28: 4 | HG28: 2 | HH28: 5 | HI28: 3 | HJ28: 1 | HK28: . | HL28: 8 | HM28: 4 | HN28: 5 | HO28: 1 | HP28: 6 | HQ28: 2 | HR28: 2 | HS28: 7 | HT28: 1 | HU28: 1 | HV28: 3
A29: 28_1 | B29: aeeeeeeeeeeeeeeeeeeeeeeeeeeeeeeeeeeeeeeeeeeeeexxeeeeeee | C29: 0 | D29: 100 | E29: 31.75960799 | F29: 0 | G29: 100 | H29: 31.75960799 | I29: . | J29: 100 | K29: 0 | L29: 25 | M29: 75 | N29: 50 | O29: 25 | P29: 75 | Q29: 25 | R29: 0 | S29: 50 | T29: 25 | U29: 0 | V29: 0 | W29: 25 | X29: 25 | Y29: 25 | Z29: 0 | AA29: 0 | AB29: 0 | AC29: 50 | AD29: 25 | AE29: 100 | AF29: 25 | AG29: 0 | AH29: 50 | AI29: 50 | AJ29: 0 | AK29: 25 | AL29: 25 | AM29: 50 | AN29: 100 | AO29: 0 | AP29: 100 | AQ29: 50 | AR29: 75 | AS29: 75 | AT29: 25 | AU29: 50 | AV29: 50 | AW29: 50 | AX29: 75 | AY29: 75 | AZ29: 50 | BA29: 0 | BB29: 75 | BC29: . | BD29: . | BE29: 25 | BF29: 50 | BG29: 25 | BH29: 75 | BI29: 0 | BJ29: 50 | BK29: 100 | BL29: . | BM29: . | BN29: . | BO29: . | BP29: . | BQ29: . | BR29: . | BS29: . | BT29: . | BU29: . | BV29: . | BW29: . | BX29: . | BY29: . | BZ29: . | CA29: . | CB29: . | CC29: . | CD29: . | CE29: . | CF29: 100 | CG29: 0 | CH29: 25 | CI29: 75 | CJ29: 50 | CK29: 25 | CL29: 75 | CM29: 25 | CN29: 0 | CO29: 50 | CP29: 25 | CQ29: 0 | CR29: 0 | CS29: 25 | CT29: 25 | CU29: 25 | CV29: 0 | CW29: 0 | CX29: 0 | CY29: 50 | CZ29: 25 | DA29: 100 | DB29: 25 | DC29: 0 | DD29: 50 | DE29: 50 | DF29: 0 | DG29: 25 | DH29: 25 | DI29: 50 | DJ29: 100 | DK29: 0 | DL29: 100 | DM29: 50 | DN29: 75 | DO29: 75 | DP29: 25 | DQ29: 50 | DR29: 50 | DS29: 50 | DT29: 75 | DU29: 75 | DV29: 50 | DW29: 0 | DX29: 75 | DY29: . | DZ29: . | EA29: 25 | EB29: 50 | EC29: 25 | ED29: 75 | EE29: 0 | EF29: 50 | EG29: 100 | EH29: . | EI29: 40.38461538 | EJ29: 25 | EK29: 27.27272727 | EL29: 45.83333333 | EM29: 58.33333333 | EN29: 41.66666667 | EO29: 39.67391304 | EP29: 50 | EQ29: 35.71428571 | ER29: 37.5 | ES29: 35 | ET29: 22.5 | EU29: 41.66666667 | EV29: 12.5 | EW29: 56.66666667 | EX29: 58.33333333 | EY29: 43.33333333 | EZ29: 35.48387097 | FA29: . | FB29: 1 | FC29: 41 | FD29: 27 | FE29: 6 | FF29: 14 | FG29: 27 | FH29: 6 | FI29: 27 | FJ29: 41 | FK29: 14 | FL29: 27 | FM29: 41 | FN29: 41 | FO29: 27 | FP29: 27 | FQ29: 27 | FR29: 41 | FS29: 41 | FT29: 41 | FU29: 14 | FV29: 27 | FW29: 1 | FX29: 27 | FY29: 41 | FZ29: 14 | GA29: 14 | GB29: 41 | GC29: 27 | GD29: 27 | GE29: 14 | GF29: 1 | GG29: 41 | GH29: 1 | GI29: 14 | GJ29: 6 | GK29: 6 | GL29: 27 | GM29: 14 | GN29: 14 | GO29: 14 | GP29: 6 | GQ29: 6 | GR29: 14 | GS29: 41 | GT29: 6 | GU29: . | GV29: . | GW29: 27 | GX29: 14 | GY29: 27 | GZ29: 6 | HA29: 41 | HB29: 14 | HC29: 1 | HD29: . | HE29: . | HF29: 5 | HG29: 4 | HH29: 2 | HI29: 1 | HJ29: 3 | HK29: . | HL29: 2 | HM29: 5 | HN29: 4 | HO29: 6 | HP29: 7 | HQ29: 3 | HR29: 8 | HS29: 1 | HT29: 1 | HU29: 2 | HV29: 3
A30: 29_1 | B30: aeeeeeeeeeeeeeeeeeeeeeeeeeeeeeeeeeeeeeeeeeeeeexxeeeeeee | C30: 0 | D30: 77.83117577 | E30: 17.36653393 | F30: 0 | G30: 0.5393 | H30: 0.1203344502 | I30: . | J30: 0.38427 | K30: 0.2096 | L30: 0.29257 | M30: 0.2227 | N30: 0.1703 | O30: 0.1572 | P30: 0.131 | Q30: 0.14847 | R30: 0 | S30: 0 | T30: 0.03056 | U30: 0.03493 | V30: 0 | W30: 0 | X30: 0.01746 | Y30: 0.03493 | Z30: 0 | AA30: 0 | AB30: 0.03056 | AC30: 0.0131 | AD30: 0.1048 | AE30: 0.08296 | AF30: 0.01746 | AG30: 0 | AH30: 0.1572 | AI30: 0.26855 | AJ30: 0 | AK30: 0 | AL30: 0.0917 | AM30: 0.04366 | AN30: 0.04366 | AO30: 0.05676 | AP30: 0.44759 | AQ30: 0.2358 | AR30: 0.1441 | AS30: 0.15283 | AT30: 0.0131 | AU30: 0.08296 | AV30: 0.14847 | AW30: 0.0131 | AX30: 0.20524 | AY30: 0.18777 | AZ30: 0.04366 | BA30: 0.04803 | BB30: 0.5393 | BC30: . | BD30: . | BE30: 0.0786 | BF30: 0.13973 | BG30: 0.06986 | BH30: 0.17903 | BI30: 0.27947 | BJ30: 0.12663 | BK30: 0.06113 | BL30: . | BM30: . | BN30: . | BO30: . | BP30: . | BQ30: . | BR30: . | BS30: . | BT30: . | BU30: . | BV30: . | BW30: . | BX30: . | BY30: . | BZ30: . | CA30: . | CB30: . | CC30: . | CD30: . | CE30: . | CF30: 55.45741871 | CG30: 30.24923872 | CH30: 42.22337677 | CI30: 32.13981614 | CJ30: 24.57750646 | CK30: 22.68692904 | CL30: 18.9057742 | CM30: 21.42702515 | CN30: 0 | CO30: 0 | CP30: 4.410385187 | CQ30: 5.041058723 | CR30: 0 | CS30: 0 | CT30: 2.519807767 | CU30: 5.041058723 | CV30: 0 | CW30: 0 | CX30: 4.410385187 | CY30: 1.89057742 | CZ30: 15.12461936 | DA30: 11.97269487 | DB30: 2.519807767 | DC30: 0 | DD30: 22.68692904 | DE30: 38.75683711 | DF30: 0 | DG30: 0 | DH30: 13.23404194 | DI30: 6.300962607 | DJ30: 6.300962607 | DK30: 8.191540027 | DL30: 64.59569064 | DM30: 34.03039356 | DN30: 20.79635162 | DO30: 22.0562555 | DP30: 1.89057742 | DQ30: 11.97269487 | DR30: 21.42702515 | DS30: 1.89057742 | DT30: 29.62000837 | DU30: 27.09875741 | DV30: 6.300962607 | DW30: 6.931636143 | DX30: 77.83117577 | DY30: . | DZ30: . | EA30: 11.34346452 | EB30: 20.16567808 | EC30: 10.08211745 | ED30: 25.83741034 | EE30: 40.33279935 | EF30: 18.27510066 | EG30: 8.822213563 | EH30: . | EI30: 16.48787777 | EJ30: 3.78115484 | EK30: 15.69730294 | EL30: 21.42630356 | EM30: 28.70009573 | EN30: 12.09940685 | EO30: 15.84373527 | EP30: 24.70335253 | EQ30: 10.46538718 | ER30: 15.17697504 | ES30: 25.45987213 | ET30: 8.318540647 | EU30: 12.09940685 | EV30: 12.81359291 | EW30: 26.11103895 | EX30: 21.68920447 | EY30: 15.81763865 | EZ30: 15.80547862 | FA30: . | FB30: 3 | FC30: 9 | FD30: 4 | FE30: 8 | FF30: 13 | FG30: 14 | FH30: 21 | FI30: 17 | FJ30: 44 | FK30: 44 | FL30: 37 | FM30: 35 | FN30: 44 | FO30: 44 | FP30: 39 | FQ30: 35 | FR30: 44 | FS30: 44 | FT30: 37 | FU30: 41 | FV30: 23 | FW30: 25 | FX30: 39 | FY30: 44 | FZ30: 14 | GA30: 6 | GB30: 44 | GC30: 44 | GD30: 24 | GE30: 32 | GF30: 32 | GG30: 30 | GH30: 2 | GI30: 7 | GJ30: 19 | GK30: 16 | GL30: 41 | GM30: 25 | GN30: 17 | GO30: 41 | GP30: 10 | GQ30: 11 | GR30: 32 | GS30: 31 | GT30: 1 | GU30: . | GV30: . | GW30: 27 | GX30: 20 | GY30: 28 | GZ30: 12 | HA30: 5 | HB30: 22 | HC30: 29 | HD30: . | HE30: . | HF30: 5 | HG30: 3 | HH30: 2 | HI30: 1 | HJ30: 4 | HK30: . | HL30: 3 | HM30: 7 | HN30: 4 | HO30: 2 | HP30: 8 | HQ30: 6 | HR30: 5 | HS30: 1 | HT30: 1 | HU30: 2 | HV30: 3
A31: 30_1 | B31: aaaaaaaeaaaaaaaaaaaaaaaaaaaaaaaaaeaaaaaaaaaaaaxxaaaaaaa | C31: 14.28571429 | D31: 85.71428571 | E31: 21.0590856 | F31: 0.125 | G31: 0.75 | H31: 0.184266999 | I31: . | J31: 0.25 | K31: 0.125 | L31: 0.25 | M31: 0.75 | N31: 0.625 | O31: 0.125 | P31: 0.5 | Q31: 0.125 | R31: 0.125 | S31: 0.25 | T31: 0.25 | U31: 0.25 | V31: 0.375 | W31: 0.125 | X31: 0.375 | Y31: 0.375 | Z31: 0.125 | AA31: 0.625 | AB31: 0.25 | AC31: 0.5 | AD31: 0.375 | AE31: 0.625 | AF31: 0.25 | AG31: 0.375 | AH31: 0.25 | AI31: 0.375 | AJ31: 0.125 | AK31: 0.375 | AL31: 0.5 | AM31: 0.5 | AN31: 0.375 | AO31: 0.5 | AP31: 0.625 | AQ31: 0.5 | AR31: 0.25 | AS31: 0.75 | AT31: 0.25 | AU31: 0.25 | AV31: 0.25 | AW31: 0.5 | AX31: 0.5 | AY31: 0.75 | AZ31: 0.25 | BA31: 0.125 | BB31: 0.75 | BC31: . | BD31: . | BE31: 0.5 | BF31: 0.25 | BG31: 0.375 | BH31: 0.5 | BI31: 0.25 | BJ31: 0.25 | BK31: 0.25 | BL31: . | BM31: . | BN31: . | BO31: . | BP31: . | BQ31: . | BR31: . | BS31: . | BT31: . | BU31: . | BV31: . | BW31: . | BX31: . | BY31: . | BZ31: . | CA31: . | CB31: . | CC31: . | CD31: . | CE31: . | CF31: 28.57142857 | CG31: 14.28571429 | CH31: 28.57142857 | CI31: 85.71428571 | CJ31: 71.42857143 | CK31: 14.28571429 | CL31: 57.14285714 | CM31: 14.28571429 | CN31: 14.28571429 | CO31: 28.57142857 | CP31: 28.57142857 | CQ31: 28.57142857 | CR31: 42.85714286 | CS31: 14.28571429 | CT31: 42.85714286 | CU31: 42.85714286 | CV31: 14.28571429 | CW31: 71.42857143 | CX31: 28.57142857 | CY31: 57.14285714 | CZ31: 42.85714286 | DA31: 71.42857143 | DB31: 28.57142857 | DC31: 42.85714286 | DD31: 28.57142857 | DE31: 42.85714286 | DF31: 14.28571429 | DG31: 42.85714286 | DH31: 57.14285714 | DI31: 57.14285714 | DJ31: 42.85714286 | DK31: 57.14285714 | DL31: 71.42857143 | DM31: 57.14285714 | DN31: 28.57142857 | DO31: 85.71428571 | DP31: 28.57142857 | DQ31: 28.57142857 | DR31: 28.57142857 | DS31: 57.14285714 | DT31: 57.14285714 | DU31: 85.71428571 | DV31: 28.57142857 | DW31: 14.28571429 | DX31: 85.71428571 | DY31: . | DZ31: . | EA31: 57.14285714 | EB31: 28.57142857 | EC31: 42.85714286 | ED31: 57.14285714 | EE31: 28.57142857 | EF31: 28.57142857 | EG31: 28.57142857 | EH31: . | EI31: 42.03296703 | EJ31: 28.57142857 | EK31: 36.36363636 | EL31: 47.61904762 | EM31: 53.57142857 | EN31: 41.9047619 | EO31: 41.30434783 | EP31: 48.57142857 | EQ31: 41.83673469 | ER31: 42.06349206 | ES31: 25.71428571 | ET31: 25.71428571 | EU31: 41.9047619 | EV31: 35.71428571 | EW31: 51.42857143 | EX31: 59.52380952 | EY31: 39.04761905 | EZ31: 40.0921659 | FA31: . | FB31: 28 | FC31: 45 | FD31: 28 | FE31: 1 | FF31: 5 | FG31: 45 | FH31: 9 | FI31: 45 | FJ31: 45 | FK31: 28 | FL31: 28 | FM31: 28 | FN31: 19 | FO31: 45 | FP31: 19 | FQ31: 19 | FR31: 45 | FS31: 5 | FT31: 28 | FU31: 9 | FV31: 19 | FW31: 5 | FX31: 28 | FY31: 19 | FZ31: 28 | GA31: 19 | GB31: 45 | GC31: 19 | GD31: 9 | GE31: 9 | GF31: 19 | GG31: 9 | GH31: 5 | GI31: 9 | GJ31: 28 | GK31: 1 | GL31: 28 | GM31: 28 | GN31: 28 | GO31: 9 | GP31: 9 | GQ31: 1 | GR31: 28 | GS31: 45 | GT31: 1 | GU31: . | GV31: . | GW31: 9 | GX31: 28 | GY31: 19 | GZ31: 9 | HA31: 28 | HB31: 28 | HC31: 28 | HD31: . | HE31: . | HF31: 5 | HG31: 4 | HH31: 2 | HI31: 1 | HJ31: 3 | HK31: . | HL31: 2 | HM31: 5 | HN31: 3 | HO31: 7 | HP31: 7 | HQ31: 4 | HR31: 6 | HS31: 1 | HT31: 1 | HU31: 3 | HV31: 2
A32: 31_1 | B32: aeeeeeeeeeeeeeeeeeeeeeeeeeeeeeeeeeeeeeeeeeeeeexxeeeeeee | C32: 0 | D32: 100 | E32: 27.38107885 | F32: 0 | G32: 100 | H32: 27.38107885 | I32: . | J32: 40 | K32: 0 | L32: 40 | M32: 100 | N32: 40 | O32: 20 | P32: 100 | Q32: 40 | R32: 20 | S32: 20 | T32: 20 | U32: 0 | V32: 20 | W32: 0 | X32: 20 | Y32: 40 | Z32: 0 | AA32: 40 | AB32: 40 | AC32: 40 | AD32: 40 | AE32: 60 | AF32: 6.666666667 | AG32: 0 | AH32: 20 | AI32: 80 | AJ32: 0 | AK32: 0 | AL32: 40 | AM32: 20 | AN32: 60 | AO32: 60 | AP32: 80 | AQ32: 40 | AR32: 40 | AS32: 80 | AT32: 40 | AU32: 0 | AV32: 60 | AW32: 20 | AX32: 40 | AY32: 60 | AZ32: 0 | BA32: 20 | BB32: 80 | BC32: . | BD32: . | BE32: 80 | BF32: 40 | BG32: 0 | BH32: 60 | BI32: 40 | BJ32: 40 | BK32: 20 | BL32: . | BM32: . | BN32: . | BO32: . | BP32: . | BQ32: . | BR32: . | BS32: . | BT32: . | BU32: . | BV32: . | BW32: . | BX32: . | BY32: . | BZ32: . | CA32: . | CB32: . | CC32: . | CD32: . | CE32: . | CF32: 40 | CG32: 0 | CH32: 40 | CI32: 100 | CJ32: 40 | CK32: 20 | CL32: 100 | CM32: 40 | CN32: 20 | CO32: 20 | CP32: 20 | CQ32: 0 | CR32: 20 | CS32: 0 | CT32: 20 | CU32: 40 | CV32: 0 | CW32: 40 | CX32: 40 | CY32: 40 | CZ32: 40 | DA32: 60 | DB32: 6.666666667 | DC32: 0 | DD32: 20 | DE32: 80 | DF32: 0 | DG32: 0 | DH32: 40 | DI32: 20 | DJ32: 60 | DK32: 60 | DL32: 80 | DM32: 40 | DN32: 40 | DO32: 80 | DP32: 40 | DQ32: 0 | DR32: 60 | DS32: 20 | DT32: 40 | DU32: 60 | DV32: 0 | DW32: 20 | DX32: 80 | DY32: . | DZ32: . | EA32: 80 | EB32: 40 | EC32: 0 | ED32: 60 | EE32: 40 | EF32: 40 | EG32: 20 | EH32: . | EI32: 35.8974359 | EJ32: 17.5 | EK32: 34.54545455 | EL32: 40 | EM32: 55 | EN32: 29.77777778 | EO32: 35.36231884 | EP32: 40 | EQ32: 29.52380952 | ER32: 35.55555556 | ES32: 36 | ET32: 16 | EU32: 29.77777778 | EV32: 30 | EW32: 50.66666667 | EX32: 53.33333333 | EY32: 45.33333333 | EZ32: 27.95698925 | FA32: . | FB32: 14 | FC32: 43 | FD32: 14 | FE32: 1 | FF32: 14 | FG32: 31 | FH32: 1 | FI32: 14 | FJ32: 31 | FK32: 31 | FL32: 31 | FM32: 43 | FN32: 31 | FO32: 43 | FP32: 31 | FQ32: 14 | FR32: 43 | FS32: 14 | FT32: 14 | FU32: 14 | FV32: 14 | FW32: 8 | FX32: 42 | FY32: 43 | FZ32: 31 | GA32: 3 | GB32: 43 | GC32: 43 | GD32: 14 | GE32: 31 | GF32: 8 | GG32: 8 | GH32: 3 | GI32: 14 | GJ32: 14 | GK32: 3 | GL32: 14 | GM32: 43 | GN32: 8 | GO32: 31 | GP32: 14 | GQ32: 8 | GR32: 43 | GS32: 31 | GT32: 3 | GU32: . | GV32: . | GW32: 3 | GX32: 14 | GY32: 43 | GZ32: 8 | HA32: 14 | HB32: 14 | HC32: 31 | HD32: . | HE32: . | HF32: 5 | HG32: 3 | HH32: 2 | HI32: 1 | HJ32: 4 | HK32: . | HL32: 2 | HM32: 7 | HN32: 4 | HO32: 3 | HP32: 8 | HQ32: 6 | HR32: 5 | HS32: 1 | HT32: 1 | HU32: 2 | HV32: 3
A33: 32_1 | B33: aeeeeeeeexexxexxexxeeeeexeeeeeeeeeeeexeexeeexexxeexeeee | C33: 2.823932609 | D33: 100 | E33: 22.03952443 | F33: 1.698065807 | G33: 5.695448 | H33: 0.9066059666 | I33: . | J33: 3.144576105 | K33: 2.299607 | L33: 1.890921148 | M33: 4.530160662 | N33: 3.085106383 | O33: 2.4 | P33: 4.488949 | Q33: 1.829437656 | R33: . | S33: 1.698065807 | T33: . | U33: . | V33: 1.992863 | W33: . | X33: . | Y33: 3.834049103 | Z33: . | AA33: . | AB33: 3.352855837 | AC33: 2.713765 | AD33: 3.373697401 | AE33: 3.045365 | AF33: 2.817072 | AG33: . | AH33: 2.23180437 | AI33: 3.136986301 | AJ33: 4.433989 | AK33: 3.0125 | AL33: 2.749618154 | AM33: 3.98339 | AN33: 2.767215508 | AO33: 3.15 | AP33: 3.768460111 | AQ33: 2.999386868 | AR33: 2.591668928 | AS33: 3.217099477 | AT33: . | AU33: 2.499445355 | AV33: 5.695448 | AW33: . | AX33: 2.139240506 | AY33: 3.911103 | AZ33: 2.806471 | BA33: . | BB33: 3.78568421 | BC33: . | BD33: . | BE33: 2.966502 | BF33: 3.373212245 | BG33: . | BH33: 5.001774958 | BI33: 2.009267808 | BJ33: 2.106382979 | BK33: 2.488392857 | BL33: . | BM33: . | BN33: . | BO33: . | BP33: . | BQ33: . | BR33: . | BS33: . | BT33: . | BU33: . | BV33: . | BW33: . | BX33: . | BY33: . | BZ33: . | CA33: . | CB33: . | CC33: . | CD33: . | CE33: . | CF33: 37.98849165 | CG33: 17.44735481 | CH33: 7.512231768 | CI33: 71.67195042 | CJ33: 36.54278709 | CK33: 19.88790126 | CL33: 70.67009796 | CM33: 6.0175726 | CN33: . | CO33: 2.823932609 | CP33: . | CQ33: . | CR33: 9.990430704 | CS33: . | CT33: . | CU33: 54.7495296 | CV33: . | CW33: . | CX33: 43.05175664 | CY33: 27.51550535 | CZ33: 43.55841354 | DA33: 35.57667699 | DB33: 30.02689093 | DC33: . | DD33: 15.79907786 | DE33: 37.80398409 | DF33: 69.3340244 | DG33: 34.77773125 | DH33: 28.38709288 | DI33: 58.37999582 | DJ33: 28.81488326 | DK33: 38.12034615 | DL33: 53.15506602 | DM33: 34.45895198 | DN33: 24.54735882 | DO33: 39.7515295 | DP33: . | DQ33: 22.30541053 | DR33: 100 | DS33: . | DT33: 13.54885713 | DU33: 56.62270416 | DV33: 29.7691814 | DW33: . | DX33: 53.5737826 | DY33: . | DZ33: . | EA33: 33.65952325 | EB33: 43.54661944 | EC33: . | ED33: 83.13685931 | EE33: 10.38923039 | EF33: 12.75009305 | EG33: 22.03672512 | EH33: . | EI33: 36.49251381 | EJ33: 12.11900352 | EK33: 41.32818425 | EL33: 47.20531832 | EM33: 37.7637047 | EN33: 33.13749048 | EO33: 34.60201889 | EP33: 45.69647607 | EQ33: 34.81664813 | ER33: 38.83188766 | ES33: 37.92456579 | ET33: 14.73845333 | EU33: 33.13749048 | EV33: 23.08002163 | EW33: 39.52384143 | EX33: 52.20874025 | EY33: 36.75482792 | EZ33: 33.61099254 | FA33: . | FB33: 16 | FC33: 32 | FD33: 38 | FE33: 3 | FF33: 18 | FG33: 31 | FH33: 4 | FI33: 39 | FJ33: . | FK33: 40 | FL33: . | FM33: . | FN33: 37 | FO33: . | FP33: . | FQ33: 8 | FR33: . | FS33: . | FT33: 13 | FU33: 27 | FV33: 11 | FW33: 19 | FX33: 23 | FY33: . | FZ33: 33 | GA33: 17 | GB33: 5 | GC33: 20 | GD33: 26 | GE33: 6 | GF33: 25 | GG33: 15 | GH33: 10 | GI33: 21 | GJ33: 28 | GK33: 14 | GL33: . | GM33: 29 | GN33: 1 | GO33: . | GP33: 34 | GQ33: 7 | GR33: 24 | GS33: . | GT33: 9 | GU33: . | GV33: . | GW33: 22 | GX33: 12 | GY33: . | GZ33: 2 | HA33: 36 | HB33: 35 | HC33: 30 | HD33: . | HE33: . | HF33: 5 | HG33: 2 | HH33: 1 | HI33: 3 | HJ33: 4 | HK33: . | HL33: 1 | HM33: 5 | HN33: 3 | HO33: 4 | HP33: 8 | HQ33: 6 | HR33: 7 | HS33: 2 | HT33: 1 | HU33: 2 | HV33: 3
A34: 33_1 | B34: aeeeeeeeeeeeeeeeeeeeeeeeeeeeeeeeeeeeeeeeeeeeeexxeeeeeee | C34: 0 | D34: 100 | E34: 24.34623652 | F34: 0 | G34: 100 | H34: 24.34623652 | I34: . | J34: 33.33333333 | K34: 0 | L34: 33.33333333 | M34: 66.66666667 | N34: 33.33333333 | O34: 33.33333333 | P34: 100 | Q34: 0 | R34: 0 | S34: 33.33333333 | T34: 33.33333333 | U34: 0 | V34: 33.33333333 | W34: 33.33333333 | X34: 0 | Y34: 66.66666667 | Z34: 0 | AA34: 33.33333333 | AB34: 33.33333333 | AC34: 0 | AD34: 66.66666667 | AE34: 33.33333333 | AF34: 22.22222222 | AG34: 0 | AH34: 33.33333333 | AI34: 66.66666667 | AJ34: 0 | AK34: 0 | AL34: 33.33333333 | AM34: 33.33333333 | AN34: 33.33333333 | AO34: 66.66666667 | AP34: 66.66666667 | AQ34: 33.33333333 | AR34: 33.33333333 | AS34: 66.66666667 | AT34: 33.33333333 | AU34: 0 | AV34: 33.33333333 | AW34: 33.33333333 | AX34: 33.33333333 | AY34: 66.66666667 | AZ34: 0 | BA34: 0 | BB34: 66.66666667 | BC34: . | BD34: . | BE34: 33.33333333 | BF34: 33.33333333 | BG34: 50 | BH34: 33.33333333 | BI34: 33.33333333 | BJ34: 33.33333333 | BK34: 0 | BL34: . | BM34: . | BN34: . | BO34: . | BP34: . | BQ34: . | BR34: . | BS34: . | BT34: . | BU34: . | BV34: . | BW34: . | BX34: . | BY34: . | BZ34: . | CA34: . | CB34: . | CC34: . | CD34: . | CE34: . | CF34: 33.33333333 | CG34: 0 | CH34: 33.33333333 | CI34: 66.66666667 | CJ34: 33.33333333 | CK34: 33.33333333 | CL34: 100 | CM34: 0 | CN34: 0 | CO34: 33.33333333 | CP34: 33.33333333 | CQ34: 0 | CR34: 33.33333333 | CS34: 33.33333333 | CT34: 0 | CU34: 66.66666667 | CV34: 0 | CW34: 33.33333333 | CX34: 33.33333333 | CY34: 0 | CZ34: 66.66666667 | DA34: 33.33333333 | DB34: 22.22222222 | DC34: 0 | DD34: 33.33333333 | DE34: 66.66666667 | DF34: 0 | DG34: 0 | DH34: 33.33333333 | DI34: 33.33333333 | DJ34: 33.33333333 | DK34: 66.66666667 | DL34: 66.66666667 | DM34: 33.33333333 | DN34: 33.33333333 | DO34: 66.66666667 | DP34: 33.33333333 | DQ34: 0 | DR34: 33.33333333 | DS34: 33.33333333 | DT34: 33.33333333 | DU34: 66.66666667 | DV34: 0 | DW34: 0 | DX34: 66.66666667 | DY34: . | DZ34: . | EA34: 33.33333333 | EB34: 33.33333333 | EC34: 50 | ED34: 33.33333333 | EE34: 33.33333333 | EF34: 33.33333333 | EG34: 0 | EH34: . | EI34: 31.51709402 | EJ34: 12.5 | EK34: 30.3030303 | EL34: 38.88888889 | EM34: 41.66666667 | EN34: 31.48148148 | EO34: 30.55555556 | EP34: 33.33333333 | EQ34: 29.96031746 | ER34: 33.33333333 | ES34: 33.33333333 | ET34: 13.33333333 | EU34: 31.48148148 | EV34: 22.22222222 | EW34: 42.22222222 | EX34: 55.55555556 | EY34: 33.33333333 | EZ34: 25.98566308 | FA34: . | FB34: 12 | FC34: 39 | FD34: 12 | FE34: 2 | FF34: 12 | FG34: 12 | FH34: 1 | FI34: 39 | FJ34: 39 | FK34: 12 | FL34: 12 | FM34: 39 | FN34: 12 | FO34: 12 | FP34: 39 | FQ34: 2 | FR34: 39 | FS34: 12 | FT34: 12 | FU34: 39 | FV34: 2 | FW34: 12 | FX34: 38 | FY34: 39 | FZ34: 12 | GA34: 2 | GB34: 39 | GC34: 39 | GD34: 12 | GE34: 12 | GF34: 12 | GG34: 2 | GH34: 2 | GI34: 12 | GJ34: 12 | GK34: 2 | GL34: 12 | GM34: 39 | GN34: 12 | GO34: 12 | GP34: 12 | GQ34: 2 | GR34: 39 | GS34: 39 | GT34: 2 | GU34: . | GV34: . | GW34: 12 | GX34: 12 | GY34: 11 | GZ34: 12 | HA34: 12 | HB34: 12 | HC34: 39 | HD34: . | HE34: . | HF34: 5 | HG34: 4 | HH34: 2 | HI34: 1 | HJ34: 3 | HK34: . | HL34: 2 | HM34: 6 | HN34: 2 | HO34: 2 | HP34: 8 | HQ34: 5 | HR34: 7 | HS34: 1 | HT34: 1 | HU34: 2 | HV34: 3
A35: 34_1 | C35: 0 | D35: 87.5 | E35: 27.21607163 | F35: . | G35: . | H35: . | I35: . | J35: . | K35: . | L35: . | M35: . | N35: . | O35: . | P35: . | Q35: . | R35: . | S35: . | T35: . | U35: . | V35: . | W35: . | X35: . | Y35: . | Z35: . | AA35: . | AB35: . | AC35: . | AD35: . | AE35: . | AF35: . | AG35: . | AH35: . | AI35: . | AJ35: . | AK35: . | AL35: . | AM35: . | AN35: . | AO35: . | AP35: . | AQ35: . | AR35: . | AS35: . | AT35: . | AU35: . | AV35: . | AW35: . | AX35: . | AY35: . | AZ35: . | BA35: . | BB35: . | BC35: . | BD35: . | BE35: . | BF35: . | BG35: . | BH35: . | BI35: . | BJ35: . | BK35: . | BL35: . | BM35: . | BN35: . | BO35: . | BP35: . | BQ35: . | BR35: . | BS35: . | BT35: . | BU35: . | BV35: . | BW35: . | BX35: . | BY35: . | BZ35: . | CA35: . | CB35: . | CC35: . | CD35: . | CE35: . | CF35: 12.5 | CG35: 0 | CH35: 50 | CI35: 75 | CJ35: 75 | CK35: 25 | CL35: 37.5 | CM35: 75 | CN35: 0 | CO35: 25 | CP35: 62.5 | CQ35: 12.5 | CR35: 25 | CS35: 0 | CT35: 0 | CU35: 25 | CV35: 0 | CW35: 0 | CX35: 25 | CY35: 25 | CZ35: 25 | DA35: 50 | DB35: 12.5 | DC35: 0 | DD35: 75 | DE35: 62.5 | DF35: 25 | DG35: 0 | DH35: 37.5 | DI35: 50 | DJ35: 75 | DK35: 0 | DL35: 75 | DM35: 0 | DN35: 12.5 | DO35: 37.5 | DP35: 50 | DQ35: 25 | DR35: 50 | DS35: 0 | DT35: 25 | DU35: 25 | DV35: 75 | DW35: 0 | DX35: 87.5 | DY35: . | DZ35: . | EA35: 50 | EB35: 37.5 | EC35: 0 | ED35: 75 | EE35: 50 | EF35: 50 | EG35: 37.5 | EH35: . | EI35: 33.17307692 | EJ35: 17.1875 | EK35: 31.81818182 | EL35: 18.75 | EM35: 47.91666667 | EN35: 36.66666667 | EO35: 35.05434783 | EP35: 17.5 | EQ35: 29.01785714 | ER35: 35.41666667 | ES35: 47.5 | ET35: 16.25 | EU35: 36.66666667 | EV35: 25 | EW35: 42.5 | EX35: 39.58333333 | EY35: 46.66666667 | EZ35: 25.40322581 | FA35: . | FB35: 36 | FC35: 40 | FD35: 12 | FE35: 2 | FF35: 2 | FG35: 25 | FH35: 20 | FI35: 2 | FJ35: 40 | FK35: 25 | FL35: 10 | FM35: 36 | FN35: 25 | FO35: 40 | FP35: 40 | FQ35: 25 | FR35: 40 | FS35: 40 | FT35: 25 | FU35: 25 | FV35: 25 | FW35: 12 | FX35: 36 | FY35: 40 | FZ35: 2 | GA35: 10 | GB35: 25 | GC35: 40 | GD35: 20 | GE35: 12 | GF35: 2 | GG35: 40 | GH35: 2 | GI35: 40 | GJ35: 36 | GK35: 20 | GL35: 12 | GM35: 25 | GN35: 12 | GO35: 40 | GP35: 25 | GQ35: 25 | GR35: 2 | GS35: 40 | GT35: 1 | GU35: . | GV35: . | GW35: 12 | GX35: 20 | GY35: 40 | GZ35: 2 | HA35: 12 | HB35: 12 | HC35: 20 | HD35: . | HE35: . | HF35: 5 | HG35: 3 | HH35: 4 | HI35: 1 | HJ35: 2 | HK35: . | HL35: 7 | HM35: 5 | HN35: 4 | HO35: 1 | HP35: 8 | HQ35: 3 | HR35: 6 | HS35: 2 | HT35: 2 | HU35: 1 | HV35: 3
A36: 35_1 | B36: aeeeeeeeeeeeeeeeeeeeeeeeeeeeeeeeeeeeeeeeeeeeeexxeeeeeee | C36: 0 | D36: 100 | E36: 27.61579215 | F36: 0 | G36: 100 | H36: 27.61579215 | I36: . | J36: 25 | K36: 0 | L36: 25 | M36: 75 | N36: 75 | O36: 25 | P36: 25 | Q36: 50 | R36: 0 | S36: 25 | T36: 50 | U36: 25 | V36: 25 | W36: 0 | X36: 0 | Y36: 25 | Z36: 0 | AA36: 0 | AB36: 50 | AC36: 0 | AD36: 25 | AE36: 50 | AF36: 25 | AG36: 0 | AH36: 50 | AI36: 50 | AJ36: 0 | AK36: 0 | AL36: 50 | AM36: 50 | AN36: 100 | AO36: 0 | AP36: 75 | AQ36: 0 | AR36: 25 | AS36: 50 | AT36: 50 | AU36: 50 | AV36: 50 | AW36: 0 | AX36: 0 | AY36: 0 | AZ36: 50 | BA36: 0 | BB36: 100 | BC36: . | BD36: . | BE36: 50 | BF36: 50 | BG36: 0 | BH36: 50 | BI36: 50 | BJ36: 50 | BK36: 50 | BL36: . | BM36: . | BN36: . | BO36: . | BP36: . | BQ36: . | BR36: . | BS36: . | BT36: . | BU36: . | BV36: . | BW36: . | BX36: . | BY36: . | BZ36: . | CA36: . | CB36: . | CC36: . | CD36: . | CE36: . | CF36: 25 | CG36: 0 | CH36: 25 | CI36: 75 | CJ36: 75 | CK36: 25 | CL36: 25 | CM36: 50 | CN36: 0 | CO36: 25 | CP36: 50 | CQ36: 25 | CR36: 25 | CS36: 0 | CT36: 0 | CU36: 25 | CV36: 0 | CW36: 0 | CX36: 50 | CY36: 0 | CZ36: 25 | DA36: 50 | DB36: 25 | DC36: 0 | DD36: 50 | DE36: 50 | DF36: 0 | DG36: 0 | DH36: 50 | DI36: 50 | DJ36: 100 | DK36: 0 | DL36: 75 | DM36: 0 | DN36: 25 | DO36: 50 | DP36: 50 | DQ36: 50 | DR36: 50 | DS36: 0 | DT36: 0 | DU36: 0 | DV36: 50 | DW36: 0 | DX36: 100 | DY36: . | DZ36: . | EA36: 50 | EB36: 50 | EC36: 0 | ED36: 50 | EE36: 50 | EF36: 50 | EG36: 50 | EH36: . | EI36: 31.73076923 | EJ36: 12.5 | EK36: 29.54545455 | EL36: 16.66666667 | EM36: 52.08333333 | EN36: 33.33333333 | EO36: 33.69565217 | EP36: 15 | EQ36: 25 | ER36: 34.72222222 | ES36: 45 | ET36: 12.5 | EU36: 33.33333333 | EV36: 25 | EW36: 45 | EX36: 33.33333333 | EY36: 50 | EZ36: 22.58064516 | FA36: . | FB36: 25 | FC36: 36 | FD36: 25 | FE36: 3 | FF36: 3 | FG36: 25 | FH36: 25 | FI36: 6 | FJ36: 36 | FK36: 25 | FL36: 6 | FM36: 25 | FN36: 25 | FO36: 36 | FP36: 36 | FQ36: 25 | FR36: 36 | FS36: 36 | FT36: 6 | FU36: 36 | FV36: 25 | FW36: 6 | FX36: 25 | FY36: 36 | FZ36: 6 | GA36: 6 | GB36: 36 | GC36: 36 | GD36: 6 | GE36: 6 | GF36: 1 | GG36: 36 | GH36: 3 | GI36: 36 | GJ36: 25 | GK36: 6 | GL36: 6 | GM36: 6 | GN36: 6 | GO36: 36 | GP36: 36 | GQ36: 36 | GR36: 6 | GS36: 36 | GT36: 1 | GU36: . | GV36: . | GW36: 6 | GX36: 6 | GY36: 36 | GZ36: 6 | HA36: 6 | HB36: 6 | HC36: 6 | HD36: . | HE36: . | HF36: 5 | HG36: 3 | HH36: 4 | HI36: 1 | HJ36: 2 | HK36: . | HL36: 7 | HM36: 5 | HN36: 3 | HO36: 1 | HP36: 8 | HQ36: 4 | HR36: 5 | HS36: 1 | HT36: 2 | HU36: 1 | HV36: 3
A37: 36_1 | B37: aeeeeeeeeeeeeeeeeeeeeeeeeeeeeeeeeeeeeeeeeeeeeexxeeeeeee | C37: 0 | D37: 100 | E37: 32.89684045 | F37: 0 | G37: 100 | H37: 32.89684045 | I37: . | J37: 0 | K37: 0 | L37: 75 | M37: 75 | N37: 75 | O37: 25 | P37: 50 | Q37: 100 | R37: 0 | S37: 25 | T37: 75 | U37: 0 | V37: 25 | W37: 0 | X37: 0 | Y37: 25 | Z37: 0 | AA37: 0 | AB37: 0 | AC37: 50 | AD37: 25 | AE37: 50 | AF37: 0 | AG37: 0 | AH37: 100 | AI37: 75 | AJ37: 50 | AK37: 0 | AL37: 25 | AM37: 50 | AN37: 50 | AO37: 0 | AP37: 75 | AQ37: 0 | AR37: 0 | AS37: 25 | AT37: 50 | AU37: 0 | AV37: 50 | AW37: 0 | AX37: 50 | AY37: 50 | AZ37: 100 | BA37: 0 | BB37: 75 | BC37: . | BD37: . | BE37: 50 | BF37: 25 | BG37: 0 | BH37: 100 | BI37: 50 | BJ37: 50 | BK37: 25 | BL37: . | BM37: . | BN37: . | BO37: . | BP37: . | BQ37: . | BR37: . | BS37: . | BT37: . | BU37: . | BV37: . | BW37: . | BX37: . | BY37: . | BZ37: . | CA37: . | CB37: . | CC37: . | CD37: . | CE37: . | CF37: 0 | CG37: 0 | CH37: 75 | CI37: 75 | CJ37: 75 | CK37: 25 | CL37: 50 | CM37: 100 | CN37: 0 | CO37: 25 | CP37: 75 | CQ37: 0 | CR37: 25 | CS37: 0 | CT37: 0 | CU37: 25 | CV37: 0 | CW37: 0 | CX37: 0 | CY37: 50 | CZ37: 25 | DA37: 50 | DB37: 0 | DC37: 0 | DD37: 100 | DE37: 75 | DF37: 50 | DG37: 0 | DH37: 25 | DI37: 50 | DJ37: 50 | DK37: 0 | DL37: 75 | DM37: 0 | DN37: 0 | DO37: 25 | DP37: 50 | DQ37: 0 | DR37: 50 | DS37: 0 | DT37: 50 | DU37: 50 | DV37: 100 | DW37: 0 | DX37: 75 | DY37: . | DZ37: . | EA37: 50 | EB37: 25 | EC37: 0 | ED37: 100 | EE37: 50 | EF37: 50 | EG37: 25 | EH37: . | EI37: 34.61538462 | EJ37: 21.875 | EK37: 34.09090909 | EL37: 20.83333333 | EM37: 43.75 | EN37: 40 | EO37: 36.41304348 | EP37: 20 | EQ37: 33.03571429 | ER37: 36.11111111 | ES37: 50 | ET37: 20 | EU37: 40 | EV37: 25 | EW37: 40 | EX37: 45.83333333 | EY37: 43.33333333 | EZ37: 28.22580645 | FA37: . | FB37: 34 | FC37: 34 | FD37: 5 | FE37: 5 | FF37: 5 | FG37: 25 | FH37: 12 | FI37: 1 | FJ37: 34 | FK37: 25 | FL37: 5 | FM37: 34 | FN37: 25 | FO37: 34 | FP37: 34 | FQ37: 25 | FR37: 34 | FS37: 34 | FT37: 34 | FU37: 12 | FV37: 25 | FW37: 12 | FX37: 34 | FY37: 34 | FZ37: 1 | GA37: 5 | GB37: 12 | GC37: 34 | GD37: 25 | GE37: 12 | GF37: 12 | GG37: 34 | GH37: 5 | GI37: 34 | GJ37: 34 | GK37: 25 | GL37: 12 | GM37: 34 | GN37: 12 | GO37: 34 | GP37: 12 | GQ37: 12 | GR37: 1 | GS37: 34 | GT37: 5 | GU37: . | GV37: . | GW37: 12 | GX37: 25 | GY37: 34 | GZ37: 1 | HA37: 12 | HB37: 12 | HC37: 25 | HD37: . | HE37: . | HF37: 4 | HG37: 3 | HH37: 5 | HI37: 1 | HJ37: 2 | HK37: . | HL37: 7 | HM37: 5 | HN37: 4 | HO37: 1 | HP37: 7 | HQ37: 2 | HR37: 6 | HS37: 2 | HT37: 1 | HU37: 2 | HV37: 3
A38: 37_1 | B38: aeeeeeexeeexeeexexeexxeexeeeeeeeeeeeeeeexexeeexxxeeeeee | C38: 0 | D38: 100 | E38: 24.13008037 | F38: 1 | G38: 8 | H38: 1.689105626 | I38: . | J38: 4 | K38: 1 | L38: 6 | M38: 8 | N38: 4 | O38: 4 | P38: . | Q38: 3 | R38: 3 | S38: 3 | T38: . | U38: 3 | V38: 2 | W38: 3 | X38: . | Y38: 4 | Z38: . | AA38: 4 | AB38: 3 | AC38: . | AD38: . | AE38: 7 | AF38: 4 | AG38: . | AH38: 5 | AI38: 5 | AJ38: 3 | AK38: 4 | AL38: 7 | AM38: 4 | AN38: 4 | AO38: 3 | AP38: 8 | AQ38: 5 | AR38: 5 | AS38: 6 | AT38: 5 | AU38: 4 | AV38: 5 | AW38: . | AX38: 6 | AY38: . | AZ38: 4 | BA38: 1 | BB38: 7 | BC38: . | BD38: . | BE38: . | BF38: 3 | BG38: 2 | BH38: 4 | BI38: 6 | BJ38: 6 | BK38: 3 | BL38: . | BM38: . | BN38: . | BO38: . | BP38: . | BQ38: . | BR38: . | BS38: . | BT38: . | BU38: . | BV38: . | BW38: . | BX38: . | BY38: . | BZ38: . | CA38: . | CB38: . | CC38: . | CD38: . | CE38: . | CF38: 42.85714286 | CG38: 0 | CH38: 71.42857143 | CI38: 100 | CJ38: 42.85714286 | CK38: 42.85714286 | CL38: . | CM38: 28.57142857 | CN38: 28.57142857 | CO38: 28.57142857 | CP38: . | CQ38: 28.57142857 | CR38: 14.28571429 | CS38: 28.57142857 | CT38: . | CU38: 42.85714286 | CV38: . | CW38: 42.85714286 | CX38: 28.57142857 | CY38: . | CZ38: . | DA38: 85.71428571 | DB38: 42.85714286 | DC38: . | DD38: 57.14285714 | DE38: 57.14285714 | DF38: 28.57142857 | DG38: 42.85714286 | DH38: 85.71428571 | DI38: 42.85714286 | DJ38: 42.85714286 | DK38: 28.57142857 | DL38: 100 | DM38: 57.14285714 | DN38: 57.14285714 | DO38: 71.42857143 | DP38: 57.14285714 | DQ38: 42.85714286 | DR38: 57.14285714 | DS38: . | DT38: 71.42857143 | DU38: . | DV38: 42.85714286 | DW38: 0 | DX38: 85.71428571 | DY38: . | DZ38: . | EA38: . | EB38: 28.57142857 | EC38: 14.28571429 | ED38: 42.85714286 | EE38: 71.42857143 | EF38: 71.42857143 | EG38: 28.57142857 | EH38: . | EI38: 47.27891156 | EJ38: 28.57142857 | EK38: 41.07142857 | EL38: 42.85714286 | EM38: 63.63636364 | EN38: 46.42857143 | EO38: 48.01587302 | EP38: 42.85714286 | EQ38: 42.20779221 | ER38: 53.06122449 | ES38: 51.42857143 | ET38: 26.53061224 | EU38: 46.42857143 | EV38: 40 | EW38: 58.24175824 | EX38: 92.85714286 | EY38: 50 | EZ38: 42.30769231 | FA38: . | FB38: 17 | FC38: 41 | FD38: 6 | FE38: 1 | FF38: 17 | FG38: 17 | FH38: . | FI38: 29 | FJ38: 29 | FK38: 29 | FL38: . | FM38: 29 | FN38: 39 | FO38: 29 | FP38: . | FQ38: 17 | FR38: . | FS38: 17 | FT38: 29 | FU38: . | FV38: . | FW38: 3 | FX38: 17 | FY38: . | FZ38: 11 | GA38: 11 | GB38: 29 | GC38: 17 | GD38: 3 | GE38: 17 | GF38: 17 | GG38: 29 | GH38: 1 | GI38: 11 | GJ38: 11 | GK38: 6 | GL38: 11 | GM38: 17 | GN38: 11 | GO38: . | GP38: 6 | GQ38: . | GR38: 17 | GS38: 41 | GT38: 3 | GU38: . | GV38: . | GW38: . | GX38: 29 | GY38: 39 | GZ38: 17 | HA38: 6 | HB38: 6 | HC38: 29 | HD38: . | HE38: . | HF38: 5 | HG38: 4 | HH38: 3 | HI38: 1 | HJ38: 2 | HK38: . | HL38: 5 | HM38: 6 | HN38: 2 | HO38: 3 | HP38: 8 | HQ38: 4 | HR38: 7 | HS38: 1 | HT38: 1 | HU38: 2 | HV38: 3
A39: 38_1 | C39: 15.89956225 | D39: 75.04236587 | E39: 13.23009634 | F39: . | G39: . | H39: . | I39: . | J39: . | K39: . | L39: . | M39: . | N39: . | O39: . | P39: . | Q39: . | R39: . | S39: . | T39: . | U39: . | V39: . | W39: . | X39: . | Y39: . | Z39: . | AA39: . | AB39: . | AC39: . | AD39: . | AE39: . | AF39: . | AG39: . | AH39: . | AI39: . | AJ39: . | AK39: . | AL39: . | AM39: . | AN39: . | AO39: . | AP39: . | AQ39: . | AR39: . | AS39: . | AT39: . | AU39: . | AV39: . | AW39: . | AX39: . | AY39: . | AZ39: . | BA39: . | BB39: . | BC39: . | BD39: . | BE39: . | BF39: . | BG39: . | BH39: . | BI39: . | BJ39: . | BK39: . | BL39: . | BM39: . | BN39: . | BO39: . | BP39: . | BQ39: . | BR39: . | BS39: . | BT39: . | BU39: . | BV39: . | BW39: . | BX39: . | BY39: . | BZ39: . | CA39: . | CB39: . | CC39: . | CD39: . | CE39: . | CF39: 54.39273598 | CG39: 39.14636895 | CH39: 65.38716547 | CI39: 67.16576507 | CJ39: 72.43073114 | CK39: 49.3549252 | CL39: 71.53962684 | CM39: 38.0663605 | CN39: 43.17467168 | CO39: 49.73702191 | CP39: 45.83333333 | CQ39: 46.52777778 | CR39: 26.9395436 | CS39: 15.89956225 | CT39: 60.41666667 | CU39: 59.27917872 | CV39: 43.75 | CW39: 58.14155723 | CX39: 47.6346471 | CY39: 43.81432523 | CZ39: 64.85858773 | DA39: 61.45126528 | DB39: 47.82434185 | DC39: 50.50266834 | DD39: 39.00010755 | DE39: 51.62838107 | DF39: 29.83663327 | DG39: 61.44116639 | DH39: 48.0267882 | DI39: 55.69369251 | DJ39: 57.69059357 | DK39: 42.37295007 | DL39: 75.04236587 | DM39: 61.60883362 | DN39: 63.41347344 | DO39: 51.03671208 | DP39: 53.47222222 | DQ39: 21.58896623 | DR39: 59.57536419 | DS39: 71.66666667 | DT39: 55.01758394 | DU39: 73.11282785 | DV39: 47.44615986 | DW39: 27.5 | DX39: 41.68313757 | DY39: . | DZ39: . | EA39: 48.79575426 | EB39: 48.56309377 | EC39: 52.43055556 | ED39: 66.6892475 | EE39: 52.8358299 | EF39: 56.04507319 | EG39: 37.00207293 | EH39: . | EI39: 51.41317464 | EJ39: 44.07954825 | EK39: 51.08803207 | EL39: 57.63068538 | EM39: 52.88996543 | EN39: 51.89444299 | EO39: 50.60219497 | EP39: 57.30098671 | EQ39: 52.33135879 | ER39: 52.39616185 | ES39: 49.86586412 | ET39: 44.11376802 | EU39: 51.89444299 | EV39: 47.58813474 | EW39: 51.48367127 | EX39: 64.20360146 | EY39: 53.48244973 | EZ39: 47.93634601 | FA39: . | FB39: 22 | FC39: 44 | FD39: 8 | FE39: 6 | FF39: 3 | FG39: 30 | FH39: 5 | FI39: 46 | FJ39: 41 | FK39: 29 | FL39: 38 | FM39: 37 | FN39: 50 | FO39: 52 | FP39: 14 | FQ39: 16 | FR39: 40 | FS39: 17 | FT39: 35 | FU39: 39 | FV39: 9 | FW39: 12 | FX39: 34 | FY39: 28 | FZ39: 45 | GA39: 26 | GB39: 48 | GC39: 13 | GD39: 33 | GE39: 20 | GF39: 18 | GG39: 42 | GH39: 1 | GI39: 11 | GJ39: 10 | GK39: 27 | GL39: 23 | GM39: 51 | GN39: 15 | GO39: 4 | GP39: 21 | GQ39: 2 | GR39: 36 | GS39: 49 | GT39: 43 | GU39: . | GV39: . | GW39: 31 | GX39: 32 | GY39: 25 | GZ39: 7 | HA39: 24 | HB39: 19 | HC39: 47 | HD39: . | HE39: . | HF39: 5 | HG39: 4 | HH39: 1 | HI39: 2 | HJ39: 3 | HK39: . | HL39: 1 | HM39: 3 | HN39: 2 | HO39: 6 | HP39: 8 | HQ39: 4 | HR39: 7 | HS39: 5 | HT39: 1 | HU39: 2 | HV39: 3
A40: 39_1 | B40: aeeeeeeeeeeeeeeeeeeeeeeeeeeeeeeeeeeeeeeeeeeeeexxeeeeeee | C40: 0 | D40: 100 | E40: 27.06411024 | F40: 0 | G40: 100 | H40: 27.06411024 | I40: . | J40: 50 | K40: 25 | L40: 100 | M40: 75 | N40: 100 | O40: 75 | P40: 75 | Q40: 25 | R40: 50 | S40: 75 | T40: 75 | U40: 50 | V40: 0 | W40: 25 | X40: 100 | Y40: 50 | Z40: 25 | AA40: 100 | AB40: 50 | AC40: 50 | AD40: 100 | AE40: 50 | AF40: 75 | AG40: 25 | AH40: 25 | AI40: 75 | AJ40: 50 | AK40: 100 | AL40: 50 | AM40: 50 | AN40: 75 | AO40: 50 | AP40: 100 | AQ40: 75 | AR40: 50 | AS40: 25 | AT40: 75 | AU40: 0 | AV40: 75 | AW40: 100 | AX40: 50 | AY40: 100 | AZ40: 50 | BA40: 50 | BB40: 25 | BC40: . | BD40: . | BE40: 75 | BF40: 50 | BG40: 75 | BH40: 50 | BI40: 50 | BJ40: 50 | BK40: 25 | BL40: . | BM40: . | BN40: . | BO40: . | BP40: . | BQ40: . | BR40: . | BS40: . | BT40: . | BU40: . | BV40: . | BW40: . | BX40: . | BY40: . | BZ40: . | CA40: . | CB40: . | CC40: . | CD40: . | CE40: . | CF40: 50 | CG40: 25 | CH40: 100 | CI40: 75 | CJ40: 100 | CK40: 75 | CL40: 75 | CM40: 25 | CN40: 50 | CO40: 75 | CP40: 75 | CQ40: 50 | CR40: 0 | CS40: 25 | CT40: 100 | CU40: 50 | CV40: 25 | CW40: 100 | CX40: 50 | CY40: 50 | CZ40: 100 | DA40: 50 | DB40: 75 | DC40: 25 | DD40: 25 | DE40: 75 | DF40: 50 | DG40: 100 | DH40: 50 | DI40: 50 | DJ40: 75 | DK40: 50 | DL40: 100 | DM40: 75 | DN40: 50 | DO40: 25 | DP40: 75 | DQ40: 0 | DR40: 75 | DS40: 100 | DT40: 50 | DU40: 100 | DV40: 50 | DW40: 50 | DX40: 25 | DY40: . | DZ40: . | EA40: 75 | EB40: 50 | EC40: 75 | ED40: 50 | EE40: 50 | EF40: 50 | EG40: 25 | EH40: . | EI40: 58.65384615 | EJ40: 50 | EK40: 68.18181818 | EL40: 62.5 | EM40: 52.08333333 | EN40: 60 | EO40: 58.15217391 | EP40: 65 | EQ40: 64.28571429 | ER40: 65.27777778 | ES40: 55 | ET40: 50 | EU40: 60 | EV40: 62.5 | EW40: 53.33333333 | EX40: 83.33333333 | EY40: 65 | EZ40: 50.80645161 | FA40: . | FB40: 23 | FC40: 42 | FD40: 1 | FE40: 10 | FF40: 1 | FG40: 10 | FH40: 10 | FI40: 42 | FJ40: 23 | FK40: 10 | FL40: 10 | FM40: 23 | FN40: 51 | FO40: 42 | FP40: 1 | FQ40: 23 | FR40: 42 | FS40: 1 | FT40: 23 | FU40: 23 | FV40: 1 | FW40: 23 | FX40: 10 | FY40: 42 | FZ40: 42 | GA40: 10 | GB40: 23 | GC40: 1 | GD40: 23 | GE40: 23 | GF40: 10 | GG40: 23 | GH40: 1 | GI40: 10 | GJ40: 23 | GK40: 42 | GL40: 10 | GM40: 51 | GN40: 10 | GO40: 1 | GP40: 23 | GQ40: 1 | GR40: 23 | GS40: 23 | GT40: 42 | GU40: . | GV40: . | GW40: 10 | GX40: 23 | GY40: 10 | GZ40: 23 | HA40: 23 | HB40: 23 | HC40: 42 | HD40: . | HE40: . | HF40: 5 | HG40: 1 | HH40: 2 | HI40: 4 | HJ40: 3 | HK40: . | HL40: 2 | HM40: 3 | HN40: 1 | HO40: 6 | HP40: 8 | HQ40: 5 | HR40: 4 | HS40: 7 | HT40: 1 | HU40: 2 | HV40: 3
A41: 40_1 | C41: 0 | D41: 81.73748834 | E41: 20.85888664 | F41: . | G41: . | H41: . | I41: . | J41: . | K41: . | L41: . | M41: . | N41: . | O41: . | P41: . | Q41: . | R41: . | S41: . | T41: . | U41: . | V41: . | W41: . | X41: . | Y41: . | Z41: . | AA41: . | AB41: . | AC41: . | AD41: . | AE41: . | AF41: . | AG41: . | AH41: . | AI41: . | AJ41: . | AK41: . | AL41: . | AM41: . | AN41: . | AO41: . | AP41: . | AQ41: . | AR41: . | AS41: . | AT41: . | AU41: . | AV41: . | AW41: . | AX41: . | AY41: . | AZ41: . | BA41: . | BB41: . | BC41: . | BD41: . | BE41: . | BF41: . | BG41: . | BH41: . | BI41: . | BJ41: . | BK41: . | BL41: . | BM41: . | BN41: . | BO41: . | BP41: . | BQ41: . | BR41: . | BS41: . | BT41: . | BU41: . | BV41: . | BW41: . | BX41: . | BY41: . | BZ41: . | CA41: . | CB41: . | CC41: . | CD41: . | CE41: . | CF41: 70.10641591 | CG41: 23.1893764 | CH41: 17.3229928 | CI41: 27.99459041 | CJ41: 42.20302342 | CK41: 32.41813756 | CL41: 29.23776101 | CM41: 15.89816299 | CN41: 0 | CO41: 5.822788072 | CP41: 0 | CQ41: 66.66666667 | CR41: 42.88726161 | CS41: 0 | CT41: 0 | CU41: 50.57572898 | CV41: 0 | CW41: 0 | CX41: 26.26313567 | CY41: 37.88595135 | CZ41: 39.15152637 | DA41: 56.20759168 | DB41: 29.98135432 | DC41: 66.66666667 | DD41: 13.6032718 | DE41: 16.02028644 | DF41: 25.72505269 | DG41: 18.64699834 | DH41: 37.16729551 | DI41: 47.81281171 | DJ41: 27.39356144 | DK41: 27.59032697 | DL41: 25.25419519 | DM41: 38.40300171 | DN41: 31.63149725 | DO41: 30.72355561 | DP41: 33.33333333 | DQ41: 7.985767287 | DR41: 81.73748834 | DS41: 33.33333333 | DT41: 50.00616025 | DU41: 38.67696712 | DV41: 53.42695916 | DW41: 0 | DX41: 50.09882541 | DY41: . | DZ41: . | EA41: 30.27452558 | EB41: 23.28250238 | EC41: 33.33333333 | ED41: 77.43679824 | EE41: 50.56629265 | EF41: 58.47240901 | EG41: 28.57688342 | EH41: . | EI41: 32.13447241 | EJ41: 19.9508628 | EK41: 24.23161777 | EL41: 47.12654502 | EM41: 33.93468766 | EN41: 36.99082302 | EO41: 30.17898468 | EP41: 46.43670823 | EQ41: 29.29552117 | ER41: 30.00256338 | ES41: 40.32153855 | ET41: 21.52144164 | EU41: 36.99082302 | EV41: 15.07211669 | EW41: 31.27838143 | EX41: 27.27825869 | EY41: 33.92595114 | EZ41: 32.2075402 | FA41: . | FB41: 3 | FC41: 38 | FD41: 40 | FE41: 31 | FF41: 15 | FG41: 24 | FH41: 29 | FI41: 42 | FJ41: 46 | FK41: 45 | FL41: 46 | FM41: 4 | FN41: 14 | FO41: 46 | FP41: 46 | FQ41: 9 | FR41: 46 | FS41: 46 | FT41: 34 | FU41: 19 | FV41: 16 | FW41: 7 | FX41: 28 | FY41: 4 | FZ41: 43 | GA41: 41 | GB41: 35 | GC41: 39 | GD41: 20 | GE41: 13 | GF41: 33 | GG41: 32 | GH41: 36 | GI41: 18 | GJ41: 25 | GK41: 26 | GL41: 21 | GM41: 44 | GN41: 1 | GO41: 21 | GP41: 12 | GQ41: 17 | GR41: 8 | GS41: 46 | GT41: 11 | GU41: . | GV41: . | GW41: 27 | GX41: 37 | GY41: 21 | GZ41: 2 | HA41: 10 | HB41: 6 | HC41: 30 | HD41: . | HE41: . | HF41: 5 | HG41: 4 | HH41: 1 | HI41: 3 | HJ41: 2 | HK41: . | HL41: 1 | HM41: 6 | HN41: 5 | HO41: 2 | HP41: 7 | HQ41: 3 | HR41: 8 | HS41: 4 | HT41: 3 | HU41: 1 | HV41: 2
A42: 41_1 | B42: aeeeeeeeexexxexxexxeeeeexeeeeeeeeeeeexeexeeexexxeexeeee | C42: 11.64557615 | D42: 96.80831002 | E42: 18.80095177 | F42: 2.433014359 | G42: 5.817708 | H42: 0.7472219244 | I42: . | J42: 4.893181153 | K42: 3.813444 | L42: 3.347138837 | M42: 4.195399266 | N42: 4 | O42: 3.222222222 | P42: 4.294216 | Q42: 3.233882435 | R42: . | S42: 2.433014359 | T42: . | U42: . | V42: 2.729594 | W42: . | X42: . | Y42: 4.665526856 | Z42: . | AA42: . | AB42: 4.057769962 | AC42: 3.656846 | AD42: 3.757443609 | AE42: 3.788396 | AF42: 3.028528 | AG42: . | AH42: 3.051466881 | AI42: 3.243589744 | AJ42: 4.014999 | AK42: 3.452380952 | AL42: 3.599721722 | AM42: 4.445909 | AN42: 4.147624873 | AO42: 4.163265306 | AP42: 3.977571635 | AQ42: 5.022739628 | AR42: 3.159694017 | AS42: 3.087523852 | AT42: . | AU42: 2.604944537 | AV42: 5.817708 | AW42: . | AX42: 4.620253165 | AY42: 3.719722 | AZ42: 3.56737 | BA42: . | BB42: 3.302824403 | BC42: . | BD42: . | BE42: 4.376626 | BF42: 3.820846367 | BG42: . | BH42: 5.475856164 | BI42: 3.339982285 | BJ42: 3.968421053 | BK42: 2.916889881 | BL42: . | BM42: . | BN42: . | BO42: . | BP42: . | BQ42: . | BR42: . | BS42: . | BT42: . | BU42: . | BV42: . | BW42: . | BX42: . | BY42: . | BZ42: . | CA42: . | CB42: . | CC42: . | CD42: . | CE42: . | CF42: 73.54616515 | CG42: 46.3787528 | CH42: 34.64598561 | CI42: 55.98918083 | CJ42: 51.07271351 | CK42: 31.50294179 | CL42: 58.47552203 | CM42: 31.79632598 | CN42: . | CO42: 11.64557615 | CP42: . | CQ42: . | CR42: 19.10785655 | CS42: . | CT42: . | CU42: 67.81812463 | CV42: . | CW42: . | CX42: 52.52627133 | CY42: 42.43856937 | CZ42: 44.9697194 | DA42: 45.74851669 | DB42: 26.6293753 | DC42: . | DD42: 27.2065436 | DE42: 32.04057288 | DF42: 51.45010538 | DG42: 37.29399669 | DH42: 41.00125769 | DI42: 62.29229009 | DJ42: 54.78712287 | DK42: 55.18065393 | DL42: 50.50839038 | DM42: 76.80600342 | DN42: 29.92966117 | DO42: 28.1137779 | DP42: . | DQ42: 15.97153457 | DR42: 96.80831002 | DS42: . | DT42: 66.67898716 | DU42: 44.0206009 | DV42: 40.18725165 | DW42: . | DX42: 33.53098414 | DY42: . | DZ42: . | EA42: 60.54905117 | EB42: 46.56500477 | EC42: . | ED42: 88.20692981 | EE42: 34.46591863 | EF42: 50.27815135 | EG42: 23.82043351 | EH42: . | EI42: 46.04962827 | EJ42: 28.62682383 | EK42: 47.58508443 | EL42: 66.47531227 | EM42: 42.86937533 | EN42: 42.47705756 | EO42: 42.4450958 | EP42: 66.2067498 | EQ42: 45.99381679 | ER42: 48.57802013 | ES42: 47.30974376 | ET42: 32.75243322 | EU42: 42.47705756 | EV42: 38.06624452 | EW42: 43.21557926 | EX42: 48.50144275 | EY42: 47.5214257 | EZ42: 44.79134025 | FA42: . | FB42: 4 | FC42: 19 | FD42: 27 | FE42: 10 | FF42: 15 | FG42: 32 | FH42: 9 | FI42: 31 | FJ42: . | FK42: 40 | FL42: . | FM42: . | FN42: 38 | FO42: . | FP42: . | FQ42: 5 | FR42: . | FS42: . | FT42: 13 | FU42: 23 | FV42: 21 | FW42: 20 | FX42: 36 | FY42: . | FZ42: 35 | GA42: 30 | GB42: 14 | GC42: 26 | GD42: 24 | GE42: 7 | GF42: 12 | GG42: 11 | GH42: 16 | GI42: 3 | GJ42: 33 | GK42: 34 | GL42: . | GM42: 39 | GN42: 1 | GO42: . | GP42: 6 | GQ42: 22 | GR42: 25 | GS42: . | GT42: 29 | GU42: . | GV42: . | GW42: 8 | GX42: 18 | GY42: . | GZ42: 2 | HA42: 28 | HB42: 17 | HC42: 37 | HD42: . | HE42: . | HF42: 5 | HG42: 2 | HH42: 1 | HI42: 3 | HJ42: 4 | HK42: . | HL42: 1 | HM42: 4 | HN42: 2 | HO42: 3 | HP42: 8 | HQ42: 6 | HR42: 7 | HS42: 5 | HT42: 1 | HU42: 2 | HV42: 3
A43: 42_1 | B43: aeeeeeeeeeeeeeeeeeeeeeeeeeeeeeeeeeeeeeeeeeeeeexxeeeeeee | C43: 0 | D43: 66.66666667 | E43: 26.49896994 | F43: 0 | G43: 50 | H43: 19.87422746 | I43: . | J43: 50 | K43: 0 | L43: 0 | M43: 0 | N43: 25 | O43: 25 | P43: 0 | Q43: 0 | R43: 0 | S43: 0 | T43: 0 | U43: 50 | V43: 50 | W43: 0 | X43: 0 | Y43: 25 | Z43: 0 | AA43: 0 | AB43: 0 | AC43: 25 | AD43: 25 | AE43: 50 | AF43: 25 | AG43: 50 | AH43: 0 | AI43: 0 | AJ43: 0 | AK43: 0 | AL43: 25 | AM43: 25 | AN43: 0 | AO43: 0 | AP43: 0 | AQ43: 0 | AR43: 25 | AS43: 25 | AT43: 25 | AU43: 0 | AV43: 50 | AW43: 25 | AX43: 25 | AY43: 25 | AZ43: 50 | BA43: 0 | BB43: 50 | BC43: . | BD43: . | BE43: 0 | BF43: 0 | BG43: 25 | BH43: 50 | BI43: 50 | BJ43: 50 | BK43: 25 | BL43: . | BM43: . | BN43: . | BO43: . | BP43: . | BQ43: . | BR43: . | BS43: . | BT43: . | BU43: . | BV43: . | BW43: . | BX43: . | BY43: . | BZ43: . | CA43: . | CB43: . | CC43: . | CD43: . | CE43: . | CF43: 66.66666667 | CG43: 0 | CH43: 0 | CI43: 0 | CJ43: 33.33333333 | CK43: 33.33333333 | CL43: 0 | CM43: 0 | CN43: 0 | CO43: 0 | CP43: 0 | CQ43: 66.66666667 | CR43: 66.66666667 | CS43: 0 | CT43: 0 | CU43: 33.33333333 | CV43: 0 | CW43: 0 | CX43: 0 | CY43: 33.33333333 | CZ43: 33.33333333 | DA43: 66.66666667 | DB43: 33.33333333 | DC43: 66.66666667 | DD43: 0 | DE43: 0 | DF43: 0 | DG43: 0 | DH43: 33.33333333 | DI43: 33.33333333 | DJ43: 0 | DK43: 0 | DL43: 0 | DM43: 0 | DN43: 33.33333333 | DO43: 33.33333333 | DP43: 33.33333333 | DQ43: 0 | DR43: 66.66666667 | DS43: 33.33333333 | DT43: 33.33333333 | DU43: 33.33333333 | DV43: 66.66666667 | DW43: 0 | DX43: 66.66666667 | DY43: . | DZ43: . | EA43: 0 | EB43: 0 | EC43: 33.33333333 | ED43: 66.66666667 | EE43: 66.66666667 | EF43: 66.66666667 | EG43: 33.33333333 | EH43: . | EI43: 24.35897436 | EJ43: 16.66666667 | EK43: 18.18181818 | EL43: 27.77777778 | EM43: 25 | EN43: 31.11111111 | EO43: 23.91304348 | EP43: 26.66666667 | EQ43: 21.42857143 | ER43: 22.22222222 | ES43: 33.33333333 | ET43: 16.66666667 | EU43: 31.11111111 | EV43: 11.11111111 | EW43: 22.22222222 | EX43: 16.66666667 | EY43: 24.44444444 | EZ43: 25.80645161 | FA43: . | FB43: 1 | FC43: 28 | FD43: 28 | FE43: 28 | FF43: 12 | FG43: 12 | FH43: 28 | FI43: 28 | FJ43: 28 | FK43: 28 | FL43: 28 | FM43: 1 | FN43: 1 | FO43: 28 | FP43: 28 | FQ43: 12 | FR43: 28 | FS43: 28 | FT43: 28 | FU43: 12 | FV43: 12 | FW43: 1 | FX43: 12 | FY43: 1 | FZ43: 28 | GA43: 28 | GB43: 28 | GC43: 28 | GD43: 12 | GE43: 12 | GF43: 28 | GG43: 28 | GH43: 28 | GI43: 28 | GJ43: 12 | GK43: 12 | GL43: 12 | GM43: 28 | GN43: 1 | GO43: 12 | GP43: 12 | GQ43: 12 | GR43: 1 | GS43: 28 | GT43: 1 | GU43: . | GV43: . | GW43: 28 | GX43: 28 | GY43: 12 | GZ43: 1 | HA43: 1 | HB43: 1 | HC43: 12 | HD43: . | HE43: . | HF43: 5 | HG43: 4 | HH43: 2 | HI43: 3 | HJ43: 1 | HK43: . | HL43: 3 | HM43: 6 | HN43: 4 | HO43: 1 | HP43: 7 | HQ43: 2 | HR43: 8 | HS43: 4 | HT43: 3 | HU43: 2 | HV43: 1
A44: 43_1 | B44: aeeeeeeeeeeeeeeeeeeeeeeeeeeeeeeeeeeeeeeeeeeeeexxeeeeeee | C44: 0 | D44: 100 | E44: 21.70058131 | F44: 0 | G44: 100 | H44: 21.70058131 | I44: . | J44: 50 | K44: 50 | L44: 75 | M44: 100 | N44: 58.33333333 | O44: 50 | P44: 75 | Q44: 50 | R44: 75 | S44: 50 | T44: 50 | U44: 50 | V44: 0 | W44: 25 | X44: 75 | Y44: 31.25 | Z44: 75 | AA44: 100 | AB44: 25 | AC44: 50 | AD44: 50 | AE44: 50 | AF44: 25 | AG44: 50 | AH44: 50 | AI44: 50 | AJ44: 25 | AK44: 75 | AL44: 50 | AM44: 50 | AN44: 50 | AO44: 50 | AP44: 75 | AQ44: 75 | AR44: 75 | AS44: 75 | AT44: 25 | AU44: 0 | AV44: 50 | AW44: 50 | AX44: 50 | AY44: 75 | AZ44: 50 | BA44: 0 | BB44: 50 | BC44: . | BD44: . | BE44: 50 | BF44: 50 | BG44: 25 | BH44: 75 | BI44: 50 | BJ44: 50 | BK44: 50 | BL44: . | BM44: . | BN44: . | BO44: . | BP44: . | BQ44: . | BR44: . | BS44: . | BT44: . | BU44: . | BV44: . | BW44: . | BX44: . | BY44: . | BZ44: . | CA44: . | CB44: . | CC44: . | CD44: . | CE44: . | CF44: 50 | CG44: 50 | CH44: 75 | CI44: 100 | CJ44: 58.33333333 | CK44: 50 | CL44: 75 | CM44: 50 | CN44: 75 | CO44: 50 | CP44: 50 | CQ44: 50 | CR44: 0 | CS44: 25 | CT44: 75 | CU44: 31.25 | CV44: 75 | CW44: 100 | CX44: 25 | CY44: 50 | CZ44: 50 | DA44: 50 | DB44: 25 | DC44: 50 | DD44: 50 | DE44: 50 | DF44: 25 | DG44: 75 | DH44: 50 | DI44: 50 | DJ44: 50 | DK44: 50 | DL44: 75 | DM44: 75 | DN44: 75 | DO44: 75 | DP44: 25 | DQ44: 0 | DR44: 50 | DS44: 50 | DT44: 50 | DU44: 75 | DV44: 50 | DW44: 0 | DX44: 50 | DY44: . | DZ44: . | EA44: 50 | EB44: 50 | EC44: 25 | ED44: 75 | EE44: 50 | EF44: 50 | EG44: 50 | EH44: . | EI44: 51.72275641 | EJ44: 53.125 | EK44: 52.27272727 | EL44: 59.375 | EM44: 60.41666667 | EN44: 40.55555556 | EO44: 50.72463768 | EP44: 65 | EQ44: 48.73511905 | ER44: 54.51388889 | ES44: 50 | ET44: 52.5 | EU44: 40.55555556 | EV44: 50 | EW44: 58.33333333 | EX44: 62.5 | EY44: 52.22222222 | EZ44: 49.39516129 | FA44: . | FB44: 16 | FC44: 16 | FD44: 3 | FE44: 1 | FF44: 15 | FG44: 16 | FH44: 3 | FI44: 16 | FJ44: 3 | FK44: 16 | FL44: 16 | FM44: 16 | FN44: 50 | FO44: 44 | FP44: 3 | FQ44: 43 | FR44: 3 | FS44: 1 | FT44: 44 | FU44: 16 | FV44: 16 | FW44: 16 | FX44: 44 | FY44: 16 | FZ44: 16 | GA44: 16 | GB44: 44 | GC44: 3 | GD44: 16 | GE44: 16 | GF44: 16 | GG44: 16 | GH44: 3 | GI44: 3 | GJ44: 3 | GK44: 3 | GL44: 44 | GM44: 50 | GN44: 16 | GO44: 16 | GP44: 16 | GQ44: 3 | GR44: 16 | GS44: 50 | GT44: 16 | GU44: . | GV44: . | GW44: 16 | GX44: 16 | GY44: 44 | GZ44: 3 | HA44: 16 | HB44: 16 | HC44: 16 | HD44: . | HE44: . | HF44: 3 | HG44: 4 | HH44: 2 | HI44: 1 | HJ44: 5 | HK44: . | HL44: 1 | HM44: 7 | HN44: 3 | HO44: 5 | HP44: 4 | HQ44: 8 | HR44: 5 | HS44: 2 | HT44: 1 | HU44: 2 | HV44: 3
A45: 44_1 | B45: aeeeeeeeeeeeeeeeeeeeeeeeeeeeeeeeeeeeeeeeeeeeeexxeeeeeee | C45: 0 | D45: 100 | E45: 24.33278838 | F45: 0 | G45: 100 | H45: 24.33278838 | I45: . | J45: 50 | K45: 50 | L45: 75 | M45: 50 | N45: 100 | O45: 41.66666667 | P45: 100 | Q45: 25 | R45: 25 | S45: 50 | T45: 50 | U45: 25 | V45: 50 | W45: 0 | X45: 75 | Y45: 100 | Z45: 50 | AA45: 75 | AB45: 75 | AC45: 50 | AD45: 75 | AE45: 75 | AF45: 41.66666667 | AG45: 25 | AH45: 25 | AI45: 50 | AJ45: 25 | AK45: 50 | AL45: 50 | AM45: 50 | AN45: 50 | AO45: 25 | AP45: 75 | AQ45: 50 | AR45: 100 | AS45: 50 | AT45: 50 | AU45: 0 | AV45: 41.66666667 | AW45: 75 | AX45: 50 | AY45: 75 | AZ45: 25 | BA45: 25 | BB45: 0 | BC45: . | BD45: . | BE45: 50 | BF45: 50 | BG45: 50 | BH45: 75 | BI45: 50 | BJ45: 50 | BK45: 25 | BL45: . | BM45: . | BN45: . | BO45: . | BP45: . | BQ45: . | BR45: . | BS45: . | BT45: . | BU45: . | BV45: . | BW45: . | BX45: . | BY45: . | BZ45: . | CA45: . | CB45: . | CC45: . | CD45: . | CE45: . | CF45: 50 | CG45: 50 | CH45: 75 | CI45: 50 | CJ45: 100 | CK45: 41.66666667 | CL45: 100 | CM45: 25 | CN45: 25 | CO45: 50 | CP45: 50 | CQ45: 25 | CR45: 50 | CS45: 0 | CT45: 75 | CU45: 100 | CV45: 50 | CW45: 75 | CX45: 75 | CY45: 50 | CZ45: 75 | DA45: 75 | DB45: 41.66666667 | DC45: 25 | DD45: 25 | DE45: 50 | DF45: 25 | DG45: 50 | DH45: 50 | DI45: 50 | DJ45: 50 | DK45: 25 | DL45: 75 | DM45: 50 | DN45: 100 | DO45: 50 | DP45: 50 | DQ45: 0 | DR45: 41.66666667 | DS45: 75 | DT45: 50 | DU45: 75 | DV45: 25 | DW45: 25 | DX45: 0 | DY45: . | DZ45: . | EA45: 50 | EB45: 50 | EC45: 50 | ED45: 75 | EE45: 50 | EF45: 50 | EG45: 25 | EH45: . | EI45: 50.48076923 | EJ45: 37.5 | EK45: 53.03030303 | EL45: 58.33333333 | EM45: 50 | EN45: 52.77777778 | EO45: 49.45652174 | EP45: 50 | EQ45: 53.27380952 | ER45: 53.24074074 | ES45: 41.66666667 | ET45: 39.16666667 | EU45: 52.77777778 | EV45: 54.16666667 | EW45: 48.33333333 | EX45: 70.83333333 | EY45: 50.55555556 | EZ45: 46.50537634 | FA45: . | FB45: 15 | FC45: 15 | FD45: 5 | FE45: 15 | FF45: 1 | FG45: 37 | FH45: 1 | FI45: 40 | FJ45: 40 | FK45: 15 | FL45: 15 | FM45: 40 | FN45: 15 | FO45: 50 | FP45: 5 | FQ45: 1 | FR45: 15 | FS45: 5 | FT45: 5 | FU45: 15 | FV45: 5 | FW45: 5 | FX45: 37 | FY45: 40 | FZ45: 40 | GA45: 15 | GB45: 40 | GC45: 15 | GD45: 15 | GE45: 15 | GF45: 15 | GG45: 40 | GH45: 5 | GI45: 15 | GJ45: 1 | GK45: 15 | GL45: 15 | GM45: 50 | GN45: 37 | GO45: 5 | GP45: 15 | GQ45: 5 | GR45: 40 | GS45: 40 | GT45: 50 | GU45: . | GV45: . | GW45: 15 | GX45: 15 | GY45: 15 | GZ45: 5 | HA45: 15 | HB45: 15 | HC45: 40 | HD45: . | HE45: . | HF45: 5 | HG45: 2 | HH45: 1 | HI45: 4 | HJ45: 3 | HK45: . | HL45: 5 | HM45: 2 | HN45: 3 | HO45: 7 | HP45: 8 | HQ45: 4 | HR45: 1 | HS45: 6 | HT45: 1 | HU45: 2 | HV45: 3
A46: 45_1 | C46: 18.75 | D46: 100 | E46: 16.55909333 | F46: . | G46: . | H46: . | I46: . | J46: . | K46: . | L46: . | M46: . | N46: . | O46: . | P46: . | Q46: . | R46: . | S46: . | T46: . | U46: . | V46: . | W46: . | X46: . | Y46: . | Z46: . | AA46: . | AB46: . | AC46: . | AD46: . | AE46: . | AF46: . | AG46: . | AH46: . | AI46: . | AJ46: . | AK46: . | AL46: . | AM46: . | AN46: . | AO46: . | AP46: . | AQ46: . | AR46: . | AS46: . | AT46: . | AU46: . | AV46: . | AW46: . | AX46: . | AY46: . | AZ46: . | BA46: . | BB46: . | BC46: . | BD46: . | BE46: . | BF46: . | BG46: . | BH46: . | BI46: . | BJ46: . | BK46: . | BL46: . | BM46: . | BN46: . | BO46: . | BP46: . | BQ46: . | BR46: . | BS46: . | BT46: . | BU46: . | BV46: . | BW46: . | BX46: . | BY46: . | BZ46: . | CA46: . | CB46: . | CC46: . | CD46: . | CE46: . | CF46: 56.25 | CG46: 36.68883728 | CH46: 75 | CI46: 100 | CJ46: 84.04803011 | CK46: 47.04474696 | CL46: 100 | CM46: 62.5 | CN46: 84.04803011 | CO46: 67.59934337 | CP46: 75 | CQ46: 62.5 | CR46: 18.75 | CS46: 45.39737348 | CT46: 87.5 | CU46: 73.84934337 | CV46: 62.5 | CW46: 73.84934337 | CX46: 59.54474696 | CY46: 75 | CZ46: 75 | DA46: 87.5 | DB46: 65.29803011 | DC46: 86.34934337 | DD46: 70.39737348 | DE46: 93.75 | DF46: 53.29474696 | DG46: 75 | DH46: 75.9934337 | DI46: 86.34934337 | DJ46: 93.75 | DK46: 76.64737348 | DL46: 75 | DM46: 81.25 | DN46: 73.84934337 | DO46: 75.49671685 | DP46: 87.5 | DQ46: 71.54803011 | DR46: 59.04803011 | DS46: 100 | DT46: 80.09934337 | DU46: 100 | DV46: 56.25 | DW46: 62.5 | DX46: 75 | DY46: . | DZ46: . | EA46: 87.5 | EB46: 68.09606022 | EC46: 81.25 | ED46: 72.69868674 | EE46: 66.44868674 | EF46: 77.79803011 | EG46: 43.43555413 | EH46: . | EI46: 72.71476772 | EJ46: 69.94309337 | EK46: 69.9480898 | EL46: 72.6159006 | EM46: 75.07177157 | EN46: 74.37583493 | EO46: 72.72766343 | EP46: 72.36921204 | EQ46: 75.57060778 | ER46: 71.06422254 | ES46: 62.2069795 | ET46: 64.32783312 | EU46: 74.37583493 | EV46: 70.04002509 | EW46: 74.29031283 | EX46: 87.66557228 | EY46: 75.85763613 | EZ46: 68.30032082 | FA46: . | FB46: 45 | FC46: 51 | FD46: 22 | FE46: 1 | FF46: 13 | FG46: 48 | FH46: 1 | FI46: 39 | FJ46: 13 | FK46: 36 | FL46: 22 | FM46: 39 | FN46: 52 | FO46: 49 | FP46: 7 | FQ46: 29 | FR46: 39 | FS46: 29 | FT46: 43 | FU46: 22 | FV46: 22 | FW46: 7 | FX46: 38 | FY46: 11 | FZ46: 34 | GA46: 5 | GB46: 47 | GC46: 22 | GD46: 20 | GE46: 11 | GF46: 5 | GG46: 19 | GH46: 22 | GI46: 15 | GJ46: 29 | GK46: 21 | GL46: 7 | GM46: 33 | GN46: 44 | GO46: 1 | GP46: 17 | GQ46: 1 | GR46: 45 | GS46: 39 | GT46: 22 | GU46: . | GV46: . | GW46: 7 | GX46: 35 | GY46: 15 | GZ46: 32 | HA46: 37 | HB46: 18 | HC46: 50 | HD46: . | HE46: . | HF46: 5 | HG46: 4 | HH46: 3 | HI46: 1 | HJ46: 2 | HK46: . | HL46: 4 | HM46: 1 | HN46: 5 | HO46: 8 | HP46: 7 | HQ46: 2 | HR46: 6 | HS46: 3 | HT46: 1 | HU46: 2 | HV46: 3
A47: 46_1 | B47: aeaxxeaxeeexataeaxaexaeaeaeaeeaeexeaaaaaxexaaexxeeeeaea | C47: 0 | D47: 100 | E47: 17.65274565 | F47: 1 | G47: 44.45344969 | H47: 7.670726949 | I47: . | J47: 1 | K47: 18 | L47: . | M47: . | N47: 4 | O47: 9 | P47: . | Q47: 1 | R47: 4 | S47: 2 | T47: . | U47: 1 | V47: 44.45344969 | W47: 5 | X47: 1 | Y47: 2 | Z47: . | AA47: 2 | AB47: 9 | AC47: . | AD47: 1 | AE47: 1 | AF47: 4 | AG47: 2 | AH47: 5 | AI47: 1 | AJ47: 9 | AK47: 1 | AL47: 11 | AM47: 2 | AN47: 1 | AO47: 5 | AP47: . | AQ47: 1 | AR47: 2 | AS47: 6 | AT47: 1 | AU47: 4 | AV47: 4 | AW47: . | AX47: 2 | AY47: . | AZ47: 1 | BA47: 1 | BB47: 1 | BC47: . | BD47: . | BE47: 1 | BF47: 7 | BG47: 1 | BH47: 3 | BI47: 3 | BJ47: 4 | BK47: 23 | BL47: . | BM47: . | BN47: . | BO47: . | BP47: . | BQ47: . | BR47: . | BS47: . | BT47: . | BU47: . | BV47: . | BW47: . | BX47: . | BY47: . | BZ47: . | CA47: . | CB47: . | CC47: . | CD47: . | CE47: . | CF47: 100 | CG47: 60.87767457 | CH47: . | CI47: . | CJ47: 93.09606022 | CK47: 81.58949391 | CL47: . | CM47: 100 | CN47: 93.09606022 | CO47: 97.69868674 | CP47: . | CQ47: 100 | CR47: 0 | CS47: 90.79474696 | CT47: 100 | CU47: 97.69868674 | CV47: . | CW47: 97.69868674 | CX47: 81.58949391 | CY47: . | CZ47: 100 | DA47: 100 | DB47: 93.09606022 | DC47: 97.69868674 | DD47: 90.79474696 | DE47: 100 | DF47: 81.58949391 | DG47: 100 | DH47: 76.98686739 | DI47: 97.69868674 | DJ47: 100 | DK47: 90.79474696 | DL47: . | DM47: 100 | DN47: 97.69868674 | DO47: 88.4934337 | DP47: 100 | DQ47: 93.09606022 | DR47: 93.09606022 | DS47: . | DT47: 97.69868674 | DU47: . | DV47: 100 | DW47: 100 | DX47: 100 | DY47: . | DZ47: . | EA47: 100 | EB47: 86.19212044 | EC47: 100 | ED47: 95.39737348 | EE47: 95.39737348 | EF47: 93.09606022 | EG47: 49.37110826 | EH47: . | EI47: 90.98455447 | EJ47: 96.31789878 | EK47: 91.81755285 | EL47: 97.31513453 | EM47: 86.42225176 | EN47: 88.94423447 | EO47: 89.95797393 | EP47: 97.23842409 | EQ47: 92.47725149 | ER47: 89.72080077 | ES47: 89.413959 | ET47: 89.15095177 | EU47: 88.94423447 | EV47: 94.24671685 | EW47: 86.76744875 | EX47: 76.98686739 | EY47: 91.12350599 | EZ47: 91.41499611 | FA47: . | FB47: 1 | FC47: 41 | FD47: . | FE47: . | FF47: 26 | FG47: 37 | FH47: . | FI47: 1 | FJ47: 26 | FK47: 17 | FL47: . | FM47: 1 | FN47: 43 | FO47: 32 | FP47: 1 | FQ47: 17 | FR47: . | FS47: 17 | FT47: 37 | FU47: . | FV47: 1 | FW47: 1 | FX47: 26 | FY47: 17 | FZ47: 32 | GA47: 1 | GB47: 37 | GC47: 1 | GD47: 40 | GE47: 17 | GF47: 1 | GG47: 32 | GH47: . | GI47: 1 | GJ47: 17 | GK47: 35 | GL47: 1 | GM47: 26 | GN47: 26 | GO47: . | GP47: 17 | GQ47: . | GR47: 1 | GS47: 1 | GT47: 1 | GU47: . | GV47: . | GW47: 1 | GX47: 36 | GY47: 1 | GZ47: 24 | HA47: 24 | HB47: 26 | HC47: 42 | HD47: . | HE47: . | HF47: 2 | HG47: 3 | HH47: 1 | HI47: 5 | HJ47: 4 | HK47: . | HL47: 1 | HM47: 3 | HN47: 4 | HO47: 5 | HP47: 6 | HQ47: 7 | HR47: 2 | HS47: 8 | HT47: 3 | HU47: 2 | HV47: 1
A48: 47_1 | B48: aaaaaaaaaaaaaaaaaaaaaaaaaaaaaaaaaaaaaaaaaaaaaaxxaaaaaaa | C48: 0 | D48: 100 | E48: 25.29403818 | F48: 1 | G48: 5 | H48: 1.011761527 | I48: . | J48: 4.5 | K48: 4.5 | L48: 2 | M48: 1 | N48: 2 | O48: 4.5 | P48: 1 | Q48: 4 | R48: 2 | S48: 3.5 | T48: 2 | U48: 4 | V48: 3.5 | W48: 5 | X48: 2 | Y48: 3 | Z48: 2.5 | AA48: 3 | AB48: 3.5 | AC48: 2 | AD48: 3 | AE48: 2 | AF48: 3.5 | AG48: 2 | AH48: 3 | AI48: 1.5 | AJ48: 4 | AK48: 3 | AL48: 2 | AM48: 2 | AN48: 1.5 | AO48: 2.5 | AP48: 2 | AQ48: 2.5 | AR48: 3 | AS48: 2.5 | AT48: 2 | AU48: 3 | AV48: 4 | AW48: 1 | AX48: 2.5 | AY48: 1 | AZ48: 4.5 | BA48: 4 | BB48: 3 | BC48: . | BD48: . | BE48: 2 | BF48: 3 | BG48: 2.5 | BH48: 3 | BI48: 3.5 | BJ48: 2.5 | BK48: 3.5 | BL48: . | BM48: . | BN48: . | BO48: . | BP48: . | BQ48: . | BR48: . | BS48: . | BT48: . | BU48: . | BV48: . | BW48: . | BX48: . | BY48: . | BZ48: . | CA48: . | CB48: . | CC48: . | CD48: . | CE48: . | CF48: 12.5 | CG48: 12.5 | CH48: 75 | CI48: 100 | CJ48: 75 | CK48: 12.5 | CL48: 100 | CM48: 25 | CN48: 75 | CO48: 37.5 | CP48: 75 | CQ48: 25 | CR48: 37.5 | CS48: 0 | CT48: 75 | CU48: 50 | CV48: 62.5 | CW48: 50 | CX48: 37.5 | CY48: 75 | CZ48: 50 | DA48: 75 | DB48: 37.5 | DC48: 75 | DD48: 50 | DE48: 87.5 | DF48: 25 | DG48: 50 | DH48: 75 | DI48: 75 | DJ48: 87.5 | DK48: 62.5 | DL48: 75 | DM48: 62.5 | DN48: 50 | DO48: 62.5 | DP48: 75 | DQ48: 50 | DR48: 25 | DS48: 100 | DT48: 62.5 | DU48: 100 | DV48: 12.5 | DW48: 25 | DX48: 50 | DY48: . | DZ48: . | EA48: 75 | EB48: 50 | EC48: 62.5 | ED48: 50 | EE48: 37.5 | EF48: 62.5 | EG48: 37.5 | EH48: . | EI48: 55.52884615 | EJ48: 50 | EK48: 48.86363636 | EL48: 47.91666667 | EM48: 63.54166667 | EN48: 60 | EO48: 56.52173913 | EP48: 47.5 | EQ48: 59.375 | ER48: 53.47222222 | ES48: 35 | ET48: 42.5 | EU48: 60 | EV48: 45.83333333 | EW48: 60.83333333 | EX48: 87.5 | EY48: 60 | EZ48: 47.17741935 | FA48: . | FB48: 48 | FC48: 48 | FD48: 7 | FE48: 1 | FF48: 7 | FG48: 48 | FH48: 1 | FI48: 43 | FJ48: 7 | FK48: 37 | FL48: 7 | FM48: 43 | FN48: 37 | FO48: 52 | FP48: 7 | FQ48: 27 | FR48: 20 | FS48: 27 | FT48: 37 | FU48: 7 | FV48: 27 | FW48: 7 | FX48: 37 | FY48: 7 | FZ48: 27 | GA48: 5 | GB48: 43 | GC48: 27 | GD48: 7 | GE48: 7 | GF48: 5 | GG48: 20 | GH48: 7 | GI48: 20 | GJ48: 27 | GK48: 20 | GL48: 7 | GM48: 27 | GN48: 43 | GO48: 1 | GP48: 20 | GQ48: 1 | GR48: 48 | GS48: 43 | GT48: 27 | GU48: . | GV48: . | GW48: 7 | GX48: 27 | GY48: 20 | GZ48: 27 | HA48: 37 | HB48: 20 | HC48: 37 | HD48: . | HE48: . | HF48: 3 | HG48: 4 | HH48: 5 | HI48: 1 | HJ48: 2 | HK48: . | HL48: 5 | HM48: 3 | HN48: 4 | HO48: 8 | HP48: 7 | HQ48: 2 | HR48: 6 | HS48: 1 | HT48: 1 | HU48: 2 | HV48: 3
A49: 48_1 | B49: aeeeeeeeeeeeeeeeeeeeeeeeeeeeeeeeeeeeeeeexeeexexxeeeeeee | C49: 0 | D49: 100 | E49: 18.38505382 | F49: 0 | G49: 100 | H49: 18.38505382 | I49: . | J49: 50 | K49: 50 | L49: 50 | M49: 50 | N49: 50 | O49: 50 | P49: 50 | Q49: 50 | R49: 75 | S49: 50 | T49: 75 | U49: 75 | V49: 50 | W49: 100 | X49: 75 | Y49: 50 | Z49: 50 | AA49: 100 | AB49: 50 | AC49: 100 | AD49: 50 | AE49: 50 | AF49: 50 | AG49: 50 | AH49: 50 | AI49: 75 | AJ49: 100 | AK49: 50 | AL49: 75 | AM49: 50 | AN49: 50 | AO49: 75 | AP49: 0 | AQ49: 50 | AR49: 50 | AS49: 50 | AT49: 50 | AU49: 50 | AV49: 50 | AW49: . | AX49: 50 | AY49: 50 | AZ49: 50 | BA49: . | BB49: 50 | BC49: . | BD49: . | BE49: 100 | BF49: 50 | BG49: 50 | BH49: 50 | BI49: 50 | BJ49: 50 | BK49: 50 | BL49: . | BM49: . | BN49: . | BO49: . | BP49: . | BQ49: . | BR49: . | BS49: . | BT49: . | BU49: . | BV49: . | BW49: . | BX49: . | BY49: . | BZ49: . | CA49: . | CB49: . | CC49: . | CD49: . | CE49: . | CF49: 50 | CG49: 50 | CH49: 50 | CI49: 50 | CJ49: 50 | CK49: 50 | CL49: 50 | CM49: 50 | CN49: 25 | CO49: 50 | CP49: 25 | CQ49: 25 | CR49: 50 | CS49: 0 | CT49: 25 | CU49: 50 | CV49: 50 | CW49: 0 | CX49: 50 | CY49: 0 | CZ49: 50 | DA49: 50 | DB49: 50 | DC49: 50 | DD49: 50 | DE49: 25 | DF49: 0 | DG49: 50 | DH49: 25 | DI49: 50 | DJ49: 50 | DK49: 25 | DL49: 100 | DM49: 50 | DN49: 50 | DO49: 50 | DP49: 50 | DQ49: 50 | DR49: 50 | DS49: . | DT49: 50 | DU49: 50 | DV49: 50 | DW49: . | DX49: 50 | DY49: . | DZ49: . | EA49: 0 | EB49: 50 | EC49: 50 | ED49: 50 | EE49: 50 | EF49: 50 | EG49: 50 | EH49: . | EI49: 42.5 | EJ49: 28.57142857 | EK49: 40 | EL49: 45.83333333 | EM49: 45.83333333 | EN49: 46.66666667 | EO49: 42.04545455 | EP49: 45 | EQ49: 42.30769231 | ER49: 40.27777778 | ES49: 50 | ET49: 33.33333333 | EU49: 46.66666667 | EV49: 35 | EW49: 43.33333333 | EX49: 50 | EY49: 43.33333333 | EZ49: 40.83333333 | FA49: . | FB49: 2 | FC49: 2 | FD49: 2 | FE49: 2 | FF49: 2 | FG49: 2 | FH49: 2 | FI49: 2 | FJ49: 39 | FK49: 2 | FL49: 39 | FM49: 39 | FN49: 2 | FO49: 46 | FP49: 39 | FQ49: 2 | FR49: 2 | FS49: 46 | FT49: 2 | FU49: 46 | FV49: 2 | FW49: 2 | FX49: 2 | FY49: 2 | FZ49: 2 | GA49: 39 | GB49: 46 | GC49: 2 | GD49: 39 | GE49: 2 | GF49: 2 | GG49: 39 | GH49: 1 | GI49: 2 | GJ49: 2 | GK49: 2 | GL49: 2 | GM49: 2 | GN49: 2 | GO49: . | GP49: 2 | GQ49: 2 | GR49: 2 | GS49: . | GT49: 2 | GU49: . | GV49: . | GW49: 46 | GX49: 2 | GY49: 2 | GZ49: 2 | HA49: 2 | HB49: 2 | HC49: 2 | HD49: . | HE49: . | HF49: 5 | HG49: 4 | HH49: 2 | HI49: 2 | HJ49: 1 | HK49: . | HL49: 3 | HM49: 5 | HN49: 6 | HO49: 1 | HP49: 8 | HQ49: 2 | HR49: 7 | HS49: 4 | HT49: 1 | HU49: 2 | HV49: 3
A50: 49_1 | C50: 21.52424913 | D50: 99.99912679 | E50: 22.43611488 | F50: . | G50: . | H50: . | I50: . | J50: . | K50: . | L50: . | M50: . | N50: . | O50: . | P50: . | Q50: . | R50: . | S50: . | T50: . | U50: . | V50: . | W50: . | X50: . | Y50: . | Z50: . | AA50: . | AB50: . | AC50: . | AD50: . | AE50: . | AF50: . | AG50: . | AH50: . | AI50: . | AJ50: . | AK50: . | AL50: . | AM50: . | AN50: . | AO50: . | AP50: . | AQ50: . | AR50: . | AS50: . | AT50: . | AU50: . | AV50: . | AW50: . | AX50: . | AY50: . | AZ50: . | BA50: . | BB50: . | BC50: . | BD50: . | BE50: . | BF50: . | BG50: . | BH50: . | BI50: . | BJ50: . | BK50: . | BL50: . | BM50: . | BN50: . | BO50: . | BP50: . | BQ50: . | BR50: . | BS50: . | BT50: . | BU50: . | BV50: . | BW50: . | BX50: . | BY50: . | BZ50: . | CA50: . | CB50: . | CC50: . | CD50: . | CE50: . | CF50: 71.26783983 | CG50: 38.13384979 | CH50: 94.9958448 | CI50: 99.99912679 | CJ50: 84.9939883 | CK50: 28.33333333 | CL50: 99.9976045 | CM50: 84.9299557 | CN50: 39.97936622 | CO50: 47.64668948 | CP50: 84.97135569 | CQ50: 54.62686454 | CR50: 56.17374786 | CS50: 29.04651884 | CT50: 88.56943385 | CU50: 89.96768938 | CV50: 84.46819036 | CW50: 32.83107965 | CX50: 48.45938158 | CY50: 89.98856503 | CZ50: 84.66959237 | DA50: 89.57508776 | DB50: 68.63112122 | DC50: 79.62329656 | DD50: 75.57902062 | DE50: 89.99888537 | DF50: 23.33333333 | DG50: 84.93530187 | DH50: 94.99819514 | DI50: 94.99847393 | DJ50: 74.98084379 | DK50: 79.05147502 | DL50: 94.98408511 | DM50: 84.99265931 | DN50: 94.99916335 | DO50: 82.67495311 | DP50: 64.79554213 | DQ50: 79.73467503 | DR50: 57.32181423 | DS50: 94.90296745 | DT50: 72.52584206 | DU50: 99.84655447 | DV50: 47.65810317 | DW50: 21.52424913 | DX50: 79.99798479 | DY50: . | DZ50: . | EA50: 84.99190782 | EB50: 89.99507061 | EC50: 84.44113225 | ED50: 89.9316372 | EE50: 44.27707804 | EF50: 94.99479896 | EG50: 71.64002468 | EH50: . | EI50: 73.5766403 | EJ50: 65.6986397 | EK50: 61.06439738 | EL50: 83.3577671 | EM50: 85.20095407 | EN50: 73.74198367 | EO50: 72.30084115 | EP50: 82.03578265 | EQ50: 72.17902429 | ER50: 72.26366929 | ES50: 59.10126337 | ET50: 59.20563007 | EU50: 73.74198367 | EV50: 51.87337381 | EW50: 82.75330618 | EX50: 94.95012706 | EY50: 68.49408364 | EZ50: 71.89913801 | FA50: . | FB50: 36 | FC50: 47 | FD50: 7 | FE50: 1 | FF50: 18 | FG50: 50 | FH50: 2 | FI50: 23 | FJ50: 46 | FK50: 44 | FL50: 21 | FM50: 41 | FN50: 40 | FO50: 49 | FP50: 17 | FQ50: 14 | FR50: 25 | FS50: 48 | FT50: 42 | FU50: 13 | FV50: 24 | FW50: 16 | FX50: 37 | FY50: 30 | FZ50: 32 | GA50: 11 | GB50: 51 | GC50: 22 | GD50: 6 | GE50: 5 | GF50: 33 | GG50: 31 | GH50: 9 | GI50: 19 | GJ50: 4 | GK50: 27 | GL50: 38 | GM50: 29 | GN50: 39 | GO50: 10 | GP50: 34 | GQ50: 3 | GR50: 43 | GS50: 52 | GT50: 28 | GU50: . | GV50: . | GW50: 20 | GX50: 12 | GY50: 26 | GZ50: 15 | HA50: 45 | HB50: 8 | HC50: 35 | HD50: . | HE50: . | HF50: 4 | HG50: 5 | HH50: 2 | HI50: 1 | HJ50: 3 | HK50: . | HL50: 2 | HM50: 5 | HN50: 4 | HO50: 7 | HP50: 6 | HQ50: 3 | HR50: 8 | HS50: 1 | HT50: 1 | HU50: 3 | HV50: 2
A51: 50_1 | B51: aaaaaaaaaaaaaaaaaaaaaaaaaaaaaaaaaaaaaaaaaaaaaaxxaaaaaaa | C51: 0 | D51: 100 | E51: 20.75336588 | F51: 0 | G51: 6 | H51: 1.245201953 | I51: . | J51: 2 | K51: 3 | L51: 0 | M51: 0 | N51: 0 | O51: 2 | P51: 0 | Q51: 0 | R51: 0 | S51: 2 | T51: 0 | U51: 0 | V51: 0 | W51: 2 | X51: 0 | Y51: 0 | Z51: 0 | AA51: 2 | AB51: 6 | AC51: 0 | AD51: 0 | AE51: 0 | AF51: 2 | AG51: 0 | AH51: 0 | AI51: 0 | AJ51: 2 | AK51: 0 | AL51: 0 | AM51: 0 | AN51: 0 | AO51: 0 | AP51: 0 | AQ51: 0 | AR51: 0 | AS51: 2 | AT51: 0 | AU51: 0 | AV51: 3 | AW51: 0 | AX51: 2 | AY51: 0 | AZ51: 2 | BA51: 0 | BB51: 0 | BC51: . | BD51: . | BE51: 0 | BF51: 0 | BG51: 0 | BH51: 0 | BI51: 3 | BJ51: 0 | BK51: 1 | BL51: . | BM51: . | BN51: . | BO51: . | BP51: . | BQ51: . | BR51: . | BS51: . | BT51: . | BU51: . | BV51: . | BW51: . | BX51: . | BY51: . | BZ51: . | CA51: . | CB51: . | CC51: . | CD51: . | CE51: . | CF51: 66.66666667 | CG51: 50 | CH51: 100 | CI51: 100 | CJ51: 100 | CK51: 66.66666667 | CL51: 100 | CM51: 100 | CN51: 100 | CO51: 66.66666667 | CP51: 100 | CQ51: 100 | CR51: 100 | CS51: 66.66666667 | CT51: 100 | CU51: 100 | CV51: 100 | CW51: 66.66666667 | CX51: 0 | CY51: 100 | CZ51: 100 | DA51: 100 | DB51: 66.66666667 | DC51: 100 | DD51: 100 | DE51: 100 | DF51: 66.66666667 | DG51: 100 | DH51: 100 | DI51: 100 | DJ51: 100 | DK51: 100 | DL51: 100 | DM51: 100 | DN51: 100 | DO51: 66.66666667 | DP51: 100 | DQ51: 100 | DR51: 50 | DS51: 100 | DT51: 66.66666667 | DU51: 100 | DV51: 66.66666667 | DW51: 100 | DX51: 100 | DY51: . | DZ51: . | EA51: 100 | EB51: 100 | EC51: 100 | ED51: 100 | EE51: 50 | EF51: 100 | EG51: 83.33333333 | EH51: . | EI51: 88.46153846 | EJ51: 91.66666667 | EK51: 75.75757576 | EL51: 94.44444444 | EM51: 91.66666667 | EN51: 91.11111111 | EO51: 87.68115942 | EP51: 93.33333333 | EQ51: 92.85714286 | ER51: 82.40740741 | ES51: 73.33333333 | ET51: 85 | EU51: 91.11111111 | EV51: 69.44444444 | EW51: 91.11111111 | EX51: 100 | EY51: 81.11111111 | EZ51: 89.78494624 | FA51: . | FB51: 39 | FC51: 49 | FD51: 1 | FE51: 1 | FF51: 1 | FG51: 39 | FH51: 1 | FI51: 1 | FJ51: 1 | FK51: 39 | FL51: 1 | FM51: 1 | FN51: 1 | FO51: 39 | FP51: 1 | FQ51: 1 | FR51: 1 | FS51: 39 | FT51: 52 | FU51: 1 | FV51: 1 | FW51: 1 | FX51: 39 | FY51: 1 | FZ51: 1 | GA51: 1 | GB51: 39 | GC51: 1 | GD51: 1 | GE51: 1 | GF51: 1 | GG51: 1 | GH51: 1 | GI51: 1 | GJ51: 1 | GK51: 39 | GL51: 1 | GM51: 1 | GN51: 49 | GO51: 1 | GP51: 39 | GQ51: 1 | GR51: 39 | GS51: 1 | GT51: 1 | GU51: . | GV51: . | GW51: 1 | GX51: 1 | GY51: 1 | GZ51: 1 | HA51: 49 | HB51: 1 | HC51: 38 | HD51: . | HE51: . | HF51: 2 | HG51: 5 | HH51: 1 | HI51: 2 | HJ51: 4 | HK51: . | HL51: 1 | HM51: 2 | HN51: 6 | HO51: 7 | HP51: 5 | HQ51: 3 | HR51: 8 | HS51: 3 | HT51: 1 | HU51: 3 | HV51: 2
A52: 51_1 | B52: aeeeeeeeeeeeeeeeeeeeeeeeeeeeeeeeeeeeeeeeeeeeeexxeeeeeee | C52: 0 | D52: 100 | E52: 31.75960799 | F52: 0 | G52: 100 | H52: 31.75960799 | I52: . | J52: 50 | K52: 75 | L52: 100 | M52: 100 | N52: 75 | O52: 50 | P52: 100 | Q52: 75 | R52: 0 | S52: 0 | T52: 50 | U52: 0 | V52: 0 | W52: 0 | X52: 75 | Y52: 75 | Z52: 75 | AA52: 25 | AB52: 25 | AC52: 75 | AD52: 75 | AE52: 75 | AF52: 75 | AG52: 75 | AH52: 50 | AI52: 100 | AJ52: 25 | AK52: 75 | AL52: 75 | AM52: 100 | AN52: 50 | AO52: 50 | AP52: 100 | AQ52: 75 | AR52: 100 | AS52: 75 | AT52: 0 | AU52: 50 | AV52: 50 | AW52: 100 | AX52: 50 | AY52: 100 | AZ52: 50 | BA52: 0 | BB52: 50 | BC52: . | BD52: . | BE52: 75 | BF52: 75 | BG52: 50 | BH52: 75 | BI52: 25 | BJ52: 100 | BK52: 50 | BL52: . | BM52: . | BN52: . | BO52: . | BP52: . | BQ52: . | BR52: . | BS52: . | BT52: . | BU52: . | BV52: . | BW52: . | BX52: . | BY52: . | BZ52: . | CA52: . | CB52: . | CC52: . | CD52: . | CE52: . | CF52: 50 | CG52: 75 | CH52: 100 | CI52: 100 | CJ52: 75 | CK52: 50 | CL52: 100 | CM52: 75 | CN52: 0 | CO52: 0 | CP52: 50 | CQ52: 0 | CR52: 0 | CS52: 0 | CT52: 75 | CU52: 75 | CV52: 75 | CW52: 25 | CX52: 25 | CY52: 75 | CZ52: 75 | DA52: 75 | DB52: 75 | DC52: 75 | DD52: 50 | DE52: 100 | DF52: 25 | DG52: 75 | DH52: 75 | DI52: 100 | DJ52: 50 | DK52: 50 | DL52: 100 | DM52: 75 | DN52: 100 | DO52: 75 | DP52: 0 | DQ52: 50 | DR52: 50 | DS52: 100 | DT52: 50 | DU52: 100 | DV52: 50 | DW52: 0 | DX52: 50 | DY52: . | DZ52: . | EA52: 75 | EB52: 75 | EC52: 50 | ED52: 75 | EE52: 25 | EF52: 100 | EG52: 50 | EH52: . | EI52: 59.61538462 | EJ52: 40.625 | EK52: 47.72727273 | EL52: 66.66666667 | EM52: 83.33333333 | EN52: 56.66666667 | EO52: 58.69565217 | EP52: 65 | EQ52: 53.57142857 | ER52: 61.11111111 | ES52: 50 | ET52: 45 | EU52: 56.66666667 | EV52: 33.33333333 | EW52: 78.33333333 | EX52: 87.5 | EY52: 53.33333333 | EZ52: 57.25806452 | FA52: . | FB52: 29 | FC52: 11 | FD52: 1 | FE52: 1 | FF52: 11 | FG52: 29 | FH52: 1 | FI52: 11 | FJ52: 46 | FK52: 46 | FL52: 29 | FM52: 46 | FN52: 46 | FO52: 46 | FP52: 11 | FQ52: 11 | FR52: 11 | FS52: 42 | FT52: 42 | FU52: 11 | FV52: 11 | FW52: 11 | FX52: 11 | FY52: 11 | FZ52: 29 | GA52: 1 | GB52: 42 | GC52: 11 | GD52: 11 | GE52: 1 | GF52: 29 | GG52: 29 | GH52: 1 | GI52: 11 | GJ52: 1 | GK52: 11 | GL52: 46 | GM52: 29 | GN52: 29 | GO52: 1 | GP52: 29 | GQ52: 1 | GR52: 29 | GS52: 46 | GT52: 29 | GU52: . | GV52: . | GW52: 11 | GX52: 11 | GY52: 29 | GZ52: 11 | HA52: 42 | HB52: 1 | HC52: 29 | HD52: . | HE52: . | HF52: 5 | HG52: 4 | HH52: 2 | HI52: 1 | HJ52: 3 | HK52: . | HL52: 2 | HM52: 5 | HN52: 3 | HO52: 6 | HP52: 7 | HQ52: 4 | HR52: 8 | HS52: 1 | HT52: 1 | HU52: 3 | HV52: 2
A53: 52_1 | B53: aeeeeeeeeeeeeeeeeeeeeeeeeeeeeeeeeeeeeeeeeeeeeexxeeeeeee | C53: 0 | D53: 100 | E53: 26.50094623 | F53: 0 | G53: 100 | H53: 26.50094623 | I53: . | J53: 50 | K53: 50 | L53: 75 | M53: 100 | N53: 50 | O53: 25 | P53: 100 | Q53: 50 | R53: 0 | S53: 25 | T53: 75 | U53: 50 | V53: 50 | W53: 0 | X53: 75 | Y53: 75 | Z53: 50 | AA53: 0 | AB53: 25 | AC53: 75 | AD53: 50 | AE53: 75 | AF53: 25 | AG53: 25 | AH53: 50 | AI53: 50 | AJ53: 25 | AK53: 50 | AL53: 100 | AM53: 75 | AN53: 25 | AO53: 75 | AP53: 75 | AQ53: 50 | AR53: 75 | AS53: 75 | AT53: 25 | AU53: 50 | AV53: 25 | AW53: 75 | AX53: 50 | AY53: 100 | AZ53: 25 | BA53: 0 | BB53: 50 | BC53: . | BD53: . | BE53: 50 | BF53: 75 | BG53: 75 | BH53: 75 | BI53: 50 | BJ53: 75 | BK53: 50 | BL53: . | BM53: . | BN53: . | BO53: . | BP53: . | BQ53: . | BR53: . | BS53: . | BT53: . | BU53: . | BV53: . | BW53: . | BX53: . | BY53: . | BZ53: . | CA53: . | CB53: . | CC53: . | CD53: . | CE53: . | CF53: 50 | CG53: 50 | CH53: 75 | CI53: 100 | CJ53: 50 | CK53: 25 | CL53: 100 | CM53: 50 | CN53: 0 | CO53: 25 | CP53: 75 | CQ53: 50 | CR53: 50 | CS53: 0 | CT53: 75 | CU53: 75 | CV53: 50 | CW53: 0 | CX53: 25 | CY53: 75 | CZ53: 50 | DA53: 75 | DB53: 25 | DC53: 25 | DD53: 50 | DE53: 50 | DF53: 25 | DG53: 50 | DH53: 100 | DI53: 75 | DJ53: 25 | DK53: 75 | DL53: 75 | DM53: 50 | DN53: 75 | DO53: 75 | DP53: 25 | DQ53: 50 | DR53: 25 | DS53: 75 | DT53: 50 | DU53: 100 | DV53: 25 | DW53: 0 | DX53: 50 | DY53: . | DZ53: . | EA53: 50 | EB53: 75 | EC53: 75 | ED53: 75 | EE53: 50 | EF53: 75 | EG53: 50 | EH53: . | EI53: 52.88461538 | EJ53: 40.625 | EK53: 45.45454545 | EL53: 62.5 | EM53: 68.75 | EN53: 48.33333333 | EO53: 51.63043478 | EP53: 60 | EQ53: 48.21428571 | ER53: 54.16666667 | ES53: 45 | ET53: 40 | EU53: 48.33333333 | EV53: 33.33333333 | EW53: 66.66666667 | EX53: 87.5 | EY53: 43.33333333 | EZ53: 50.80645161 | FA53: . | FB53: 21 | FC53: 21 | FD53: 5 | FE53: 1 | FF53: 21 | FG53: 39 | FH53: 1 | FI53: 21 | FJ53: 49 | FK53: 39 | FL53: 5 | FM53: 21 | FN53: 21 | FO53: 49 | FP53: 5 | FQ53: 5 | FR53: 21 | FS53: 49 | FT53: 39 | FU53: 5 | FV53: 21 | FW53: 5 | FX53: 39 | FY53: 39 | FZ53: 21 | GA53: 21 | GB53: 39 | GC53: 21 | GD53: 1 | GE53: 5 | GF53: 39 | GG53: 5 | GH53: 5 | GI53: 21 | GJ53: 5 | GK53: 5 | GL53: 39 | GM53: 21 | GN53: 39 | GO53: 5 | GP53: 21 | GQ53: 1 | GR53: 39 | GS53: 49 | GT53: 21 | GU53: . | GV53: . | GW53: 21 | GX53: 5 | GY53: 5 | GZ53: 5 | HA53: 21 | HB53: 5 | HC53: 21 | HD53: . | HE53: . | HF53: 5 | HG53: 4 | HH53: 2 | HI53: 1 | HJ53: 3 | HK53: . | HL53: 2 | HM53: 5 | HN53: 3 | HO53: 6 | HP53: 7 | HQ53: 4 | HR53: 8 | HS53: 1 | HT53: 1 | HU53: 3 | HV53: 2
A54: 53_1 | B54: aezeeezeezeeeezeeeeeeeeeeeezeeeeeeeeeeeeeeeeeexxeeeezee | C54: 0 | D54: 100 | E54: 34.819865 | F54: 0 | G54: 4713.720482 | H54: 1641.311108 | I54: . | J54: 454.498049 | K54: 4713.720482 | L54: 0 | M54: 0 | N54: 0 | O54: 4713.720482 | P54: 0 | Q54: 0 | R54: 4713.720482 | S54: 1673.778511 | T54: 0 | U54: 2497.45943 | V54: 3252.551582 | W54: 4713.720482 | X54: 0 | Y54: 0 | Z54: 0 | AA54: 1296.804294 | AB54: 234.7559162 | AC54: 0 | AD54: 0 | AE54: 0 | AF54: 1086.415558 | AG54: 0 | AH54: 1032.295787 | AI54: 0 | AJ54: 4713.720482 | AK54: 0 | AL54: 0 | AM54: 0 | AN54: 0 | AO54: 0 | AP54: 0 | AQ54: 0 | AR54: 0 | AS54: 0 | AT54: 42.47547597 | AU54: 56.5823594 | AV54: 0 | AW54: 0 | AX54: 46.84483632 | AY54: 0 | AZ54: 159.1423121 | BA54: 4354.476265 | BB54: 0 | BC54: . | BD54: . | BE54: 0 | BF54: 0 | BG54: 26.38130304 | BH54: 0 | BI54: 4713.720482 | BJ54: 0 | BK54: 1183.609097 | BL54: . | BM54: . | BN54: . | BO54: . | BP54: . | BQ54: . | BR54: . | BS54: . | BT54: . | BU54: . | BV54: . | BW54: . | BX54: . | BY54: . | BZ54: . | CA54: . | CB54: . | CC54: . | CD54: . | CE54: . | CF54: 90.35797624 | CG54: 0 | CH54: 100 | CI54: 100 | CJ54: 100 | CK54: 0 | CL54: 100 | CM54: 100 | CN54: 0 | CO54: 64.49134993 | CP54: 100 | CQ54: 47.01723534 | CR54: 30.99820843 | CS54: 0 | CT54: 100 | CU54: 100 | CV54: 100 | CW54: 72.48873159 | CX54: 95.01973193 | CY54: 100 | CZ54: 100 | DA54: 100 | DB54: 76.95205811 | DC54: 100 | DD54: 78.10019091 | DE54: 100 | DF54: 0 | DG54: 100 | DH54: 100 | DI54: 100 | DJ54: 100 | DK54: 100 | DL54: 100 | DM54: 100 | DN54: 100 | DO54: 100 | DP54: 99.09889702 | DQ54: 98.79962421 | DR54: 100 | DS54: 100 | DT54: 99.0062025 | DU54: 100 | DV54: 96.62384919 | DW54: 7.621245651 | DX54: 100 | DY54: . | DZ54: . | EA54: 100 | EB54: 100 | EC54: 99.4403295 | ED54: 100 | EE54: 0 | EF54: 100 | EG54: 74.89012975 | EH54: . | EI54: 81.36357231 | EJ54: 63.93857316 | EK54: 68.47544546 | EL54: 98.39299604 | EM54: 89.57417748 | EN54: 86.7279446 | EO54: 79.14234313 | EP54: 98.07159525 | EQ54: 82.98645311 | ER54: 78.91659912 | ES54: 55.62003818 | ET54: 51.15085853 | EU54: 86.7279446 | EV54: 58.87165001 | EW54: 84.99267532 | EX54: 100 | EY54: 75.56667391 | EZ54: 80.56147263 | FA54: . | FB54: 38 | FC54: 47 | FD54: 1 | FE54: 1 | FF54: 1 | FG54: 47 | FH54: 1 | FI54: 1 | FJ54: 47 | FK54: 43 | FL54: 1 | FM54: 44 | FN54: 45 | FO54: 47 | FP54: 1 | FQ54: 1 | FR54: 1 | FS54: 42 | FT54: 37 | FU54: 1 | FV54: 1 | FW54: 1 | FX54: 40 | FY54: 1 | FZ54: 39 | GA54: 1 | GB54: 47 | GC54: 1 | GD54: 1 | GE54: 1 | GF54: 1 | GG54: 1 | GH54: 1 | GI54: 1 | GJ54: 1 | GK54: 1 | GL54: 33 | GM54: 35 | GN54: 1 | GO54: 1 | GP54: 34 | GQ54: 1 | GR54: 36 | GS54: 46 | GT54: 1 | GU54: . | GV54: . | GW54: 1 | GX54: 1 | GY54: 32 | GZ54: 1 | HA54: 47 | HB54: 1 | HC54: 41 | HD54: . | HE54: . | HF54: 5 | HG54: 4 | HH54: 1 | HI54: 2 | HJ54: 3 | HK54: . | HL54: 1 | HM54: 4 | HN54: 5 | HO54: 7 | HP54: 8 | HQ54: 2 | HR54: 6 | HS54: 3 | HT54: 1 | HU54: 3 | HV54: 2
A55: 54_1 | B55: aaaaaataaaaaaaaaaataaaaaaaataaaaaaaaaaaaaaattaxxaaaaaaa | C55: 0 | D55: 99.99581673 | E55: 31.34010564 | F55: 0.1641531356 | G55: 3693.773837 | H55: 1157.629604 | I55: . | J55: 25.32830882 | K55: 3114.988729 | L55: 0.7770493021 | M55: 0.1709036531 | N55: 1.119922701 | O55: 3693.773837 | P55: 0.4520529987 | Q55: 12.94598917 | R55: 3.820448801 | S55: 662.1009544 | T55: 5.299898545 | U55: 882.1881106 | V55: 4.791916749 | W55: 791.7337284 | X55: 264.2183356 | Y55: 5.977024216 | Z55: 98.2286044 | AA55: 3693.773837 | AB55: 100.5843327 | AC55: 2.121536286 | AD55: 61.03202717 | AE55: 78.48591402 | AF55: 17.11614557 | AG55: 69.58231761 | AH55: 7.58509256 | AI55: 0.2154911177 | AJ55: 3693.773837 | AK55: 11.95861431 | AL55: 0.3429701379 | AM55: 0.2914809138 | AN55: 3.547558778 | AO55: 1098.632064 | AP55: 2.948925454 | AQ55: 1.365372068 | AR55: 0.1641531356 | AS55: 121.6046973 | AT55: 4.485971784 | AU55: 4.672976031 | AV55: 1418.08002 | AW55: 17.93040135 | AX55: 112.4352151 | AY55: 28.349213 | AZ55: 3693.773837 | BA55: 3693.773837 | BB55: 0.3818181818 | BC55: . | BD55: . | BE55: 1.504162299 | BF55: 0.9200331847 | BG55: 82.55300937 | BH55: 12.63543575 | BI55: 133.5247955 | BJ55: 0.9702027952 | BK55: 0.8717453109 | BL55: . | BM55: . | BN55: . | BO55: . | BP55: . | BQ55: . | BR55: . | BS55: . | BT55: . | BU55: . | BV55: . | BW55: . | BX55: . | BY55: . | BZ55: . | CA55: . | CB55: . | CC55: . | CD55: . | CE55: . | CF55: 99.31455625 | CG55: 15.66924894 | CH55: 99.979224 | CI55: 99.99563397 | CJ55: 99.96994151 | CK55: 0 | CL55: 99.98802251 | CM55: 99.6497785 | CN55: 99.8968311 | CO55: 82.07543078 | CP55: 99.85677847 | CQ55: 76.11708737 | CR55: 99.87053088 | CS55: 78.56592755 | CT55: 92.84716922 | CU55: 99.83844688 | CV55: 97.34095177 | CW55: 0 | CX55: 97.27717596 | CY55: 99.94282517 | CZ55: 98.34796184 | DA55: 97.8754388 | DB55: 99.5368813 | DC55: 98.11648278 | DD55: 99.7949122 | DE55: 99.99442687 | DF55: 0 | DG55: 99.67650936 | DH55: 99.99097568 | DI55: 99.99236963 | DJ55: 99.90421896 | DK55: 70.25737512 | DL55: 99.92042555 | DM55: 99.96329654 | DN55: 99.99581673 | DO55: 96.7080989 | DP55: 99.87881363 | DQ55: 99.87375092 | DR55: 61.60907116 | DS55: 99.51483724 | DT55: 96.95634112 | DU55: 99.23277235 | DV55: 0 | DW55: 0 | DX55: 99.98992396 | DY55: . | DZ55: . | EA55: 99.95953912 | EB55: 99.97535305 | EC55: 97.76533173 | ED55: 99.65818601 | EE55: 96.38539021 | EF55: 99.97399482 | EG55: 99.97666033 | EH55: . | EI55: 85.55809071 | EJ55: 91.63795869 | EK55: 67.90714751 | EL55: 94.78472836 | EM55: 92.68059287 | EN55: 85.87086267 | EO55: 84.35461623 | EP55: 93.77398466 | EQ55: 83.26581118 | ER55: 84.71656214 | ES55: 71.55294532 | ET55: 74.87729184 | EU55: 85.87086267 | EV55: 64.38410793 | EW55: 92.6627445 | EX55: 99.7506353 | EY55: 89.12596654 | EZ55: 81.08475506 | FA55: . | FB55: 30 | FC55: 47 | FD55: 8 | FE55: 2 | FF55: 12 | FG55: 48 | FH55: 7 | FI55: 27 | FJ55: 18 | FK55: 42 | FL55: 22 | FM55: 44 | FN55: 21 | FO55: 43 | FP55: 41 | FQ55: 23 | FR55: 36 | FS55: 48 | FT55: 37 | FU55: 15 | FV55: 32 | FW55: 34 | FX55: 28 | FY55: 33 | FZ55: 24 | GA55: 3 | GB55: 48 | GC55: 25 | GD55: 5 | GE55: 4 | GF55: 17 | GG55: 45 | GH55: 16 | GI55: 13 | GJ55: 1 | GK55: 39 | GL55: 19 | GM55: 20 | GN55: 46 | GO55: 29 | GP55: 38 | GQ55: 31 | GR55: 48 | GS55: 48 | GT55: 6 | GU55: . | GV55: . | GW55: 14 | GX55: 10 | GY55: 35 | GZ55: 26 | HA55: 40 | HB55: 11 | HC55: 9 | HD55: . | HE55: . | HF55: 3 | HG55: 5 | HH55: 1 | HI55: 2 | HJ55: 4 | HK55: . | HL55: 1 | HM55: 5 | HN55: 4 | HO55: 7 | HP55: 6 | HQ55: 3 | HR55: 8 | HS55: 2 | HT55: 1 | HU55: 2 | HV55: 3
A56: 55_1 | C56: 10.96127705 | D56: 77.64644159 | E56: 16.87980668 | F56: . | G56: . | H56: . | I56: . | J56: . | K56: . | L56: . | M56: . | N56: . | O56: . | P56: . | Q56: . | R56: . | S56: . | T56: . | U56: . | V56: . | W56: . | X56: . | Y56: . | Z56: . | AA56: . | AB56: . | AC56: . | AD56: . | AE56: . | AF56: . | AG56: . | AH56: . | AI56: . | AJ56: . | AK56: . | AL56: . | AM56: . | AN56: . | AO56: . | AP56: . | AQ56: . | AR56: . | AS56: . | AT56: . | AU56: . | AV56: . | AW56: . | AX56: . | AY56: . | AZ56: . | BA56: . | BB56: . | BC56: . | BD56: . | BE56: . | BF56: . | BG56: . | BH56: . | BI56: . | BJ56: . | BK56: . | BL56: . | BM56: . | BN56: . | BO56: . | BP56: . | BQ56: . | BR56: . | BS56: . | BT56: . | BU56: . | BV56: . | BW56: . | BX56: . | BY56: . | BZ56: . | CA56: . | CB56: . | CC56: . | CD56: . | CE56: . | CF56: 35.63639259 | CG56: 26.81983218 | CH56: 64.47466746 | CI56: 71.06397338 | CJ56: 51.65227693 | CK56: 33.34193802 | CL56: 77.64644159 | CM56: 37.04406288 | CN56: 36.411644 | CO56: 28.70070235 | CP56: 39.29531316 | CQ56: 29.61136728 | CR56: 35.9255438 | CS56: 25.66178614 | CT56: 39.40968675 | CU56: 26.20553699 | CV56: 17.1252329 | CW56: 24.40431811 | CX56: 33.31786271 | CY56: 39.71592688 | CZ56: 38.82329602 | DA56: 71.52689643 | DB56: 38.39470992 | DC56: 41.79336765 | DD56: 52.30974889 | DE56: 60.56539469 | DF56: 36.34568445 | DG56: 18.69511808 | DH56: 68.83664558 | DI56: 57.24523691 | DJ56: 55.08823213 | DK56: 38.92769706 | DL56: 74.86483635 | DM56: 34.95074002 | DN56: 61.09853129 | DO56: 68.19725632 | DP56: 46.23604413 | DQ56: 47.37325284 | DR56: 35.75941202 | DS56: 64.27994062 | DT56: 68.56699943 | DU56: 66.23057799 | DV56: 49.08412989 | DW56: 10.96127705 | DX56: 74.6242855 | DY56: . | DZ56: . | EA56: 30.01297604 | EB56: 62.29856098 | EC56: 32.26792482 | ED56: 41.17387796 | EE56: 49.90977685 | EF56: 50.64849051 | EG56: 32.81826874 | EH56: . | EI56: 45.25718641 | EJ56: 34.81883288 | EK56: 40.65804296 | EL56: 32.59822712 | EM56: 56.39964396 | EN56: 50.34663117 | EO56: 46.90835501 | EP56: 33.87676514 | EQ56: 43.24732388 | ER56: 42.16486277 | ES56: 46.72388735 | ET56: 33.87124332 | EU56: 50.34663117 | EV56: 35.05211173 | EW56: 55.39911017 | EX56: 65.19229255 | EY56: 44.85148196 | EZ56: 41.59508737 | FA56: . | FB56: 37 | FC56: 46 | FD56: 10 | FE56: 5 | FF56: 18 | FG56: 39 | FH56: 1 | FI56: 32 | FJ56: 33 | FK56: 45 | FL56: 28 | FM56: 44 | FN56: 35 | FO56: 48 | FP56: 27 | FQ56: 47 | FR56: 51 | FS56: 49 | FT56: 40 | FU56: 26 | FV56: 30 | FW56: 4 | FX56: 31 | FY56: 24 | FZ56: 17 | GA56: 14 | GB56: 34 | GC56: 50 | GD56: 6 | GE56: 15 | GF56: 16 | GG56: 29 | GH56: 2 | GI56: 38 | GJ56: 13 | GK56: 8 | GL56: 23 | GM56: 22 | GN56: 36 | GO56: 11 | GP56: 7 | GQ56: 9 | GR56: 21 | GS56: 52 | GT56: 3 | GU56: . | GV56: . | GW56: 43 | GX56: 12 | GY56: 42 | GZ56: 25 | HA56: 20 | HB56: 19 | HC56: 41 | HD56: . | HE56: . | HF56: 4 | HG56: 3 | HH56: 5 | HI56: 1 | HJ56: 2 | HK56: . | HL56: 7 | HM56: 4 | HN56: 5 | HO56: 3 | HP56: 8 | HQ56: 2 | HR56: 6 | HS56: 1 | HT56: 1 | HU56: 2 | HV56: 3
A57: 56_1 | C57: 2.849002849 | D57: 91.01851852 | E57: 26.17247907 | F57: . | G57: . | H57: . | I57: . | J57: . | K57: . | L57: . | M57: . | N57: . | O57: . | P57: . | Q57: . | R57: . | S57: . | T57: . | U57: . | V57: . | W57: . | X57: . | Y57: . | Z57: . | AA57: . | AB57: . | AC57: . | AD57: . | AE57: . | AF57: . | AG57: . | AH57: . | AI57: . | AJ57: . | AK57: . | AL57: . | AM57: . | AN57: . | AO57: . | AP57: . | AQ57: . | AR57: . | AS57: . | AT57: . | AU57: . | AV57: . | AW57: . | AX57: . | AY57: . | AZ57: . | BA57: . | BB57: . | BC57: . | BD57: . | BE57: . | BF57: . | BG57: . | BH57: . | BI57: . | BJ57: . | BK57: . | BL57: . | BM57: . | BN57: . | BO57: . | BP57: . | BQ57: . | BR57: . | BS57: . | BT57: . | BU57: . | BV57: . | BW57: . | BX57: . | BY57: . | BZ57: . | CA57: . | CB57: . | CC57: . | CD57: . | CE57: . | CF57: 23.47578348 | CG57: 6.182336182 | CH57: 74.13817664 | CI57: 78.93162393 | CJ57: 49.06695157 | CK57: 13.3048433 | CL57: 75.53418803 | CM57: 18.51139601 | CN57: 24.75783476 | CO57: 16.66666667 | CP57: 15.05223172 | CQ57: 15.6980057 | CR57: 26.6025641 | CS57: 5.94017094 | CT57: 40.85944919 | CU57: 20.45584046 | CV57: 6.137226971 | CW57: 7.293447293 | CX57: 35.04273504 | CY57: 31.71889839 | CZ57: 25.93779677 | DA57: 76.3960114 | DB57: 20.6980057 | DC57: 68.76780627 | DD57: 57.02279202 | DE57: 53.61823362 | DF57: 20.94017094 | DG57: 2.849002849 | DH57: 83.68945869 | DI57: 56.91595442 | DJ57: 57.36467236 | DK57: 40.07834758 | DL57: 85.87606838 | DM57: 22.67806268 | DN57: 68.34045584 | DO57: 79.31623932 | DP57: 62.01566952 | DQ57: 53.8960114 | DR57: 12.36467236 | DS57: 66.03751187 | DT57: 75.76923077 | DU57: 67.37891738 | DV57: 52.50712251 | DW57: 6.182336182 | DX57: 91.01851852 | DY57: . | DZ57: . | EA57: 15.05223172 | EB57: 61.01851852 | EC57: 21.14672365 | ED57: 20.14245014 | EE57: 36.3960114 | EF57: 37.15811966 | EG57: 24.69373219 | EH57: . | EI57: 40.5507159 | EJ57: 23.18346391 | EK57: 31.99235949 | EL57: 21.61324786 | EM57: 56.73274771 | EN57: 50.71874011 | EO57: 43.02082043 | EP57: 21.84472934 | EQ57: 39.31632411 | ER57: 34.29698217 | ES57: 36.02136752 | ET57: 20.49548908 | EU57: 50.71874011 | EV57: 30.46612852 | EW57: 54.34203862 | EX57: 65.59472934 | EY57: 38.22333017 | EZ57: 36.82964188 | FA57: . | FB57: 33 | FC57: 48 | FD57: 9 | FE57: 5 | FF57: 22 | FG57: 45 | FH57: 8 | FI57: 40 | FJ57: 31 | FK57: 41 | FL57: 43 | FM57: 42 | FN57: 29 | FO57: 51 | FP57: 23 | FQ57: 38 | FR57: 50 | FS57: 47 | FT57: 27 | FU57: 28 | FV57: 30 | FW57: 6 | FX57: 37 | FY57: 10 | FZ57: 17 | GA57: 20 | GB57: 36 | GC57: 52 | GD57: 3 | GE57: 18 | GF57: 16 | GG57: 24 | GH57: 2 | GI57: 34 | GJ57: 11 | GK57: 4 | GL57: 14 | GM57: 19 | GN57: 46 | GO57: 13 | GP57: 7 | GQ57: 12 | GR57: 21 | GS57: 48 | GT57: 1 | GU57: . | GV57: . | GW57: 43 | GX57: 15 | GY57: 35 | GZ57: 39 | HA57: 26 | HB57: 25 | HC57: 32 | HD57: . | HE57: . | HF57: 4 | HG57: 3 | HH57: 5 | HI57: 1 | HJ57: 2 | HK57: . | HL57: 7 | HM57: 3 | HN57: 5 | HO57: 4 | HP57: 8 | HQ57: 2 | HR57: 6 | HS57: 1 | HT57: 1 | HU57: 2 | HV57: 3
A58: 57_1 | B58: aaaaaaaaaaaaaaaaaaaaaaaaaaaaaaaaaaaaaaaaaaaaaaxxaaaaaaa | C58: 0 | D58: 100 | E58: 31.37137064 | F58: 1 | G58: 7 | H58: 1.882282238 | I58: . | J58: 6 | K58: 6 | L58: 2 | M58: 2 | N58: 4 | O58: 6 | P58: 1 | Q58: 7 | R58: 3 | S58: 6 | T58: 6 | U58: 6 | V58: 6 | W58: 7 | X58: 4 | Y58: 6 | Z58: 7 | AA58: 7 | AB58: 5 | AC58: 5 | AD58: 7 | AE58: 2 | AF58: 6 | AG58: 4 | AH58: 6 | AI58: 4 | AJ58: 5 | AK58: 7 | AL58: 2 | AM58: 3 | AN58: 2 | AO58: 6 | AP58: 1 | AQ58: 5 | AR58: 3 | AS58: 2 | AT58: 4 | AU58: 4 | AV58: 7 | AW58: 1 | AX58: 3 | AY58: 3 | AZ58: 4 | BA58: 6 | BB58: 1 | BC58: . | BD58: . | BE58: 6 | BF58: 4 | BG58: 5 | BH58: 6 | BI58: 6 | BJ58: 5 | BK58: 6 | BL58: . | BM58: . | BN58: . | BO58: . | BP58: . | BQ58: . | BR58: . | BS58: . | BT58: . | BU58: . | BV58: . | BW58: . | BX58: . | BY58: . | BZ58: . | CA58: . | CB58: . | CC58: . | CD58: . | CE58: . | CF58: 16.66666667 | CG58: 16.66666667 | CH58: 83.33333333 | CI58: 83.33333333 | CJ58: 50 | CK58: 16.66666667 | CL58: 100 | CM58: 0 | CN58: 66.66666667 | CO58: 16.66666667 | CP58: 16.66666667 | CQ58: 16.66666667 | CR58: 16.66666667 | CS58: 0 | CT58: 50 | CU58: 16.66666667 | CV58: 0 | CW58: 0 | CX58: 33.33333333 | CY58: 33.33333333 | CZ58: 0 | DA58: 83.33333333 | DB58: 16.66666667 | DC58: 50 | DD58: 16.66666667 | DE58: 50 | DF58: 33.33333333 | DG58: 0 | DH58: 83.33333333 | DI58: 66.66666667 | DJ58: 83.33333333 | DK58: 16.66666667 | DL58: 100 | DM58: 33.33333333 | DN58: 66.66666667 | DO58: 83.33333333 | DP58: 50 | DQ58: 50 | DR58: 0 | DS58: 100 | DT58: 66.66666667 | DU58: 66.66666667 | DV58: 50 | DW58: 16.66666667 | DX58: 100 | DY58: . | DZ58: . | EA58: 16.66666667 | EB58: 50 | EC58: 33.33333333 | ED58: 16.66666667 | EE58: 16.66666667 | EF58: 33.33333333 | EG58: 16.66666667 | EH58: . | EI58: 40.38461538 | EJ58: 29.16666667 | EK58: 25.75757576 | EL58: 16.66666667 | EM58: 59.72222222 | EN58: 51.11111111 | EO58: 43.47826087 | EP58: 16.66666667 | EQ58: 40.47619048 | ER58: 30.55555556 | ES58: 20 | ET58: 26.66666667 | EU58: 51.11111111 | EV58: 22.22222222 | EW58: 55.55555556 | EX58: 77.77777778 | EY58: 40 | EZ58: 33.33333333 | FA58: . | FB58: 30 | FC58: 30 | FD58: 5 | FE58: 5 | FF58: 16 | FG58: 30 | FH58: 1 | FI58: 46 | FJ58: 11 | FK58: 30 | FL58: 30 | FM58: 30 | FN58: 30 | FO58: 46 | FP58: 16 | FQ58: 30 | FR58: 46 | FS58: 46 | FT58: 24 | FU58: 24 | FV58: 46 | FW58: 5 | FX58: 30 | FY58: 16 | FZ58: 30 | GA58: 16 | GB58: 24 | GC58: 46 | GD58: 5 | GE58: 11 | GF58: 5 | GG58: 30 | GH58: 1 | GI58: 24 | GJ58: 11 | GK58: 5 | GL58: 16 | GM58: 16 | GN58: 46 | GO58: 1 | GP58: 11 | GQ58: 11 | GR58: 16 | GS58: 30 | GT58: 1 | GU58: . | GV58: . | GW58: 30 | GX58: 16 | GY58: 24 | GZ58: 30 | HA58: 30 | HB58: 24 | HC58: 30 | HD58: . | HE58: . | HF58: 3 | HG58: 4 | HH58: 5 | HI58: 1 | HJ58: 2 | HK58: . | HL58: 8 | HM58: 3 | HN58: 4 | HO58: 7 | HP58: 5 | HQ58: 2 | HR58: 6 | HS58: 1 | HT58: 1 | HU58: 2 | HV58: 3
A59: 58_1 | B59: aeeeeeeeeeeeeeeeeeeeeeeeeeeeeeeeeeeeeeeeeeeeeexxeeeeeee | C59: 0 | D59: 92.59259259 | E59: 23.16448804 | F59: 0 | G59: 92.59259259 | H59: 23.16448804 | I59: . | J59: 28.49002849 | K59: 14.24501425 | L59: 49.85754986 | M59: 64.1025641 | N59: 35.61253561 | O59: 49.85754986 | P59: 64.1025641 | Q59: 35.61253561 | R59: 7.122507123 | S59: 0 | T59: 28.49002849 | U59: 28.49002849 | V59: 42.73504274 | W59: 21.36752137 | X59: 14.24501425 | Y59: 35.61253561 | Z59: 14.24501425 | AA59: 14.24501425 | AB59: 64.1025641 | AC59: 28.49002849 | AD59: 56.98005698 | AE59: 56.98005698 | AF59: 28.49002849 | AG59: 85.47008547 | AH59: 71.22507123 | AI59: 56.98005698 | AJ59: 21.36752137 | AK59: 14.24501425 | AL59: 71.22507123 | AM59: 49.85754986 | AN59: 28.49002849 | AO59: 71.22507123 | AP59: 64.1025641 | AQ59: 35.61253561 | AR59: 56.98005698 | AS59: 85.47008547 | AT59: 14.24501425 | AU59: 56.98005698 | AV59: 28.49002849 | AW59: 35.61253561 | AX59: 42.73504274 | AY59: 85.47008547 | AZ59: 56.98005698 | BA59: 14.24501425 | BB59: 92.59259259 | BC59: . | BD59: . | BE59: 28.49002849 | BF59: 64.81481481 | BG59: 7.122507123 | BH59: 28.49002849 | BI59: 56.98005698 | BJ59: 42.73504274 | BK59: 49.85754986 | BL59: . | BM59: . | BN59: . | BO59: . | BP59: . | BQ59: . | BR59: . | BS59: . | BT59: . | BU59: . | BV59: . | BW59: . | BX59: . | BY59: . | BZ59: . | CA59: . | CB59: . | CC59: . | CD59: . | CE59: . | CF59: 28.49002849 | CG59: 14.24501425 | CH59: 49.85754986 | CI59: 64.1025641 | CJ59: 35.61253561 | CK59: 49.85754986 | CL59: 64.1025641 | CM59: 35.61253561 | CN59: 7.122507123 | CO59: 0 | CP59: 28.49002849 | CQ59: 28.49002849 | CR59: 42.73504274 | CS59: 21.36752137 | CT59: 14.24501425 | CU59: 35.61253561 | CV59: 14.24501425 | CW59: 14.24501425 | CX59: 64.1025641 | CY59: 28.49002849 | CZ59: 56.98005698 | DA59: 56.98005698 | DB59: 28.49002849 | DC59: 85.47008547 | DD59: 71.22507123 | DE59: 56.98005698 | DF59: 21.36752137 | DG59: 14.24501425 | DH59: 71.22507123 | DI59: 49.85754986 | DJ59: 28.49002849 | DK59: 71.22507123 | DL59: 64.1025641 | DM59: 35.61253561 | DN59: 56.98005698 | DO59: 85.47008547 | DP59: 14.24501425 | DQ59: 56.98005698 | DR59: 28.49002849 | DS59: 35.61253561 | DT59: 42.73504274 | DU59: 85.47008547 | DV59: 56.98005698 | DW59: 14.24501425 | DX59: 92.59259259 | DY59: . | DZ59: . | EA59: 28.49002849 | EB59: 64.81481481 | EC59: 7.122507123 | ED59: 28.49002849 | EE59: 56.98005698 | EF59: 42.73504274 | EG59: 49.85754986 | EH59: . | EI59: 42.33782599 | EJ59: 21.36752137 | EK59: 44.74229474 | EL59: 35.61253561 | EM59: 56.38651472 | EN59: 43.20987654 | EO59: 43.21503778 | EP59: 35.61253561 | EQ59: 36.37566138 | ER59: 43.92212726 | ES59: 54.27350427 | ET59: 23.5042735 | EU59: 43.20987654 | EV59: 39.17378917 | EW59: 56.55270655 | EX59: 58.1671415 | EY59: 38.46153846 | EZ59: 41.1497105 | FA59: . | FB59: 32 | FC59: 43 | FD59: 20 | FE59: 9 | FF59: 27 | FG59: 20 | FH59: 9 | FI59: 27 | FJ59: 50 | FK59: 52 | FL59: 32 | FM59: 32 | FN59: 24 | FO59: 41 | FP59: 43 | FQ59: 27 | FR59: 43 | FS59: 43 | FT59: 9 | FU59: 32 | FV59: 13 | FW59: 13 | FX59: 32 | FY59: 2 | FZ59: 5 | GA59: 13 | GB59: 41 | GC59: 43 | GD59: 5 | GE59: 20 | GF59: 32 | GG59: 5 | GH59: 9 | GI59: 27 | GJ59: 13 | GK59: 2 | GL59: 43 | GM59: 13 | GN59: 32 | GO59: 27 | GP59: 24 | GQ59: 2 | GR59: 13 | GS59: 43 | GT59: 1 | GU59: . | GV59: . | GW59: 32 | GX59: 8 | GY59: 50 | GZ59: 32 | HA59: 13 | HB59: 24 | HC59: 20 | HD59: . | HE59: . | HF59: 5 | HG59: 2 | HH59: 4 | HI59: 1 | HJ59: 3 | HK59: . | HL59: 7 | HM59: 6 | HN59: 3 | HO59: 2 | HP59: 8 | HQ59: 4 | HR59: 5 | HS59: 1 | HT59: 1 | HU59: 3 | HV59: 2
A60: 59_1 | B60: aeeeeeexeeexeeexexeexxeexeeeeeeeeeeeeeeexexeeexxxeeeeee | C60: 0 | D60: 100 | E60: 34.92767324 | F60: 1 | G60: 10 | H60: 3.143490592 | I60: . | J60: 5 | K60: 1 | L60: 9 | M60: 9 | N60: 7 | O60: 1 | P60: . | Q60: 3 | R60: 1 | S60: 3 | T60: . | U60: 3 | V60: 4 | W60: 1 | X60: . | Y60: 3 | Z60: . | AA60: 1 | AB60: 3 | AC60: . | AD60: . | AE60: 9 | AF60: 3 | AG60: . | AH60: 9 | AI60: 6 | AJ60: 1 | AK60: 1 | AL60: 9 | AM60: 7 | AN60: 9 | AO60: 6 | AP60: 10 | AQ60: 4 | AR60: 7 | AS60: 9 | AT60: 9 | AU60: 6 | AV60: 3 | AW60: . | AX60: 9 | AY60: . | AZ60: 9 | BA60: 1 | BB60: 10 | BC60: . | BD60: . | BE60: . | BF60: 7 | BG60: 3 | BH60: 2 | BI60: 4 | BJ60: 6 | BK60: 3 | BL60: . | BM60: . | BN60: . | BO60: . | BP60: . | BQ60: . | BR60: . | BS60: . | BT60: . | BU60: . | BV60: . | BW60: . | BX60: . | BY60: . | BZ60: . | CA60: . | CB60: . | CC60: . | CD60: . | CE60: . | CF60: 44.44444444 | CG60: 0 | CH60: 88.88888889 | CI60: 88.88888889 | CJ60: 66.66666667 | CK60: 0 | CL60: . | CM60: 22.22222222 | CN60: 0 | CO60: 22.22222222 | CP60: . | CQ60: 22.22222222 | CR60: 33.33333333 | CS60: 0 | CT60: . | CU60: 22.22222222 | CV60: . | CW60: 0 | CX60: 22.22222222 | CY60: . | CZ60: . | DA60: 88.88888889 | DB60: 22.22222222 | DC60: . | DD60: 88.88888889 | DE60: 55.55555556 | DF60: 0 | DG60: 0 | DH60: 88.88888889 | DI60: 66.66666667 | DJ60: 88.88888889 | DK60: 55.55555556 | DL60: 100 | DM60: 33.33333333 | DN60: 66.66666667 | DO60: 88.88888889 | DP60: 88.88888889 | DQ60: 55.55555556 | DR60: 22.22222222 | DS60: . | DT60: 88.88888889 | DU60: . | DV60: 88.88888889 | DW60: 0 | DX60: 100 | DY60: . | DZ60: . | EA60: . | EB60: 66.66666667 | EC60: 22.22222222 | ED60: 11.11111111 | EE60: 33.33333333 | EF60: 55.55555556 | EG60: 22.22222222 | EH60: . | EI60: 46.03174603 | EJ60: 13.33333333 | EK60: 29.16666667 | EL60: 27.77777778 | EM60: 66.66666667 | EN60: 61.11111111 | EO60: 49.07407407 | EP60: 28.88888889 | EQ60: 43.93939394 | ER60: 37.3015873 | ES60: 42.22222222 | ET60: 9.523809524 | EU60: 61.11111111 | EV60: 28.88888889 | EW60: 61.53846154 | EX60: 94.44444444 | EY60: 45.23809524 | EZ60: 42.73504274 | FA60: . | FB60: 21 | FC60: 35 | FD60: 3 | FE60: 3 | FF60: 13 | FG60: 35 | FH60: . | FI60: 25 | FJ60: 35 | FK60: 25 | FL60: . | FM60: 25 | FN60: 22 | FO60: 35 | FP60: . | FQ60: 25 | FR60: . | FS60: 35 | FT60: 25 | FU60: . | FV60: . | FW60: 3 | FX60: 25 | FY60: . | FZ60: 3 | GA60: 17 | GB60: 35 | GC60: 35 | GD60: 3 | GE60: 13 | GF60: 3 | GG60: 17 | GH60: 1 | GI60: 22 | GJ60: 13 | GK60: 3 | GL60: 3 | GM60: 17 | GN60: 25 | GO60: . | GP60: 3 | GQ60: . | GR60: 3 | GS60: 35 | GT60: 1 | GU60: . | GV60: . | GW60: . | GX60: 13 | GY60: 25 | GZ60: 34 | HA60: 22 | HB60: 17 | HC60: 25 | HD60: . | HE60: . | HF60: 5 | HG60: 3 | HH60: 4 | HI60: 1 | HJ60: 2 | HK60: . | HL60: 6 | HM60: 3 | HN60: 5 | HO60: 4 | HP60: 8 | HQ60: 2 | HR60: 6 | HS60: 1 | HT60: 1 | HU60: 2 | HV60: 3
A61: 60_1 | B61: aaaaaaaaaaaaaaaaaaaaaaaaaaaaaaaaaaaaaaaaaaaaaaxxaaaaaaa | C61: 0 | D61: 91.66666667 | E61: 27.57213979 | F61: 0 | G61: 7.333333333 | H61: 2.205771183 | I61: . | J61: 1.333333333 | K61: 0 | L61: 5.666666667 | M61: 4.666666667 | N61: 3 | O61: 0 | P61: 5 | Q61: 1 | R61: 4 | S61: 2.666666667 | T61: 0 | U61: 0 | V61: 2.333333333 | W61: 0.6666666667 | X61: 4.666666667 | Y61: 1.333333333 | Z61: 0.3333333333 | AA61: 0 | AB61: 2.666666667 | AC61: 2.666666667 | AD61: 1.666666667 | AE61: 6 | AF61: 2 | AG61: 5.666666667 | AH61: 3.333333333 | AI61: 4 | AJ61: 4 | AK61: 0 | AL61: 6 | AM61: 3.666666667 | AN61: 0.6666666667 | AO61: 1 | AP61: 7 | AQ61: 0 | AR61: 5 | AS61: 4 | AT61: 6.333333333 | AU61: 5 | AV61: 0 | AW61: 5 | AX61: 7.333333333 | AY61: 4 | AZ61: 0 | BA61: 0 | BB61: 5 | BC61: . | BD61: . | BE61: 0 | BF61: 3.666666667 | BG61: 1.666666667 | BH61: 2.666666667 | BI61: 3.333333333 | BJ61: 1.666666667 | BK61: 1 | BL61: . | BM61: . | BN61: . | BO61: . | BP61: . | BQ61: . | BR61: . | BS61: . | BT61: . | BU61: . | BV61: . | BW61: . | BX61: . | BY61: . | BZ61: . | CA61: . | CB61: . | CC61: . | CD61: . | CE61: . | CF61: 16.66666667 | CG61: 0 | CH61: 70.83333333 | CI61: 58.33333333 | CJ61: 37.5 | CK61: 0 | CL61: 62.5 | CM61: 12.5 | CN61: 50 | CO61: 33.33333333 | CP61: 0 | CQ61: 0 | CR61: 29.16666667 | CS61: 8.333333333 | CT61: 58.33333333 | CU61: 16.66666667 | CV61: 4.166666667 | CW61: 0 | CX61: 33.33333333 | CY61: 33.33333333 | CZ61: 20.83333333 | DA61: 75 | DB61: 25 | DC61: 70.83333333 | DD61: 41.66666667 | DE61: 50 | DF61: 50 | DG61: 0 | DH61: 75 | DI61: 45.83333333 | DJ61: 8.333333333 | DK61: 12.5 | DL61: 87.5 | DM61: 0 | DN61: 62.5 | DO61: 50 | DP61: 79.16666667 | DQ61: 62.5 | DR61: 0 | DS61: 62.5 | DT61: 91.66666667 | DU61: 50 | DV61: 0 | DW61: 0 | DX61: 62.5 | DY61: . | DZ61: . | EA61: 0 | EB61: 45.83333333 | EC61: 20.83333333 | ED61: 33.33333333 | EE61: 41.66666667 | EF61: 20.83333333 | EG61: 12.5 | EH61: . | EI61: 34.29487179 | EJ61: 25.52083333 | EK61: 24.62121212 | EL61: 13.19444444 | EM61: 43.75 | EN61: 46.94444444 | EO61: 37.04710145 | EP61: 12.5 | EQ61: 36.16071429 | ER61: 27.31481481 | ES61: 25.83333333 | ET61: 20.41666667 | EU61: 46.94444444 | EV61: 29.16666667 | EW61: 41.94444444 | EX61: 56.25 | EY61: 31.38888889 | EZ61: 31.4516129 | FA61: . | FB61: 34 | FC61: 42 | FD61: 6 | FE61: 13 | FF61: 24 | FG61: 42 | FH61: 8 | FI61: 36 | FJ61: 15 | FK61: 25 | FL61: 42 | FM61: 42 | FN61: 29 | FO61: 39 | FP61: 13 | FQ61: 34 | FR61: 41 | FS61: 42 | FT61: 25 | FU61: 25 | FV61: 31 | FW61: 4 | FX61: 30 | FY61: 6 | FZ61: 22 | GA61: 15 | GB61: 15 | GC61: 42 | GD61: 4 | GE61: 20 | GF61: 39 | GG61: 36 | GH61: 2 | GI61: 42 | GJ61: 8 | GK61: 15 | GL61: 3 | GM61: 8 | GN61: 42 | GO61: 8 | GP61: 1 | GQ61: 15 | GR61: 42 | GS61: 42 | GT61: 8 | GU61: . | GV61: . | GW61: 42 | GX61: 20 | GY61: 31 | GZ61: 25 | HA61: 22 | HB61: 31 | HC61: 36 | HD61: . | HE61: . | HF61: 3 | HG61: 4 | HH61: 5 | HI61: 2 | HJ61: 1 | HK61: . | HL61: 8 | HM61: 3 | HN61: 5 | HO61: 6 | HP61: 7 | HQ61: 1 | HR61: 4 | HS61: 2 | HT61: 1 | HU61: 3 | HV61: 2
A62: 61_1 | B62: aeeeeeexeeexeeexexeexxeexeeeeeeeeeeeeeeexexeeexxxeeeeee | C62: 0 | D62: 100 | E62: 34.6028727 | F62: 1 | G62: 10 | H62: 3.114258543 | I62: . | J62: 2 | K62: 1 | L62: 8 | M62: 10 | N62: 6 | O62: 1 | P62: . | Q62: 3 | R62: 1 | S62: 2 | T62: . | U62: 2 | V62: 2 | W62: 1 | X62: . | Y62: 2 | Z62: . | AA62: 3 | AB62: 3 | AC62: . | AD62: . | AE62: 8 | AF62: 2 | AG62: . | AH62: 7 | AI62: 6 | AJ62: 1 | AK62: 1 | AL62: 10 | AM62: 6 | AN62: 8 | AO62: 5 | AP62: 8 | AQ62: 2 | AR62: 9 | AS62: 9 | AT62: 8 | AU62: 5 | AV62: 2 | AW62: . | AX62: 9 | AY62: . | AZ62: 7 | BA62: 1 | BB62: 10 | BC62: . | BD62: . | BE62: . | BF62: 8 | BG62: 3 | BH62: 2 | BI62: 4 | BJ62: 4 | BK62: 3 | BL62: . | BM62: . | BN62: . | BO62: . | BP62: . | BQ62: . | BR62: . | BS62: . | BT62: . | BU62: . | BV62: . | BW62: . | BX62: . | BY62: . | BZ62: . | CA62: . | CB62: . | CC62: . | CD62: . | CE62: . | CF62: 11.11111111 | CG62: 0 | CH62: 77.77777778 | CI62: 100 | CJ62: 55.55555556 | CK62: 0 | CL62: . | CM62: 22.22222222 | CN62: 0 | CO62: 11.11111111 | CP62: . | CQ62: 11.11111111 | CR62: 11.11111111 | CS62: 0 | CT62: . | CU62: 11.11111111 | CV62: . | CW62: 22.22222222 | CX62: 22.22222222 | CY62: . | CZ62: . | DA62: 77.77777778 | DB62: 11.11111111 | DC62: . | DD62: 66.66666667 | DE62: 55.55555556 | DF62: 0 | DG62: 0 | DH62: 100 | DI62: 55.55555556 | DJ62: 77.77777778 | DK62: 44.44444444 | DL62: 77.77777778 | DM62: 11.11111111 | DN62: 88.88888889 | DO62: 88.88888889 | DP62: 77.77777778 | DQ62: 44.44444444 | DR62: 11.11111111 | DS62: . | DT62: 88.88888889 | DU62: . | DV62: 66.66666667 | DW62: 0 | DX62: 100 | DY62: . | DZ62: . | EA62: . | EB62: 77.77777778 | EC62: 22.22222222 | ED62: 11.11111111 | EE62: 33.33333333 | EF62: 33.33333333 | EG62: 22.22222222 | EH62: . | EI62: 40.47619048 | EJ62: 8.888888889 | EK62: 29.16666667 | EL62: 14.81481481 | EM62: 65.65656566 | EN62: 50.92592593 | EO62: 44.75308642 | EP62: 15.55555556 | EQ62: 35.85858586 | ER62: 32.53968254 | ES62: 37.77777778 | ET62: 6.349206349 | EU62: 50.92592593 | EV62: 28.88888889 | EW62: 61.53846154 | EX62: 88.88888889 | EY62: 39.68253968 | EZ62: 37.17948718 | FA62: . | FB62: 27 | FC62: 36 | FD62: 7 | FE62: 1 | FF62: 15 | FG62: 36 | FH62: . | FI62: 22 | FJ62: 36 | FK62: 27 | FL62: . | FM62: 27 | FN62: 27 | FO62: 36 | FP62: . | FQ62: 27 | FR62: . | FS62: 22 | FT62: 22 | FU62: . | FV62: . | FW62: 7 | FX62: 27 | FY62: . | FZ62: 13 | GA62: 15 | GB62: 36 | GC62: 36 | GD62: 1 | GE62: 15 | GF62: 7 | GG62: 18 | GH62: 7 | GI62: 27 | GJ62: 4 | GK62: 4 | GL62: 7 | GM62: 18 | GN62: 27 | GO62: . | GP62: 4 | GQ62: . | GR62: 13 | GS62: 36 | GT62: 1 | GU62: . | GV62: . | GW62: . | GX62: 7 | GY62: 22 | GZ62: 27 | HA62: 20 | HB62: 20 | HC62: 22 | HD62: . | HE62: . | HF62: 5 | HG62: 3 | HH62: 4 | HI62: 1 | HJ62: 2 | HK62: . | HL62: 7 | HM62: 4 | HN62: 5 | HO62: 3 | HP62: 8 | HQ62: 2 | HR62: 6 | HS62: 1 | HT62: 1 | HU62: 2 | HV62: 3
A63: 62_1 | C63: 9.329780423 | D63: 83.23224244 | E63: 18.07313537 | F63: . | G63: . | H63: . | I63: . | J63: . | K63: . | L63: . | M63: . | N63: . | O63: . | P63: . | Q63: . | R63: . | S63: . | T63: . | U63: . | V63: . | W63: . | X63: . | Y63: . | Z63: . | AA63: . | AB63: . | AC63: . | AD63: . | AE63: . | AF63: . | AG63: . | AH63: . | AI63: . | AJ63: . | AK63: . | AL63: . | AM63: . | AN63: . | AO63: . | AP63: . | AQ63: . | AR63: . | AS63: . | AT63: . | AU63: . | AV63: . | AW63: . | AX63: . | AY63: . | AZ63: . | BA63: . | BB63: . | BC63: . | BD63: . | BE63: . | BF63: . | BG63: . | BH63: . | BI63: . | BJ63: . | BK63: . | BL63: . | BM63: . | BN63: . | BO63: . | BP63: . | BQ63: . | BR63: . | BS63: . | BT63: . | BU63: . | BV63: . | BW63: . | BX63: . | BY63: . | BZ63: . | CA63: . | CB63: . | CC63: . | CD63: . | CE63: . | CF63: 44.23126631 | CG63: 24.09778813 | CH63: 70.61115659 | CI63: 64.13387965 | CJ63: 54.54202003 | CK63: 36.88814192 | CL63: 83.23224244 | CM63: 42.0149761 | CN63: 33.35304228 | CO63: 31.65379939 | CP63: 61.78708893 | CQ63: 35.17798053 | CR63: 30.41197056 | CS63: 28.90204131 | CT63: 26.56010034 | CU63: 32.41857607 | CV63: 12.46140955 | CW63: 9.329780423 | CX63: 30.72425233 | CY63: 44.33387913 | CZ63: 25.03581017 | DA63: 70.82393063 | DB63: 40.02630833 | DC63: 32.3359107 | DD63: 38.99500301 | DE63: 54.17273163 | DF63: 37.85811099 | DG63: 22.91422721 | DH63: 59.75468211 | DI63: 55.68205999 | DJ63: 66.50941495 | DK63: 46.39790849 | DL63: 76.83278054 | DM63: 44.62802811 | DN63: 66.47074141 | DO63: 70.35232592 | DP63: 53.80944434 | DQ63: 45.61386982 | DR63: 33.14771869 | DS63: 67.90400844 | DT63: 71.81141934 | DU63: 59.25978639 | DV63: 45.88598236 | DW63: 9.994989889 | DX63: 66.13414205 | DY63: . | DZ63: . | EA63: 28.94693551 | EB63: 56.89369958 | EC63: 34.87519243 | ED63: 39.55257643 | EE63: 47.90085438 | EF63: 63.37736861 | EG63: 26.53576789 | EH63: . | EI63: 45.33267543 | EJ63: 36.97514209 | EK63: 37.40740144 | EL63: 38.3570971 | EM63: 54.70760029 | EN63: 50.89218558 | EO63: 46.24253347 | EP63: 39.54480131 | EQ63: 43.8882826 | ER63: 41.10873142 | ES63: 42.76508351 | ET63: 35.67870668 | EU63: 50.89218558 | EV63: 27.25083006 | EW63: 53.43644871 | EX63: 68.12843148 | EY63: 45.42516211 | EZ63: 40.875842 | FA63: . | FB63: 27 | FC63: 48 | FD63: 5 | FE63: 11 | FF63: 18 | FG63: 33 | FH63: 1 | FI63: 28 | FJ63: 36 | FK63: 40 | FL63: 13 | FM63: 34 | FN63: 42 | FO63: 44 | FP63: 45 | FQ63: 38 | FR63: 50 | FS63: 52 | FT63: 41 | FU63: 26 | FV63: 47 | FW63: 4 | FX63: 29 | FY63: 39 | FZ63: 31 | GA63: 19 | GB63: 32 | GC63: 49 | GD63: 14 | GE63: 17 | GF63: 8 | GG63: 22 | GH63: 2 | GI63: 25 | GJ63: 9 | GK63: 6 | GL63: 20 | GM63: 24 | GN63: 37 | GO63: 7 | GP63: 3 | GQ63: 15 | GR63: 23 | GS63: 51 | GT63: 10 | GU63: . | GV63: . | GW63: 43 | GX63: 16 | GY63: 35 | GZ63: 30 | HA63: 21 | HB63: 12 | HC63: 46 | HD63: . | HE63: . | HF63: 5 | HG63: 4 | HH63: 3 | HI63: 1 | HJ63: 2 | HK63: . | HL63: 6 | HM63: 3 | HN63: 5 | HO63: 4 | HP63: 7 | HQ63: 2 | HR63: 8 | HS63: 1 | HT63: 1 | HU63: 2 | HV63: 3
A64: 63_1 | C64: 8.871124336 | D64: 92.82787889 | E64: 19.49553799 | F64: . | G64: . | H64: . | I64: . | J64: . | K64: . | L64: . | M64: . | N64: . | O64: . | P64: . | Q64: . | R64: . | S64: . | T64: . | U64: . | V64: . | W64: . | X64: . | Y64: . | Z64: . | AA64: . | AB64: . | AC64: . | AD64: . | AE64: . | AF64: . | AG64: . | AH64: . | AI64: . | AJ64: . | AK64: . | AL64: . | AM64: . | AN64: . | AO64: . | AP64: . | AQ64: . | AR64: . | AS64: . | AT64: . | AU64: . | AV64: . | AW64: . | AX64: . | AY64: . | AZ64: . | BA64: . | BB64: . | BC64: . | BD64: . | BE64: . | BF64: . | BG64: . | BH64: . | BI64: . | BJ64: . | BK64: . | BL64: . | BM64: . | BN64: . | BO64: . | BP64: . | BQ64: . | BR64: . | BS64: . | BT64: . | BU64: . | BV64: . | BW64: . | BX64: . | BY64: . | BZ64: . | CA64: . | CB64: . | CC64: . | CD64: . | CE64: . | CF64: 41.01744267 | CG64: 33.12782956 | CH64: 87.6391163 | CI64: 78.30828715 | CJ64: 68.68232239 | CK64: 38.60737627 | CL64: 92.82787889 | CM64: 43.26932496 | CN64: 52.73743361 | CO64: 42.57455252 | CP64: 68.93544467 | CQ64: 47.97323597 | CR64: 46.22651948 | CS64: 37.01020653 | CT64: 34.46716838 | CU64: 32.50954703 | CV64: 37.30704774 | CW64: 8.871124336 | CX64: 37.23237277 | CY64: 64.16939564 | CZ64: 36.8457175 | DA64: 76.34187536 | DB64: 54.15931944 | DC64: 33.34622014 | DD64: 54.2805706 | DE64: 46.83588037 | DF64: 51.37388829 | DG64: 24.0155805 | DH64: 70.02341055 | DI64: 57.99363328 | DJ64: 82.96374142 | DK64: 67.545098 | DL64: 75.5527916 | DM64: 49.11236276 | DN64: 65.40926258 | DO64: 86.48385184 | DP64: 60.15833281 | DQ64: 63.48601577 | DR64: 32.68303787 | DS64: 76.18670886 | DT64: 87.11265228 | DU64: 69.6322653 | DV64: 56.37435624 | DW64: 18.86383833 | DX64: 84.55959916 | DY64: . | DZ64: . | EA64: 33.90134419 | EB64: 61.13516454 | EC64: 51.0426288 | ED64: 34.98510437 | EE64: 55.615383 | EF64: 53.69239859 | EG64: 42.40106167 | EH64: . | EI64: 53.99243698 | EJ64: 50.15348823 | EK64: 43.6657951 | EL64: 41.53085589 | EM64: 60.69077921 | EN64: 63.23870567 | EO64: 55.6178606 | EP64: 43.33511766 | EQ64: 54.05946854 | ER64: 45.96803984 | ES64: 48.46430646 | ET64: 47.29631117 | EU64: 63.23870567 | EV64: 34.88840957 | EW64: 59.73779913 | EX64: 75.52641665 | EY64: 52.29247719 | EZ64: 50.64713113 | FA64: . | FB64: 37 | FC64: 47 | FD64: 2 | FE64: 7 | FF64: 14 | FG64: 38 | FH64: 1 | FI64: 34 | FJ64: 27 | FK64: 35 | FL64: 13 | FM64: 31 | FN64: 33 | FO64: 41 | FP64: 44 | FQ64: 49 | FR64: 39 | FS64: 52 | FT64: 40 | FU64: 17 | FV64: 42 | FW64: 8 | FX64: 25 | FY64: 46 | FZ64: 24 | GA64: 32 | GB64: 28 | GC64: 50 | GD64: 11 | GE64: 21 | GF64: 6 | GG64: 15 | GH64: 10 | GI64: 30 | GJ64: 16 | GK64: 4 | GL64: 20 | GM64: 18 | GN64: 48 | GO64: 9 | GP64: 3 | GQ64: 12 | GR64: 22 | GS64: 51 | GT64: 5 | GU64: . | GV64: . | GW64: 45 | GX64: 19 | GY64: 29 | GZ64: 43 | HA64: 23 | HB64: 26 | HC64: 36 | HD64: . | HE64: . | HF64: 3 | HG64: 4 | HH64: 5 | HI64: 2 | HJ64: 1 | HK64: . | HL64: 7 | HM64: 3 | HN64: 6 | HO64: 4 | HP64: 5 | HQ64: 1 | HR64: 8 | HS64: 2 | HT64: 1 | HU64: 2 | HV64: 3
A65: 64_1 | B65: aeeeeeexeeexeeexexeexxeexeeeeeeeeeeeeeeexexeeexxxeeeeee | C65: 0 | D65: 100 | E65: 26.09360813 | F65: 1 | G65: 10 | H65: 2.348424732 | I65: . | J65: 5 | K65: 3 | L65: 9 | M65: 8 | N65: 6 | O65: 5 | P65: . | Q65: 3 | R65: 5 | S65: 4 | T65: . | U65: 5 | V65: 3 | W65: 3 | X65: . | Y65: 4 | Z65: . | AA65: 1 | AB65: 4 | AC65: . | AD65: . | AE65: 8 | AF65: 4 | AG65: . | AH65: 6 | AI65: 4 | AJ65: 5 | AK65: 1 | AL65: 7 | AM65: 6 | AN65: 9 | AO65: 8 | AP65: 9 | AQ65: 5 | AR65: 7 | AS65: 9 | AT65: 5 | AU65: 7 | AV65: 3 | AW65: . | AX65: 9 | AY65: . | AZ65: 6 | BA65: 3 | BB65: 10 | BC65: . | BD65: . | BE65: . | BF65: 6 | BG65: 4 | BH65: 1 | BI65: 7 | BJ65: 6 | BK65: 4 | BL65: . | BM65: . | BN65: . | BO65: . | BP65: . | BQ65: . | BR65: . | BS65: . | BT65: . | BU65: . | BV65: . | BW65: . | BX65: . | BY65: . | BZ65: . | CA65: . | CB65: . | CC65: . | CD65: . | CE65: . | CF65: 44.44444444 | CG65: 22.22222222 | CH65: 88.88888889 | CI65: 77.77777778 | CJ65: 55.55555556 | CK65: 44.44444444 | CL65: . | CM65: 22.22222222 | CN65: 44.44444444 | CO65: 33.33333333 | CP65: . | CQ65: 44.44444444 | CR65: 22.22222222 | CS65: 22.22222222 | CT65: . | CU65: 33.33333333 | CV65: . | CW65: 0 | CX65: 33.33333333 | CY65: . | CZ65: . | DA65: 77.77777778 | DB65: 33.33333333 | DC65: . | DD65: 55.55555556 | DE65: 33.33333333 | DF65: 44.44444444 | DG65: 0 | DH65: 66.66666667 | DI65: 55.55555556 | DJ65: 88.88888889 | DK65: 77.77777778 | DL65: 88.88888889 | DM65: 44.44444444 | DN65: 66.66666667 | DO65: 88.88888889 | DP65: 44.44444444 | DQ65: 66.66666667 | DR65: 22.22222222 | DS65: . | DT65: 88.88888889 | DU65: . | DV65: 55.55555556 | DW65: 22.22222222 | DX65: 100 | DY65: . | DZ65: . | EA65: . | EB65: 55.55555556 | EC65: 33.33333333 | ED65: 0 | EE65: 66.66666667 | EF65: 55.55555556 | EG65: 33.33333333 | EH65: . | EI65: 48.94179894 | EJ65: 33.33333333 | EK65: 37.5 | EL65: 33.33333333 | EM65: 62.62626263 | EN65: 58.33333333 | EO65: 51.54320988 | EP65: 33.33333333 | EQ65: 45.95959596 | ER65: 41.26984127 | ES65: 48.88888889 | ET65: 33.33333333 | EU65: 58.33333333 | EV65: 35.55555556 | EW65: 58.97435897 | EX65: 77.77777778 | EY65: 49.20634921 | EZ65: 46.58119658 | FA65: . | FB65: 20 | FC65: 34 | FD65: 2 | FE65: 7 | FF65: 14 | FG65: 20 | FH65: . | FI65: 34 | FJ65: 20 | FK65: 27 | FL65: . | FM65: 20 | FN65: 34 | FO65: 34 | FP65: . | FQ65: 27 | FR65: . | FS65: 40 | FT65: 27 | FU65: . | FV65: . | FW65: 7 | FX65: 27 | FY65: . | FZ65: 14 | GA65: 27 | GB65: 20 | GC65: 40 | GD65: 10 | GE65: 14 | GF65: 2 | GG65: 7 | GH65: 2 | GI65: 20 | GJ65: 10 | GK65: 2 | GL65: 20 | GM65: 10 | GN65: 34 | GO65: . | GP65: 2 | GQ65: . | GR65: 14 | GS65: 34 | GT65: 1 | GU65: . | GV65: . | GW65: . | GX65: 14 | GY65: 27 | GZ65: 40 | HA65: 10 | HB65: 14 | HC65: 27 | HD65: . | HE65: . | HF65: 4 | HG65: 3 | HH65: 4 | HI65: 1 | HJ65: 2 | HK65: . | HL65: 7 | HM65: 4 | HN65: 5 | HO65: 3 | HP65: 7 | HQ65: 2 | HR65: 6 | HS65: 1 | HT65: 1 | HU65: 2 | HV65: 3
A66: 65_1 | B66: aaaaaaaaaaaaaaaaaaaaaaaaaaaaaaaaaaaaaaaaaaaaaaxxaaaaaaa | C66: 7.594936709 | D66: 100 | E66: 24.01468228 | F66: 17 | G66: 90 | H66: 18.971599 | I66: . | J66: 74 | K66: 80 | L66: 30 | M66: 27 | N66: 39 | O66: 80 | P66: 32 | Q66: 71 | R66: 61 | S66: 72 | T66: 38 | U66: 71 | V66: 77 | W66: 83 | X66: 63 | Y66: 69 | Z66: 79 | AA66: 68 | AB66: 64 | AC66: 55 | AD66: 70 | AE66: 55 | AF66: 71 | AG66: 56 | AH66: 70 | AI66: 52 | AJ66: 68 | AK66: 90 | AL66: 32 | AM66: 52 | AN66: 22 | AO66: 67 | AP66: 17 | AQ66: 53 | AR66: 48 | AS66: 34 | AT66: 62 | AU66: 55 | AV66: 72 | AW66: 25 | AX66: 34 | AY66: 51 | AZ66: 75 | BA66: 86 | BB66: 23 | BC66: . | BD66: . | BE66: 77 | BF66: 49 | BG66: 72 | BH66: 74 | BI66: 40 | BJ66: 62 | BK66: 69 | BL66: . | BM66: . | BN66: . | BO66: . | BP66: . | BQ66: . | BR66: . | BS66: . | BT66: . | BU66: . | BV66: . | BW66: . | BX66: . | BY66: . | BZ66: . | CA66: . | CB66: . | CC66: . | CD66: . | CE66: . | CF66: 27.84810127 | CG66: 20.25316456 | CH66: 83.5443038 | CI66: 87.34177215 | CJ66: 72.15189873 | CK66: 20.25316456 | CL66: 81.01265823 | CM66: 31.64556962 | CN66: 44.30379747 | CO66: 30.37974684 | CP66: 73.41772152 | CQ66: 31.64556962 | CR66: 24.05063291 | CS66: 16.4556962 | CT66: 41.7721519 | CU66: 34.17721519 | CV66: 21.51898734 | CW66: 35.44303797 | CX66: 40.50632911 | CY66: 51.89873418 | CZ66: 32.91139241 | DA66: 51.89873418 | DB66: 31.64556962 | DC66: 50.63291139 | DD66: 32.91139241 | DE66: 55.69620253 | DF66: 35.44303797 | DG66: 7.594936709 | DH66: 81.01265823 | DI66: 55.69620253 | DJ66: 93.67088608 | DK66: 36.70886076 | DL66: 100 | DM66: 54.43037975 | DN66: 60.75949367 | DO66: 78.48101266 | DP66: 43.03797468 | DQ66: 51.89873418 | DR66: 30.37974684 | DS66: 89.87341772 | DT66: 78.48101266 | DU66: 56.96202532 | DV66: 26.58227848 | DW66: 12.65822785 | DX66: 92.40506329 | DY66: . | DZ66: . | EA66: 24.05063291 | EB66: 59.49367089 | EC66: 30.37974684 | ED66: 27.84810127 | EE66: 70.88607595 | EF66: 43.03797468 | EG66: 34.17721519 | EH66: . | EI66: 48.10126582 | EJ66: 39.71518987 | EK66: 43.15304948 | EL66: 31.43459916 | EM66: 61.07594937 | EN66: 52.48945148 | EO66: 50.27517887 | EP66: 30.88607595 | EQ66: 46.74502712 | ER66: 44.37412096 | ES66: 42.78481013 | ET66: 35.82278481 | EU66: 52.48945148 | EV66: 39.02953586 | EW66: 57.72151899 | EX66: 80.37974684 | EY66: 49.70464135 | EZ66: 41.07799102 | FA66: . | FB66: 42 | FC66: 48 | FD66: 6 | FE66: 5 | FF66: 12 | FG66: 48 | FH66: 7 | FI66: 36 | FJ66: 24 | FK66: 39 | FL66: 11 | FM66: 36 | FN66: 45 | FO66: 50 | FP66: 27 | FQ66: 32 | FR66: 47 | FS66: 30 | FT66: 28 | FU66: 20 | FV66: 34 | FW66: 20 | FX66: 36 | FY66: 23 | FZ66: 34 | GA66: 17 | GB66: 30 | GC66: 52 | GD66: 7 | GE66: 17 | GF66: 2 | GG66: 29 | GH66: 1 | GI66: 19 | GJ66: 14 | GK66: 9 | GL66: 25 | GM66: 20 | GN66: 39 | GO66: 4 | GP66: 9 | GQ66: 16 | GR66: 44 | GS66: 51 | GT66: 3 | GU66: . | GV66: . | GW66: 45 | GX66: 15 | GY66: 39 | GZ66: 42 | HA66: 13 | HB66: 25 | HC66: 32 | HD66: . | HE66: . | HF66: 4 | HG66: 3 | HH66: 5 | HI66: 1 | HJ66: 2 | HK66: . | HL66: 8 | HM66: 3 | HN66: 4 | HO66: 5 | HP66: 7 | HQ66: 2 | HR66: 6 | HS66: 1 | HT66: 1 | HU66: 2 | HV66: 3
